Workbook

Sheet AER - changes and inputs
A1: AER 2019-24 draft decision - changes to Endeavour Energy's 'Fee and Quoted Services Pricing Model'
A3: AER methodology
A4: The worksheets 'Inputs' and 'Calc Cost build up' have been duplicated at the same time to maintain formula links, they have been renamed with an 'AER' prefix
A5: The AER's changes have been made to generate a set of prices for 2019-20 only, which are found in 'AER - Calc Cost build up'
A7: Initial Modelling changes to 'AER - Inputs'
A8: These changes are made to generate Endeavour's effective labour rates for 2019-20 that can be compared against the maximum labour rates recommended by the AER's consultant Marsden Jacob. They were agreed by Endeavour in its response to IR #030
A9: 1. Overhead escalators - several labour rates have been escalated by the overhead escalators applied in row 759 down and the overhead escalator rates changed to 1.0. (agreed by Endeavour in response to Information Request #030) - this makes them consistent with the other labour rates which include escalators. Specifically, labour rates 7 through 12 were increased by 1.65 and labour 13 was increased by 1.87 in rows 38-44 of 'Inputs' and J767, 1039, 1042-44 were reduced to 1.0. This will increase prices for some new services that relied on these labour rates but that did not include the overhead escalator (which they should have)
A10: 2. Correction to labour rate 13 - this labour rate has been over-inflated and the labour times for services that rely on it have been understated (which have the same net effect on the proposed fee). This labour rate will be divided by 1.34 (in cell H44) to reflect the true hourly labour rate, and the hours for services that rely on this rate will be increased to 1.34 hours (T636 and T690)
A11: 3. Application of X-Factors - To escalate the labour rates in Inputs by the approved x-factors for 2014-15 to 2018-19 and Endeavour's proposed 2019-20 escalator we have updated the figures in H51 to M51. H51 to L51 are changed to our approved x-factor (expressed in the positive) sourced from I28 -L28 and Endeavour's proposed 19-20 escalator is soured from 'Calc Revenue and Tariffs' Cell M8.
A13: 4. Comparison of labour rates
E14: AER CPI % for 2019-20 | F14: 0.02424874658
A15: Comparison of Endeavour's proposed 2019-20 labour rates to Marsden Jacob's recommended maximum
A16: Endeavour's labour rate | B16: Endeavour's labour description | C16: Endeavour's implied 2019-20 labour rate as agreed in info request #030 | D16: Matched to Marsden Jacob labour category | E16: MJ max labour rate $2018-19 | F16: MJ Max labour rate escalated to $2019-20 | G16: Substitute AER maximum labour rate? | H16: % change
A17: 1 | B17: Admin | C17: 103.8976507 | D17: Admin | E17: 102.26 | F17: =Table1[[#This Row],[MJ max labour rate $2018-19]]*(1+$F$14) -> 104.7396768 | G17: =IF(Table1[[#This Row],[Endeavour''s implied 2019-20 labour rate as agreed in info request '#030]]>Table1[[#This Row],[MJ Max labour rate escalated to $2019-20]],"Yes","No") -> No
A18: 2 | B18: Technical | C18: 166.6025545 | D18: Technical Specialist | E18: 153.39 | F18: =Table1[[#This Row],[MJ max labour rate $2018-19]]*(1+$F$14) -> 157.1095152 | G18: =IF(Table1[[#This Row],[Endeavour''s implied 2019-20 labour rate as agreed in info request '#030]]>Table1[[#This Row],[MJ Max labour rate escalated to $2019-20]],"Yes","No") -> Yes | H18: =(Table1[[#This Row],[MJ Max labour rate escalated to $2019-20]]-Table1[[#This Row],[Endeavour''s implied 2019-20 labour rate as agreed in info request '#030]])/Table1[[#This Row],[Endeavour''s implied 2019-20 labour rate as agreed in info request '#030]] -> -0.05698015418
A19: 3 | B19: Engineer | C19: 207.0953398 | D19: Engineer | E19: 191.74 | F19: =Table1[[#This Row],[MJ max labour rate $2018-19]]*(1+$F$14) -> 196.3894547 | G19: =IF(Table1[[#This Row],[Endeavour''s implied 2019-20 labour rate as agreed in info request '#030]]>Table1[[#This Row],[MJ Max labour rate escalated to $2019-20]],"Yes","No") -> Yes | H19: =(Table1[[#This Row],[MJ Max labour rate escalated to $2019-20]]-Table1[[#This Row],[Endeavour''s implied 2019-20 labour rate as agreed in info request '#030]])/Table1[[#This Row],[Endeavour''s implied 2019-20 labour rate as agreed in info request '#030]] -> -0.05169544184
A20: 4 | B20: Field Worker | C20: 156.0914627 | D20: Field Worker | E20: 147.83 | F20: =Table1[[#This Row],[MJ max labour rate $2018-19]]*(1+$F$14) -> 151.4146922 | G20: =IF(Table1[[#This Row],[Endeavour''s implied 2019-20 labour rate as agreed in info request '#030]]>Table1[[#This Row],[MJ Max labour rate escalated to $2019-20]],"Yes","No") -> Yes | H20: =(Table1[[#This Row],[MJ Max labour rate escalated to $2019-20]]-Table1[[#This Row],[Endeavour''s implied 2019-20 labour rate as agreed in info request '#030]])/Table1[[#This Row],[Endeavour''s implied 2019-20 labour rate as agreed in info request '#030]] -> -0.02996173154
A21: 5 | B21: Senior Engineer | C21: 246.1065394 | D21: Senior Engineer | E21: 210.91 | F21: =Table1[[#This Row],[MJ max labour rate $2018-19]]*(1+$F$14) -> 216.0243031 | G21: =IF(Table1[[#This Row],[Endeavour''s implied 2019-20 labour rate as agreed in info request '#030]]>Table1[[#This Row],[MJ Max labour rate escalated to $2019-20]],"Yes","No") -> Yes | H21: =(Table1[[#This Row],[MJ Max labour rate escalated to $2019-20]]-Table1[[#This Row],[Endeavour''s implied 2019-20 labour rate as agreed in info request '#030]])/Table1[[#This Row],[Endeavour''s implied 2019-20 labour rate as agreed in info request '#030]] -> -0.1222325759
A22: 6 | B22: Traffic Controllers & Supervisors - External Contractors | C22: 90.55845298 | D22: N/A but below all relevant max labour rates
A23: 7 | B23: Operations Manager | C23: 197.6953829 | D23: Engineer | E23: 191.74 | F23: =Table1[[#This Row],[MJ max labour rate $2018-19]]*(1+$F$14) -> 196.3894547 | G23: =IF(Table1[[#This Row],[Endeavour''s implied 2019-20 labour rate as agreed in info request '#030]]>Table1[[#This Row],[MJ Max labour rate escalated to $2019-20]],"Yes","No") -> Yes | H23: =(Table1[[#This Row],[MJ Max labour rate escalated to $2019-20]]-Table1[[#This Row],[Endeavour''s implied 2019-20 labour rate as agreed in info request '#030]])/Table1[[#This Row],[Endeavour''s implied 2019-20 labour rate as agreed in info request '#030]] -> -0.006605759747
A24: 8 | B24: Engineering Officer / Project Manager | C24: 191.7145723 | D24: Engineer | E24: 191.74 | F24: =Table1[[#This Row],[MJ max labour rate $2018-19]]*(1+$F$14) -> 196.3894547 | G24: =IF(Table1[[#This Row],[Endeavour''s implied 2019-20 labour rate as agreed in info request '#030]]>Table1[[#This Row],[MJ Max labour rate escalated to $2019-20]],"Yes","No") -> No
A25: 9 | B25: EFM | C25: 127.7338688 | D25: Field Worker | E25: 147.83 | F25: =Table1[[#This Row],[MJ max labour rate $2018-19]]*(1+$F$14) -> 151.4146922 | G25: =IF(Table1[[#This Row],[Endeavour''s implied 2019-20 labour rate as agreed in info request '#030]]>Table1[[#This Row],[MJ Max labour rate escalated to $2019-20]],"Yes","No") -> No
A26: 10 | B26: All staff involved in disconnections / reconnections (Meter Box) | C26: 193.2903322 | D26: Field Worker | E26: 147.83 | F26: =Table1[[#This Row],[MJ max labour rate $2018-19]]*(1+$F$14) -> 151.4146922 | G26: =IF(Table1[[#This Row],[Endeavour''s implied 2019-20 labour rate as agreed in info request '#030]]>Table1[[#This Row],[MJ Max labour rate escalated to $2019-20]],"Yes","No") -> Yes | H26: =(Table1[[#This Row],[MJ Max labour rate escalated to $2019-20]]-Table1[[#This Row],[Endeavour''s implied 2019-20 labour rate as agreed in info request '#030]])/Table1[[#This Row],[Endeavour''s implied 2019-20 labour rate as agreed in info request '#030]] -> -0.2166463245
A27: 11 | B27: All staff involved in disconnections / reconnections (Site Visit) | C27: 64.18105993 | D27: N/A but below all relevant max labour rates
A28: 12 | B28: All staff involved in disconnections / reconnections (Meter Box) | C28: 72.48387459 | D28: N/A but below all relevant max labour rates
A29: 13 | B29: R4 - Field Worker | C29: 166.0625886 | D29: Field Worker | E29: 147.83 | F29: =Table1[[#This Row],[MJ max labour rate $2018-19]]*(1+$F$14) -> 151.4146922 | G29: =IF(Table1[[#This Row],[Endeavour''s implied 2019-20 labour rate as agreed in info request '#030]]>Table1[[#This Row],[MJ Max labour rate escalated to $2019-20]],"Yes","No") -> Yes | H29: =(Table1[[#This Row],[MJ Max labour rate escalated to $2019-20]]-Table1[[#This Row],[Endeavour''s implied 2019-20 labour rate as agreed in info request '#030]])/Table1[[#This Row],[Endeavour''s implied 2019-20 labour rate as agreed in info request '#030]] -> -0.08820708218
A30: 14 | B30: R1 - Admin | C30: 111.0900251 | D30: Admin | E30: 102.26 | F30: =Table1[[#This Row],[MJ max labour rate $2018-19]]*(1+$F$14) -> 104.7396768 | G30: =IF(Table1[[#This Row],[Endeavour''s implied 2019-20 labour rate as agreed in info request '#030]]>Table1[[#This Row],[MJ Max labour rate escalated to $2019-20]],"Yes","No") -> Yes | H30: =(Table1[[#This Row],[MJ Max labour rate escalated to $2019-20]]-Table1[[#This Row],[Endeavour''s implied 2019-20 labour rate as agreed in info request '#030]])/Table1[[#This Row],[Endeavour''s implied 2019-20 labour rate as agreed in info request '#030]] -> -0.0571639827
A31: 15 | B31: R2 - Technical Specialist | C31: 178.1357117 | D31: Technical Specialist | E31: 153.39 | F31: =Table1[[#This Row],[MJ max labour rate $2018-19]]*(1+$F$14) -> 157.1095152 | G31: =IF(Table1[[#This Row],[Endeavour''s implied 2019-20 labour rate as agreed in info request '#030]]>Table1[[#This Row],[MJ Max labour rate escalated to $2019-20]],"Yes","No") -> Yes | H31: =(Table1[[#This Row],[MJ Max labour rate escalated to $2019-20]]-Table1[[#This Row],[Endeavour''s implied 2019-20 labour rate as agreed in info request '#030]])/Table1[[#This Row],[Endeavour''s implied 2019-20 labour rate as agreed in info request '#030]] -> -0.1180347066
A32: 16 | B32: R3 - Engineer | C32: 221.4316332 | D32: Engineer | E32: 191.74 | F32: =Table1[[#This Row],[MJ max labour rate $2018-19]]*(1+$F$14) -> 196.3894547 | G32: =IF(Table1[[#This Row],[Endeavour''s implied 2019-20 labour rate as agreed in info request '#030]]>Table1[[#This Row],[MJ Max labour rate escalated to $2019-20]],"Yes","No") -> Yes | H32: =(Table1[[#This Row],[MJ Max labour rate escalated to $2019-20]]-Table1[[#This Row],[Endeavour''s implied 2019-20 labour rate as agreed in info request '#030]])/Table1[[#This Row],[Endeavour''s implied 2019-20 labour rate as agreed in info request '#030]] -> -0.1130921458
A33: 17 | B33: R4 - Field Worker | C33: 166.8969836 | D33: Field Worker | E33: 147.83 | F33: =Table1[[#This Row],[MJ max labour rate $2018-19]]*(1+$F$14) -> 151.4146922 | G33: =IF(Table1[[#This Row],[Endeavour''s implied 2019-20 labour rate as agreed in info request '#030]]>Table1[[#This Row],[MJ Max labour rate escalated to $2019-20]],"Yes","No") -> Yes | H33: =(Table1[[#This Row],[MJ Max labour rate escalated to $2019-20]]-Table1[[#This Row],[Endeavour''s implied 2019-20 labour rate as agreed in info request '#030]])/Table1[[#This Row],[Endeavour''s implied 2019-20 labour rate as agreed in info request '#030]] -> -0.09276555541
A34: 18 | B34: Blended (69% R2 Tech & 31% R4 Field Worker) | C34: 184.2337477 | D34: Blended 69% Technical Specialist and 31% Field Worker | E34: =0.69*153.39+0.31*147.83 -> 151.6664 | F34: =Table1[[#This Row],[MJ max labour rate $2018-19]]*(1+$F$14) -> 155.3441201 | G34: =IF(Table1[[#This Row],[Endeavour''s implied 2019-20 labour rate as agreed in info request '#030]]>Table1[[#This Row],[MJ Max labour rate escalated to $2019-20]],"Yes","No") -> Yes | H34: =(Table1[[#This Row],[MJ Max labour rate escalated to $2019-20]]-Table1[[#This Row],[Endeavour''s implied 2019-20 labour rate as agreed in info request '#030]])/Table1[[#This Row],[Endeavour''s implied 2019-20 labour rate as agreed in info request '#030]] -> -0.1568096398
A36: Where Endeavour's proposed labour rate is higher than the AER's, we have substituted ours into 'AER-Inputs' column M and this ultimately generates our approved prices in column M of 'AER - Calc Cost build up'
A38: 5. Adjustments for labour time - Based on MJ's report (Table 9 - page 16), labour times for certain services have also been reduced in 'AER - inputs' from row 407 down, these services are: - Supply of conveyancing information - Per Desk Inquiry - Disconnections (Meter Box) - Includes Reconnection
A40: 6. Generation of 2019-20 prices - AER prices for 2019-20 are then generated in 'AER - Calc Cost build up' and compared to Endeavour's proposed price to determine the approved price.

Sheet AER - Inputs
A1: =IF(Solved, "X-factors Okay", "X-factor Error") -> X-factors Okay
B2: =ModelTitle -> ENDEAVOUR ENERGY FEE & QUOTED SERVICES PRICING MODEL
B3: INPUTS
B7: Model time horizon | F7: Years | G7: 2013-14 | H7: 2014-15 | I7: 2015-16 | J7: 2016-17 | K7: 2017-18 | L7: 2018-19 | M7: 2019-20 | N7: 2020-21 | O7: 2021-22 | P7: 2022-23 | Q7: 2023-24
B8: First Year of Regulatory Period for Forecast | C8: 2019-20
B10: Inflation | F10: Units | G10: =INDEX(ModelYears, COLUMN()-COLUMN($F10)) -> 2013-14 | H10: 2014-15 | I10: 2015-16 | J10: 2016-17 | K10: 2017-18 | L10: 2018-19 | M10: 2019-20 | N10: 2020-21 | O10: 2021-22 | P10: 2022-23 | Q10: 2023-24
B11: Forecast Annual CPI | F11: % | G11: 0.02474850298 | H11: 0.0238 | I11: 0.0238 | J11: 0.0238 | K11: 0.0238 | L11: 0.0238 | M11: 0.025 | N11: =M11 -> 0.025 | O11: =N11 -> 0.025 | P11: =O11 -> 0.025 | Q11: =P11 -> 0.025
B12: Forecast CPI Index, Base -> | C12: 2018-19 | F12: % | G12: =IF($C12=G$7,1,IF(MATCH($C12,ModelYears)>MATCH(G$7,ModelYears),H12/(1+H$11),F12*(1+G$11))) -> 0.8890462899 | H12: 0.9102055916 | I12: 0.9318684847 | J12: 0.9540469546 | K12: 0.9767532721 | L12: 1 | M12: 1.025 | N12: 1.050625 | O12: 1.076890625 | P12: 1.103812891 | Q12: 1.131408213
B13: Forecast CPI Index, Base -> | C13: 2015-16 | F13: % | G13: 0.9540469546 | H13: 0.9767532721 | I13: 1 | J13: 1.0238 | K13: 1.04816644 | L13: 1.073112801 | M13: 1.099940621 | N13: 1.127439137 | O13: 1.155625115 | P13: 1.184515743 | Q13: 1.214128637
B14: Forecast CPI Index, Base -> | C14: 2013-14 | F14: % | G14: 1 | H14: 1.0238 | I14: 1.04816644 | J14: 1.073112801 | K14: 1.098652886 | L14: 1.124800825 | M14: 1.152920845 | N14: 1.181743866 | O14: 1.211287463 | P14: 1.24156965 | Q14: 1.272608891
B15: Actual Annual CPI | F15: % | G15: ='[1]CPI & Indexes'!G7 -> 0.01762780156 | H15: ='[1]CPI & Indexes'!H7 -> 0.02449888641 | I15: ='[1]CPI & Indexes'!I7 -> 0.02487922705 | J15: ='[1]CPI & Indexes'!J7 -> 0.01508366722 | K15: ='[1]CPI & Indexes'!K7 -> 0.01276990945 | L15: ='[1]CPI & Indexes'!L7 -> 0.01948647409 | M15: 0.025 | N15: =M15 -> 0.025 | O15: =N15 -> 0.025 | P15: =O15 -> 0.025 | Q15: =P15 -> 0.025
B16: Actual CPI Index, Base -> | C16: 2018-19 | F16: % | G16: =IF($C16=G$7,1,IF(MATCH($C16,ModelYears)>MATCH(G$7,ModelYears),H16/(1+H$15),F16*(1+G$15))) -> 0.9087024961 | H16: =IF($C16=H$7,1,IF(MATCH($C16,ModelYears)>MATCH(H$7,ModelYears),I16/(1+I$15),G16*(1+H$15))) -> 0.9309646953 | I16: 0.9541263773 | J16: 0.9685181021 | K16: 0.9808859906 | L16: 1 | M16: 1.025 | N16: 1.050625 | O16: 1.076890625 | P16: 1.103812891 | Q16: 1.131408213
B17: Actual CPI Index, Base -> | C17: 2015-16 | F17: % | G17: =IF($C17=G$7,1,IF(MATCH($C17,ModelYears)>MATCH(G$7,ModelYears),H17/(1+H$15),F17*(1+G$15))) -> 0.9523921753 | H17: 0.9757247231 | I17: 1 | J17: 1.015083667 | K17: 1.028046194 | L17: 1.048079189 | M17: 1.074281169 | N17: 1.101138198 | O17: 1.128666653 | P17: 1.156883319 | Q17: 1.185805402
B18: Actual CPI Index, Base -> | C18: 2013-14 | F18: % | G18: 1 | H18: 1.024498886 | I18: 1.049987627 | J18: 1.065825291 | K18: 1.079435783 | L18: 1.100470181 | M18: 1.127981935 | N18: 1.156181484 | O18: 1.185086021 | P18: 1.214713171 | Q18: 1.245081
B19: Actual /Forecast Mixed Annual CPI | F19: % | G19: =IF(G15="",G11,G15) -> 0.01762780156 | H19: =IF(H15="",H11,H15) -> 0.02449888641 | I19: 0.02487922705 | J19: 0.01508366722 | K19: 0.01276990945 | L19: 0.01948647409 | M19: 0.025 | N19: 0.025 | O19: 0.025 | P19: 0.025 | Q19: 0.025
B20: Actual /Forecast Mixed Annual CPI, Base -> | C20: 2018-19 | F20: % | G20: =IF($C20=G$7,1,IF(MATCH($C20,ModelYears)>MATCH(G$7,ModelYears),H20/(1+H$19),F20*(1+G$19))) -> 0.9087024961 | H20: 0.9309646953 | I20: 0.9541263773 | J20: 0.9685181021 | K20: 0.9808859906 | L20: 1 | M20: 1.025 | N20: 1.050625 | O20: 1.076890625 | P20: 1.103812891 | Q20: 1.131408213
B21: Actual /Forecast Mixed Annual CPI, Base -> | C21: 2015-16 | F21: % | G21: 0.9523921753 | H21: 0.9757247231 | I21: 1 | J21: 1.015083667 | K21: 1.028046194 | L21: 1.048079189 | M21: 1.074281169 | N21: 1.101138198 | O21: 1.128666653 | P21: 1.156883319 | Q21: 1.185805402
B22: Actual /Forecast Mixed Annual CPI, Base -> | C22: 2013-14 | F22: % | G22: 1 | H22: 1.024498886 | I22: 1.049987627 | J22: 1.065825291 | K22: 1.079435783 | L22: 1.100470181 | M22: 1.127981935 | N22: 1.156181484 | O22: 1.185086021 | P22: 1.214713171 | Q22: 1.245081
B24: Cost of Capital & Rate of Return | F24: Units | G24: =INDEX(ModelYears, COLUMN()-COLUMN($F24)) -> 2013-14 | H24: 2014-15 | I24: 2015-16 | J24: 2016-17 | K24: 2017-18 | L24: 2018-19 | M24: 2019-20 | N24: 2020-21 | O24: 2021-22 | P24: 2022-23 | Q24: 2023-24
B25: Nominal WACC | F25: % | H25: =[1]WACC!D23 -> 0.06747656602 | I25: =[1]WACC!E23 -> 0.06684305548 | J25: =[1]WACC!F23 -> 0.06594745029 | K25: =[1]WACC!G23 -> 0.06502485112 | L25: =[1]WACC!H23 -> 0.06396760282 | M25: =[1]WACC!I23 -> 0.0611 | N25: =[1]WACC!J23 -> 0.0611 | O25: =[1]WACC!K23 -> 0.0611 | P25: =[1]WACC!L23 -> 0.0611 | Q25: =[1]WACC!M23 -> 0.0611
B26: Rate of Return on Debt | F26: % | G26: 0.06506614544 | H26: =[1]WACC!D21 -> 0.06512761003 | I26: =[1]WACC!E21 -> 0.06407175914 | J26: =[1]WACC!F21 -> 0.06257908381 | K26: =[1]WACC!G21 -> 0.06104141853 | L26: =[1]WACC!H21 -> 0.05927933803 | M26: =[1]WACC!I21 -> 0.0539 | N26: =[1]WACC!J21 -> 0.0539 | O26: =[1]WACC!K21 -> 0.0539 | P26: =[1]WACC!L21 -> 0.0539 | Q26: =[1]WACC!M21 -> 0.0539
B27: Rate of Return on Equity | F27: % | G27: 0.071 | H27: =[1]WACC!D22 -> 0.071 | I27: =[1]WACC!E22 -> 0.071 | J27: =[1]WACC!F22 -> 0.071 | K27: =[1]WACC!G22 -> 0.071 | L27: =[1]WACC!H22 -> 0.071 | M27: =[1]WACC!I22 -> 0.0719 | N27: =[1]WACC!J22 -> 0.0719 | O27: =[1]WACC!K22 -> 0.0719 | P27: =[1]WACC!L22 -> 0.0719 | Q27: =[1]WACC!M22 -> 0.0719
B28: Approved X-factors | F28: % | I28: -0.0102 | J28: -0.0107 | K28: -0.0111 | L28: -0.011
B30: Labour Rates ($/hour nominal) [Hard code the values you want to use as the base year this could be 2016-17, 2017-18, etc] | F30: Units | H30: =INDEX(ModelYears, COLUMN()-COLUMN($F30)) -> 2014-15 | I30: 2015-16 | J30: 2016-17 | K30: 2017-18 | L30: 2018-19 | M30: 2019-20 | N30: 2020-21 | O30: 2021-22 | P30: 2022-23 | Q30: 2023-24
B31: Type of Labour Hourly Rates | C31: Rate | D31: Description
B32: Admin | C32: 1 | D32: Admin | F32: $/hour nominal | H32: 89.06 | I32: =H32*(1+I$51)*(1+I$19) -> 92.20675655 | J32: 94.59906661 | K32: 96.8705468 | L32: 99.84455253 | M32: 103.8976507 | N32: 108.6656262 | O32: 114.0635336 | P32: 119.7196285 | Q32: 125.1709534
B33: Technical | C33: 2 | D33: Technical | F33: $/hour nominal | H33: 142.81 | I33: 147.855905 | J33: 151.6920357 | K33: 155.3344126 | L33: 160.1033073 | M33: ='AER - changes and inputs'!F18 -> 157.1095152 | N33: 164.3194407 | O33: 172.4819219 | P33: 181.0348229 | Q33: 189.2780796
B34: Engineer | C34: 3 | D34: Engineer | F34: $/hour nominal | H34: 177.52 | I34: 183.7923133 | J34: 188.5608163 | K34: 193.0884737 | L34: 199.0164492 | M34: ='AER - changes and inputs'!F19 -> 196.3894547 | N34: 205.401979 | O34: 215.6052135 | P34: 226.2964792 | Q34: 236.6006844
B35: Field Worker | C35: 4 | D35: Field Worker | F35: $/hour nominal | H35: 133.8 | I35: 138.5275548 | J35: 142.1216608 | K35: 145.5342372 | L35: 150.0022584 | M35: ='AER - changes and inputs'!F20 -> 151.4146922 | N35: 158.3632761 | O35: 166.2298879 | P35: 174.4727679 | Q35: 182.4172274
B36: Senior Engineer | C36: 5 | D36: Senior Engineer | F36: $/hour nominal | H36: 210.96 | I36: 218.4138487 | J36: 224.0806096 | K36: 229.461156 | L36: 236.5058029 | M36: ='AER - changes and inputs'!F21 -> 216.0243031 | N36: 225.9378919 | O36: 237.161237 | P36: 248.9214063 | Q36: 260.255817
C37: 6 | D37: Traffic Controllers & Supervisors - External Contractors | F37: $/hour nominal | H37: 77.62577657 | I37: 80.36852776 | J37: 82.45369423 | K37: 84.43354392 | L37: 87.02572341 | M37: 90.55845298 | N37: 94.71427828 | O37: 99.41915986 | P37: 104.3490808 | Q37: 109.1005217
C38: 7 | D38: Operations Manager | F38: $/hour nominal | H38: =102.704517223483*1.65 -> 169.4624534 | I38: 175.4500695 | J38: 180.0021325 | K38: 184.3242817 | L38: 189.9831892 | M38: ='AER - changes and inputs'!F23 -> 196.3894547 | N38: 205.401979 | O38: 215.6052135 | P38: 226.2964792 | Q38: 236.6006844
C39: 8 | D39: Engineering Officer / Project Manager | F39: $/hour nominal | H39: =99.5974327130577*1.65 -> 164.335764 | I39: 170.1422387 | J39: 174.5565897 | K39: 178.7479824 | L39: 184.235693 | M39: 191.7145723 | N39: 200.5125613 | O39: 210.4729165 | P39: 220.9096858 | Q39: 230.9686083
C40: 9 | D40: EFM | F40: $/hour nominal | H40: =66.3588857865252*1.65 -> 109.4921615 | I40: 113.3608476 | J40: 116.3020018 | K40: 119.0946054 | L40: 122.7509081 | M40: 127.7338688 | N40: 133.5957142 | O40: 140.2320105 | P40: 147.1857277 | Q40: 153.8876965
C41: 10 | D41: All staff involved in disconnections / reconnections (Meter Box) | F41: $/hour nominal | H41: =100.416054075234*1.65 -> 165.6864892 | I41: 171.5406891 | J41: 175.991323 | K41: 180.2171661 | L41: 185.7499818 | M41: ='AER - changes and inputs'!F26 -> 151.4146922 | N41: 158.3632761 | O41: 166.2298879 | P41: 174.4727679 | Q41: 182.4172274
C42: 11 | D42: All staff involved in disconnections / reconnections (Site Visit) | F42: $/hour nominal | H42: =33.3426339014538*1.65 -> 55.01534594 | I42: 56.95920289 | J42: 58.43701297 | K42: 59.84018239 | L42: 61.67732537 | M42: 64.18105993 | N42: 67.12639815 | O42: 70.46086641 | P42: 73.95482573 | Q42: 77.32229173
C43: 12 | D43: All staff involved in disconnections / reconnections (Meter Box) | F43: $/hour nominal | H43: =37.6560202782126*1.65 -> 62.13243346 | I43: 64.32775843 | J43: 65.99674614 | K43: 67.58143727 | L43: 69.65624317 | M43: 72.48387459 | N43: 75.81023795 | O43: 79.57607135 | P43: 83.52202846 | Q43: 87.32512836
C44: 13 | D44: R4 - Field Worker | F44: $/hour nominal | H44: =102.002768292567*1.87/1.34 -> 142.3471468 | I44: 147.3766978 | J44: 151.2003955 | K44: 154.8309673 | L44: 159.5844058 | M44: ='AER - changes and inputs'!F29 -> 151.4146922 | N44: 158.3632761 | O44: 166.2298879 | P44: 174.4727679 | Q44: 182.4172274
C45: 14 | D45: R1 - Admin | F45: $/hour nominal | H45: 95.22522949 | I45: 98.58982207 | J45: 101.1477412 | K45: 103.5764659 | L45: 106.7563489 | M45: ='AER - changes and inputs'!F30 -> 104.7396768 | N45: 109.5462938 | O45: 114.9879479 | P45: 120.689882 | Q45: 126.1853864
C46: 15 | D46: R2 - Technical Specialist | F46: $/hour nominal | H46: 152.696104 | I46: 158.0913147 | J46: 162.1930038 | K46: 166.0875263 | L46: 171.1865504 | M46: ='AER - changes and inputs'!F31 -> 157.1095152 | N46: 164.3194407 | O46: 172.4819219 | P46: 181.0348229 | Q46: 189.2780796
C47: 16 | D47: R3 - Engineer | F47: $/hour nominal | H47: 189.8089236 | I47: 196.5154414 | J47: 201.6140468 | K47: 206.4551338 | L47: 212.7934768 | M47: ='AER - changes and inputs'!F32 -> 196.3894547 | N47: 205.401979 | O47: 215.6052135 | P47: 226.2964792 | Q47: 236.6006844
C48: 17 | D48: R4 - Field Worker | F48: $/hour nominal | H48: 143.0623816 | I48: =H48*(1+I$51)*(1+I$19) -> 148.117204 | J48: 151.9601142 | K48: 155.6089281 | L48: 160.3862506 | M48: ='AER - changes and inputs'!F33 -> 151.4146922 | N48: 158.3632761 | O48: 166.2298879 | P48: 174.4727679 | Q48: 182.4172274
C49: 18 | D49: Blended (69% R2 Tech & 31% R4 Field Worker) | F49: $/hour nominal | H49: 157.9232779 | I49: 163.5031803 | J49: 167.7452805 | K49: 171.7731224 | L49: 177.046699 | M49: ='AER - changes and inputs'!F34 -> 155.3441201 | N49: 162.4730297 | O49: 170.5437913 | P49: 179.0005859 | Q49: 187.1512154
B50: Labour Rate Escalation
B51: Labour escalation | F51: % | H51: 0 | I51: =-I28 -> 0.0102 | J51: =-J28 -> 0.0107 | K51: 0.0111 | L51: 0.011 | M51: 0.01521374098 | N51: ='[2]Expected Wage Changes'!L31/100 -> 0.02038154247 | O51: ='[2]Expected Wage Changes'!M31/100 -> 0.0240726537 | P51: ='[2]Expected Wage Changes'!N31/100 -> 0.0239875434 | Q51: ='[2]Expected Wage Changes'!O31/100 -> 0.02003326255
B53: Volumes (Number of times the service is provided per year. If a service is provided to train 20 individuals in one session, then there are 20 services provided)
B54: Grouping 1 | C54: Grouping 2 | D54: Grouping 3 | E54: Grouping 4 | F54: Charge by | G54: Tariff Type | H54: =INDEX(ModelYears, COLUMN()-COLUMN($G54)+1) -> 2014-15 | I54: 2015-16 | J54: 2016-17 | K54: 2017-18 | L54: 2018-19 | M54: 2019-20 | N54: 2020-21 | O54: 2021-22 | P54: 2022-23 | Q54: 2023-24
A55: 1 | B55: Ancillary Services | C55: Access permits, oversight and facilitation | D55: Access Permits | E55: All Other - Asset Relocation - Per access authorisation (AA) or authority to work (ATW) | F55: Per AA or ATW | G55: Fee | H55: 282 | I55: 169.9999479 | J55: 147.9997427 | K55: =J55 -> 147.9997427 | L55: =K55 -> 147.9997427 | M55: 147.9997427 | N55: 147.9997427 | O55: 147.9997427 | P55: 147.9997427 | Q55: 147.9997427
A56: =IF(C56<>C55,IF(A55=1,0,1),A55) -> 1 | B56: Ancillary Services | C56: Access permits, oversight and facilitation | D56: Access Permits | E56: All Other - Industrial & Commercial - Per access authorisation (AA) or authority to work (ATW) | F56: Per AA or ATW | G56: Fee | H56: 208 | I56: 246.9999055 | J56: 218.9995962 | K56: =J56 -> 218.9995962 | L56: 218.9995962 | M56: 218.9995962 | N56: 218.9995962 | O56: 218.9995962 | P56: 218.9995962 | Q56: 218.9995962
A57: =IF(C57<>C56,IF(A56=1,0,1),A56) -> 1 | B57: Ancillary Services | C57: Access permits, oversight and facilitation | D57: Access Permits | E57: All Other - Non Urban - Per access authorisation (AA) or authority to work (ATW) | F57: Per AA or ATW | G57: Fee | H57: 97 | I57: 120.9999276 | J57: 103.9996674 | K57: 103.9996674 | L57: 103.9996674 | M57: 103.9996674 | N57: 103.9996674 | O57: 103.9996674 | P57: 103.9996674 | Q57: 103.9996674
A58: 1 | B58: Ancillary Services | C58: Access permits, oversight and facilitation | D58: Access Permits | E58: All Other - Public Lighting - Per access authorisation (AA) or authority to work (ATW) | F58: Per AA or ATW | G58: Fee | H58: 26 | I58: 8.999996307 | J58: 5.999980204 | K58: 5.999980204 | L58: 5.999980204 | M58: 5.999980204 | N58: 5.999980204 | O58: 5.999980204 | P58: 5.999980204 | Q58: 5.999980204
A59: 1 | B59: Ancillary Services | C59: Access permits, oversight and facilitation | D59: Access Permits | E59: All Other - URD - Per access authorisation (AA) or authority to work (ATW) | F59: Per AA or ATW | G59: Fee | H59: 105 | I59: 106.9999372 | J59: 115.9996753 | K59: 115.9996753 | L59: 115.9996753 | M59: 115.9996753 | N59: 115.9996753 | O59: 115.9996753 | P59: 115.9996753 | Q59: 115.9996753
A60: 1 | B60: Ancillary Services | C60: Access permits, oversight and facilitation | D60: Access Permits | E60: Subdivision - URD - Per Lot | F60: Per Lot | G60: Fee | H60: 0 | I60: 204 | J60: 242 | K60: 242 | L60: 242 | M60: 242 | N60: 242 | O60: 242 | P60: 242 | Q60: 242
A61: 1 | B61: Ancillary Services | C61: Access permits, oversight and facilitation | D61: Clearance to Work | E61: Clearance to Work | F61: Per Job | G61: Fee | H61: 55 | I61: 417.9991855 | J61: 519.9998765 | K61: 519.9998765 | L61: 519.9998765 | M61: 519.9998765 | N61: 519.9998765 | O61: 519.9998765 | P61: 519.9998765 | Q61: 519.9998765
A62: 1 | B62: Ancillary Services | C62: Access permits, oversight and facilitation | D62: Customer Interface co-ordination | E62: Customer Interface co-ordination for contestable works | F62: Per Hour | G62: Quote | H62: 31 | I62: 54 | J62: 70 | K62: 70 | L62: 70 | M62: 70 | N62: 70 | O62: 70 | P62: 70 | Q62: 70
A63: 1 | B63: Ancillary Services | C63: Access permits, oversight and facilitation | D63: Access permits, oversight and facilitation | E63: Break & remake HV bonds - Each additional set | F63: Per Job | G63: Fee | H63: 0 | I63: 0 | J63: 0 | K63: 0 | L63: 0 | M63: 0 | N63: 0 | O63: 0 | P63: 0 | Q63: 0
A64: 1 | B64: Ancillary Services | C64: Access permits, oversight and facilitation | D64: Access permits, oversight and facilitation | E64: Break & remake HV bonds - One set | F64: Per Job | G64: Fee | H64: 1 | I64: 0 | J64: 3 | K64: 3 | L64: 3 | M64: 3 | N64: 3 | O64: 3 | P64: 3 | Q64: 3
A65: 1 | B65: Ancillary Services | C65: Access permits, oversight and facilitation | D65: Access permits, oversight and facilitation | E65: Break & remake LV bonds - Each additional set | F65: Per Job | G65: Fee | H65: 1 | I65: 0 | J65: 0 | K65: 0 | L65: 0 | M65: 0 | N65: 0 | O65: 0 | P65: 0 | Q65: 0
A66: 1 | B66: Ancillary Services | C66: Access permits, oversight and facilitation | D66: Access permits, oversight and facilitation | E66: Break & remake LV bonds - One set | F66: Per Job | G66: Fee | H66: 3 | I66: 1 | J66: 1 | K66: 1 | L66: 1 | M66: 1 | N66: 1 | O66: 1 | P66: 1 | Q66: 1
A67: 1 | B67: Ancillary Services | C67: Access permits, oversight and facilitation | D67: Access permits, oversight and facilitation | E67: Connect & disconnect generator to a padmount / indoor substation - Each additional gen | F67: Per Job | G67: Fee | H67: 0 | I67: 3 | J67: 0 | K67: 0 | L67: 0 | M67: 0 | N67: 0 | O67: 0 | P67: 0 | Q67: 0
A68: 1 | B68: Ancillary Services | C68: Access permits, oversight and facilitation | D68: Access permits, oversight and facilitation | E68: Connect & disconnect generator to a padmount / indoor substation - One generator | F68: Per Job | G68: Fee | H68: 17 | I68: 17 | J68: 25 | K68: 25 | L68: 25 | M68: 25 | N68: 25 | O68: 25 | P68: 25 | Q68: 25
A69: 1 | B69: Ancillary Services | C69: Access permits, oversight and facilitation | D69: Access permits, oversight and facilitation | E69: Connect & disconnect generator to LV OH mains - Each additional generator | F69: Per Job | G69: Fee | H69: 0 | I69: 0 | J69: 0 | K69: 0 | L69: 0 | M69: 0 | N69: 0 | O69: 0 | P69: 0 | Q69: 0
A70: 1 | B70: Ancillary Services | C70: Access permits, oversight and facilitation | D70: Access permits, oversight and facilitation | E70: Connect & disconnect generator to LV OH mains - One generator | F70: Per Job | G70: Fee | H70: 9 | I70: 3 | J70: 5 | K70: 5 | L70: 5 | M70: 5 | N70: 5 | O70: 5 | P70: 5 | Q70: 5
A71: 1 | B71: Ancillary Services | C71: Access permits, oversight and facilitation | D71: Access permits, oversight and facilitation | E71: Install & remove HV live line links - Each additional set | F71: Per Job | G71: Fee | H71: 1 | I71: 1 | J71: 0 | K71: 0 | L71: 0 | M71: 0 | N71: 0 | O71: 0 | P71: 0 | Q71: 0
A72: 1 | B72: Ancillary Services | C72: Access permits, oversight and facilitation | D72: Access permits, oversight and facilitation | E72: Install & remove HV live line links - One set | F72: Per Job | G72: Fee | H72: 13 | I72: 14 | J72: 11 | K72: =J72 -> 11 | L72: 11 | M72: 11 | N72: 11 | O72: 11 | P72: 11 | Q72: 11
A73: 1 | B73: Ancillary Services | C73: Access permits, oversight and facilitation | D73: Access permits, oversight and facilitation | E73: Install & remove LV live line links - Each additional set | F73: Per Job | G73: Fee | H73: 1 | I73: 0 | J73: 2 | K73: 2 | L73: 2 | M73: 2 | N73: 2 | O73: 2 | P73: 2 | Q73: 2
A74: 1 | B74: Ancillary Services | C74: Access permits, oversight and facilitation | D74: Access permits, oversight and facilitation | E74: Install & remove LV live line links - One set | F74: Per Job | G74: Fee | H74: 3 | I74: 0 | J74: 3 | K74: 3 | L74: 3 | M74: 3 | N74: 3 | O74: 3 | P74: 3 | Q74: 3
A75: 1 | B75: Ancillary Services | C75: Access permits, oversight and facilitation | D75: Provision of Access Fee (Standby) | E75: Normal Time - 1 x Visit - Open / Close - 1 hour - Per Job | F75: Per Job | G75: Fee | H75: 90 | I75: 62 | J75: 118 | K75: 118 | L75: 118 | M75: 118 | N75: 118 | O75: 118 | P75: 118 | Q75: 118
A76: 1 | B76: Ancillary Services | C76: Access permits, oversight and facilitation | D76: Provision of Access Fee (Standby) | E76: Normal Time - 1 x Visit - Open / Isolate & CSO to close - 1 hour - Per Job | F76: Per Job | G76: Fee | H76: 104 | I76: 92 | J76: 135 | K76: 135 | L76: 135 | M76: 135 | N76: 135 | O76: 135 | P76: 135 | Q76: 135
A77: 1 | B77: Ancillary Services | C77: Access permits, oversight and facilitation | D77: Provision of Access Fee (Standby) | E77: Normal Time - 2 x Visit - Open / Close & no isolation - 2 hours - Per Job | F77: Per Job | G77: Fee | H77: 28 | I77: 9 | J77: 13 | K77: 13 | L77: 13 | M77: 13 | N77: 13 | O77: 13 | P77: 13 | Q77: 13
A78: 1 | B78: Ancillary Services | C78: Access permits, oversight and facilitation | D78: Provision of Access Fee (Standby) | E78: Normal Time - 2 x Visit - Open / Isolate / Close - 2 hours - Per Job | F78: Per Job | G78: Fee | H78: 74 | I78: 75 | J78: 84 | K78: 84 | L78: 84 | M78: 84 | N78: 84 | O78: 84 | P78: 84 | Q78: 84
A79: 1 | B79: Ancillary Services | C79: Access permits, oversight and facilitation | D79: Provision of Access Fee (Standby) | E79: Overtime - 1 x Visit - Open / Close - 1 hour - Per Job | F79: Per Job | G79: Fee | H79: 9 | I79: 2 | J79: 4 | K79: 4 | L79: 4 | M79: 4 | N79: 4 | O79: 4 | P79: 4 | Q79: 4
A80: 1 | B80: Ancillary Services | C80: Access permits, oversight and facilitation | D80: Provision of Access Fee (Standby) | E80: Overtime - 1 x Visit - Open / Isolate & CSO to close - 1 hour - Per Job | F80: Per Job | G80: Fee | H80: 33 | I80: 33 | J80: 24 | K80: 24 | L80: 24 | M80: 24 | N80: 24 | O80: 24 | P80: 24 | Q80: 24
A81: 1 | B81: Ancillary Services | C81: Access permits, oversight and facilitation | D81: Provision of Access Fee (Standby) | E81: Overtime - 2 x Visit - Open / Close & no isolation - 2 hours - Per Job | F81: Per Job | G81: Fee | H81: 2 | I81: 1 | J81: 1 | K81: 1 | L81: 1 | M81: 1 | N81: 1 | O81: 1 | P81: 1 | Q81: 1
A82: 1 | B82: Ancillary Services | C82: Access permits, oversight and facilitation | D82: Provision of Access Fee (Standby) | E82: Overtime - 2 x Visit - Open / Isolate / Close - 2 hours - Per Job | F82: Per Job | G82: Fee | H82: 57 | I82: 56 | J82: 36 | K82: 36 | L82: 36 | M82: 36 | N82: 36 | O82: 36 | P82: 36 | Q82: 36
A83: 0 | B83: Ancillary Services | C83: Authorisation of ASPs | D83: Authorisation | E83: Authorisation - New | F83: Per Authorisation | G83: Fee | H83: 0 | I83: 337 | J83: 336 | K83: 336 | L83: 336 | M83: 336 | N83: 336 | O83: 336 | P83: 336 | Q83: 336
A84: 0 | B84: Ancillary Services | C84: Authorisation of ASPs | D84: Authorisation | E84: Authorisation - Renewal | F84: Per Authorisation | G84: Fee | H84: 1811 | I84: 1216 | J84: 1359 | K84: 1359 | L84: 1359 | M84: 1359 | N84: 1359 | O84: 1359 | P84: 1359 | Q84: 1359
A85: 1 | B85: Ancillary Services | C85: Connection application related services | D85: Administration Fee | E85: Connection of Load - Industrial & Commercial - Per Hour | F85: Per Hour | G85: Quote | H85: 222 | I85: 217 | J85: 242 | K85: 242 | L85: 242 | M85: 242 | N85: 242 | O85: 242 | P85: 242 | Q85: 242
A86: 1 | B86: Ancillary Services | C86: Connection application related services | D86: Administration Fee | E86: Connection of Load - Non Urban - Overhead - 11+ poles | F86: Per Job | G86: Fee | H86: 2 | I86: 2 | J86: 0 | K86: =ROUND(AVERAGE($H$86:$J$86),0) -> 1 | L86: =ROUND(AVERAGE($H$86:$J$86),0) -> 1 | M86: 1 | N86: 1 | O86: 1 | P86: 1 | Q86: 1
A87: 1 | B87: Ancillary Services | C87: Connection application related services | D87: Administration Fee | E87: Connection of Load - Non Urban - Overhead - 1-5 poles | F87: Per Job | G87: Fee | H87: 75 | I87: 11 | J87: 4 | K87: =J87 -> 4 | L87: 4 | M87: 4 | N87: 4 | O87: 4 | P87: 4 | Q87: 4
A88: 1 | B88: Ancillary Services | C88: Connection application related services | D88: Administration Fee | E88: Connection of Load - Non Urban - Overhead - 6-10 poles | F88: Per Job | G88: Fee | H88: 2 | I88: 0 | J88: 0 | K88: 0 | L88: 0 | M88: 0 | N88: 0 | O88: 0 | P88: 0 | Q88: 0
A89: 1 | B89: Ancillary Services | C89: Connection application related services | D89: Administration Fee | E89: Connection of Load - Non Urban - Underground - Per Hour | F89: Per Hour | G89: Quote | H89: 10 | I89: 79 | J89: 87 | K89: 87 | L89: 87 | M89: 87 | N89: 87 | O89: 87 | P89: 87 | Q89: 87
A90: 1 | B90: Ancillary Services | C90: Connection application related services | D90: Administration Fee | E90: Connection of Load - URD - Per Hour | F90: Per Hour | G90: Quote | H90: 131 | I90: 161 | J90: 149 | K90: 149 | L90: 149 | M90: 149 | N90: 149 | O90: 149 | P90: 149 | Q90: 149
A91: 1 | B91: Ancillary Services | C91: Connection application related services | D91: Administration Fee | E91: Other - Asset Relocation - Per Hour | F91: Per Hour | G91: Quote | H91: 210 | I91: 178 | J91: 152 | K91: 152 | L91: 152 | M91: 152 | N91: 152 | O91: 152 | P91: 152 | Q91: 152
A92: =IF(C92<>C91,IF(A91=1,0,1),A91) -> 1 | B92: Ancillary Services | C92: Connection application related services | D92: Administration Fee | E92: Other - Public Lighting - Per Hour | F92: Per Hour | G92: Quote | H92: 55 | I92: 65 | J92: 49 | K92: 49 | L92: 49 | M92: 49 | N92: 49 | O92: 49 | P92: 49 | Q92: 49
A93: 1 | B93: Ancillary Services | C93: Connection application related services | D93: Administration Fee | E93: Subdivision - Industrial & Commercial - Per Hour | F93: Per Hour | G93: Quote | H93: 18 | I93: 18 | J93: 18 | K93: 18 | L93: 18 | M93: 18 | N93: 18 | O93: 18 | P93: 18 | Q93: 18
A94: 1 | B94: Ancillary Services | C94: Connection application related services | D94: Administration Fee | E94: Subdivision - Non Urban - Overhead - 11+ poles | F94: Per Job | G94: Fee | H94: 1 | I94: 2 | J94: 4 | K94: =ROUND(AVERAGE($H$94:$J$94),0) -> 2 | L94: =ROUND(AVERAGE($H$94:$J$94),0) -> 2 | M94: 2 | N94: 2 | O94: 2 | P94: 2 | Q94: 2
A95: =IF(C95<>C94,IF(A94=1,0,1),A94) -> 1 | B95: Ancillary Services | C95: Connection application related services | D95: Administration Fee | E95: Subdivision - Non Urban - Overhead - 1-5 poles | F95: Per Job | G95: Fee | H95: 27 | I95: 23 | J95: 20 | K95: 20 | L95: 20 | M95: 20 | N95: 20 | O95: 20 | P95: 20 | Q95: 20
A96: 1 | B96: Ancillary Services | C96: Connection application related services | D96: Administration Fee | E96: Subdivision - Non Urban - Overhead - 6-10 poles | F96: Per Job | G96: Fee | H96: 3 | I96: 5 | J96: 5 | K96: 5 | L96: 5 | M96: 5 | N96: 5 | O96: 5 | P96: 5 | Q96: 5
A97: 1 | B97: Ancillary Services | C97: Connection application related services | D97: Administration Fee | E97: Subdivision - Non Urban - Underground - 11-40 lots | F97: Per Job | G97: Fee | H97: 3 | I97: 3 | J97: 7 | K97: 7 | L97: 7 | M97: 7 | N97: 7 | O97: 7 | P97: 7 | Q97: 7
A98: 1 | B98: Ancillary Services | C98: Connection application related services | D98: Administration Fee | E98: Subdivision - Non Urban - Underground - 1-5 lots | F98: Per Job | G98: Fee | H98: 10 | I98: 9 | J98: 4 | K98: 4 | L98: 4 | M98: 4 | N98: 4 | O98: 4 | P98: 4 | Q98: 4
A99: 1 | B99: Ancillary Services | C99: Connection application related services | D99: Administration Fee | E99: Subdivision - Non Urban - Underground - 41+ lots | F99: Per Job | G99: Fee | H99: 0 | I99: 1 | J99: 0 | K99: 0 | L99: 0 | M99: 0 | N99: 0 | O99: 0 | P99: 0 | Q99: 0
A100: 1 | B100: Ancillary Services | C100: Connection application related services | D100: Administration Fee | E100: Subdivision - Non Urban - Underground - 6-10 lots | F100: Per Job | G100: Fee | H100: 5 | I100: 9 | J100: 6 | K100: 6 | L100: 6 | M100: 6 | N100: 6 | O100: 6 | P100: 6 | Q100: 6
A101: 1 | B101: Ancillary Services | C101: Connection application related services | D101: Administration Fee | E101: Subdivision - URD - Underground - 11-40 lots | F101: Per Job | G101: Fee | H101: 145 | I101: 168 | J101: 168 | K101: 168 | L101: 168 | M101: 168 | N101: 168 | O101: 168 | P101: 168 | Q101: 168
A102: 1 | B102: Ancillary Services | C102: Connection application related services | D102: Administration Fee | E102: Subdivision - URD - Underground - 1-5 lots | F102: Per Job | G102: Fee | H102: 112 | I102: 110 | J102: 88 | K102: 88 | L102: 88 | M102: 88 | N102: 88 | O102: 88 | P102: 88 | Q102: 88
A103: 1 | B103: Ancillary Services | C103: Connection application related services | D103: Administration Fee | E103: Subdivision - URD - Underground - 41+ lots | F103: Per Job | G103: Fee | H103: 122 | I103: 141 | J103: 135 | K103: =J103 -> 135 | L103: 135 | M103: 135 | N103: 135 | O103: 135 | P103: 135 | Q103: 135
A104: 1 | B104: Ancillary Services | C104: Connection application related services | D104: Administration Fee | E104: Subdivision - URD - Underground - 6-10 lots | F104: Per Job | G104: Fee | H104: 55 | I104: 68 | J104: 50 | K104: 50 | L104: 50 | M104: 50 | N104: 50 | O104: 50 | P104: 50 | Q104: 50
A105: 0 | B105: Ancillary Services | C105: Contestable network commissioning and decommissioning | D105: Substation Commission Fee | E105: All Other - Asset Relocation - Per Substation | F105: Per Substation | G105: Fee | H105: 32 | I105: 24 | J105: 36 | K105: 36 | L105: 36 | M105: 36 | N105: 36 | O105: 36 | P105: 36 | Q105: 36
A106: 0 | B106: Ancillary Services | C106: Contestable network commissioning and decommissioning | D106: Substation Commission Fee | E106: All Other - Industrial & Commercial - Per Substation | F106: Per Substation | G106: Fee | H106: 141 | I106: 132 | J106: 153 | K106: 153 | L106: 153 | M106: 153 | N106: 153 | O106: 153 | P106: 153 | Q106: 153
A107: 0 | B107: Ancillary Services | C107: Contestable network commissioning and decommissioning | D107: Substation Commission Fee | E107: All Other - Non Urban - Per Substation | F107: Per Substation | G107: Fee | H107: 70 | I107: 106 | J107: 97 | K107: 97 | L107: 97 | M107: 97 | N107: 97 | O107: 97 | P107: 97 | Q107: 97
A108: 0 | B108: Ancillary Services | C108: Contestable network commissioning and decommissioning | D108: Substation Commission Fee | E108: All Other - Public Lighting - Per Substation | F108: Per Substation | G108: Fee | H108: 3 | I108: 0 | J108: 3 | K108: 3 | L108: 3 | M108: 3 | N108: 3 | O108: 3 | P108: 3 | Q108: 3
A109: 0 | B109: Ancillary Services | C109: Contestable network commissioning and decommissioning | D109: Substation Commission Fee | E109: All Other - URD - Per Substation | F109: Per Substation | G109: Fee | H109: 70 | I109: 82.53 | J109: 98 | K109: 98 | L109: 98 | M109: 98 | N109: 98 | O109: 98 | P109: 98 | Q109: 98
A110: 0 | B110: Ancillary Services | C110: Contestable network commissioning and decommissioning | D110: Substation Commission Fee | E110: Subdivision - URD - Per Lot | F110: Per Lot | G110: Fee | H110: 347 | I110: 225 | J110: 210 | K110: 210 | L110: 210 | M110: 210 | N110: 210 | O110: 210 | P110: 210 | Q110: 210
A111: 1 | B111: Ancillary Services | C111: Customer initiated asset relocations | D111: Customer initiated Asset Relocations - network safety | E111: Customer initiated Asset Relocations - network safety | F111: Per Hour | G111: Quote | H111: 0 | I111: 0 | J111: 0 | K111: 0 | L111: 0 | M111: 3 | N111: 3 | O111: 3 | P111: 3 | Q111: 3
A112: 0 | B112: Ancillary Services | C112: Design related services | D112: Design Certification Fee | E112: Asset Relocation - Designer | F112: Per Hour | G112: Quote | H112: 11 | I112: 0 | J112: 0 | K112: 0 | L112: 0 | M112: 0 | N112: 0 | O112: 0 | P112: 0 | Q112: 0
A113: 0 | B113: Ancillary Services | C113: Design related services | D113: Design Certification Fee | E113: Asset Relocation - Engineer | F113: Per Hour | G113: Quote | H113: 204 | I113: 179 | J113: 150 | K113: =J113 -> 150 | L113: 150 | M113: 150 | N113: 150 | O113: 150 | P113: 150 | Q113: 150
A114: 0 | B114: Ancillary Services | C114: Design related services | D114: Design Certification Fee | E114: Connection of Load - Indoor Substation - Per Hour | F114: Per Job | G114: Fee | H114: 0 | I114: 0 | J114: 0 | K114: 0 | L114: 0 | M114: 0 | N114: 0 | O114: 0 | P114: 0 | Q114: 0
A115: 0 | B115: Ancillary Services | C115: Design related services | D115: Design Certification Fee | E115: Connection of Load - Industrial & Commercial - <= 200A/Phase (LV) | F115: Per Hour | G115: Quote | H115: 85 | I115: 73 | J115: 74 | K115: 74 | L115: 74 | M115: 74 | N115: 74 | O115: 74 | P115: 74 | Q115: 74
A116: 0 | B116: Ancillary Services | C116: Design related services | D116: Design Certification Fee | E116: Connection of Load - Industrial & Commercial - <= 700A/Phase (LV) | F116: Per Hour | G116: Quote | H116: 65 | I116: 60 | J116: 66 | K116: 66 | L116: 66 | M116: 66 | N116: 66 | O116: 66 | P116: 66 | Q116: 66
A117: 0 | B117: Ancillary Services | C117: Design related services | D117: Design Certification Fee | E117: Connection of Load - Industrial & Commercial - > 700A/Phase (LV) | F117: Per Hour | G117: Quote | H117: 71 | I117: 71 | J117: 87 | K117: 87 | L117: 87 | M117: 87 | N117: 87 | O117: 87 | P117: 87 | Q117: 87
A118: 0 | B118: Ancillary Services | C118: Design related services | D118: Design Certification Fee | E118: Connection of Load - Industrial & Commercial - HV Customer | F118: Per Hour | G118: Quote | H118: 2 | I118: 0 | J118: 2 | K118: 2 | L118: 2 | M118: 2 | N118: 2 | O118: 2 | P118: 2 | Q118: 2
A119: 0 | B119: Ancillary Services | C119: Design related services | D119: Design Certification Fee | E119: Connection of Load - Industrial & Commercial - Transmission | F119: Per Hour | G119: Quote | H119: 1 | I119: 0 | J119: 0 | K119: 1 | L119: 1 | M119: 1 | N119: 1 | O119: 1 | P119: 1 | Q119: 1
A120: 0 | B120: Ancillary Services | C120: Design related services | D120: Design Certification Fee | E120: Connection of Load - Multi-Dwelling - <= 20 units | F120: Per Hour | G120: Quote | H120: 57 | I120: 61 | J120: 41 | K120: =J120 -> 41 | L120: 41 | M120: 41 | N120: 41 | O120: 41 | P120: 41 | Q120: 41
A121: =IF(C121<>C120,IF(A120=1,0,1),A120) -> 0 | B121: Ancillary Services | C121: Design related services | D121: Design Certification Fee | E121: Connection of Load - Multi-Dwelling - <= 40 units | F121: Per Hour | G121: Quote | H121: 30 | I121: 39 | J121: 51 | K121: 51 | L121: 51 | M121: 51 | N121: 51 | O121: 51 | P121: 51 | Q121: 51
A122: 0 | B122: Ancillary Services | C122: Design related services | D122: Design Certification Fee | E122: Connection of Load - Multi-Dwelling - <= 5 units | F122: Per Hour | G122: Quote | H122: 5 | I122: 9 | J122: 0 | K122: 0 | L122: 0 | M122: 0 | N122: 0 | O122: 0 | P122: 0 | Q122: 0
A123: 0 | B123: Ancillary Services | C123: Design related services | D123: Design Certification Fee | E123: Connection of Load - Multi-Dwelling - > 40 units | F123: Per Hour | G123: Quote | H123: 38 | I123: 55 | J123: 54 | K123: 54 | L123: 54 | M123: 54 | N123: 54 | O123: 54 | P123: 54 | Q123: 54
A124: 0 | B124: Ancillary Services | C124: Design related services | D124: Design Certification Fee | E124: Connection of Load - Non Urban - Overhead - 11+ poles | F124: Per Job | G124: Fee | H124: 2 | I124: 2 | J124: 0 | K124: 0 | L124: 0 | M124: 0 | N124: 0 | O124: 0 | P124: 0 | Q124: 0
A125: 0 | B125: Ancillary Services | C125: Design related services | D125: Design Certification Fee | E125: Connection of Load - Non Urban - Overhead - 1-5 poles | F125: Per Job | G125: Fee | H125: 58 | I125: 10 | J125: 5 | K125: 5 | L125: 5 | M125: 5 | N125: 5 | O125: 5 | P125: 5 | Q125: 5
A126: 0 | B126: Ancillary Services | C126: Design related services | D126: Design Certification Fee | E126: Connection of Load - Non Urban - Overhead - 6-10 poles | F126: Per Job | G126: Fee | H126: 2 | I126: 0 | J126: 0 | K126: 0 | L126: 0 | M126: 0 | N126: 0 | O126: 0 | P126: 0 | Q126: 0
A127: 0 | B127: Ancillary Services | C127: Design related services | D127: Design Certification Fee | E127: Connection of Load - Non Urban - Underground - Per Hour | F127: Per Hour | G127: Quote | H127: 27 | I127: 78 | J127: 86 | K127: 86 | L127: 86 | M127: 86 | N127: 86 | O127: 86 | P127: 86 | Q127: 86
A128: 0 | B128: Ancillary Services | C128: Design related services | D128: Design Certification Fee | E128: Public Lighting - Designer | F128: Per Hour | G128: Quote | H128: 4 | I128: 0 | J128: 0 | K128: 0 | L128: 0 | M128: 0 | N128: 0 | O128: 0 | P128: 0 | Q128: 0
A129: 0 | B129: Ancillary Services | C129: Design related services | D129: Design Certification Fee | E129: Public Lighting - Engineer | F129: Per Hour | G129: Quote | H129: 51 | I129: 65 | J129: 49 | K129: 49 | L129: 49 | M129: 49 | N129: 49 | O129: 49 | P129: 49 | Q129: 49
A130: 0 | B130: Ancillary Services | C130: Design related services | D130: Design Certification Fee | E130: Subdivision - Industrial & Commercial - Overhead - 11+ poles | F130: Per Job | G130: Fee | H130: 3 | I130: 0 | J130: 0 | K130: 1 | L130: 1 | M130: 1 | N130: 1 | O130: 1 | P130: 1 | Q130: 1
A131: 0 | B131: Ancillary Services | C131: Design related services | D131: Design Certification Fee | E131: Subdivision - Industrial & Commercial - Overhead - 1-5 poles | F131: Per Job | G131: Fee | H131: 3 | I131: 2 | J131: 3 | K131: =J131 -> 3 | L131: 3 | M131: 3 | N131: 3 | O131: 3 | P131: 3 | Q131: 3
A132: 0 | B132: Ancillary Services | C132: Design related services | D132: Design Certification Fee | E132: Subdivision - Industrial & Commercial - Overhead - 6-10 poles | F132: Per Job | G132: Fee | H132: 11 | I132: 0 | J132: 0 | K132: 0 | L132: 0 | M132: 0 | N132: 0 | O132: 0 | P132: 0 | Q132: 0
A133: 0 | B133: Ancillary Services | C133: Design related services | D133: Design Certification Fee | E133: Subdivision - Industrial & Commercial - Underground - 1-10 lots | F133: Per Job | G133: Fee | H133: 0 | I133: 14 | J133: 14 | K133: 14 | L133: 14 | M133: 14 | N133: 14 | O133: 14 | P133: 14 | Q133: 14
A134: 0 | B134: Ancillary Services | C134: Design related services | D134: Design Certification Fee | E134: Subdivision - Industrial & Commercial - Underground - 11-40 lots | F134: Per Job | G134: Fee | H134: 0 | I134: 2 | J134: 1 | K134: 1 | L134: 1 | M134: 1 | N134: 1 | O134: 1 | P134: 1 | Q134: 1
A135: 0 | B135: Ancillary Services | C135: Design related services | D135: Design Certification Fee | E135: Subdivision - Industrial & Commercial - Underground - 41 + lots | F135: Per Job | G135: Fee | H135: 0 | I135: 0 | J135: 0 | K135: 0 | L135: 0 | M135: 0 | N135: 0 | O135: 0 | P135: 0 | Q135: 0
A136: 0 | B136: Ancillary Services | C136: Design related services | D136: Design Certification Fee | E136: Subdivision - Non Urban - Overhead - 11+ poles | F136: Per Job | G136: Fee | H136: 1 | I136: 3 | J136: 5 | K136: 5 | L136: 5 | M136: 5 | N136: 5 | O136: 5 | P136: 5 | Q136: 5
A137: 0 | B137: Ancillary Services | C137: Design related services | D137: Design Certification Fee | E137: Subdivision - Non Urban - Overhead - 1-5 poles | F137: Per Job | G137: Fee | H137: 20 | I137: 27 | J137: 22 | K137: 22 | L137: 22 | M137: 22 | N137: 22 | O137: 22 | P137: 22 | Q137: 22
A138: 0 | B138: Ancillary Services | C138: Design related services | D138: Design Certification Fee | E138: Subdivision - Non Urban - Overhead - 6-10 poles | F138: Per Job | G138: Fee | H138: 3 | I138: 4 | J138: 2 | K138: 2 | L138: 2 | M138: 2 | N138: 2 | O138: 2 | P138: 2 | Q138: 2
A139: 0 | B139: Ancillary Services | C139: Design related services | D139: Design Certification Fee | E139: Subdivision - Non Urban - Underground - 11-40 lots | F139: Per Job | G139: Fee | H139: 3 | I139: 3 | J139: 7 | K139: 7 | L139: 7 | M139: 7 | N139: 7 | O139: 7 | P139: 7 | Q139: 7
A140: 0 | B140: Ancillary Services | C140: Design related services | D140: Design Certification Fee | E140: Subdivision - Non Urban - Underground - 1-5 lots | F140: Per Job | G140: Fee | H140: 17 | I140: 2 | J140: 4 | K140: 4 | L140: 4 | M140: 4 | N140: 4 | O140: 4 | P140: 4 | Q140: 4
A141: 0 | B141: Ancillary Services | C141: Design related services | D141: Design Certification Fee | E141: Subdivision - Non Urban - Underground - 41+ lots | F141: Per Job | G141: Fee | H141: 0 | I141: 1 | J141: 0 | K141: 0 | L141: 0 | M141: 0 | N141: 0 | O141: 0 | P141: 0 | Q141: 0
A142: 0 | B142: Ancillary Services | C142: Design related services | D142: Design Certification Fee | E142: Subdivision - Non Urban - Underground - 6-10 lots | F142: Per Job | G142: Fee | H142: 6 | I142: 10 | J142: 6 | K142: 6 | L142: 6 | M142: 6 | N142: 6 | O142: 6 | P142: 6 | Q142: 6
A143: 0 | B143: Ancillary Services | C143: Design related services | D143: Design Certification Fee | E143: Subdivision - URD - Underground - 11-40 lots | F143: Per Job | G143: Fee | H143: 144 | I143: 168 | J143: 166 | K143: 166 | L143: 166 | M143: 166 | N143: 166 | O143: 166 | P143: 166 | Q143: 166
A144: 0 | B144: Ancillary Services | C144: Design related services | D144: Design Certification Fee | E144: Subdivision - URD - Underground - 1-5 lots | F144: Per Job | G144: Fee | H144: 113 | I144: 109 | J144: 86 | K144: 86 | L144: 86 | M144: 86 | N144: 86 | O144: 86 | P144: 86 | Q144: 86
A145: 0 | B145: Ancillary Services | C145: Design related services | D145: Design Certification Fee | E145: Subdivision - URD - Underground - 41+ lots | F145: Per Job | G145: Fee | H145: 124 | I145: 142 | J145: 137 | K145: 137 | L145: 137 | M145: 137 | N145: 137 | O145: 137 | P145: 137 | Q145: 137
A146: 0 | B146: Ancillary Services | C146: Design related services | D146: Design Certification Fee | E146: Subdivision - URD - Underground - 6-10 lots | F146: Per Job | G146: Fee | H146: 55 | I146: 65 | J146: 49 | K146: 49 | L146: 49 | M146: 49 | N146: 49 | O146: 49 | P146: 49 | Q146: 49
A147: 0 | B147: Ancillary Services | C147: Design related services | D147: Design Information Fee | E147: Asset Relocation - Designer | F147: Per Hour | G147: Quote | H147: 17 | I147: 0 | J147: 0 | K147: =J147 -> 0 | L147: 0 | M147: 0 | N147: 0 | O147: 0 | P147: 0 | Q147: 0
A148: 0 | B148: Ancillary Services | C148: Design related services | D148: Design Information Fee | E148: Asset Relocation - Engineer | F148: Per Hour | G148: Quote | H148: 204 | I148: 191 | J148: 157 | K148: 157 | L148: 157 | M148: 157 | N148: 157 | O148: 157 | P148: 157 | Q148: 157
A149: 0 | B149: Ancillary Services | C149: Design related services | D149: Design Information Fee | E149: Connection of Load - Industrial & Commercial - <= 200A/Phase (LV) | F149: Per Hour | G149: Quote | H149: 84 | I149: 80 | J149: 76 | K149: 76 | L149: 76 | M149: 76 | N149: 76 | O149: 76 | P149: 76 | Q149: 76
A150: 0 | B150: Ancillary Services | C150: Design related services | D150: Design Information Fee | E150: Connection of Load - Industrial & Commercial - <= 700A/Phase (LV) | F150: Per Hour | G150: Quote | H150: 66 | I150: 60 | J150: 64 | K150: 64 | L150: 64 | M150: 64 | N150: 64 | O150: 64 | P150: 64 | Q150: 64
A151: 0 | B151: Ancillary Services | C151: Design related services | D151: Design Information Fee | E151: Connection of Load - Industrial & Commercial - > 700A/Phase (LV) | F151: Per Hour | G151: Quote | H151: 71 | I151: 69 | J151: 88 | K151: 88 | L151: 88 | M151: 88 | N151: 88 | O151: 88 | P151: 88 | Q151: 88
A152: 0 | B152: Ancillary Services | C152: Design related services | D152: Design Information Fee | E152: Connection of Load - Industrial & Commercial - HV Customer | F152: Per Hour | G152: Quote | H152: 3 | I152: 1 | J152: 4 | K152: 4 | L152: 4 | M152: 4 | N152: 4 | O152: 4 | P152: 4 | Q152: 4
A153: 0 | B153: Ancillary Services | C153: Design related services | D153: Design Information Fee | E153: Connection of Load - Industrial & Commercial - Transmission | F153: Per Hour | G153: Quote | H153: 3 | I153: 1 | J153: 1 | K153: 1 | L153: 1 | M153: 1 | N153: 1 | O153: 1 | P153: 1 | Q153: 1
A154: 0 | B154: Ancillary Services | C154: Design related services | D154: Design Information Fee | E154: Connection of Load - Multi-Dwelling - <= 20 units | F154: Per Hour | G154: Quote | H154: 56 | I154: 65 | J154: 44 | K154: 44 | L154: 44 | M154: 44 | N154: 44 | O154: 44 | P154: 44 | Q154: 44
A155: 0 | B155: Ancillary Services | C155: Design related services | D155: Design Information Fee | E155: Connection of Load - Multi-Dwelling - <= 40 units | F155: Per Hour | G155: Quote | H155: 31 | I155: 38 | J155: 45 | K155: 45 | L155: 45 | M155: 45 | N155: 45 | O155: 45 | P155: 45 | Q155: 45
A156: 0 | B156: Ancillary Services | C156: Design related services | D156: Design Information Fee | E156: Connection of Load - Multi-Dwelling - <= 5 units | F156: Per Hour | G156: Quote | H156: 5 | I156: 9 | J156: 0 | K156: 0 | L156: 0 | M156: 0 | N156: 0 | O156: 0 | P156: 0 | Q156: 0
A157: 0 | B157: Ancillary Services | C157: Design related services | D157: Design Information Fee | E157: Connection of Load - Multi-Dwelling - > 40 units | F157: Per Hour | G157: Quote | H157: 39 | I157: 53 | J157: 59 | K157: 59 | L157: 59 | M157: 59 | N157: 59 | O157: 59 | P157: 59 | Q157: 59
A158: 0 | B158: Ancillary Services | C158: Design related services | D158: Design Information Fee | E158: Connection of Load - Non Urban - I&C - <= 200A/Phase (LV) | F158: Per Hour | G158: Quote | H158: 0 | I158: 0 | J158: 0 | K158: 0 | L158: 0 | M158: 0 | N158: 0 | O158: 0 | P158: 0 | Q158: 0
A159: 0 | B159: Ancillary Services | C159: Design related services | D159: Design Information Fee | E159: Connection of Load - Non Urban - I&C - <= 700A/Phase (LV) | F159: Per Hour | G159: Quote | H159: 0 | I159: 0 | J159: 0 | K159: 0 | L159: 0 | M159: 0 | N159: 0 | O159: 0 | P159: 0 | Q159: 0
A160: 0 | B160: Ancillary Services | C160: Design related services | D160: Design Information Fee | E160: Connection of Load - Non Urban - I&C - > 700A/Phase (LV) | F160: Per Hour | G160: Quote | H160: 0 | I160: 0 | J160: 0 | K160: 0 | L160: 0 | M160: 0 | N160: 0 | O160: 0 | P160: 0 | Q160: 0
A161: 0 | B161: Ancillary Services | C161: Design related services | D161: Design Information Fee | E161: Connection of Load - Non Urban - I&C - HV Customer | F161: Per Hour | G161: Quote | H161: 0 | I161: 0 | J161: 0 | K161: 0 | L161: 0 | M161: 0 | N161: 0 | O161: 0 | P161: 0 | Q161: 0
A162: 0 | B162: Ancillary Services | C162: Design related services | D162: Design Information Fee | E162: Connection of Load - Non Urban - I&C - Transmission | F162: Per Hour | G162: Quote | H162: 0 | I162: 0 | J162: 0 | K162: 0 | L162: 0 | M162: 0 | N162: 0 | O162: 0 | P162: 0 | Q162: 0
A163: 0 | B163: Ancillary Services | C163: Design related services | D163: Design Information Fee | E163: Connection of Load - Non Urban - Multi-Dwelling - <= 20 units | F163: Per Hour | G163: Quote | H163: 0 | I163: 0 | J163: 0 | K163: =J163 -> 0 | L163: 0 | M163: 0 | N163: 0 | O163: 0 | P163: 0 | Q163: 0
A164: 0 | B164: Ancillary Services | C164: Design related services | D164: Design Information Fee | E164: Connection of Load - Non Urban - Multi-Dwelling - <= 40 units | F164: Per Hour | G164: Quote | H164: 0 | I164: 0 | J164: 0 | K164: 0 | L164: 0 | M164: 0 | N164: 0 | O164: 0 | P164: 0 | Q164: 0
A165: 0 | B165: Ancillary Services | C165: Design related services | D165: Design Information Fee | E165: Connection of Load - Non Urban - Multi-Dwelling - <= 5 units | F165: Per Hour | G165: Quote | H165: 0 | I165: 0 | J165: 0 | K165: 0 | L165: 0 | M165: 0 | N165: 0 | O165: 0 | P165: 0 | Q165: 0
A166: 0 | B166: Ancillary Services | C166: Design related services | D166: Design Information Fee | E166: Connection of Load - Non Urban - Multi-Dwelling - > 40 units | F166: Per Hour | G166: Quote | H166: 0 | I166: 0 | J166: 0 | K166: 0 | L166: 0 | M166: 0 | N166: 0 | O166: 0 | P166: 0 | Q166: 0
A167: 0 | B167: Ancillary Services | C167: Design related services | D167: Design Information Fee | E167: Connection of Load - Non Urban - Single Residential - Per Hour | F167: Per Hour | G167: Quote | H167: 89 | I167: 92 | J167: 93 | K167: 93 | L167: 93 | M167: 93 | N167: 93 | O167: 93 | P167: 93 | Q167: 93
A168: 0 | B168: Ancillary Services | C168: Design related services | D168: Design Information Fee | E168: Public Lighting - Designer | F168: Per Hour | G168: Quote | H168: 4 | I168: 0 | J168: 0 | K168: 0 | L168: 0 | M168: 0 | N168: 0 | O168: 0 | P168: 0 | Q168: 0
A169: 0 | B169: Ancillary Services | C169: Design related services | D169: Design Information Fee | E169: Public Lighting - Engineer | F169: Per Hour | G169: Quote | H169: 51 | I169: 60 | J169: 50 | K169: 50 | L169: 50 | M169: 50 | N169: 50 | O169: 50 | P169: 50 | Q169: 50
A170: 0 | B170: Ancillary Services | C170: Design related services | D170: Design Information Fee | E170: Subdivision - Industrial & Commercial - Per Hour | F170: Per Hour | G170: Quote | H170: 18 | I170: 19 | J170: 18 | K170: 18 | L170: 18 | M170: 18 | N170: 18 | O170: 18 | P170: 18 | Q170: 18
A171: 0 | B171: Ancillary Services | C171: Design related services | D171: Design Information Fee | E171: Subdivision - Non Urban - Per Hour | F171: Per Hour | G171: Quote | H171: 50 | I171: 52 | J171: 46 | K171: 46 | L171: 46 | M171: 46 | N171: 46 | O171: 46 | P171: 46 | Q171: 46
A172: 0 | B172: Ancillary Services | C172: Design related services | D172: Design Information Fee | E172: Subdivision - URD - Underground - 11-40 lots | F172: Per Job | G172: Fee | H172: 144 | I172: 167 | J172: 166 | K172: 166 | L172: 166 | M172: 166 | N172: 166 | O172: 166 | P172: 166 | Q172: 166
A173: 0 | B173: Ancillary Services | C173: Design related services | D173: Design Information Fee | E173: Subdivision - URD - Underground - 1-5 lots | F173: Per Job | G173: Fee | H173: 112 | I173: 111 | J173: 86 | K173: 86 | L173: 86 | M173: 86 | N173: 86 | O173: 86 | P173: 86 | Q173: 86
A174: 0 | B174: Ancillary Services | C174: Design related services | D174: Design Information Fee | E174: Subdivision - URD - Underground - 41+ lots | F174: Per Job | G174: Fee | H174: 122 | I174: 139 | J174: 136 | K174: 136 | L174: 136 | M174: 136 | N174: 136 | O174: 136 | P174: 136 | Q174: 136
A175: 0 | B175: Ancillary Services | C175: Design related services | D175: Design Information Fee | E175: Subdivision - URD - Underground - 6-10 lots | F175: Per Job | G175: Fee | H175: 56 | I175: 64 | J175: 50 | K175: 50 | L175: 50 | M175: 50 | N175: 50 | O175: 50 | P175: 50 | Q175: 50
A176: 0 | B176: Ancillary Services | C176: Design related services | D176: Design Re-certification Fee | E176: Asset Relocation - Designer | F176: Per Hour | G176: Quote | H176: 1 | I176: 0 | J176: 0 | K176: 0 | L176: 0 | M176: 0 | N176: 0 | O176: 0 | P176: 0 | Q176: 0
A177: 0 | B177: Ancillary Services | C177: Design related services | D177: Design Re-certification Fee | E177: Asset Relocation - Engineer | F177: Per Hour | G177: Quote | H177: 75 | I177: 74 | J177: 60 | K177: 60 | L177: 60 | M177: 60 | N177: 60 | O177: 60 | P177: 60 | Q177: 60
A178: 0 | B178: Ancillary Services | C178: Design related services | D178: Design Re-certification Fee | E178: Connection of Load - Industrial & Commercial - Per Hour | F178: Per Hour | G178: Quote | H178: 39 | I178: 58 | J178: 58 | K178: 58 | L178: 58 | M178: 58 | N178: 58 | O178: 58 | P178: 58 | Q178: 58
A179: 0 | B179: Ancillary Services | C179: Design related services | D179: Design Re-certification Fee | E179: Connection of Load - Non Urban - Per Hour | F179: Per Hour | G179: Quote | H179: 22 | I179: 15 | J179: 14 | K179: =J179 -> 14 | L179: 14 | M179: 14 | N179: 14 | O179: 14 | P179: 14 | Q179: 14
A180: 0 | B180: Ancillary Services | C180: Design related services | D180: Design Re-certification Fee | E180: Connection of Load - URD - Per Hour | F180: Per Hour | G180: Quote | H180: 34 | I180: 40 | J180: 59 | K180: 59 | L180: 59 | M180: 59 | N180: 59 | O180: 59 | P180: 59 | Q180: 59
A181: 0 | B181: Ancillary Services | C181: Design related services | D181: Design Re-certification Fee | E181: Public Lighting - Designer | F181: Per Hour | G181: Quote | H181: 0 | I181: 0 | J181: 0 | K181: 0 | L181: 0 | M181: 0 | N181: 0 | O181: 0 | P181: 0 | Q181: 0
A182: 0 | B182: Ancillary Services | C182: Design related services | D182: Design Re-certification Fee | E182: Public Lighting - Engineer | F182: Per Hour | G182: Quote | H182: 20 | I182: 19 | J182: 32 | K182: 32 | L182: 32 | M182: 32 | N182: 32 | O182: 32 | P182: 32 | Q182: 32
A183: 0 | B183: Ancillary Services | C183: Design related services | D183: Design Re-certification Fee | E183: Subdivision - Industrial & Commercial - Per Hour | F183: Per Hour | G183: Quote | H183: 10 | I183: 10 | J183: 11 | K183: 11 | L183: 11 | M183: 11 | N183: 11 | O183: 11 | P183: 11 | Q183: 11
A184: 0 | B184: Ancillary Services | C184: Design related services | D184: Design Re-certification Fee | E184: Subdivision - Non Urban - Per Hour | F184: Per Hour | G184: Quote | H184: 4 | I184: 14 | J184: 13 | K184: 13 | L184: 13 | M184: 13 | N184: 13 | O184: 13 | P184: 13 | Q184: 13
A185: =IF(C185<>C184,IF(A184=1,0,1),A184) -> 0 | B185: Ancillary Services | C185: Design related services | D185: Design Re-certification Fee | E185: Subdivision - URD - Per Hour | F185: Per Hour | G185: Quote | H185: 123 | I185: 172 | J185: 184 | K185: 184 | L185: 184 | M185: 184 | N185: 184 | O185: 184 | P185: 184 | Q185: 184
A186: 1 | B186: Ancillary Services | C186: Inspection services − Private electrical installations and accredited service providers (ASPs) | D186: Inspection of Service Work (Level 1) | E186: Asset Relocation - Asset Relocation - Underground - Per Hour (Engineer) + travel time | F186: Per Hour | G186: Quote | H186: 4 | I186: 0 | J186: 0 | K186: 0 | L186: 0 | M186: 0 | N186: 0 | O186: 0 | P186: 0 | Q186: 0
A187: 1 | B187: Ancillary Services | C187: Inspection services − Private electrical installations and accredited service providers (ASPs) | D187: Inspection of Service Work (Level 1) | E187: Asset Relocation - Asset Relocation - Underground - Per Hour (Inspector) + travel time | F187: Per Hour | G187: Quote | H187: 171 | I187: 156 | J187: 144 | K187: 144 | L187: 144 | M187: 144 | N187: 144 | O187: 144 | P187: 144 | Q187: 144
A188: 1 | B188: Ancillary Services | C188: Inspection services − Private electrical installations and accredited service providers (ASPs) | D188: Inspection of Service Work (Level 1) | E188: Connection of Load - Industrial & Commercial - Overhead - Per Pole (1 - 5) - Grade A | F188: Per Job | G188: Fee | H188: 0 | I188: 0 | J188: 0 | K188: 0 | L188: 0 | M188: 0 | N188: 0 | O188: 0 | P188: 0 | Q188: 0
A189: 1 | B189: Ancillary Services | C189: Inspection services − Private electrical installations and accredited service providers (ASPs) | D189: Inspection of Service Work (Level 1) | E189: Connection of Load - Industrial & Commercial - Overhead - Per Pole (1 - 5) - Grade B | F189: Per Job | G189: Fee | H189: 0 | I189: 0 | J189: 3 | K189: 3 | L189: 3 | M189: 3 | N189: 3 | O189: 3 | P189: 3 | Q189: 3
A190: 1 | B190: Ancillary Services | C190: Inspection services − Private electrical installations and accredited service providers (ASPs) | D190: Inspection of Service Work (Level 1) | E190: Connection of Load - Industrial & Commercial - Overhead - Per Pole (1 - 5) - Grade C | F190: Per Job | G190: Fee | H190: 1 | I190: 1 | J190: 0 | K190: 0 | L190: 0 | M190: 0 | N190: 0 | O190: 0 | P190: 0 | Q190: 0
A191: 1 | B191: Ancillary Services | C191: Inspection services − Private electrical installations and accredited service providers (ASPs) | D191: Inspection of Service Work (Level 1) | E191: Connection of Load - Industrial & Commercial - Overhead - Per Pole (11+) - Grade A | F191: Per Job | G191: Fee | H191: 0 | I191: 0 | J191: 0 | K191: 0 | L191: 0 | M191: 0 | N191: 0 | O191: 0 | P191: 0 | Q191: 0
A192: 1 | B192: Ancillary Services | C192: Inspection services − Private electrical installations and accredited service providers (ASPs) | D192: Inspection of Service Work (Level 1) | E192: Connection of Load - Industrial & Commercial - Overhead - Per Pole (11+) - Grade B | F192: Per Job | G192: Fee | H192: 0 | I192: 0 | J192: 1 | K192: 1 | L192: 1 | M192: 1 | N192: 1 | O192: 1 | P192: 1 | Q192: 1
A193: 1 | B193: Ancillary Services | C193: Inspection services − Private electrical installations and accredited service providers (ASPs) | D193: Inspection of Service Work (Level 1) | E193: Connection of Load - Industrial & Commercial - Overhead - Per Pole (11+) - Grade C | F193: Per Job | G193: Fee | H193: 0 | I193: 0 | J193: 0 | K193: 0 | L193: 0 | M193: 0 | N193: 0 | O193: 0 | P193: 0 | Q193: 0
A194: 1 | B194: Ancillary Services | C194: Inspection services − Private electrical installations and accredited service providers (ASPs) | D194: Inspection of Service Work (Level 1) | E194: Connection of Load - Industrial & Commercial - Overhead - Per Pole (6 - 10) - Grade A | F194: Per Job | G194: Fee | H194: 0 | I194: 0 | J194: 0 | K194: 0 | L194: 0 | M194: 0 | N194: 0 | O194: 0 | P194: 0 | Q194: 0
A195: 1 | B195: Ancillary Services | C195: Inspection services − Private electrical installations and accredited service providers (ASPs) | D195: Inspection of Service Work (Level 1) | E195: Connection of Load - Industrial & Commercial - Overhead - Per Pole (6 - 10) - Grade B | F195: Per Job | G195: Fee | H195: 0 | I195: 0 | J195: 0 | K195: =J195 -> 0 | L195: 0 | M195: 0 | N195: 0 | O195: 0 | P195: 0 | Q195: 0
A196: 1 | B196: Ancillary Services | C196: Inspection services − Private electrical installations and accredited service providers (ASPs) | D196: Inspection of Service Work (Level 1) | E196: Connection of Load - Industrial & Commercial - Overhead - Per Pole (6 - 10) - Grade C | F196: Per Job | G196: Fee | H196: 0 | I196: 0 | J196: 0 | K196: 0 | L196: 0 | M196: 0 | N196: 0 | O196: 0 | P196: 0 | Q196: 0
A197: 1 | B197: Ancillary Services | C197: Inspection services − Private electrical installations and accredited service providers (ASPs) | D197: Inspection of Service Work (Level 1) | E197: Connection of Load - Industrial & Commercial - Overhead - Per Pole Sub - Grade A | F197: Per Job | G197: Fee | H197: 0 | I197: 0 | J197: 0 | K197: 0 | L197: 0 | M197: 0 | N197: 0 | O197: 0 | P197: 0 | Q197: 0
A198: 1 | B198: Ancillary Services | C198: Inspection services − Private electrical installations and accredited service providers (ASPs) | D198: Inspection of Service Work (Level 1) | E198: Connection of Load - Industrial & Commercial - Overhead - Per Pole Sub - Grade B | F198: Per Job | G198: Fee | H198: 0 | I198: 0 | J198: 3 | K198: 3 | L198: 3 | M198: 3 | N198: 3 | O198: 3 | P198: 3 | Q198: 3
A199: 1 | B199: Ancillary Services | C199: Inspection services − Private electrical installations and accredited service providers (ASPs) | D199: Inspection of Service Work (Level 1) | E199: Connection of Load - Industrial & Commercial - Overhead - Per Pole Sub - Grade C | F199: Per Job | G199: Fee | H199: 0 | I199: 0 | J199: 0 | K199: 0 | L199: 0 | M199: 0 | N199: 0 | O199: 0 | P199: 0 | Q199: 0
A200: 1 | B200: Ancillary Services | C200: Inspection services − Private electrical installations and accredited service providers (ASPs) | D200: Inspection of Service Work (Level 1) | E200: Connection of Load - Industrial & Commercial - Underground - Per Hour (Engineer) + travel time | F200: Per Hour | G200: Quote | H200: 5 | I200: 0 | J200: 0 | K200: 0 | L200: 0 | M200: 0 | N200: 0 | O200: 0 | P200: 0 | Q200: 0
A201: 1 | B201: Ancillary Services | C201: Inspection services − Private electrical installations and accredited service providers (ASPs) | D201: Inspection of Service Work (Level 1) | E201: Connection of Load - Industrial & Commercial - Underground - Per Hour (Inspector) + travel time | F201: Per Hour | G201: Quote | H201: 191 | I201: 187 | J201: 183 | K201: 183 | L201: 183 | M201: 183 | N201: 183 | O201: 183 | P201: 183 | Q201: 183
A202: 1 | B202: Ancillary Services | C202: Inspection services − Private electrical installations and accredited service providers (ASPs) | D202: Inspection of Service Work (Level 1) | E202: Connection of Load - Non Urban - Overhead - Per Pole (1 - 5) - Grade A | F202: Per Job | G202: Fee | H202: 10 | I202: 16 | J202: 10 | K202: 10 | L202: 10 | M202: 10 | N202: 10 | O202: 10 | P202: 10 | Q202: 10
A203: 1 | B203: Ancillary Services | C203: Inspection services − Private electrical installations and accredited service providers (ASPs) | D203: Inspection of Service Work (Level 1) | E203: Connection of Load - Non Urban - Overhead - Per Pole (1 - 5) - Grade B | F203: Per Job | G203: Fee | H203: 27 | I203: 31 | J203: 39 | K203: 39 | L203: 39 | M203: 39 | N203: 39 | O203: 39 | P203: 39 | Q203: 39
A204: 1 | B204: Ancillary Services | C204: Inspection services − Private electrical installations and accredited service providers (ASPs) | D204: Inspection of Service Work (Level 1) | E204: Connection of Load - Non Urban - Overhead - Per Pole (1 - 5) - Grade C | F204: Per Job | G204: Fee | H204: 9 | I204: 10 | J204: 5 | K204: 5 | L204: 5 | M204: 5 | N204: 5 | O204: 5 | P204: 5 | Q204: 5
A205: 1 | B205: Ancillary Services | C205: Inspection services − Private electrical installations and accredited service providers (ASPs) | D205: Inspection of Service Work (Level 1) | E205: Connection of Load - Non Urban - Overhead - Per Pole (11 +) - Grade A | F205: Per Job | G205: Fee | H205: 0 | I205: 1 | J205: 1 | K205: 1 | L205: 1 | M205: 1 | N205: 1 | O205: 1 | P205: 1 | Q205: 1
A206: 1 | B206: Ancillary Services | C206: Inspection services − Private electrical installations and accredited service providers (ASPs) | D206: Inspection of Service Work (Level 1) | E206: Connection of Load - Non Urban - Overhead - Per Pole (11 +) - Grade B | F206: Per Job | G206: Fee | H206: 0 | I206: 2 | J206: 0 | K206: 0 | L206: 0 | M206: 0 | N206: 0 | O206: 0 | P206: 0 | Q206: 0
A207: 1 | B207: Ancillary Services | C207: Inspection services − Private electrical installations and accredited service providers (ASPs) | D207: Inspection of Service Work (Level 1) | E207: Connection of Load - Non Urban - Overhead - Per Pole (11 +) - Grade C | F207: Per Job | G207: Fee | H207: 0 | I207: 0 | J207: 0 | K207: 0 | L207: 0 | M207: 0 | N207: 0 | O207: 0 | P207: 0 | Q207: 0
... 903 more rows

Sheet AER - Calc Cost build up
A1: =IF(Solved, "X-factors Okay", "X-factor Error") -> X-factors Okay
B2: =ModelTitle -> ENDEAVOUR ENERGY FEE & QUOTED SERVICES PRICING MODEL
B3: Cost build up
H4: Cells will turn red if the prices do not equal the sum of the Labour, Overtime, Overheads and Materials components
B6: Cost build up tariffs ($ nominal) | M6: AER maximum approved price ($2019-20) | N6: Endeavour 's proposed 2019-20 price | O6: AER approved price | P6: Change in price ($) | Q6: change in price (%)
B7: ='AER - Inputs'!$B$54 -> Grouping 1 | C7: ='AER - Inputs'!$C$54 -> Grouping 2 | D7: ='AER - Inputs'!$D$54 -> Grouping 3 | E7: ='AER - Inputs'!$E$54 -> Grouping 4 | F7: ='AER - Inputs'!$F$54 -> Charge by | G7: ='AER - Inputs'!$G$54 -> Tariff Type | H7: =INDEX(ModelYears, COLUMN()-COLUMN($G7)+1) -> 2014-15 | I7: 2015-16 | J7: 2016-17 | K7: 2017-18 | L7: 2018-19 | M7: 2019-20
A8: ='AER - Inputs'!$A$55 -> 1 | B8: ='AER - Inputs'!$B$55 -> Ancillary Services | C8: ='AER - Inputs'!$C$55 -> Access permits, oversight and facilitation | D8: ='AER - Inputs'!$D$55 -> Access Permits | E8: ='AER - Inputs'!$E$55 -> All Other - Asset Relocation - Per access authorisation (AA) or authority to work (ATW) | F8: ='AER - Inputs'!$F$55 -> Per AA or ATW | G8: ='AER - Inputs'!$G$55 -> Fee | H8: =MMULT('AER - Inputs'!$H408:$Y408,'AER - Inputs'!H$32:H$49)*'AER - Inputs'!$H761*'AER - Inputs'!$J761+('AER - Inputs'!$I761*'AER - Inputs'!H$20) -> 2377.808001 | I8: =MMULT('AER - Inputs'!$H408:$Y408,'AER - Inputs'!I$32:I$49)*'AER - Inputs'!$H761*'AER - Inputs'!$J761+('AER - Inputs'!$I761*'AER - Inputs'!I$20) -> 2461.82308 | J8: =MMULT('AER - Inputs'!$H408:$Y408,'AER - Inputs'!J$32:J$49)*'AER - Inputs'!$H761*'AER - Inputs'!$J761+('AER - Inputs'!$I761*'AER - Inputs'!J$20) -> 2525.695233 | K8: =MMULT('AER - Inputs'!$H408:$Y408,'AER - Inputs'!K$32:K$49)*'AER - Inputs'!$H761*'AER - Inputs'!$J761+('AER - Inputs'!$I761*'AER - Inputs'!K$20) -> 2586.341357 | L8: =MMULT('AER - Inputs'!$H408:$Y408,'AER - Inputs'!L$32:L$49)*'AER - Inputs'!$H761*'AER - Inputs'!$J761+('AER - Inputs'!$I761*'AER - Inputs'!L$20) -> 2665.744171 | M8: =MMULT('AER - Inputs'!$H408:$Y408,'AER - Inputs'!M$32:M$49)*'AER - Inputs'!$H761*'AER - Inputs'!$J761+('AER - Inputs'!$I761*'AER - Inputs'!M$20) -> 2338.974321 | N8: =SUMIFS('Report Charges & Xfactors'!$M$10:$M$318,'Report Charges & Xfactors'!$D$10:$D$318,'AER - Calc Cost build up'!D8,'Report Charges & Xfactors'!$E$10:$E$318,'AER - Calc Cost build up'!E8) -> 2773.957615 | O8: =MIN(M8,N8) -> 2338.974321 | P8: =O8-N8 -> -434.9832944 | Q8: =P8/N8 -> -0.1568096398
A9: ='AER - Inputs'!$A$56 -> 1 | B9: ='AER - Inputs'!$B$56 -> Ancillary Services | C9: ='AER - Inputs'!$C$56 -> Access permits, oversight and facilitation | D9: ='AER - Inputs'!$D$56 -> Access Permits | E9: ='AER - Inputs'!$E$56 -> All Other - Industrial & Commercial - Per access authorisation (AA) or authority to work (ATW) | F9: ='AER - Inputs'!$F$56 -> Per AA or ATW | G9: ='AER - Inputs'!$G$56 -> Fee | H9: =MMULT('AER - Inputs'!$H409:$Y409,'AER - Inputs'!H$32:H$49)*'AER - Inputs'!$H762*'AER - Inputs'!$J762+('AER - Inputs'!$I762*'AER - Inputs'!H$20) -> 2377.808001 | I9: =MMULT('AER - Inputs'!$H409:$Y409,'AER - Inputs'!I$32:I$49)*'AER - Inputs'!$H762*'AER - Inputs'!$J762+('AER - Inputs'!$I762*'AER - Inputs'!I$20) -> 2461.82308 | J9: =MMULT('AER - Inputs'!$H409:$Y409,'AER - Inputs'!J$32:J$49)*'AER - Inputs'!$H762*'AER - Inputs'!$J762+('AER - Inputs'!$I762*'AER - Inputs'!J$20) -> 2525.695233 | K9: =MMULT('AER - Inputs'!$H409:$Y409,'AER - Inputs'!K$32:K$49)*'AER - Inputs'!$H762*'AER - Inputs'!$J762+('AER - Inputs'!$I762*'AER - Inputs'!K$20) -> 2586.341357 | L9: =MMULT('AER - Inputs'!$H409:$Y409,'AER - Inputs'!L$32:L$49)*'AER - Inputs'!$H762*'AER - Inputs'!$J762+('AER - Inputs'!$I762*'AER - Inputs'!L$20) -> 2665.744171 | M9: =MMULT('AER - Inputs'!$H409:$Y409,'AER - Inputs'!M$32:M$49)*'AER - Inputs'!$H762*'AER - Inputs'!$J762+('AER - Inputs'!$I762*'AER - Inputs'!M$20) -> 2338.974321 | N9: =SUMIFS('Report Charges & Xfactors'!$M$10:$M$318,'Report Charges & Xfactors'!$D$10:$D$318,'AER - Calc Cost build up'!D9,'Report Charges & Xfactors'!$E$10:$E$318,'AER - Calc Cost build up'!E9) -> 2773.957615 | O9: =MIN(M9,N9) -> 2338.974321 | P9: =O9-N9 -> -434.9832944 | Q9: =P9/N9 -> -0.1568096398
A10: ='AER - Inputs'!$A$57 -> 1 | B10: ='AER - Inputs'!$B$57 -> Ancillary Services | C10: ='AER - Inputs'!$C$57 -> Access permits, oversight and facilitation | D10: ='AER - Inputs'!$D$57 -> Access Permits | E10: ='AER - Inputs'!$E$57 -> All Other - Non Urban - Per access authorisation (AA) or authority to work (ATW) | F10: ='AER - Inputs'!$F$57 -> Per AA or ATW | G10: ='AER - Inputs'!$G$57 -> Fee | H10: =MMULT('AER - Inputs'!$H410:$Y410,'AER - Inputs'!H$32:H$49)*'AER - Inputs'!$H763*'AER - Inputs'!$J763+('AER - Inputs'!$I763*'AER - Inputs'!H$20) -> 2377.808001 | I10: =MMULT('AER - Inputs'!$H410:$Y410,'AER - Inputs'!I$32:I$49)*'AER - Inputs'!$H763*'AER - Inputs'!$J763+('AER - Inputs'!$I763*'AER - Inputs'!I$20) -> 2461.82308 | J10: =MMULT('AER - Inputs'!$H410:$Y410,'AER - Inputs'!J$32:J$49)*'AER - Inputs'!$H763*'AER - Inputs'!$J763+('AER - Inputs'!$I763*'AER - Inputs'!J$20) -> 2525.695233 | K10: =MMULT('AER - Inputs'!$H410:$Y410,'AER - Inputs'!K$32:K$49)*'AER - Inputs'!$H763*'AER - Inputs'!$J763+('AER - Inputs'!$I763*'AER - Inputs'!K$20) -> 2586.341357 | L10: =MMULT('AER - Inputs'!$H410:$Y410,'AER - Inputs'!L$32:L$49)*'AER - Inputs'!$H763*'AER - Inputs'!$J763+('AER - Inputs'!$I763*'AER - Inputs'!L$20) -> 2665.744171 | M10: =MMULT('AER - Inputs'!$H410:$Y410,'AER - Inputs'!M$32:M$49)*'AER - Inputs'!$H763*'AER - Inputs'!$J763+('AER - Inputs'!$I763*'AER - Inputs'!M$20) -> 2338.974321 | N10: =SUMIFS('Report Charges & Xfactors'!$M$10:$M$318,'Report Charges & Xfactors'!$D$10:$D$318,'AER - Calc Cost build up'!D10,'Report Charges & Xfactors'!$E$10:$E$318,'AER - Calc Cost build up'!E10) -> 2773.957615 | O10: 2338.974321 | P10: -434.9832944 | Q10: -0.1568096398
A11: ='AER - Inputs'!$A$58 -> 1 | B11: ='AER - Inputs'!$B$58 -> Ancillary Services | C11: ='AER - Inputs'!$C$58 -> Access permits, oversight and facilitation | D11: ='AER - Inputs'!$D$58 -> Access Permits | E11: ='AER - Inputs'!$E$58 -> All Other - Public Lighting - Per access authorisation (AA) or authority to work (ATW) | F11: ='AER - Inputs'!$F$58 -> Per AA or ATW | G11: ='AER - Inputs'!$G$58 -> Fee | H11: =MMULT('AER - Inputs'!$H411:$Y411,'AER - Inputs'!H$32:H$49)*'AER - Inputs'!$H764*'AER - Inputs'!$J764+('AER - Inputs'!$I764*'AER - Inputs'!H$20) -> 2377.808001 | I11: =MMULT('AER - Inputs'!$H411:$Y411,'AER - Inputs'!I$32:I$49)*'AER - Inputs'!$H764*'AER - Inputs'!$J764+('AER - Inputs'!$I764*'AER - Inputs'!I$20) -> 2461.82308 | J11: =MMULT('AER - Inputs'!$H411:$Y411,'AER - Inputs'!J$32:J$49)*'AER - Inputs'!$H764*'AER - Inputs'!$J764+('AER - Inputs'!$I764*'AER - Inputs'!J$20) -> 2525.695233 | K11: =MMULT('AER - Inputs'!$H411:$Y411,'AER - Inputs'!K$32:K$49)*'AER - Inputs'!$H764*'AER - Inputs'!$J764+('AER - Inputs'!$I764*'AER - Inputs'!K$20) -> 2586.341357 | L11: =MMULT('AER - Inputs'!$H411:$Y411,'AER - Inputs'!L$32:L$49)*'AER - Inputs'!$H764*'AER - Inputs'!$J764+('AER - Inputs'!$I764*'AER - Inputs'!L$20) -> 2665.744171 | M11: =MMULT('AER - Inputs'!$H411:$Y411,'AER - Inputs'!M$32:M$49)*'AER - Inputs'!$H764*'AER - Inputs'!$J764+('AER - Inputs'!$I764*'AER - Inputs'!M$20) -> 2338.974321 | N11: =SUMIFS('Report Charges & Xfactors'!$M$10:$M$318,'Report Charges & Xfactors'!$D$10:$D$318,'AER - Calc Cost build up'!D11,'Report Charges & Xfactors'!$E$10:$E$318,'AER - Calc Cost build up'!E11) -> 2773.957615 | O11: 2338.974321 | P11: -434.9832944 | Q11: -0.1568096398
A12: ='AER - Inputs'!$A$59 -> 1 | B12: ='AER - Inputs'!$B$59 -> Ancillary Services | C12: ='AER - Inputs'!$C$59 -> Access permits, oversight and facilitation | D12: ='AER - Inputs'!$D$59 -> Access Permits | E12: ='AER - Inputs'!$E$59 -> All Other - URD - Per access authorisation (AA) or authority to work (ATW) | F12: ='AER - Inputs'!$F$59 -> Per AA or ATW | G12: ='AER - Inputs'!$G$59 -> Fee | H12: =MMULT('AER - Inputs'!$H412:$Y412,'AER - Inputs'!H$32:H$49)*'AER - Inputs'!$H765*'AER - Inputs'!$J765+('AER - Inputs'!$I765*'AER - Inputs'!H$20) -> 2377.808001 | I12: =MMULT('AER - Inputs'!$H412:$Y412,'AER - Inputs'!I$32:I$49)*'AER - Inputs'!$H765*'AER - Inputs'!$J765+('AER - Inputs'!$I765*'AER - Inputs'!I$20) -> 2461.82308 | J12: =MMULT('AER - Inputs'!$H412:$Y412,'AER - Inputs'!J$32:J$49)*'AER - Inputs'!$H765*'AER - Inputs'!$J765+('AER - Inputs'!$I765*'AER - Inputs'!J$20) -> 2525.695233 | K12: =MMULT('AER - Inputs'!$H412:$Y412,'AER - Inputs'!K$32:K$49)*'AER - Inputs'!$H765*'AER - Inputs'!$J765+('AER - Inputs'!$I765*'AER - Inputs'!K$20) -> 2586.341357 | L12: =MMULT('AER - Inputs'!$H412:$Y412,'AER - Inputs'!L$32:L$49)*'AER - Inputs'!$H765*'AER - Inputs'!$J765+('AER - Inputs'!$I765*'AER - Inputs'!L$20) -> 2665.744171 | M12: =MMULT('AER - Inputs'!$H412:$Y412,'AER - Inputs'!M$32:M$49)*'AER - Inputs'!$H765*'AER - Inputs'!$J765+('AER - Inputs'!$I765*'AER - Inputs'!M$20) -> 2338.974321 | N12: =SUMIFS('Report Charges & Xfactors'!$M$10:$M$318,'Report Charges & Xfactors'!$D$10:$D$318,'AER - Calc Cost build up'!D12,'Report Charges & Xfactors'!$E$10:$E$318,'AER - Calc Cost build up'!E12) -> 2773.957615 | O12: 2338.974321 | P12: -434.9832944 | Q12: -0.1568096398
A13: ='AER - Inputs'!$A$60 -> 1 | B13: ='AER - Inputs'!$B$60 -> Ancillary Services | C13: ='AER - Inputs'!$C$60 -> Access permits, oversight and facilitation | D13: ='AER - Inputs'!$D$60 -> Access Permits | E13: ='AER - Inputs'!$E$60 -> Subdivision - URD - Per Lot | F13: ='AER - Inputs'!$F$60 -> Per Lot | G13: ='AER - Inputs'!$G$60 -> Fee | H13: =MMULT('AER - Inputs'!$H413:$Y413,'AER - Inputs'!H$32:H$49)*'AER - Inputs'!$H766*'AER - Inputs'!$J766+('AER - Inputs'!$I766*'AER - Inputs'!H$20) -> 54.91473443 | I13: =MMULT('AER - Inputs'!$H413:$Y413,'AER - Inputs'!I$32:I$49)*'AER - Inputs'!$H766*'AER - Inputs'!$J766+('AER - Inputs'!$I766*'AER - Inputs'!I$20) -> 56.85503648 | J13: =MMULT('AER - Inputs'!$H413:$Y413,'AER - Inputs'!J$32:J$49)*'AER - Inputs'!$H766*'AER - Inputs'!$J766+('AER - Inputs'!$I766*'AER - Inputs'!J$20) -> 58.33014395 | K13: =MMULT('AER - Inputs'!$H413:$Y413,'AER - Inputs'!K$32:K$49)*'AER - Inputs'!$H766*'AER - Inputs'!$J766+('AER - Inputs'!$I766*'AER - Inputs'!K$20) -> 59.73074727 | L13: =MMULT('AER - Inputs'!$H413:$Y413,'AER - Inputs'!L$32:L$49)*'AER - Inputs'!$H766*'AER - Inputs'!$J766+('AER - Inputs'!$I766*'AER - Inputs'!L$20) -> 61.56453051 | M13: =MMULT('AER - Inputs'!$H413:$Y413,'AER - Inputs'!M$32:M$49)*'AER - Inputs'!$H766*'AER - Inputs'!$J766+('AER - Inputs'!$I766*'AER - Inputs'!M$20) -> 54.0178827 | N13: =SUMIFS('Report Charges & Xfactors'!$M$10:$M$318,'Report Charges & Xfactors'!$D$10:$D$318,'AER - Calc Cost build up'!D13,'Report Charges & Xfactors'!$E$10:$E$318,'AER - Calc Cost build up'!E13) -> 64.06368626 | O13: 54.0178827 | P13: -10.04580357 | Q13: -0.1568096398
A14: ='AER - Inputs'!$A$61 -> 1 | B14: ='AER - Inputs'!$B$61 -> Ancillary Services | C14: ='AER - Inputs'!$C$61 -> Access permits, oversight and facilitation | D14: ='AER - Inputs'!$D$61 -> Clearance to Work | E14: ='AER - Inputs'!$E$61 -> Clearance to Work | F14: ='AER - Inputs'!$F$61 -> Per Job | G14: ='AER - Inputs'!$G$61 -> Fee | H14: =MMULT('AER - Inputs'!$H414:$Y414,'AER - Inputs'!H$32:H$49)*'AER - Inputs'!$H767*'AER - Inputs'!$J767+('AER - Inputs'!$I767*'AER - Inputs'!H$20) -> 1981.502373 | I14: =MMULT('AER - Inputs'!$H414:$Y414,'AER - Inputs'!I$32:I$49)*'AER - Inputs'!$H767*'AER - Inputs'!$J767+('AER - Inputs'!$I767*'AER - Inputs'!I$20) -> 2051.514787 | J14: =MMULT('AER - Inputs'!$H414:$Y414,'AER - Inputs'!J$32:J$49)*'AER - Inputs'!$H767*'AER - Inputs'!$J767+('AER - Inputs'!$I767*'AER - Inputs'!J$20) -> 2104.741466 | K14: =MMULT('AER - Inputs'!$H414:$Y414,'AER - Inputs'!K$32:K$49)*'AER - Inputs'!$H767*'AER - Inputs'!$J767+('AER - Inputs'!$I767*'AER - Inputs'!K$20) -> 2155.279793 | L14: =MMULT('AER - Inputs'!$H414:$Y414,'AER - Inputs'!L$32:L$49)*'AER - Inputs'!$H767*'AER - Inputs'!$J767+('AER - Inputs'!$I767*'AER - Inputs'!L$20) -> 2221.448662 | M14: =MMULT('AER - Inputs'!$H414:$Y414,'AER - Inputs'!M$32:M$49)*'AER - Inputs'!$H767*'AER - Inputs'!$J767+('AER - Inputs'!$I767*'AER - Inputs'!M$20) -> 2309.01448 | N14: =SUMIFS('Report Charges & Xfactors'!$M$10:$M$318,'Report Charges & Xfactors'!$D$10:$D$318,'AER - Calc Cost build up'!D14,'Report Charges & Xfactors'!$E$10:$E$318,'AER - Calc Cost build up'!E14) -> 2311.626336 | O14: 2309.01448 | P14: -2.611856405 | Q14: -0.001129878287
A15: ='AER - Inputs'!$A$62 -> 1 | B15: ='AER - Inputs'!$B$62 -> Ancillary Services | C15: ='AER - Inputs'!$C$62 -> Access permits, oversight and facilitation | D15: ='AER - Inputs'!$D$62 -> Customer Interface co-ordination | E15: ='AER - Inputs'!$E$62 -> Customer Interface co-ordination for contestable works | F15: ='AER - Inputs'!$F$62 -> Per Hour | G15: ='AER - Inputs'!$G$62 -> Quote | H15: =MMULT('AER - Inputs'!$H415:$Y415,'AER - Inputs'!H$32:H$49)*'AER - Inputs'!$H768*'AER - Inputs'!$J768+('AER - Inputs'!$I768*'AER - Inputs'!H$20) -> 177.52 | I15: =MMULT('AER - Inputs'!$H415:$Y415,'AER - Inputs'!I$32:I$49)*'AER - Inputs'!$H768*'AER - Inputs'!$J768+('AER - Inputs'!$I768*'AER - Inputs'!I$20) -> 183.7923133 | J15: =MMULT('AER - Inputs'!$H415:$Y415,'AER - Inputs'!J$32:J$49)*'AER - Inputs'!$H768*'AER - Inputs'!$J768+('AER - Inputs'!$I768*'AER - Inputs'!J$20) -> 188.5608163 | K15: =MMULT('AER - Inputs'!$H415:$Y415,'AER - Inputs'!K$32:K$49)*'AER - Inputs'!$H768*'AER - Inputs'!$J768+('AER - Inputs'!$I768*'AER - Inputs'!K$20) -> 193.0884737 | L15: =MMULT('AER - Inputs'!$H415:$Y415,'AER - Inputs'!L$32:L$49)*'AER - Inputs'!$H768*'AER - Inputs'!$J768+('AER - Inputs'!$I768*'AER - Inputs'!L$20) -> 199.0164492 | M15: =MMULT('AER - Inputs'!$H415:$Y415,'AER - Inputs'!M$32:M$49)*'AER - Inputs'!$H768*'AER - Inputs'!$J768+('AER - Inputs'!$I768*'AER - Inputs'!M$20) -> 196.3894547 | N15: =SUMIFS('Report Charges & Xfactors'!$M$10:$M$318,'Report Charges & Xfactors'!$D$10:$D$318,'AER - Calc Cost build up'!D15,'Report Charges & Xfactors'!$E$10:$E$318,'AER - Calc Cost build up'!E15) -> 207.0953398 | O15: 196.3894547 | P15: -10.70588509 | Q15: -0.05169544184
A16: ='AER - Inputs'!$A$63 -> 1 | B16: ='AER - Inputs'!$B$63 -> Ancillary Services | C16: ='AER - Inputs'!$C$63 -> Access permits, oversight and facilitation | D16: ='AER - Inputs'!$D$63 -> Access permits, oversight and facilitation | E16: ='AER - Inputs'!$E$63 -> Break & remake HV bonds - Each additional set | F16: ='AER - Inputs'!$F$63 -> Per Job | G16: ='AER - Inputs'!$G$63 -> Fee | H16: =MMULT('AER - Inputs'!$H416:$Y416,'AER - Inputs'!H$32:H$49)*'AER - Inputs'!$H769*'AER - Inputs'!$J769+('AER - Inputs'!$I769*'AER - Inputs'!H$20) -> 1774.047876 | I16: =MMULT('AER - Inputs'!$H416:$Y416,'AER - Inputs'!I$32:I$49)*'AER - Inputs'!$H769*'AER - Inputs'!$J769+('AER - Inputs'!$I769*'AER - Inputs'!I$20) -> 1836.131307 | J16: =MMULT('AER - Inputs'!$H416:$Y416,'AER - Inputs'!J$32:J$49)*'AER - Inputs'!$H769*'AER - Inputs'!$J769+('AER - Inputs'!$I769*'AER - Inputs'!J$20) -> 1883.132015 | K16: =MMULT('AER - Inputs'!$H416:$Y416,'AER - Inputs'!K$32:K$49)*'AER - Inputs'!$H769*'AER - Inputs'!$J769+('AER - Inputs'!$I769*'AER - Inputs'!K$20) -> 1927.679004 | L16: =MMULT('AER - Inputs'!$H416:$Y416,'AER - Inputs'!L$32:L$49)*'AER - Inputs'!$H769*'AER - Inputs'!$J769+('AER - Inputs'!$I769*'AER - Inputs'!L$20) -> 1986.183309 | M16: =MMULT('AER - Inputs'!$H416:$Y416,'AER - Inputs'!M$32:M$49)*'AER - Inputs'!$H769*'AER - Inputs'!$J769+('AER - Inputs'!$I769*'AER - Inputs'!M$20) -> 1880.063316 | N16: =SUMIFS('Report Charges & Xfactors'!$M$10:$M$318,'Report Charges & Xfactors'!$D$10:$D$318,'AER - Calc Cost build up'!D16,'Report Charges & Xfactors'!$E$10:$E$318,'AER - Calc Cost build up'!E16) -> 2069.609326 | O16: 1880.063316 | P16: -189.5460099 | Q16: -0.09158540574
A17: ='AER - Inputs'!$A$64 -> 1 | B17: ='AER - Inputs'!$B$64 -> Ancillary Services | C17: ='AER - Inputs'!$C$64 -> Access permits, oversight and facilitation | D17: ='AER - Inputs'!$D$64 -> Access permits, oversight and facilitation | E17: ='AER - Inputs'!$E$64 -> Break & remake HV bonds - One set | F17: ='AER - Inputs'!$F$64 -> Per Job | G17: ='AER - Inputs'!$G$64 -> Fee | H17: =MMULT('AER - Inputs'!$H417:$Y417,'AER - Inputs'!H$32:H$49)*'AER - Inputs'!$H770*'AER - Inputs'!$J770+('AER - Inputs'!$I770*'AER - Inputs'!H$20) -> 3204.784463 | I17: =MMULT('AER - Inputs'!$H417:$Y417,'AER - Inputs'!I$32:I$49)*'AER - Inputs'!$H770*'AER - Inputs'!$J770+('AER - Inputs'!$I770*'AER - Inputs'!I$20) -> 3318.019096 | J17: =MMULT('AER - Inputs'!$H417:$Y417,'AER - Inputs'!J$32:J$49)*'AER - Inputs'!$H770*'AER - Inputs'!$J770+('AER - Inputs'!$I770*'AER - Inputs'!J$20) -> 3404.105309 | K17: =MMULT('AER - Inputs'!$H417:$Y417,'AER - Inputs'!K$32:K$49)*'AER - Inputs'!$H770*'AER - Inputs'!$J770+('AER - Inputs'!$I770*'AER - Inputs'!K$20) -> 3485.843513 | L17: =MMULT('AER - Inputs'!$H417:$Y417,'AER - Inputs'!L$32:L$49)*'AER - Inputs'!$H770*'AER - Inputs'!$J770+('AER - Inputs'!$I770*'AER - Inputs'!L$20) -> 3592.861786 | M17: =MMULT('AER - Inputs'!$H417:$Y417,'AER - Inputs'!M$32:M$49)*'AER - Inputs'!$H770*'AER - Inputs'!$J770+('AER - Inputs'!$I770*'AER - Inputs'!M$20) -> 3380.08744 | N17: =SUMIFS('Report Charges & Xfactors'!$M$10:$M$318,'Report Charges & Xfactors'!$D$10:$D$318,'AER - Calc Cost build up'!D17,'Report Charges & Xfactors'!$E$10:$E$318,'AER - Calc Cost build up'!E17) -> 3738.710721 | O17: 3380.08744 | P17: -358.6232807 | Q17: -0.09592164452
A18: ='AER - Inputs'!$A$65 -> 1 | B18: ='AER - Inputs'!$B$65 -> Ancillary Services | C18: ='AER - Inputs'!$C$65 -> Access permits, oversight and facilitation | D18: ='AER - Inputs'!$D$65 -> Access permits, oversight and facilitation | E18: ='AER - Inputs'!$E$65 -> Break & remake LV bonds - Each additional set | F18: ='AER - Inputs'!$F$65 -> Per Job | G18: ='AER - Inputs'!$G$65 -> Fee | H18: =MMULT('AER - Inputs'!$H418:$Y418,'AER - Inputs'!H$32:H$49)*'AER - Inputs'!$H771*'AER - Inputs'!$J771+('AER - Inputs'!$I771*'AER - Inputs'!H$20) -> 934.7733517 | I18: =MMULT('AER - Inputs'!$H418:$Y418,'AER - Inputs'!I$32:I$49)*'AER - Inputs'!$H771*'AER - Inputs'!$J771+('AER - Inputs'!$I771*'AER - Inputs'!I$20) -> 967.003036 | J18: =MMULT('AER - Inputs'!$H418:$Y418,'AER - Inputs'!J$32:J$49)*'AER - Inputs'!$H771*'AER - Inputs'!$J771+('AER - Inputs'!$I771*'AER - Inputs'!J$20) -> 991.2415449 | K18: =MMULT('AER - Inputs'!$H418:$Y418,'AER - Inputs'!K$32:K$49)*'AER - Inputs'!$H771*'AER - Inputs'!$J771+('AER - Inputs'!$I771*'AER - Inputs'!K$20) -> 1014.149392 | L18: =MMULT('AER - Inputs'!$H418:$Y418,'AER - Inputs'!L$32:L$49)*'AER - Inputs'!$H771*'AER - Inputs'!$J771+('AER - Inputs'!$I771*'AER - Inputs'!L$20) -> 1044.381907 | M18: =MMULT('AER - Inputs'!$H418:$Y418,'AER - Inputs'!M$32:M$49)*'AER - Inputs'!$H771*'AER - Inputs'!$J771+('AER - Inputs'!$I771*'AER - Inputs'!M$20) -> 992.6041665 | N18: =SUMIFS('Report Charges & Xfactors'!$M$10:$M$318,'Report Charges & Xfactors'!$D$10:$D$318,'AER - Calc Cost build up'!D18,'Report Charges & Xfactors'!$E$10:$E$318,'AER - Calc Cost build up'!E18) -> 1090.509266 | O18: 992.6041665 | P18: -97.90509938 | Q18: -0.08977924576
A19: ='AER - Inputs'!$A$66 -> 1 | B19: ='AER - Inputs'!$B$66 -> Ancillary Services | C19: ='AER - Inputs'!$C$66 -> Access permits, oversight and facilitation | D19: ='AER - Inputs'!$D$66 -> Access permits, oversight and facilitation | E19: ='AER - Inputs'!$E$66 -> Break & remake LV bonds - One set | F19: ='AER - Inputs'!$F$66 -> Per Job | G19: ='AER - Inputs'!$G$66 -> Fee | H19: =MMULT('AER - Inputs'!$H419:$Y419,'AER - Inputs'!H$32:H$49)*'AER - Inputs'!$H772*'AER - Inputs'!$J772+('AER - Inputs'!$I772*'AER - Inputs'!H$20) -> 1983.988368 | I19: =MMULT('AER - Inputs'!$H419:$Y419,'AER - Inputs'!I$32:I$49)*'AER - Inputs'!$H772*'AER - Inputs'!$J772+('AER - Inputs'!$I772*'AER - Inputs'!I$20) -> 2053.289961 | J19: =MMULT('AER - Inputs'!$H419:$Y419,'AER - Inputs'!J$32:J$49)*'AER - Inputs'!$H772*'AER - Inputs'!$J772+('AER - Inputs'!$I772*'AER - Inputs'!J$20) -> 2105.712252 | K19: =MMULT('AER - Inputs'!$H419:$Y419,'AER - Inputs'!K$32:K$49)*'AER - Inputs'!$H772*'AER - Inputs'!$J772+('AER - Inputs'!$I772*'AER - Inputs'!K$20) -> 2155.380386 | L19: =MMULT('AER - Inputs'!$H419:$Y419,'AER - Inputs'!L$32:L$49)*'AER - Inputs'!$H772*'AER - Inputs'!$J772+('AER - Inputs'!$I772*'AER - Inputs'!L$20) -> 2220.649634 | M19: =MMULT('AER - Inputs'!$H419:$Y419,'AER - Inputs'!M$32:M$49)*'AER - Inputs'!$H772*'AER - Inputs'!$J772+('AER - Inputs'!$I772*'AER - Inputs'!M$20) -> 2095.7764 | N19: =SUMIFS('Report Charges & Xfactors'!$M$10:$M$318,'Report Charges & Xfactors'!$D$10:$D$318,'AER - Calc Cost build up'!D19,'Report Charges & Xfactors'!$E$10:$E$318,'AER - Calc Cost build up'!E19) -> 2314.526505 | O19: 2095.7764 | P19: -218.7501043 | Q19: -0.09451181652
A20: ='AER - Inputs'!$A$67 -> 1 | B20: ='AER - Inputs'!$B$67 -> Ancillary Services | C20: ='AER - Inputs'!$C$67 -> Access permits, oversight and facilitation | D20: ='AER - Inputs'!$D$67 -> Access permits, oversight and facilitation | E20: ='AER - Inputs'!$E$67 -> Connect & disconnect generator to a padmount / indoor substation - Each additional gen | F20: ='AER - Inputs'!$F$67 -> Per Job | G20: ='AER - Inputs'!$G$67 -> Fee | H20: =MMULT('AER - Inputs'!$H420:$Y420,'AER - Inputs'!H$32:H$49)*'AER - Inputs'!$H773*'AER - Inputs'!$J773+('AER - Inputs'!$I773*'AER - Inputs'!H$20) -> 858.3742897 | I20: =MMULT('AER - Inputs'!$H420:$Y420,'AER - Inputs'!I$32:I$49)*'AER - Inputs'!$H773*'AER - Inputs'!$J773+('AER - Inputs'!$I773*'AER - Inputs'!I$20) -> 888.7032243 | J20: =MMULT('AER - Inputs'!$H420:$Y420,'AER - Inputs'!J$32:J$49)*'AER - Inputs'!$H773*'AER - Inputs'!$J773+('AER - Inputs'!$I773*'AER - Inputs'!J$20) -> 911.7606849 | K20: =MMULT('AER - Inputs'!$H420:$Y420,'AER - Inputs'!K$32:K$49)*'AER - Inputs'!$H773*'AER - Inputs'!$J773+('AER - Inputs'!$I773*'AER - Inputs'!K$20) -> 933.6535684 | L20: =MMULT('AER - Inputs'!$H420:$Y420,'AER - Inputs'!L$32:L$49)*'AER - Inputs'!$H773*'AER - Inputs'!$J773+('AER - Inputs'!$I773*'AER - Inputs'!L$20) -> 962.3175035 | M20: =MMULT('AER - Inputs'!$H420:$Y420,'AER - Inputs'!M$32:M$49)*'AER - Inputs'!$H773*'AER - Inputs'!$J773+('AER - Inputs'!$I773*'AER - Inputs'!M$20) -> 908.4881532 | N20: =SUMIFS('Report Charges & Xfactors'!$M$10:$M$318,'Report Charges & Xfactors'!$D$10:$D$318,'AER - Calc Cost build up'!D20,'Report Charges & Xfactors'!$E$10:$E$318,'AER - Calc Cost build up'!E20) -> 1001.381902 | O20: 908.4881532 | P20: -92.89374827 | Q20: -0.09276555541
A21: ='AER - Inputs'!$A$68 -> 1 | B21: ='AER - Inputs'!$B$68 -> Ancillary Services | C21: ='AER - Inputs'!$C$68 -> Access permits, oversight and facilitation | D21: ='AER - Inputs'!$D$68 -> Access permits, oversight and facilitation | E21: ='AER - Inputs'!$E$68 -> Connect & disconnect generator to a padmount / indoor substation - One generator | F21: ='AER - Inputs'!$F$68 -> Per Job | G21: ='AER - Inputs'!$G$68 -> Fee | H21: =MMULT('AER - Inputs'!$H421:$Y421,'AER - Inputs'!H$32:H$49)*'AER - Inputs'!$H774*'AER - Inputs'!$J774+('AER - Inputs'!$I774*'AER - Inputs'!H$20) -> 1907.589306 | I21: =MMULT('AER - Inputs'!$H421:$Y421,'AER - Inputs'!I$32:I$49)*'AER - Inputs'!$H774*'AER - Inputs'!$J774+('AER - Inputs'!$I774*'AER - Inputs'!I$20) -> 1974.990149 | J21: =MMULT('AER - Inputs'!$H421:$Y421,'AER - Inputs'!J$32:J$49)*'AER - Inputs'!$H774*'AER - Inputs'!$J774+('AER - Inputs'!$I774*'AER - Inputs'!J$20) -> 2026.231392 | K21: =MMULT('AER - Inputs'!$H421:$Y421,'AER - Inputs'!K$32:K$49)*'AER - Inputs'!$H774*'AER - Inputs'!$J774+('AER - Inputs'!$I774*'AER - Inputs'!K$20) -> 2074.884562 | L21: =MMULT('AER - Inputs'!$H421:$Y421,'AER - Inputs'!L$32:L$49)*'AER - Inputs'!$H774*'AER - Inputs'!$J774+('AER - Inputs'!$I774*'AER - Inputs'!L$20) -> 2138.585231 | M21: =MMULT('AER - Inputs'!$H421:$Y421,'AER - Inputs'!M$32:M$49)*'AER - Inputs'!$H774*'AER - Inputs'!$J774+('AER - Inputs'!$I774*'AER - Inputs'!M$20) -> 2011.660387 | N21: =SUMIFS('Report Charges & Xfactors'!$M$10:$M$318,'Report Charges & Xfactors'!$D$10:$D$318,'AER - Calc Cost build up'!D21,'Report Charges & Xfactors'!$E$10:$E$318,'AER - Calc Cost build up'!E21) -> 2225.39914 | O21: 2011.660387 | P21: -213.7387532 | Q21: -0.09604513157
A22: ='AER - Inputs'!$A$69 -> 1 | B22: ='AER - Inputs'!$B$69 -> Ancillary Services | C22: ='AER - Inputs'!$C$69 -> Access permits, oversight and facilitation | D22: ='AER - Inputs'!$D$69 -> Access permits, oversight and facilitation | E22: ='AER - Inputs'!$E$69 -> Connect & disconnect generator to LV OH mains - Each additional generator | F22: ='AER - Inputs'!$F$69 -> Per Job | G22: ='AER - Inputs'!$G$69 -> Fee | H22: =MMULT('AER - Inputs'!$H422:$Y422,'AER - Inputs'!H$32:H$49)*'AER - Inputs'!$H775*'AER - Inputs'!$J775+('AER - Inputs'!$I775*'AER - Inputs'!H$20) -> 858.3742897 | I22: =MMULT('AER - Inputs'!$H422:$Y422,'AER - Inputs'!I$32:I$49)*'AER - Inputs'!$H775*'AER - Inputs'!$J775+('AER - Inputs'!$I775*'AER - Inputs'!I$20) -> 888.7032243 | J22: =MMULT('AER - Inputs'!$H422:$Y422,'AER - Inputs'!J$32:J$49)*'AER - Inputs'!$H775*'AER - Inputs'!$J775+('AER - Inputs'!$I775*'AER - Inputs'!J$20) -> 911.7606849 | K22: =MMULT('AER - Inputs'!$H422:$Y422,'AER - Inputs'!K$32:K$49)*'AER - Inputs'!$H775*'AER - Inputs'!$J775+('AER - Inputs'!$I775*'AER - Inputs'!K$20) -> 933.6535684 | L22: =MMULT('AER - Inputs'!$H422:$Y422,'AER - Inputs'!L$32:L$49)*'AER - Inputs'!$H775*'AER - Inputs'!$J775+('AER - Inputs'!$I775*'AER - Inputs'!L$20) -> 962.3175035 | M22: =MMULT('AER - Inputs'!$H422:$Y422,'AER - Inputs'!M$32:M$49)*'AER - Inputs'!$H775*'AER - Inputs'!$J775+('AER - Inputs'!$I775*'AER - Inputs'!M$20) -> 908.4881532 | N22: =SUMIFS('Report Charges & Xfactors'!$M$10:$M$318,'Report Charges & Xfactors'!$D$10:$D$318,'AER - Calc Cost build up'!D22,'Report Charges & Xfactors'!$E$10:$E$318,'AER - Calc Cost build up'!E22) -> 1001.381902 | O22: 908.4881532 | P22: -92.89374827 | Q22: -0.09276555541
A23: ='AER - Inputs'!$A$70 -> 1 | B23: ='AER - Inputs'!$B$70 -> Ancillary Services | C23: ='AER - Inputs'!$C$70 -> Access permits, oversight and facilitation | D23: ='AER - Inputs'!$D$70 -> Access permits, oversight and facilitation | E23: ='AER - Inputs'!$E$70 -> Connect & disconnect generator to LV OH mains - One generator | F23: ='AER - Inputs'!$F$70 -> Per Job | G23: ='AER - Inputs'!$G$70 -> Fee | H23: =MMULT('AER - Inputs'!$H423:$Y423,'AER - Inputs'!H$32:H$49)*'AER - Inputs'!$H776*'AER - Inputs'!$J776+('AER - Inputs'!$I776*'AER - Inputs'!H$20) -> 1907.589306 | I23: =MMULT('AER - Inputs'!$H423:$Y423,'AER - Inputs'!I$32:I$49)*'AER - Inputs'!$H776*'AER - Inputs'!$J776+('AER - Inputs'!$I776*'AER - Inputs'!I$20) -> 1974.990149 | J23: =MMULT('AER - Inputs'!$H423:$Y423,'AER - Inputs'!J$32:J$49)*'AER - Inputs'!$H776*'AER - Inputs'!$J776+('AER - Inputs'!$I776*'AER - Inputs'!J$20) -> 2026.231392 | K23: =MMULT('AER - Inputs'!$H423:$Y423,'AER - Inputs'!K$32:K$49)*'AER - Inputs'!$H776*'AER - Inputs'!$J776+('AER - Inputs'!$I776*'AER - Inputs'!K$20) -> 2074.884562 | L23: =MMULT('AER - Inputs'!$H423:$Y423,'AER - Inputs'!L$32:L$49)*'AER - Inputs'!$H776*'AER - Inputs'!$J776+('AER - Inputs'!$I776*'AER - Inputs'!L$20) -> 2138.585231 | M23: =MMULT('AER - Inputs'!$H423:$Y423,'AER - Inputs'!M$32:M$49)*'AER - Inputs'!$H776*'AER - Inputs'!$J776+('AER - Inputs'!$I776*'AER - Inputs'!M$20) -> 2011.660387 | N23: =SUMIFS('Report Charges & Xfactors'!$M$10:$M$318,'Report Charges & Xfactors'!$D$10:$D$318,'AER - Calc Cost build up'!D23,'Report Charges & Xfactors'!$E$10:$E$318,'AER - Calc Cost build up'!E23) -> 2225.39914 | O23: 2011.660387 | P23: -213.7387532 | Q23: -0.09604513157
A24: ='AER - Inputs'!$A$71 -> 1 | B24: ='AER - Inputs'!$B$71 -> Ancillary Services | C24: ='AER - Inputs'!$C$71 -> Access permits, oversight and facilitation | D24: ='AER - Inputs'!$D$71 -> Access permits, oversight and facilitation | E24: ='AER - Inputs'!$E$71 -> Install & remove HV live line links - Each additional set | F24: ='AER - Inputs'!$F$71 -> Per Job | G24: ='AER - Inputs'!$G$71 -> Fee | H24: =MMULT('AER - Inputs'!$H424:$Y424,'AER - Inputs'!H$32:H$49)*'AER - Inputs'!$H777*'AER - Inputs'!$J777+('AER - Inputs'!$I777*'AER - Inputs'!H$20) -> 2647.786568 | I24: =MMULT('AER - Inputs'!$H424:$Y424,'AER - Inputs'!I$32:I$49)*'AER - Inputs'!$H777*'AER - Inputs'!$J777+('AER - Inputs'!$I777*'AER - Inputs'!I$20) -> 2740.581189 | J24: =MMULT('AER - Inputs'!$H424:$Y424,'AER - Inputs'!J$32:J$49)*'AER - Inputs'!$H777*'AER - Inputs'!$J777+('AER - Inputs'!$I777*'AER - Inputs'!J$20) -> 2810.876874 | K24: =MMULT('AER - Inputs'!$H424:$Y424,'AER - Inputs'!K$32:K$49)*'AER - Inputs'!$H777*'AER - Inputs'!$J777+('AER - Inputs'!$I777*'AER - Inputs'!K$20) -> 2877.520863 | L24: =MMULT('AER - Inputs'!$H424:$Y424,'AER - Inputs'!L$32:L$49)*'AER - Inputs'!$H777*'AER - Inputs'!$J777+('AER - Inputs'!$I777*'AER - Inputs'!L$20) -> 2965.004556 | M24: =MMULT('AER - Inputs'!$H424:$Y424,'AER - Inputs'!M$32:M$49)*'AER - Inputs'!$H777*'AER - Inputs'!$J777+('AER - Inputs'!$I777*'AER - Inputs'!M$20) -> 2805.467807 | N24: =SUMIFS('Report Charges & Xfactors'!$M$10:$M$318,'Report Charges & Xfactors'!$D$10:$D$318,'AER - Calc Cost build up'!D24,'Report Charges & Xfactors'!$E$10:$E$318,'AER - Calc Cost build up'!E24) -> 3088.915384 | O24: 2805.467807 | P24: -283.447577 | Q24: -0.09176281697
A25: ='AER - Inputs'!$A$72 -> 1 | B25: ='AER - Inputs'!$B$72 -> Ancillary Services | C25: ='AER - Inputs'!$C$72 -> Access permits, oversight and facilitation | D25: ='AER - Inputs'!$D$72 -> Access permits, oversight and facilitation | E25: ='AER - Inputs'!$E$72 -> Install & remove HV live line links - One set | F25: ='AER - Inputs'!$F$72 -> Per Job | G25: ='AER - Inputs'!$G$72 -> Fee | H25: =MMULT('AER - Inputs'!$H425:$Y425,'AER - Inputs'!H$32:H$49)*'AER - Inputs'!$H778*'AER - Inputs'!$J778+('AER - Inputs'!$I778*'AER - Inputs'!H$20) -> 4135.822451 | I25: =MMULT('AER - Inputs'!$H425:$Y425,'AER - Inputs'!I$32:I$49)*'AER - Inputs'!$H778*'AER - Inputs'!$J778+('AER - Inputs'!$I778*'AER - Inputs'!I$20) -> 4281.193837 | J25: =MMULT('AER - Inputs'!$H425:$Y425,'AER - Inputs'!J$32:J$49)*'AER - Inputs'!$H778*'AER - Inputs'!$J778+('AER - Inputs'!$I778*'AER - Inputs'!J$20) -> 4391.460813 | K25: =MMULT('AER - Inputs'!$H425:$Y425,'AER - Inputs'!K$32:K$49)*'AER - Inputs'!$H778*'AER - Inputs'!$J778+('AER - Inputs'!$I778*'AER - Inputs'!K$20) -> 4496.05724 | L25: =MMULT('AER - Inputs'!$H425:$Y425,'AER - Inputs'!L$32:L$49)*'AER - Inputs'!$H778*'AER - Inputs'!$J778+('AER - Inputs'!$I778*'AER - Inputs'!L$20) -> 4633.231335 | M25: =MMULT('AER - Inputs'!$H425:$Y425,'AER - Inputs'!M$32:M$49)*'AER - Inputs'!$H778*'AER - Inputs'!$J778+('AER - Inputs'!$I778*'AER - Inputs'!M$20) -> 4368.57894 | N25: =SUMIFS('Report Charges & Xfactors'!$M$10:$M$318,'Report Charges & Xfactors'!$D$10:$D$318,'AER - Calc Cost build up'!D25,'Report Charges & Xfactors'!$E$10:$E$318,'AER - Calc Cost build up'!E25) -> 4824.862301 | O25: 4368.57894 | P25: -456.2833612 | Q25: -0.0945691986
A26: ='AER - Inputs'!$A$73 -> 1 | B26: ='AER - Inputs'!$B$73 -> Ancillary Services | C26: ='AER - Inputs'!$C$73 -> Access permits, oversight and facilitation | D26: ='AER - Inputs'!$D$73 -> Access permits, oversight and facilitation | E26: ='AER - Inputs'!$E$73 -> Install & remove LV live line links - Each additional set | F26: ='AER - Inputs'!$F$73 -> Per Job | G26: ='AER - Inputs'!$G$73 -> Fee | H26: =MMULT('AER - Inputs'!$H426:$Y426,'AER - Inputs'!H$32:H$49)*'AER - Inputs'!$H779*'AER - Inputs'!$J779+('AER - Inputs'!$I779*'AER - Inputs'!H$20) -> 908.4661725 | I26: =MMULT('AER - Inputs'!$H426:$Y426,'AER - Inputs'!I$32:I$49)*'AER - Inputs'!$H779*'AER - Inputs'!$J779+('AER - Inputs'!$I779*'AER - Inputs'!I$20) -> 940.0413545 | J26: =MMULT('AER - Inputs'!$H426:$Y426,'AER - Inputs'!J$32:J$49)*'AER - Inputs'!$H779*'AER - Inputs'!$J779+('AER - Inputs'!$I779*'AER - Inputs'!J$20) -> 963.8731824 | K26: =MMULT('AER - Inputs'!$H426:$Y426,'AER - Inputs'!K$32:K$49)*'AER - Inputs'!$H779*'AER - Inputs'!$J779+('AER - Inputs'!$I779*'AER - Inputs'!K$20) -> 986.4315377 | L26: =MMULT('AER - Inputs'!$H426:$Y426,'AER - Inputs'!L$32:L$49)*'AER - Inputs'!$H779*'AER - Inputs'!$J779+('AER - Inputs'!$I779*'AER - Inputs'!L$20) -> 1016.123929 | M26: =MMULT('AER - Inputs'!$H426:$Y426,'AER - Inputs'!M$32:M$49)*'AER - Inputs'!$H779*'AER - Inputs'!$J779+('AER - Inputs'!$I779*'AER - Inputs'!M$20) -> 963.6397398 | N26: =SUMIFS('Report Charges & Xfactors'!$M$10:$M$318,'Report Charges & Xfactors'!$D$10:$D$318,'AER - Calc Cost build up'!D26,'Report Charges & Xfactors'!$E$10:$E$318,'AER - Calc Cost build up'!E26) -> 1059.819235 | O26: 963.6397398 | P26: -96.17949558 | Q26: -0.09075084918
A27: ='AER - Inputs'!$A$74 -> 1 | B27: ='AER - Inputs'!$B$74 -> Ancillary Services | C27: ='AER - Inputs'!$C$74 -> Access permits, oversight and facilitation | D27: ='AER - Inputs'!$D$74 -> Access permits, oversight and facilitation | E27: ='AER - Inputs'!$E$74 -> Install & remove LV live line links - One set | F27: ='AER - Inputs'!$F$74 -> Per Job | G27: ='AER - Inputs'!$G$74 -> Fee | H27: =MMULT('AER - Inputs'!$H427:$Y427,'AER - Inputs'!H$32:H$49)*'AER - Inputs'!$H780*'AER - Inputs'!$J780+('AER - Inputs'!$I780*'AER - Inputs'!H$20) -> 1957.681189 | I27: =MMULT('AER - Inputs'!$H427:$Y427,'AER - Inputs'!I$32:I$49)*'AER - Inputs'!$H780*'AER - Inputs'!$J780+('AER - Inputs'!$I780*'AER - Inputs'!I$20) -> 2026.32828 | J27: =MMULT('AER - Inputs'!$H427:$Y427,'AER - Inputs'!J$32:J$49)*'AER - Inputs'!$H780*'AER - Inputs'!$J780+('AER - Inputs'!$I780*'AER - Inputs'!J$20) -> 2078.34389 | K27: =MMULT('AER - Inputs'!$H427:$Y427,'AER - Inputs'!K$32:K$49)*'AER - Inputs'!$H780*'AER - Inputs'!$J780+('AER - Inputs'!$I780*'AER - Inputs'!K$20) -> 2127.662532 | L27: =MMULT('AER - Inputs'!$H427:$Y427,'AER - Inputs'!L$32:L$49)*'AER - Inputs'!$H780*'AER - Inputs'!$J780+('AER - Inputs'!$I780*'AER - Inputs'!L$20) -> 2192.391657 | M27: =MMULT('AER - Inputs'!$H427:$Y427,'AER - Inputs'!M$32:M$49)*'AER - Inputs'!$H780*'AER - Inputs'!$J780+('AER - Inputs'!$I780*'AER - Inputs'!M$20) -> 2066.811974 | N27: =SUMIFS('Report Charges & Xfactors'!$M$10:$M$318,'Report Charges & Xfactors'!$D$10:$D$318,'AER - Calc Cost build up'!D27,'Report Charges & Xfactors'!$E$10:$E$318,'AER - Calc Cost build up'!E27) -> 2283.836474 | O27: 2066.811974 | P27: -217.0245005 | Q27: -0.09502628713
A28: ='AER - Inputs'!$A$75 -> 1 | B28: ='AER - Inputs'!$B$75 -> Ancillary Services | C28: ='AER - Inputs'!$C$75 -> Access permits, oversight and facilitation | D28: ='AER - Inputs'!$D$75 -> Provision of Access Fee (Standby) | E28: ='AER - Inputs'!$E$75 -> Normal Time - 1 x Visit - Open / Close - 1 hour - Per Job | F28: ='AER - Inputs'!$F$75 -> Per Job | G28: ='AER - Inputs'!$G$75 -> Fee | H28: =MMULT('AER - Inputs'!$H428:$Y428,'AER - Inputs'!H$32:H$49)*'AER - Inputs'!$H781*'AER - Inputs'!$J781+('AER - Inputs'!$I781*'AER - Inputs'!H$20) -> 143.0623816 | I28: =MMULT('AER - Inputs'!$H428:$Y428,'AER - Inputs'!I$32:I$49)*'AER - Inputs'!$H781*'AER - Inputs'!$J781+('AER - Inputs'!$I781*'AER - Inputs'!I$20) -> 148.117204 | J28: =MMULT('AER - Inputs'!$H428:$Y428,'AER - Inputs'!J$32:J$49)*'AER - Inputs'!$H781*'AER - Inputs'!$J781+('AER - Inputs'!$I781*'AER - Inputs'!J$20) -> 151.9601142 | K28: =MMULT('AER - Inputs'!$H428:$Y428,'AER - Inputs'!K$32:K$49)*'AER - Inputs'!$H781*'AER - Inputs'!$J781+('AER - Inputs'!$I781*'AER - Inputs'!K$20) -> 155.6089281 | L28: =MMULT('AER - Inputs'!$H428:$Y428,'AER - Inputs'!L$32:L$49)*'AER - Inputs'!$H781*'AER - Inputs'!$J781+('AER - Inputs'!$I781*'AER - Inputs'!L$20) -> 160.3862506 | M28: =MMULT('AER - Inputs'!$H428:$Y428,'AER - Inputs'!M$32:M$49)*'AER - Inputs'!$H781*'AER - Inputs'!$J781+('AER - Inputs'!$I781*'AER - Inputs'!M$20) -> 151.4146922 | N28: =SUMIFS('Report Charges & Xfactors'!$M$10:$M$318,'Report Charges & Xfactors'!$D$10:$D$318,'AER - Calc Cost build up'!D28,'Report Charges & Xfactors'!$E$10:$E$318,'AER - Calc Cost build up'!E28) -> 166.8969836 | O28: 151.4146922 | P28: -15.48229138 | Q28: -0.09276555541
A29: ='AER - Inputs'!$A$76 -> 1 | B29: ='AER - Inputs'!$B$76 -> Ancillary Services | C29: ='AER - Inputs'!$C$76 -> Access permits, oversight and facilitation | D29: ='AER - Inputs'!$D$76 -> Provision of Access Fee (Standby) | E29: ='AER - Inputs'!$E$76 -> Normal Time - 1 x Visit - Open / Isolate & CSO to close - 1 hour - Per Job | F29: ='AER - Inputs'!$F$76 -> Per Job | G29: ='AER - Inputs'!$G$76 -> Fee | H29: =MMULT('AER - Inputs'!$H429:$Y429,'AER - Inputs'!H$32:H$49)*'AER - Inputs'!$H782*'AER - Inputs'!$J782+('AER - Inputs'!$I782*'AER - Inputs'!H$20) -> 295.7584856 | I29: =MMULT('AER - Inputs'!$H429:$Y429,'AER - Inputs'!I$32:I$49)*'AER - Inputs'!$H782*'AER - Inputs'!$J782+('AER - Inputs'!$I782*'AER - Inputs'!I$20) -> 306.2085188 | J29: =MMULT('AER - Inputs'!$H429:$Y429,'AER - Inputs'!J$32:J$49)*'AER - Inputs'!$H782*'AER - Inputs'!$J782+('AER - Inputs'!$I782*'AER - Inputs'!J$20) -> 314.1531179 | K29: =MMULT('AER - Inputs'!$H429:$Y429,'AER - Inputs'!K$32:K$49)*'AER - Inputs'!$H782*'AER - Inputs'!$J782+('AER - Inputs'!$I782*'AER - Inputs'!K$20) -> 321.6964543 | L29: =MMULT('AER - Inputs'!$H429:$Y429,'AER - Inputs'!L$32:L$49)*'AER - Inputs'!$H782*'AER - Inputs'!$J782+('AER - Inputs'!$I782*'AER - Inputs'!L$20) -> 331.572801 | M29: =MMULT('AER - Inputs'!$H429:$Y429,'AER - Inputs'!M$32:M$49)*'AER - Inputs'!$H782*'AER - Inputs'!$J782+('AER - Inputs'!$I782*'AER - Inputs'!M$20) -> 308.5242074 | N29: =SUMIFS('Report Charges & Xfactors'!$M$10:$M$318,'Report Charges & Xfactors'!$D$10:$D$318,'AER - Calc Cost build up'!D29,'Report Charges & Xfactors'!$E$10:$E$318,'AER - Calc Cost build up'!E29) -> 345.0326953 | O29: 308.5242074 | P29: -36.50848784 | Q29: -0.1058116762
A30: ='AER - Inputs'!$A$77 -> 1 | B30: ='AER - Inputs'!$B$77 -> Ancillary Services | C30: ='AER - Inputs'!$C$77 -> Access permits, oversight and facilitation | D30: ='AER - Inputs'!$D$77 -> Provision of Access Fee (Standby) | E30: ='AER - Inputs'!$E$77 -> Normal Time - 2 x Visit - Open / Close & no isolation - 2 hours - Per Job | F30: ='AER - Inputs'!$F$77 -> Per Job | G30: ='AER - Inputs'!$G$77 -> Fee | H30: =MMULT('AER - Inputs'!$H430:$Y430,'AER - Inputs'!H$32:H$49)*'AER - Inputs'!$H783*'AER - Inputs'!$J783+('AER - Inputs'!$I783*'AER - Inputs'!H$20) -> 286.1247632 | I30: =MMULT('AER - Inputs'!$H430:$Y430,'AER - Inputs'!I$32:I$49)*'AER - Inputs'!$H783*'AER - Inputs'!$J783+('AER - Inputs'!$I783*'AER - Inputs'!I$20) -> 296.2344081 | J30: =MMULT('AER - Inputs'!$H430:$Y430,'AER - Inputs'!J$32:J$49)*'AER - Inputs'!$H783*'AER - Inputs'!$J783+('AER - Inputs'!$I783*'AER - Inputs'!J$20) -> 303.9202283 | K30: =MMULT('AER - Inputs'!$H430:$Y430,'AER - Inputs'!K$32:K$49)*'AER - Inputs'!$H783*'AER - Inputs'!$J783+('AER - Inputs'!$I783*'AER - Inputs'!K$20) -> 311.2178561 | L30: =MMULT('AER - Inputs'!$H430:$Y430,'AER - Inputs'!L$32:L$49)*'AER - Inputs'!$H783*'AER - Inputs'!$J783+('AER - Inputs'!$I783*'AER - Inputs'!L$20) -> 320.7725012 | M30: =MMULT('AER - Inputs'!$H430:$Y430,'AER - Inputs'!M$32:M$49)*'AER - Inputs'!$H783*'AER - Inputs'!$J783+('AER - Inputs'!$I783*'AER - Inputs'!M$20) -> 302.8293844 | N30: =SUMIFS('Report Charges & Xfactors'!$M$10:$M$318,'Report Charges & Xfactors'!$D$10:$D$318,'AER - Calc Cost build up'!D30,'Report Charges & Xfactors'!$E$10:$E$318,'AER - Calc Cost build up'!E30) -> 333.7939672 | O30: 302.8293844 | P30: -30.96458276 | Q30: -0.09276555541
A31: ='AER - Inputs'!$A$78 -> 1 | B31: ='AER - Inputs'!$B$78 -> Ancillary Services | C31: ='AER - Inputs'!$C$78 -> Access permits, oversight and facilitation | D31: ='AER - Inputs'!$D$78 -> Provision of Access Fee (Standby) | E31: ='AER - Inputs'!$E$78 -> Normal Time - 2 x Visit - Open / Isolate / Close - 2 hours - Per Job | F31: ='AER - Inputs'!$F$78 -> Per Job | G31: ='AER - Inputs'!$G$78 -> Fee | H31: =MMULT('AER - Inputs'!$H431:$Y431,'AER - Inputs'!H$32:H$49)*'AER - Inputs'!$H784*'AER - Inputs'!$J784+('AER - Inputs'!$I784*'AER - Inputs'!H$20) -> 591.5169713 | I31: =MMULT('AER - Inputs'!$H431:$Y431,'AER - Inputs'!I$32:I$49)*'AER - Inputs'!$H784*'AER - Inputs'!$J784+('AER - Inputs'!$I784*'AER - Inputs'!I$20) -> 612.4170375 | J31: =MMULT('AER - Inputs'!$H431:$Y431,'AER - Inputs'!J$32:J$49)*'AER - Inputs'!$H784*'AER - Inputs'!$J784+('AER - Inputs'!$I784*'AER - Inputs'!J$20) -> 628.3062358 | K31: =MMULT('AER - Inputs'!$H431:$Y431,'AER - Inputs'!K$32:K$49)*'AER - Inputs'!$H784*'AER - Inputs'!$J784+('AER - Inputs'!$I784*'AER - Inputs'!K$20) -> 643.3929087 | L31: =MMULT('AER - Inputs'!$H431:$Y431,'AER - Inputs'!L$32:L$49)*'AER - Inputs'!$H784*'AER - Inputs'!$J784+('AER - Inputs'!$I784*'AER - Inputs'!L$20) -> 663.145602 | M31: =MMULT('AER - Inputs'!$H431:$Y431,'AER - Inputs'!M$32:M$49)*'AER - Inputs'!$H784*'AER - Inputs'!$J784+('AER - Inputs'!$I784*'AER - Inputs'!M$20) -> 617.0484149 | N31: =SUMIFS('Report Charges & Xfactors'!$M$10:$M$318,'Report Charges & Xfactors'!$D$10:$D$318,'AER - Calc Cost build up'!D31,'Report Charges & Xfactors'!$E$10:$E$318,'AER - Calc Cost build up'!E31) -> 690.0653906 | O31: 617.0484149 | P31: -73.01697569 | Q31: -0.1058116762
A32: ='AER - Inputs'!$A$79 -> 1 | B32: ='AER - Inputs'!$B$79 -> Ancillary Services | C32: ='AER - Inputs'!$C$79 -> Access permits, oversight and facilitation | D32: ='AER - Inputs'!$D$79 -> Provision of Access Fee (Standby) | E32: ='AER - Inputs'!$E$79 -> Overtime - 1 x Visit - Open / Close - 1 hour - Per Job | F32: ='AER - Inputs'!$F$79 -> Per Job | G32: ='AER - Inputs'!$G$79 -> Fee | H32: =MMULT('AER - Inputs'!$H432:$Y432,'AER - Inputs'!H$32:H$49)*'AER - Inputs'!$H785*'AER - Inputs'!$J785+('AER - Inputs'!$I785*'AER - Inputs'!H$20) -> 250.3591678 | I32: =MMULT('AER - Inputs'!$H432:$Y432,'AER - Inputs'!I$32:I$49)*'AER - Inputs'!$H785*'AER - Inputs'!$J785+('AER - Inputs'!$I785*'AER - Inputs'!I$20) -> 259.2051071 | J32: =MMULT('AER - Inputs'!$H432:$Y432,'AER - Inputs'!J$32:J$49)*'AER - Inputs'!$H785*'AER - Inputs'!$J785+('AER - Inputs'!$I785*'AER - Inputs'!J$20) -> 265.9301998 | K32: =MMULT('AER - Inputs'!$H432:$Y432,'AER - Inputs'!K$32:K$49)*'AER - Inputs'!$H785*'AER - Inputs'!$J785+('AER - Inputs'!$I785*'AER - Inputs'!K$20) -> 272.3156241 | L32: =MMULT('AER - Inputs'!$H432:$Y432,'AER - Inputs'!L$32:L$49)*'AER - Inputs'!$H785*'AER - Inputs'!$J785+('AER - Inputs'!$I785*'AER - Inputs'!L$20) -> 280.6759385 | M32: =MMULT('AER - Inputs'!$H432:$Y432,'AER - Inputs'!M$32:M$49)*'AER - Inputs'!$H785*'AER - Inputs'!$J785+('AER - Inputs'!$I785*'AER - Inputs'!M$20) -> 264.9757114 | N32: =SUMIFS('Report Charges & Xfactors'!$M$10:$M$318,'Report Charges & Xfactors'!$D$10:$D$318,'AER - Calc Cost build up'!D32,'Report Charges & Xfactors'!$E$10:$E$318,'AER - Calc Cost build up'!E32) -> 292.0697213 | O32: 264.9757114 | P32: -27.09400991 | Q32: -0.09276555541
A33: ='AER - Inputs'!$A$80 -> 1 | B33: ='AER - Inputs'!$B$80 -> Ancillary Services | C33: ='AER - Inputs'!$C$80 -> Access permits, oversight and facilitation | D33: ='AER - Inputs'!$D$80 -> Provision of Access Fee (Standby) | E33: ='AER - Inputs'!$E$80 -> Overtime - 1 x Visit - Open / Isolate & CSO to close - 1 hour - Per Job | F33: ='AER - Inputs'!$F$80 -> Per Job | G33: ='AER - Inputs'!$G$80 -> Fee | H33: =MMULT('AER - Inputs'!$H433:$Y433,'AER - Inputs'!H$32:H$49)*'AER - Inputs'!$H786*'AER - Inputs'!$J786+('AER - Inputs'!$I786*'AER - Inputs'!H$20) -> 517.5773498 | I33: =MMULT('AER - Inputs'!$H433:$Y433,'AER - Inputs'!I$32:I$49)*'AER - Inputs'!$H786*'AER - Inputs'!$J786+('AER - Inputs'!$I786*'AER - Inputs'!I$20) -> 535.8649078 | J33: =MMULT('AER - Inputs'!$H433:$Y433,'AER - Inputs'!J$32:J$49)*'AER - Inputs'!$H786*'AER - Inputs'!$J786+('AER - Inputs'!$I786*'AER - Inputs'!J$20) -> 549.7679563 | K33: =MMULT('AER - Inputs'!$H433:$Y433,'AER - Inputs'!K$32:K$49)*'AER - Inputs'!$H786*'AER - Inputs'!$J786+('AER - Inputs'!$I786*'AER - Inputs'!K$20) -> 562.9687951 | L33: =MMULT('AER - Inputs'!$H433:$Y433,'AER - Inputs'!L$32:L$49)*'AER - Inputs'!$H786*'AER - Inputs'!$J786+('AER - Inputs'!$I786*'AER - Inputs'!L$20) -> 580.2524017 | M33: =MMULT('AER - Inputs'!$H433:$Y433,'AER - Inputs'!M$32:M$49)*'AER - Inputs'!$H786*'AER - Inputs'!$J786+('AER - Inputs'!$I786*'AER - Inputs'!M$20) -> 539.917363 | N33: =SUMIFS('Report Charges & Xfactors'!$M$10:$M$318,'Report Charges & Xfactors'!$D$10:$D$318,'AER - Calc Cost build up'!D33,'Report Charges & Xfactors'!$E$10:$E$318,'AER - Calc Cost build up'!E33) -> 603.8072168 | O33: 539.917363 | P33: -63.88985373 | Q33: -0.1058116762
A34: ='AER - Inputs'!$A$81 -> 1 | B34: ='AER - Inputs'!$B$81 -> Ancillary Services | C34: ='AER - Inputs'!$C$81 -> Access permits, oversight and facilitation | D34: ='AER - Inputs'!$D$81 -> Provision of Access Fee (Standby) | E34: ='AER - Inputs'!$E$81 -> Overtime - 2 x Visit - Open / Close & no isolation - 2 hours - Per Job | F34: ='AER - Inputs'!$F$81 -> Per Job | G34: ='AER - Inputs'!$G$81 -> Fee | H34: =MMULT('AER - Inputs'!$H434:$Y434,'AER - Inputs'!H$32:H$49)*'AER - Inputs'!$H787*'AER - Inputs'!$J787+('AER - Inputs'!$I787*'AER - Inputs'!H$20) -> 500.7183356 | I34: =MMULT('AER - Inputs'!$H434:$Y434,'AER - Inputs'!I$32:I$49)*'AER - Inputs'!$H787*'AER - Inputs'!$J787+('AER - Inputs'!$I787*'AER - Inputs'!I$20) -> 518.4102142 | J34: =MMULT('AER - Inputs'!$H434:$Y434,'AER - Inputs'!J$32:J$49)*'AER - Inputs'!$H787*'AER - Inputs'!$J787+('AER - Inputs'!$I787*'AER - Inputs'!J$20) -> 531.8603995 | K34: =MMULT('AER - Inputs'!$H434:$Y434,'AER - Inputs'!K$32:K$49)*'AER - Inputs'!$H787*'AER - Inputs'!$J787+('AER - Inputs'!$I787*'AER - Inputs'!K$20) -> 544.6312482 | L34: =MMULT('AER - Inputs'!$H434:$Y434,'AER - Inputs'!L$32:L$49)*'AER - Inputs'!$H787*'AER - Inputs'!$J787+('AER - Inputs'!$I787*'AER - Inputs'!L$20) -> 561.351877 | M34: =MMULT('AER - Inputs'!$H434:$Y434,'AER - Inputs'!M$32:M$49)*'AER - Inputs'!$H787*'AER - Inputs'!$J787+('AER - Inputs'!$I787*'AER - Inputs'!M$20) -> 529.9514227 | N34: =SUMIFS('Report Charges & Xfactors'!$M$10:$M$318,'Report Charges & Xfactors'!$D$10:$D$318,'AER - Calc Cost build up'!D34,'Report Charges & Xfactors'!$E$10:$E$318,'AER - Calc Cost build up'!E34) -> 584.1394425 | O34: 529.9514227 | P34: -54.18801983 | Q34: -0.09276555541
A35: ='AER - Inputs'!$A$82 -> 1 | B35: ='AER - Inputs'!$B$82 -> Ancillary Services | C35: ='AER - Inputs'!$C$82 -> Access permits, oversight and facilitation | D35: ='AER - Inputs'!$D$82 -> Provision of Access Fee (Standby) | E35: ='AER - Inputs'!$E$82 -> Overtime - 2 x Visit - Open / Isolate / Close - 2 hours - Per Job | F35: ='AER - Inputs'!$F$82 -> Per Job | G35: ='AER - Inputs'!$G$82 -> Fee | H35: =MMULT('AER - Inputs'!$H435:$Y435,'AER - Inputs'!H$32:H$49)*'AER - Inputs'!$H788*'AER - Inputs'!$J788+('AER - Inputs'!$I788*'AER - Inputs'!H$20) -> 1035.1547 | I35: =MMULT('AER - Inputs'!$H435:$Y435,'AER - Inputs'!I$32:I$49)*'AER - Inputs'!$H788*'AER - Inputs'!$J788+('AER - Inputs'!$I788*'AER - Inputs'!I$20) -> 1071.729816 | J35: =MMULT('AER - Inputs'!$H435:$Y435,'AER - Inputs'!J$32:J$49)*'AER - Inputs'!$H788*'AER - Inputs'!$J788+('AER - Inputs'!$I788*'AER - Inputs'!J$20) -> 1099.535913 | K35: =MMULT('AER - Inputs'!$H435:$Y435,'AER - Inputs'!K$32:K$49)*'AER - Inputs'!$H788*'AER - Inputs'!$J788+('AER - Inputs'!$I788*'AER - Inputs'!K$20) -> 1125.93759 | L35: =MMULT('AER - Inputs'!$H435:$Y435,'AER - Inputs'!L$32:L$49)*'AER - Inputs'!$H788*'AER - Inputs'!$J788+('AER - Inputs'!$I788*'AER - Inputs'!L$20) -> 1160.504803 | M35: =MMULT('AER - Inputs'!$H435:$Y435,'AER - Inputs'!M$32:M$49)*'AER - Inputs'!$H788*'AER - Inputs'!$J788+('AER - Inputs'!$I788*'AER - Inputs'!M$20) -> 1079.834726 | N35: =SUMIFS('Report Charges & Xfactors'!$M$10:$M$318,'Report Charges & Xfactors'!$D$10:$D$318,'AER - Calc Cost build up'!D35,'Report Charges & Xfactors'!$E$10:$E$318,'AER - Calc Cost build up'!E35) -> 1207.614434 | O35: 1079.834726 | P35: -127.7797075 | Q35: -0.1058116762
A36: ='AER - Inputs'!$A$83 -> 0 | B36: ='AER - Inputs'!$B$83 -> Ancillary Services | C36: ='AER - Inputs'!$C$83 -> Authorisation of ASPs | D36: ='AER - Inputs'!$D$83 -> Authorisation | E36: ='AER - Inputs'!$E$83 -> Authorisation - New | F36: ='AER - Inputs'!$F$83 -> Per Authorisation | G36: ='AER - Inputs'!$G$83 -> Fee | H36: =MMULT('AER - Inputs'!$H436:$Y436,'AER - Inputs'!H$32:H$49)*'AER - Inputs'!$H789*'AER - Inputs'!$J789+('AER - Inputs'!$I789*'AER - Inputs'!H$20) -> 419.6134116 | I36: =MMULT('AER - Inputs'!$H436:$Y436,'AER - Inputs'!I$32:I$49)*'AER - Inputs'!$H789*'AER - Inputs'!$J789+('AER - Inputs'!$I789*'AER - Inputs'!I$20) -> 434.292549 | J36: =MMULT('AER - Inputs'!$H436:$Y436,'AER - Inputs'!J$32:J$49)*'AER - Inputs'!$H789*'AER - Inputs'!$J789+('AER - Inputs'!$I789*'AER - Inputs'!J$20) -> 445.4036991 | K36: =MMULT('AER - Inputs'!$H436:$Y436,'AER - Inputs'!K$32:K$49)*'AER - Inputs'!$H789*'AER - Inputs'!$J789+('AER - Inputs'!$I789*'AER - Inputs'!K$20) -> 455.9340535 | L36: =MMULT('AER - Inputs'!$H436:$Y436,'AER - Inputs'!L$32:L$49)*'AER - Inputs'!$H789*'AER - Inputs'!$J789+('AER - Inputs'!$I789*'AER - Inputs'!L$20) -> 469.7653845 | M36: =MMULT('AER - Inputs'!$H436:$Y436,'AER - Inputs'!M$32:M$49)*'AER - Inputs'!$H789*'AER - Inputs'!$J789+('AER - Inputs'!$I789*'AER - Inputs'!M$20) -> 448.5041218 | N36: =SUMIFS('Report Charges & Xfactors'!$M$10:$M$318,'Report Charges & Xfactors'!$D$10:$D$318,'AER - Calc Cost build up'!D36,'Report Charges & Xfactors'!$E$10:$E$318,'AER - Calc Cost build up'!E36) -> 489.5222062 | O36: 448.5041218 | P36: -41.01808443 | Q36: -0.08379208116
A37: ='AER - Inputs'!$A$84 -> 0 | B37: ='AER - Inputs'!$B$84 -> Ancillary Services | C37: ='AER - Inputs'!$C$84 -> Authorisation of ASPs | D37: ='AER - Inputs'!$D$84 -> Authorisation | E37: ='AER - Inputs'!$E$84 -> Authorisation - Renewal | F37: ='AER - Inputs'!$F$84 -> Per Authorisation | G37: ='AER - Inputs'!$G$84 -> Fee | H37: =MMULT('AER - Inputs'!$H437:$Y437,'AER - Inputs'!H$32:H$49)*'AER - Inputs'!$H790*'AER - Inputs'!$J790+('AER - Inputs'!$I790*'AER - Inputs'!H$20) -> 376.6946972 | I37: =MMULT('AER - Inputs'!$H437:$Y437,'AER - Inputs'!I$32:I$49)*'AER - Inputs'!$H790*'AER - Inputs'!$J790+('AER - Inputs'!$I790*'AER - Inputs'!I$20) -> 389.8573877 | J37: =MMULT('AER - Inputs'!$H437:$Y437,'AER - Inputs'!J$32:J$49)*'AER - Inputs'!$H790*'AER - Inputs'!$J790+('AER - Inputs'!$I790*'AER - Inputs'!J$20) -> 399.8156648 | K37: =MMULT('AER - Inputs'!$H437:$Y437,'AER - Inputs'!K$32:K$49)*'AER - Inputs'!$H790*'AER - Inputs'!$J790+('AER - Inputs'!$I790*'AER - Inputs'!K$20) -> 409.2513751 | L37: =MMULT('AER - Inputs'!$H437:$Y437,'AER - Inputs'!L$32:L$49)*'AER - Inputs'!$H790*'AER - Inputs'!$J790+('AER - Inputs'!$I790*'AER - Inputs'!L$20) -> 421.6495094 | M37: =MMULT('AER - Inputs'!$H437:$Y437,'AER - Inputs'!M$32:M$49)*'AER - Inputs'!$H790*'AER - Inputs'!$J790+('AER - Inputs'!$I790*'AER - Inputs'!M$20) -> 403.0797141 | N37: =SUMIFS('Report Charges & Xfactors'!$M$10:$M$318,'Report Charges & Xfactors'!$D$10:$D$318,'AER - Calc Cost build up'!D37,'Report Charges & Xfactors'!$E$10:$E$318,'AER - Calc Cost build up'!E37) -> 439.4531112 | O37: 403.0797141 | P37: -36.37339702 | Q37: -0.08276968827
A38: ='AER - Inputs'!$A$85 -> 1 | B38: ='AER - Inputs'!$B$85 -> Ancillary Services | C38: ='AER - Inputs'!$C$85 -> Connection application related services | D38: ='AER - Inputs'!$D$85 -> Administration Fee | E38: ='AER - Inputs'!$E$85 -> Connection of Load - Industrial & Commercial - Per Hour | F38: ='AER - Inputs'!$F$85 -> Per Hour | G38: ='AER - Inputs'!$G$85 -> Quote | H38: =MMULT('AER - Inputs'!$H438:$Y438,'AER - Inputs'!H$32:H$49)*'AER - Inputs'!$H791*'AER - Inputs'!$J791+('AER - Inputs'!$I791*'AER - Inputs'!H$20) -> 89.06 | I38: =MMULT('AER - Inputs'!$H438:$Y438,'AER - Inputs'!I$32:I$49)*'AER - Inputs'!$H791*'AER - Inputs'!$J791+('AER - Inputs'!$I791*'AER - Inputs'!I$20) -> 92.20675655 | J38: =MMULT('AER - Inputs'!$H438:$Y438,'AER - Inputs'!J$32:J$49)*'AER - Inputs'!$H791*'AER - Inputs'!$J791+('AER - Inputs'!$I791*'AER - Inputs'!J$20) -> 94.59906661 | K38: =MMULT('AER - Inputs'!$H438:$Y438,'AER - Inputs'!K$32:K$49)*'AER - Inputs'!$H791*'AER - Inputs'!$J791+('AER - Inputs'!$I791*'AER - Inputs'!K$20) -> 96.8705468 | L38: =MMULT('AER - Inputs'!$H438:$Y438,'AER - Inputs'!L$32:L$49)*'AER - Inputs'!$H791*'AER - Inputs'!$J791+('AER - Inputs'!$I791*'AER - Inputs'!L$20) -> 99.84455253 | M38: =MMULT('AER - Inputs'!$H438:$Y438,'AER - Inputs'!M$32:M$49)*'AER - Inputs'!$H791*'AER - Inputs'!$J791+('AER - Inputs'!$I791*'AER - Inputs'!M$20) -> 103.8976507 | N38: =SUMIFS('Report Charges & Xfactors'!$M$10:$M$318,'Report Charges & Xfactors'!$D$10:$D$318,'AER - Calc Cost build up'!D38,'Report Charges & Xfactors'!$E$10:$E$318,'AER - Calc Cost build up'!E38) -> 103.8976507 | O38: 103.8976507 | P38: 0 | Q38: 0
A39: ='AER - Inputs'!$A$86 -> 1 | B39: ='AER - Inputs'!$B$86 -> Ancillary Services | C39: ='AER - Inputs'!$C$86 -> Connection application related services | D39: ='AER - Inputs'!$D$86 -> Administration Fee | E39: ='AER - Inputs'!$E$86 -> Connection of Load - Non Urban - Overhead - 11+ poles | F39: ='AER - Inputs'!$F$86 -> Per Job | G39: ='AER - Inputs'!$G$86 -> Fee | H39: =MMULT('AER - Inputs'!$H439:$Y439,'AER - Inputs'!H$32:H$49)*'AER - Inputs'!$H792*'AER - Inputs'!$J792+('AER - Inputs'!$I792*'AER - Inputs'!H$20) -> 712.48 | I39: =MMULT('AER - Inputs'!$H439:$Y439,'AER - Inputs'!I$32:I$49)*'AER - Inputs'!$H792*'AER - Inputs'!$J792+('AER - Inputs'!$I792*'AER - Inputs'!I$20) -> 737.6540524 | J39: =MMULT('AER - Inputs'!$H439:$Y439,'AER - Inputs'!J$32:J$49)*'AER - Inputs'!$H792*'AER - Inputs'!$J792+('AER - Inputs'!$I792*'AER - Inputs'!J$20) -> 756.7925329 | K39: =MMULT('AER - Inputs'!$H439:$Y439,'AER - Inputs'!K$32:K$49)*'AER - Inputs'!$H792*'AER - Inputs'!$J792+('AER - Inputs'!$I792*'AER - Inputs'!K$20) -> 774.9643744 | L39: =MMULT('AER - Inputs'!$H439:$Y439,'AER - Inputs'!L$32:L$49)*'AER - Inputs'!$H792*'AER - Inputs'!$J792+('AER - Inputs'!$I792*'AER - Inputs'!L$20) -> 798.7564203 | M39: =MMULT('AER - Inputs'!$H439:$Y439,'AER - Inputs'!M$32:M$49)*'AER - Inputs'!$H792*'AER - Inputs'!$J792+('AER - Inputs'!$I792*'AER - Inputs'!M$20) -> 831.1812059 | N39: =SUMIFS('Report Charges & Xfactors'!$M$10:$M$318,'Report Charges & Xfactors'!$D$10:$D$318,'AER - Calc Cost build up'!D39,'Report Charges & Xfactors'!$E$10:$E$318,'AER - Calc Cost build up'!E39) -> 831.1812059 | O39: 831.1812059 | P39: 0 | Q39: 0
A40: ='AER - Inputs'!$A$87 -> 1 | B40: ='AER - Inputs'!$B$87 -> Ancillary Services | C40: ='AER - Inputs'!$C$87 -> Connection application related services | D40: ='AER - Inputs'!$D$87 -> Administration Fee | E40: ='AER - Inputs'!$E$87 -> Connection of Load - Non Urban - Overhead - 1-5 poles | F40: ='AER - Inputs'!$F$87 -> Per Job | G40: ='AER - Inputs'!$G$87 -> Fee | H40: =MMULT('AER - Inputs'!$H440:$Y440,'AER - Inputs'!H$32:H$49)*'AER - Inputs'!$H793*'AER - Inputs'!$J793+('AER - Inputs'!$I793*'AER - Inputs'!H$20) -> 356.24 | I40: =MMULT('AER - Inputs'!$H440:$Y440,'AER - Inputs'!I$32:I$49)*'AER - Inputs'!$H793*'AER - Inputs'!$J793+('AER - Inputs'!$I793*'AER - Inputs'!I$20) -> 368.8270262 | J40: =MMULT('AER - Inputs'!$H440:$Y440,'AER - Inputs'!J$32:J$49)*'AER - Inputs'!$H793*'AER - Inputs'!$J793+('AER - Inputs'!$I793*'AER - Inputs'!J$20) -> 378.3962664 | K40: =MMULT('AER - Inputs'!$H440:$Y440,'AER - Inputs'!K$32:K$49)*'AER - Inputs'!$H793*'AER - Inputs'!$J793+('AER - Inputs'!$I793*'AER - Inputs'!K$20) -> 387.4821872 | L40: =MMULT('AER - Inputs'!$H440:$Y440,'AER - Inputs'!L$32:L$49)*'AER - Inputs'!$H793*'AER - Inputs'!$J793+('AER - Inputs'!$I793*'AER - Inputs'!L$20) -> 399.3782101 | M40: =MMULT('AER - Inputs'!$H440:$Y440,'AER - Inputs'!M$32:M$49)*'AER - Inputs'!$H793*'AER - Inputs'!$J793+('AER - Inputs'!$I793*'AER - Inputs'!M$20) -> 415.590603 | N40: =SUMIFS('Report Charges & Xfactors'!$M$10:$M$318,'Report Charges & Xfactors'!$D$10:$D$318,'AER - Calc Cost build up'!D40,'Report Charges & Xfactors'!$E$10:$E$318,'AER - Calc Cost build up'!E40) -> 415.590603 | O40: 415.590603 | P40: 0 | Q40: 0
A41: ='AER - Inputs'!$A$88 -> 1 | B41: ='AER - Inputs'!$B$88 -> Ancillary Services | C41: ='AER - Inputs'!$C$88 -> Connection application related services | D41: ='AER - Inputs'!$D$88 -> Administration Fee | E41: ='AER - Inputs'!$E$88 -> Connection of Load - Non Urban - Overhead - 6-10 poles | F41: ='AER - Inputs'!$F$88 -> Per Job | G41: ='AER - Inputs'!$G$88 -> Fee | H41: =MMULT('AER - Inputs'!$H441:$Y441,'AER - Inputs'!H$32:H$49)*'AER - Inputs'!$H794*'AER - Inputs'!$J794+('AER - Inputs'!$I794*'AER - Inputs'!H$20) -> 534.36 | I41: =MMULT('AER - Inputs'!$H441:$Y441,'AER - Inputs'!I$32:I$49)*'AER - Inputs'!$H794*'AER - Inputs'!$J794+('AER - Inputs'!$I794*'AER - Inputs'!I$20) -> 553.2405393 | J41: =MMULT('AER - Inputs'!$H441:$Y441,'AER - Inputs'!J$32:J$49)*'AER - Inputs'!$H794*'AER - Inputs'!$J794+('AER - Inputs'!$I794*'AER - Inputs'!J$20) -> 567.5943996 | K41: =MMULT('AER - Inputs'!$H441:$Y441,'AER - Inputs'!K$32:K$49)*'AER - Inputs'!$H794*'AER - Inputs'!$J794+('AER - Inputs'!$I794*'AER - Inputs'!K$20) -> 581.2232808 | L41: =MMULT('AER - Inputs'!$H441:$Y441,'AER - Inputs'!L$32:L$49)*'AER - Inputs'!$H794*'AER - Inputs'!$J794+('AER - Inputs'!$I794*'AER - Inputs'!L$20) -> 599.0673152 | M41: =MMULT('AER - Inputs'!$H441:$Y441,'AER - Inputs'!M$32:M$49)*'AER - Inputs'!$H794*'AER - Inputs'!$J794+('AER - Inputs'!$I794*'AER - Inputs'!M$20) -> 623.3859044 | N41: =SUMIFS('Report Charges & Xfactors'!$M$10:$M$318,'Report Charges & Xfactors'!$D$10:$D$318,'AER - Calc Cost build up'!D41,'Report Charges & Xfactors'!$E$10:$E$318,'AER - Calc Cost build up'!E41) -> 623.3859044 | O41: 623.3859044 | P41: 0 | Q41: 0
A42: ='AER - Inputs'!$A$89 -> 1 | B42: ='AER - Inputs'!$B$89 -> Ancillary Services | C42: ='AER - Inputs'!$C$89 -> Connection application related services | D42: ='AER - Inputs'!$D$89 -> Administration Fee | E42: ='AER - Inputs'!$E$89 -> Connection of Load - Non Urban - Underground - Per Hour | F42: ='AER - Inputs'!$F$89 -> Per Hour | G42: ='AER - Inputs'!$G$89 -> Quote | H42: =MMULT('AER - Inputs'!$H442:$Y442,'AER - Inputs'!H$32:H$49)*'AER - Inputs'!$H795*'AER - Inputs'!$J795+('AER - Inputs'!$I795*'AER - Inputs'!H$20) -> 89.06 | I42: =MMULT('AER - Inputs'!$H442:$Y442,'AER - Inputs'!I$32:I$49)*'AER - Inputs'!$H795*'AER - Inputs'!$J795+('AER - Inputs'!$I795*'AER - Inputs'!I$20) -> 92.20675655 | J42: =MMULT('AER - Inputs'!$H442:$Y442,'AER - Inputs'!J$32:J$49)*'AER - Inputs'!$H795*'AER - Inputs'!$J795+('AER - Inputs'!$I795*'AER - Inputs'!J$20) -> 94.59906661 | K42: =MMULT('AER - Inputs'!$H442:$Y442,'AER - Inputs'!K$32:K$49)*'AER - Inputs'!$H795*'AER - Inputs'!$J795+('AER - Inputs'!$I795*'AER - Inputs'!K$20) -> 96.8705468 | L42: =MMULT('AER - Inputs'!$H442:$Y442,'AER - Inputs'!L$32:L$49)*'AER - Inputs'!$H795*'AER - Inputs'!$J795+('AER - Inputs'!$I795*'AER - Inputs'!L$20) -> 99.84455253 | M42: =MMULT('AER - Inputs'!$H442:$Y442,'AER - Inputs'!M$32:M$49)*'AER - Inputs'!$H795*'AER - Inputs'!$J795+('AER - Inputs'!$I795*'AER - Inputs'!M$20) -> 103.8976507 | N42: =SUMIFS('Report Charges & Xfactors'!$M$10:$M$318,'Report Charges & Xfactors'!$D$10:$D$318,'AER - Calc Cost build up'!D42,'Report Charges & Xfactors'!$E$10:$E$318,'AER - Calc Cost build up'!E42) -> 103.8976507 | O42: 103.8976507 | P42: 0 | Q42: 0
A43: ='AER - Inputs'!$A$90 -> 1 | B43: ='AER - Inputs'!$B$90 -> Ancillary Services | C43: ='AER - Inputs'!$C$90 -> Connection application related services | D43: ='AER - Inputs'!$D$90 -> Administration Fee | E43: ='AER - Inputs'!$E$90 -> Connection of Load - URD - Per Hour | F43: ='AER - Inputs'!$F$90 -> Per Hour | G43: ='AER - Inputs'!$G$90 -> Quote | H43: =MMULT('AER - Inputs'!$H443:$Y443,'AER - Inputs'!H$32:H$49)*'AER - Inputs'!$H796*'AER - Inputs'!$J796+('AER - Inputs'!$I796*'AER - Inputs'!H$20) -> 89.06 | I43: =MMULT('AER - Inputs'!$H443:$Y443,'AER - Inputs'!I$32:I$49)*'AER - Inputs'!$H796*'AER - Inputs'!$J796+('AER - Inputs'!$I796*'AER - Inputs'!I$20) -> 92.20675655 | J43: =MMULT('AER - Inputs'!$H443:$Y443,'AER - Inputs'!J$32:J$49)*'AER - Inputs'!$H796*'AER - Inputs'!$J796+('AER - Inputs'!$I796*'AER - Inputs'!J$20) -> 94.59906661 | K43: =MMULT('AER - Inputs'!$H443:$Y443,'AER - Inputs'!K$32:K$49)*'AER - Inputs'!$H796*'AER - Inputs'!$J796+('AER - Inputs'!$I796*'AER - Inputs'!K$20) -> 96.8705468 | L43: =MMULT('AER - Inputs'!$H443:$Y443,'AER - Inputs'!L$32:L$49)*'AER - Inputs'!$H796*'AER - Inputs'!$J796+('AER - Inputs'!$I796*'AER - Inputs'!L$20) -> 99.84455253 | M43: =MMULT('AER - Inputs'!$H443:$Y443,'AER - Inputs'!M$32:M$49)*'AER - Inputs'!$H796*'AER - Inputs'!$J796+('AER - Inputs'!$I796*'AER - Inputs'!M$20) -> 103.8976507 | N43: =SUMIFS('Report Charges & Xfactors'!$M$10:$M$318,'Report Charges & Xfactors'!$D$10:$D$318,'AER - Calc Cost build up'!D43,'Report Charges & Xfactors'!$E$10:$E$318,'AER - Calc Cost build up'!E43) -> 103.8976507 | O43: 103.8976507 | P43: 0 | Q43: 0
A44: ='AER - Inputs'!$A$91 -> 1 | B44: ='AER - Inputs'!$B$91 -> Ancillary Services | C44: ='AER - Inputs'!$C$91 -> Connection application related services | D44: ='AER - Inputs'!$D$91 -> Administration Fee | E44: ='AER - Inputs'!$E$91 -> Other - Asset Relocation - Per Hour | F44: ='AER - Inputs'!$F$91 -> Per Hour | G44: ='AER - Inputs'!$G$91 -> Quote | H44: =MMULT('AER - Inputs'!$H444:$Y444,'AER - Inputs'!H$32:H$49)*'AER - Inputs'!$H797*'AER - Inputs'!$J797+('AER - Inputs'!$I797*'AER - Inputs'!H$20) -> 89.06 | I44: =MMULT('AER - Inputs'!$H444:$Y444,'AER - Inputs'!I$32:I$49)*'AER - Inputs'!$H797*'AER - Inputs'!$J797+('AER - Inputs'!$I797*'AER - Inputs'!I$20) -> 92.20675655 | J44: =MMULT('AER - Inputs'!$H444:$Y444,'AER - Inputs'!J$32:J$49)*'AER - Inputs'!$H797*'AER - Inputs'!$J797+('AER - Inputs'!$I797*'AER - Inputs'!J$20) -> 94.59906661 | K44: =MMULT('AER - Inputs'!$H444:$Y444,'AER - Inputs'!K$32:K$49)*'AER - Inputs'!$H797*'AER - Inputs'!$J797+('AER - Inputs'!$I797*'AER - Inputs'!K$20) -> 96.8705468 | L44: =MMULT('AER - Inputs'!$H444:$Y444,'AER - Inputs'!L$32:L$49)*'AER - Inputs'!$H797*'AER - Inputs'!$J797+('AER - Inputs'!$I797*'AER - Inputs'!L$20) -> 99.84455253 | M44: =MMULT('AER - Inputs'!$H444:$Y444,'AER - Inputs'!M$32:M$49)*'AER - Inputs'!$H797*'AER - Inputs'!$J797+('AER - Inputs'!$I797*'AER - Inputs'!M$20) -> 103.8976507 | N44: =SUMIFS('Report Charges & Xfactors'!$M$10:$M$318,'Report Charges & Xfactors'!$D$10:$D$318,'AER - Calc Cost build up'!D44,'Report Charges & Xfactors'!$E$10:$E$318,'AER - Calc Cost build up'!E44) -> 103.8976507 | O44: 103.8976507 | P44: 0 | Q44: 0
A45: ='AER - Inputs'!$A$92 -> 1 | B45: ='AER - Inputs'!$B$92 -> Ancillary Services | C45: ='AER - Inputs'!$C$92 -> Connection application related services | D45: ='AER - Inputs'!$D$92 -> Administration Fee | E45: ='AER - Inputs'!$E$92 -> Other - Public Lighting - Per Hour | F45: ='AER - Inputs'!$F$92 -> Per Hour | G45: ='AER - Inputs'!$G$92 -> Quote | H45: =MMULT('AER - Inputs'!$H445:$Y445,'AER - Inputs'!H$32:H$49)*'AER - Inputs'!$H798*'AER - Inputs'!$J798+('AER - Inputs'!$I798*'AER - Inputs'!H$20) -> 89.06 | I45: =MMULT('AER - Inputs'!$H445:$Y445,'AER - Inputs'!I$32:I$49)*'AER - Inputs'!$H798*'AER - Inputs'!$J798+('AER - Inputs'!$I798*'AER - Inputs'!I$20) -> 92.20675655 | J45: =MMULT('AER - Inputs'!$H445:$Y445,'AER - Inputs'!J$32:J$49)*'AER - Inputs'!$H798*'AER - Inputs'!$J798+('AER - Inputs'!$I798*'AER - Inputs'!J$20) -> 94.59906661 | K45: =MMULT('AER - Inputs'!$H445:$Y445,'AER - Inputs'!K$32:K$49)*'AER - Inputs'!$H798*'AER - Inputs'!$J798+('AER - Inputs'!$I798*'AER - Inputs'!K$20) -> 96.8705468 | L45: =MMULT('AER - Inputs'!$H445:$Y445,'AER - Inputs'!L$32:L$49)*'AER - Inputs'!$H798*'AER - Inputs'!$J798+('AER - Inputs'!$I798*'AER - Inputs'!L$20) -> 99.84455253 | M45: =MMULT('AER - Inputs'!$H445:$Y445,'AER - Inputs'!M$32:M$49)*'AER - Inputs'!$H798*'AER - Inputs'!$J798+('AER - Inputs'!$I798*'AER - Inputs'!M$20) -> 103.8976507 | N45: =SUMIFS('Report Charges & Xfactors'!$M$10:$M$318,'Report Charges & Xfactors'!$D$10:$D$318,'AER - Calc Cost build up'!D45,'Report Charges & Xfactors'!$E$10:$E$318,'AER - Calc Cost build up'!E45) -> 103.8976507 | O45: 103.8976507 | P45: 0 | Q45: 0
A46: ='AER - Inputs'!$A$93 -> 1 | B46: ='AER - Inputs'!$B$93 -> Ancillary Services | C46: ='AER - Inputs'!$C$93 -> Connection application related services | D46: ='AER - Inputs'!$D$93 -> Administration Fee | E46: ='AER - Inputs'!$E$93 -> Subdivision - Industrial & Commercial - Per Hour | F46: ='AER - Inputs'!$F$93 -> Per Hour | G46: ='AER - Inputs'!$G$93 -> Quote | H46: =MMULT('AER - Inputs'!$H446:$Y446,'AER - Inputs'!H$32:H$49)*'AER - Inputs'!$H799*'AER - Inputs'!$J799+('AER - Inputs'!$I799*'AER - Inputs'!H$20) -> 89.06 | I46: =MMULT('AER - Inputs'!$H446:$Y446,'AER - Inputs'!I$32:I$49)*'AER - Inputs'!$H799*'AER - Inputs'!$J799+('AER - Inputs'!$I799*'AER - Inputs'!I$20) -> 92.20675655 | J46: =MMULT('AER - Inputs'!$H446:$Y446,'AER - Inputs'!J$32:J$49)*'AER - Inputs'!$H799*'AER - Inputs'!$J799+('AER - Inputs'!$I799*'AER - Inputs'!J$20) -> 94.59906661 | K46: =MMULT('AER - Inputs'!$H446:$Y446,'AER - Inputs'!K$32:K$49)*'AER - Inputs'!$H799*'AER - Inputs'!$J799+('AER - Inputs'!$I799*'AER - Inputs'!K$20) -> 96.8705468 | L46: =MMULT('AER - Inputs'!$H446:$Y446,'AER - Inputs'!L$32:L$49)*'AER - Inputs'!$H799*'AER - Inputs'!$J799+('AER - Inputs'!$I799*'AER - Inputs'!L$20) -> 99.84455253 | M46: =MMULT('AER - Inputs'!$H446:$Y446,'AER - Inputs'!M$32:M$49)*'AER - Inputs'!$H799*'AER - Inputs'!$J799+('AER - Inputs'!$I799*'AER - Inputs'!M$20) -> 103.8976507 | N46: =SUMIFS('Report Charges & Xfactors'!$M$10:$M$318,'Report Charges & Xfactors'!$D$10:$D$318,'AER - Calc Cost build up'!D46,'Report Charges & Xfactors'!$E$10:$E$318,'AER - Calc Cost build up'!E46) -> 103.8976507 | O46: 103.8976507 | P46: 0 | Q46: 0
A47: ='AER - Inputs'!$A$94 -> 1 | B47: ='AER - Inputs'!$B$94 -> Ancillary Services | C47: ='AER - Inputs'!$C$94 -> Connection application related services | D47: ='AER - Inputs'!$D$94 -> Administration Fee | E47: ='AER - Inputs'!$E$94 -> Subdivision - Non Urban - Overhead - 11+ poles | F47: ='AER - Inputs'!$F$94 -> Per Job | G47: ='AER - Inputs'!$G$94 -> Fee | H47: =MMULT('AER - Inputs'!$H447:$Y447,'AER - Inputs'!H$32:H$49)*'AER - Inputs'!$H800*'AER - Inputs'!$J800+('AER - Inputs'!$I800*'AER - Inputs'!H$20) -> 801.54 | I47: =MMULT('AER - Inputs'!$H447:$Y447,'AER - Inputs'!I$32:I$49)*'AER - Inputs'!$H800*'AER - Inputs'!$J800+('AER - Inputs'!$I800*'AER - Inputs'!I$20) -> 829.8608089 | J47: =MMULT('AER - Inputs'!$H447:$Y447,'AER - Inputs'!J$32:J$49)*'AER - Inputs'!$H800*'AER - Inputs'!$J800+('AER - Inputs'!$I800*'AER - Inputs'!J$20) -> 851.3915995 | K47: =MMULT('AER - Inputs'!$H447:$Y447,'AER - Inputs'!K$32:K$49)*'AER - Inputs'!$H800*'AER - Inputs'!$J800+('AER - Inputs'!$I800*'AER - Inputs'!K$20) -> 871.8349212 | L47: =MMULT('AER - Inputs'!$H447:$Y447,'AER - Inputs'!L$32:L$49)*'AER - Inputs'!$H800*'AER - Inputs'!$J800+('AER - Inputs'!$I800*'AER - Inputs'!L$20) -> 898.6009728 | M47: =MMULT('AER - Inputs'!$H447:$Y447,'AER - Inputs'!M$32:M$49)*'AER - Inputs'!$H800*'AER - Inputs'!$J800+('AER - Inputs'!$I800*'AER - Inputs'!M$20) -> 935.0788566 | N47: =SUMIFS('Report Charges & Xfactors'!$M$10:$M$318,'Report Charges & Xfactors'!$D$10:$D$318,'AER - Calc Cost build up'!D47,'Report Charges & Xfactors'!$E$10:$E$318,'AER - Calc Cost build up'!E47) -> 935.0788566 | O47: 935.0788566 | P47: 0 | Q47: 0
A48: ='AER - Inputs'!$A$95 -> 1 | B48: ='AER - Inputs'!$B$95 -> Ancillary Services | C48: ='AER - Inputs'!$C$95 -> Connection application related services | D48: ='AER - Inputs'!$D$95 -> Administration Fee | E48: ='AER - Inputs'!$E$95 -> Subdivision - Non Urban - Overhead - 1-5 poles | F48: ='AER - Inputs'!$F$95 -> Per Job | G48: ='AER - Inputs'!$G$95 -> Fee | H48: =MMULT('AER - Inputs'!$H448:$Y448,'AER - Inputs'!H$32:H$49)*'AER - Inputs'!$H801*'AER - Inputs'!$J801+('AER - Inputs'!$I801*'AER - Inputs'!H$20) -> 356.24 | I48: =MMULT('AER - Inputs'!$H448:$Y448,'AER - Inputs'!I$32:I$49)*'AER - Inputs'!$H801*'AER - Inputs'!$J801+('AER - Inputs'!$I801*'AER - Inputs'!I$20) -> 368.8270262 | J48: =MMULT('AER - Inputs'!$H448:$Y448,'AER - Inputs'!J$32:J$49)*'AER - Inputs'!$H801*'AER - Inputs'!$J801+('AER - Inputs'!$I801*'AER - Inputs'!J$20) -> 378.3962664 | K48: =MMULT('AER - Inputs'!$H448:$Y448,'AER - Inputs'!K$32:K$49)*'AER - Inputs'!$H801*'AER - Inputs'!$J801+('AER - Inputs'!$I801*'AER - Inputs'!K$20) -> 387.4821872 | L48: =MMULT('AER - Inputs'!$H448:$Y448,'AER - Inputs'!L$32:L$49)*'AER - Inputs'!$H801*'AER - Inputs'!$J801+('AER - Inputs'!$I801*'AER - Inputs'!L$20) -> 399.3782101 | M48: =MMULT('AER - Inputs'!$H448:$Y448,'AER - Inputs'!M$32:M$49)*'AER - Inputs'!$H801*'AER - Inputs'!$J801+('AER - Inputs'!$I801*'AER - Inputs'!M$20) -> 415.590603 | N48: =SUMIFS('Report Charges & Xfactors'!$M$10:$M$318,'Report Charges & Xfactors'!$D$10:$D$318,'AER - Calc Cost build up'!D48,'Report Charges & Xfactors'!$E$10:$E$318,'AER - Calc Cost build up'!E48) -> 415.590603 | O48: 415.590603 | P48: 0 | Q48: 0
A49: ='AER - Inputs'!$A$96 -> 1 | B49: ='AER - Inputs'!$B$96 -> Ancillary Services | C49: ='AER - Inputs'!$C$96 -> Connection application related services | D49: ='AER - Inputs'!$D$96 -> Administration Fee | E49: ='AER - Inputs'!$E$96 -> Subdivision - Non Urban - Overhead - 6-10 poles | F49: ='AER - Inputs'!$F$96 -> Per Job | G49: ='AER - Inputs'!$G$96 -> Fee | H49: =MMULT('AER - Inputs'!$H449:$Y449,'AER - Inputs'!H$32:H$49)*'AER - Inputs'!$H802*'AER - Inputs'!$J802+('AER - Inputs'!$I802*'AER - Inputs'!H$20) -> 445.3 | I49: =MMULT('AER - Inputs'!$H449:$Y449,'AER - Inputs'!I$32:I$49)*'AER - Inputs'!$H802*'AER - Inputs'!$J802+('AER - Inputs'!$I802*'AER - Inputs'!I$20) -> 461.0337827 | J49: =MMULT('AER - Inputs'!$H449:$Y449,'AER - Inputs'!J$32:J$49)*'AER - Inputs'!$H802*'AER - Inputs'!$J802+('AER - Inputs'!$I802*'AER - Inputs'!J$20) -> 472.995333 | K49: =MMULT('AER - Inputs'!$H449:$Y449,'AER - Inputs'!K$32:K$49)*'AER - Inputs'!$H802*'AER - Inputs'!$J802+('AER - Inputs'!$I802*'AER - Inputs'!K$20) -> 484.352734 | L49: =MMULT('AER - Inputs'!$H449:$Y449,'AER - Inputs'!L$32:L$49)*'AER - Inputs'!$H802*'AER - Inputs'!$J802+('AER - Inputs'!$I802*'AER - Inputs'!L$20) -> 499.2227627 | M49: =MMULT('AER - Inputs'!$H449:$Y449,'AER - Inputs'!M$32:M$49)*'AER - Inputs'!$H802*'AER - Inputs'!$J802+('AER - Inputs'!$I802*'AER - Inputs'!M$20) -> 519.4882537 | N49: =SUMIFS('Report Charges & Xfactors'!$M$10:$M$318,'Report Charges & Xfactors'!$D$10:$D$318,'AER - Calc Cost build up'!D49,'Report Charges & Xfactors'!$E$10:$E$318,'AER - Calc Cost build up'!E49) -> 519.4882537 | O49: 519.4882537 | P49: 0 | Q49: 0
A50: ='AER - Inputs'!$A$97 -> 1 | B50: ='AER - Inputs'!$B$97 -> Ancillary Services | C50: ='AER - Inputs'!$C$97 -> Connection application related services | D50: ='AER - Inputs'!$D$97 -> Administration Fee | E50: ='AER - Inputs'!$E$97 -> Subdivision - Non Urban - Underground - 11-40 lots | F50: ='AER - Inputs'!$F$97 -> Per Job | G50: ='AER - Inputs'!$G$97 -> Fee | H50: =MMULT('AER - Inputs'!$H450:$Y450,'AER - Inputs'!H$32:H$49)*'AER - Inputs'!$H803*'AER - Inputs'!$J803+('AER - Inputs'!$I803*'AER - Inputs'!H$20) -> 445.3 | I50: =MMULT('AER - Inputs'!$H450:$Y450,'AER - Inputs'!I$32:I$49)*'AER - Inputs'!$H803*'AER - Inputs'!$J803+('AER - Inputs'!$I803*'AER - Inputs'!I$20) -> 461.0337827 | J50: =MMULT('AER - Inputs'!$H450:$Y450,'AER - Inputs'!J$32:J$49)*'AER - Inputs'!$H803*'AER - Inputs'!$J803+('AER - Inputs'!$I803*'AER - Inputs'!J$20) -> 472.995333 | K50: =MMULT('AER - Inputs'!$H450:$Y450,'AER - Inputs'!K$32:K$49)*'AER - Inputs'!$H803*'AER - Inputs'!$J803+('AER - Inputs'!$I803*'AER - Inputs'!K$20) -> 484.352734 | L50: =MMULT('AER - Inputs'!$H450:$Y450,'AER - Inputs'!L$32:L$49)*'AER - Inputs'!$H803*'AER - Inputs'!$J803+('AER - Inputs'!$I803*'AER - Inputs'!L$20) -> 499.2227627 | M50: =MMULT('AER - Inputs'!$H450:$Y450,'AER - Inputs'!M$32:M$49)*'AER - Inputs'!$H803*'AER - Inputs'!$J803+('AER - Inputs'!$I803*'AER - Inputs'!M$20) -> 519.4882537 | N50: =SUMIFS('Report Charges & Xfactors'!$M$10:$M$318,'Report Charges & Xfactors'!$D$10:$D$318,'AER - Calc Cost build up'!D50,'Report Charges & Xfactors'!$E$10:$E$318,'AER - Calc Cost build up'!E50) -> 519.4882537 | O50: 519.4882537 | P50: 0 | Q50: 0
A51: ='AER - Inputs'!$A$98 -> 1 | B51: ='AER - Inputs'!$B$98 -> Ancillary Services | C51: ='AER - Inputs'!$C$98 -> Connection application related services | D51: ='AER - Inputs'!$D$98 -> Administration Fee | E51: ='AER - Inputs'!$E$98 -> Subdivision - Non Urban - Underground - 1-5 lots | F51: ='AER - Inputs'!$F$98 -> Per Job | G51: ='AER - Inputs'!$G$98 -> Fee | H51: =MMULT('AER - Inputs'!$H451:$Y451,'AER - Inputs'!H$32:H$49)*'AER - Inputs'!$H804*'AER - Inputs'!$J804+('AER - Inputs'!$I804*'AER - Inputs'!H$20) -> 267.18 | I51: =MMULT('AER - Inputs'!$H451:$Y451,'AER - Inputs'!I$32:I$49)*'AER - Inputs'!$H804*'AER - Inputs'!$J804+('AER - Inputs'!$I804*'AER - Inputs'!I$20) -> 276.6202696 | J51: =MMULT('AER - Inputs'!$H451:$Y451,'AER - Inputs'!J$32:J$49)*'AER - Inputs'!$H804*'AER - Inputs'!$J804+('AER - Inputs'!$I804*'AER - Inputs'!J$20) -> 283.7971998 | K51: =MMULT('AER - Inputs'!$H451:$Y451,'AER - Inputs'!K$32:K$49)*'AER - Inputs'!$H804*'AER - Inputs'!$J804+('AER - Inputs'!$I804*'AER - Inputs'!K$20) -> 290.6116404 | L51: =MMULT('AER - Inputs'!$H451:$Y451,'AER - Inputs'!L$32:L$49)*'AER - Inputs'!$H804*'AER - Inputs'!$J804+('AER - Inputs'!$I804*'AER - Inputs'!L$20) -> 299.5336576 | M51: =MMULT('AER - Inputs'!$H451:$Y451,'AER - Inputs'!M$32:M$49)*'AER - Inputs'!$H804*'AER - Inputs'!$J804+('AER - Inputs'!$I804*'AER - Inputs'!M$20) -> 311.6929522 | N51: =SUMIFS('Report Charges & Xfactors'!$M$10:$M$318,'Report Charges & Xfactors'!$D$10:$D$318,'AER - Calc Cost build up'!D51,'Report Charges & Xfactors'!$E$10:$E$318,'AER - Calc Cost build up'!E51) -> 311.6929522 | O51: 311.6929522 | P51: 0 | Q51: 0
A52: ='AER - Inputs'!$A$99 -> 1 | B52: ='AER - Inputs'!$B$99 -> Ancillary Services | C52: ='AER - Inputs'!$C$99 -> Connection application related services | D52: ='AER - Inputs'!$D$99 -> Administration Fee | E52: ='AER - Inputs'!$E$99 -> Subdivision - Non Urban - Underground - 41+ lots | F52: ='AER - Inputs'!$F$99 -> Per Job | G52: ='AER - Inputs'!$G$99 -> Fee | H52: =MMULT('AER - Inputs'!$H452:$Y452,'AER - Inputs'!H$32:H$49)*'AER - Inputs'!$H805*'AER - Inputs'!$J805+('AER - Inputs'!$I805*'AER - Inputs'!H$20) -> 534.36 | I52: =MMULT('AER - Inputs'!$H452:$Y452,'AER - Inputs'!I$32:I$49)*'AER - Inputs'!$H805*'AER - Inputs'!$J805+('AER - Inputs'!$I805*'AER - Inputs'!I$20) -> 553.2405393 | J52: =MMULT('AER - Inputs'!$H452:$Y452,'AER - Inputs'!J$32:J$49)*'AER - Inputs'!$H805*'AER - Inputs'!$J805+('AER - Inputs'!$I805*'AER - Inputs'!J$20) -> 567.5943996 | K52: =MMULT('AER - Inputs'!$H452:$Y452,'AER - Inputs'!K$32:K$49)*'AER - Inputs'!$H805*'AER - Inputs'!$J805+('AER - Inputs'!$I805*'AER - Inputs'!K$20) -> 581.2232808 | L52: =MMULT('AER - Inputs'!$H452:$Y452,'AER - Inputs'!L$32:L$49)*'AER - Inputs'!$H805*'AER - Inputs'!$J805+('AER - Inputs'!$I805*'AER - Inputs'!L$20) -> 599.0673152 | M52: =MMULT('AER - Inputs'!$H452:$Y452,'AER - Inputs'!M$32:M$49)*'AER - Inputs'!$H805*'AER - Inputs'!$J805+('AER - Inputs'!$I805*'AER - Inputs'!M$20) -> 623.3859044 | N52: =SUMIFS('Report Charges & Xfactors'!$M$10:$M$318,'Report Charges & Xfactors'!$D$10:$D$318,'AER - Calc Cost build up'!D52,'Report Charges & Xfactors'!$E$10:$E$318,'AER - Calc Cost build up'!E52) -> 623.3859044 | O52: 623.3859044 | P52: 0 | Q52: 0
A53: ='AER - Inputs'!$A$100 -> 1 | B53: ='AER - Inputs'!$B$100 -> Ancillary Services | C53: ='AER - Inputs'!$C$100 -> Connection application related services | D53: ='AER - Inputs'!$D$100 -> Administration Fee | E53: ='AER - Inputs'!$E$100 -> Subdivision - Non Urban - Underground - 6-10 lots | F53: ='AER - Inputs'!$F$100 -> Per Job | G53: ='AER - Inputs'!$G$100 -> Fee | H53: =MMULT('AER - Inputs'!$H453:$Y453,'AER - Inputs'!H$32:H$49)*'AER - Inputs'!$H806*'AER - Inputs'!$J806+('AER - Inputs'!$I806*'AER - Inputs'!H$20) -> 356.24 | I53: =MMULT('AER - Inputs'!$H453:$Y453,'AER - Inputs'!I$32:I$49)*'AER - Inputs'!$H806*'AER - Inputs'!$J806+('AER - Inputs'!$I806*'AER - Inputs'!I$20) -> 368.8270262 | J53: =MMULT('AER - Inputs'!$H453:$Y453,'AER - Inputs'!J$32:J$49)*'AER - Inputs'!$H806*'AER - Inputs'!$J806+('AER - Inputs'!$I806*'AER - Inputs'!J$20) -> 378.3962664 | K53: =MMULT('AER - Inputs'!$H453:$Y453,'AER - Inputs'!K$32:K$49)*'AER - Inputs'!$H806*'AER - Inputs'!$J806+('AER - Inputs'!$I806*'AER - Inputs'!K$20) -> 387.4821872 | L53: =MMULT('AER - Inputs'!$H453:$Y453,'AER - Inputs'!L$32:L$49)*'AER - Inputs'!$H806*'AER - Inputs'!$J806+('AER - Inputs'!$I806*'AER - Inputs'!L$20) -> 399.3782101 | M53: =MMULT('AER - Inputs'!$H453:$Y453,'AER - Inputs'!M$32:M$49)*'AER - Inputs'!$H806*'AER - Inputs'!$J806+('AER - Inputs'!$I806*'AER - Inputs'!M$20) -> 415.590603 | N53: =SUMIFS('Report Charges & Xfactors'!$M$10:$M$318,'Report Charges & Xfactors'!$D$10:$D$318,'AER - Calc Cost build up'!D53,'Report Charges & Xfactors'!$E$10:$E$318,'AER - Calc Cost build up'!E53) -> 415.590603 | O53: 415.590603 | P53: 0 | Q53: 0
A54: ='AER - Inputs'!$A$101 -> 1 | B54: ='AER - Inputs'!$B$101 -> Ancillary Services | C54: ='AER - Inputs'!$C$101 -> Connection application related services | D54: ='AER - Inputs'!$D$101 -> Administration Fee | E54: ='AER - Inputs'!$E$101 -> Subdivision - URD - Underground - 11-40 lots | F54: ='AER - Inputs'!$F$101 -> Per Job | G54: ='AER - Inputs'!$G$101 -> Fee | H54: =MMULT('AER - Inputs'!$H454:$Y454,'AER - Inputs'!H$32:H$49)*'AER - Inputs'!$H807*'AER - Inputs'!$J807+('AER - Inputs'!$I807*'AER - Inputs'!H$20) -> 623.42 | I54: =MMULT('AER - Inputs'!$H454:$Y454,'AER - Inputs'!I$32:I$49)*'AER - Inputs'!$H807*'AER - Inputs'!$J807+('AER - Inputs'!$I807*'AER - Inputs'!I$20) -> 645.4472958 | J54: =MMULT('AER - Inputs'!$H454:$Y454,'AER - Inputs'!J$32:J$49)*'AER - Inputs'!$H807*'AER - Inputs'!$J807+('AER - Inputs'!$I807*'AER - Inputs'!J$20) -> 662.1934663 | K54: =MMULT('AER - Inputs'!$H454:$Y454,'AER - Inputs'!K$32:K$49)*'AER - Inputs'!$H807*'AER - Inputs'!$J807+('AER - Inputs'!$I807*'AER - Inputs'!K$20) -> 678.0938276 | L54: =MMULT('AER - Inputs'!$H454:$Y454,'AER - Inputs'!L$32:L$49)*'AER - Inputs'!$H807*'AER - Inputs'!$J807+('AER - Inputs'!$I807*'AER - Inputs'!L$20) -> 698.9118677 | M54: =MMULT('AER - Inputs'!$H454:$Y454,'AER - Inputs'!M$32:M$49)*'AER - Inputs'!$H807*'AER - Inputs'!$J807+('AER - Inputs'!$I807*'AER - Inputs'!M$20) -> 727.2835552 | N54: =SUMIFS('Report Charges & Xfactors'!$M$10:$M$318,'Report Charges & Xfactors'!$D$10:$D$318,'AER - Calc Cost build up'!D54,'Report Charges & Xfactors'!$E$10:$E$318,'AER - Calc Cost build up'!E54) -> 727.2835552 | O54: 727.2835552 | P54: 0 | Q54: 0
A55: ='AER - Inputs'!$A$102 -> 1 | B55: ='AER - Inputs'!$B$102 -> Ancillary Services | C55: ='AER - Inputs'!$C$102 -> Connection application related services | D55: ='AER - Inputs'!$D$102 -> Administration Fee | E55: ='AER - Inputs'!$E$102 -> Subdivision - URD - Underground - 1-5 lots | F55: ='AER - Inputs'!$F$102 -> Per Job | G55: ='AER - Inputs'!$G$102 -> Fee | H55: =MMULT('AER - Inputs'!$H455:$Y455,'AER - Inputs'!H$32:H$49)*'AER - Inputs'!$H808*'AER - Inputs'!$J808+('AER - Inputs'!$I808*'AER - Inputs'!H$20) -> 356.24 | I55: =MMULT('AER - Inputs'!$H455:$Y455,'AER - Inputs'!I$32:I$49)*'AER - Inputs'!$H808*'AER - Inputs'!$J808+('AER - Inputs'!$I808*'AER - Inputs'!I$20) -> 368.8270262 | J55: =MMULT('AER - Inputs'!$H455:$Y455,'AER - Inputs'!J$32:J$49)*'AER - Inputs'!$H808*'AER - Inputs'!$J808+('AER - Inputs'!$I808*'AER - Inputs'!J$20) -> 378.3962664 | K55: =MMULT('AER - Inputs'!$H455:$Y455,'AER - Inputs'!K$32:K$49)*'AER - Inputs'!$H808*'AER - Inputs'!$J808+('AER - Inputs'!$I808*'AER - Inputs'!K$20) -> 387.4821872 | L55: =MMULT('AER - Inputs'!$H455:$Y455,'AER - Inputs'!L$32:L$49)*'AER - Inputs'!$H808*'AER - Inputs'!$J808+('AER - Inputs'!$I808*'AER - Inputs'!L$20) -> 399.3782101 | M55: =MMULT('AER - Inputs'!$H455:$Y455,'AER - Inputs'!M$32:M$49)*'AER - Inputs'!$H808*'AER - Inputs'!$J808+('AER - Inputs'!$I808*'AER - Inputs'!M$20) -> 415.590603 | N55: =SUMIFS('Report Charges & Xfactors'!$M$10:$M$318,'Report Charges & Xfactors'!$D$10:$D$318,'AER - Calc Cost build up'!D55,'Report Charges & Xfactors'!$E$10:$E$318,'AER - Calc Cost build up'!E55) -> 415.590603 | O55: 415.590603 | P55: 0 | Q55: 0
A56: ='AER - Inputs'!$A$103 -> 1 | B56: ='AER - Inputs'!$B$103 -> Ancillary Services | C56: ='AER - Inputs'!$C$103 -> Connection application related services | D56: ='AER - Inputs'!$D$103 -> Administration Fee | E56: ='AER - Inputs'!$E$103 -> Subdivision - URD - Underground - 41+ lots | F56: ='AER - Inputs'!$F$103 -> Per Job | G56: ='AER - Inputs'!$G$103 -> Fee | H56: =MMULT('AER - Inputs'!$H456:$Y456,'AER - Inputs'!H$32:H$49)*'AER - Inputs'!$H809*'AER - Inputs'!$J809+('AER - Inputs'!$I809*'AER - Inputs'!H$20) -> 712.48 | I56: =MMULT('AER - Inputs'!$H456:$Y456,'AER - Inputs'!I$32:I$49)*'AER - Inputs'!$H809*'AER - Inputs'!$J809+('AER - Inputs'!$I809*'AER - Inputs'!I$20) -> 737.6540524 | J56: =MMULT('AER - Inputs'!$H456:$Y456,'AER - Inputs'!J$32:J$49)*'AER - Inputs'!$H809*'AER - Inputs'!$J809+('AER - Inputs'!$I809*'AER - Inputs'!J$20) -> 756.7925329 | K56: =MMULT('AER - Inputs'!$H456:$Y456,'AER - Inputs'!K$32:K$49)*'AER - Inputs'!$H809*'AER - Inputs'!$J809+('AER - Inputs'!$I809*'AER - Inputs'!K$20) -> 774.9643744 | L56: =MMULT('AER - Inputs'!$H456:$Y456,'AER - Inputs'!L$32:L$49)*'AER - Inputs'!$H809*'AER - Inputs'!$J809+('AER - Inputs'!$I809*'AER - Inputs'!L$20) -> 798.7564203 | M56: =MMULT('AER - Inputs'!$H456:$Y456,'AER - Inputs'!M$32:M$49)*'AER - Inputs'!$H809*'AER - Inputs'!$J809+('AER - Inputs'!$I809*'AER - Inputs'!M$20) -> 831.1812059 | N56: =SUMIFS('Report Charges & Xfactors'!$M$10:$M$318,'Report Charges & Xfactors'!$D$10:$D$318,'AER - Calc Cost build up'!D56,'Report Charges & Xfactors'!$E$10:$E$318,'AER - Calc Cost build up'!E56) -> 831.1812059 | O56: 831.1812059 | P56: 0 | Q56: 0
A57: ='AER - Inputs'!$A$104 -> 1 | B57: ='AER - Inputs'!$B$104 -> Ancillary Services | C57: ='AER - Inputs'!$C$104 -> Connection application related services | D57: ='AER - Inputs'!$D$104 -> Administration Fee | E57: ='AER - Inputs'!$E$104 -> Subdivision - URD - Underground - 6-10 lots | F57: ='AER - Inputs'!$F$104 -> Per Job | G57: ='AER - Inputs'!$G$104 -> Fee | H57: =MMULT('AER - Inputs'!$H457:$Y457,'AER - Inputs'!H$32:H$49)*'AER - Inputs'!$H810*'AER - Inputs'!$J810+('AER - Inputs'!$I810*'AER - Inputs'!H$20) -> 445.3 | I57: =MMULT('AER - Inputs'!$H457:$Y457,'AER - Inputs'!I$32:I$49)*'AER - Inputs'!$H810*'AER - Inputs'!$J810+('AER - Inputs'!$I810*'AER - Inputs'!I$20) -> 461.0337827 | J57: =MMULT('AER - Inputs'!$H457:$Y457,'AER - Inputs'!J$32:J$49)*'AER - Inputs'!$H810*'AER - Inputs'!$J810+('AER - Inputs'!$I810*'AER - Inputs'!J$20) -> 472.995333 | K57: =MMULT('AER - Inputs'!$H457:$Y457,'AER - Inputs'!K$32:K$49)*'AER - Inputs'!$H810*'AER - Inputs'!$J810+('AER - Inputs'!$I810*'AER - Inputs'!K$20) -> 484.352734 | L57: =MMULT('AER - Inputs'!$H457:$Y457,'AER - Inputs'!L$32:L$49)*'AER - Inputs'!$H810*'AER - Inputs'!$J810+('AER - Inputs'!$I810*'AER - Inputs'!L$20) -> 499.2227627 | M57: =MMULT('AER - Inputs'!$H457:$Y457,'AER - Inputs'!M$32:M$49)*'AER - Inputs'!$H810*'AER - Inputs'!$J810+('AER - Inputs'!$I810*'AER - Inputs'!M$20) -> 519.4882537 | N57: =SUMIFS('Report Charges & Xfactors'!$M$10:$M$318,'Report Charges & Xfactors'!$D$10:$D$318,'AER - Calc Cost build up'!D57,'Report Charges & Xfactors'!$E$10:$E$318,'AER - Calc Cost build up'!E57) -> 519.4882537 | O57: 519.4882537 | P57: 0 | Q57: 0
A58: ='AER - Inputs'!$A$105 -> 0 | B58: ='AER - Inputs'!$B$105 -> Ancillary Services | C58: ='AER - Inputs'!$C$105 -> Contestable network commissioning and decommissioning | D58: ='AER - Inputs'!$D$105 -> Substation Commission Fee | E58: ='AER - Inputs'!$E$105 -> All Other - Asset Relocation - Per Substation | F58: ='AER - Inputs'!$F$105 -> Per Substation | G58: ='AER - Inputs'!$G$105 -> Fee | H58: =MMULT('AER - Inputs'!$H458:$Y458,'AER - Inputs'!H$32:H$49)*'AER - Inputs'!$H811*'AER - Inputs'!$J811+('AER - Inputs'!$I811*'AER - Inputs'!H$20) -> 1668.402274 | I58: =MMULT('AER - Inputs'!$H458:$Y458,'AER - Inputs'!I$32:I$49)*'AER - Inputs'!$H811*'AER - Inputs'!$J811+('AER - Inputs'!$I811*'AER - Inputs'!I$20) -> 1727.351923 | J58: =MMULT('AER - Inputs'!$H458:$Y458,'AER - Inputs'!J$32:J$49)*'AER - Inputs'!$H811*'AER - Inputs'!$J811+('AER - Inputs'!$I811*'AER - Inputs'!J$20) -> 1772.168177 | K58: =MMULT('AER - Inputs'!$H458:$Y458,'AER - Inputs'!K$32:K$49)*'AER - Inputs'!$H811*'AER - Inputs'!$J811+('AER - Inputs'!$I811*'AER - Inputs'!K$20) -> 1814.720868 | L58: =MMULT('AER - Inputs'!$H458:$Y458,'AER - Inputs'!L$32:L$49)*'AER - Inputs'!$H811*'AER - Inputs'!$J811+('AER - Inputs'!$I811*'AER - Inputs'!L$20) -> 1870.434297 | M58: =MMULT('AER - Inputs'!$H458:$Y458,'AER - Inputs'!M$32:M$49)*'AER - Inputs'!$H811*'AER - Inputs'!$J811+('AER - Inputs'!$I811*'AER - Inputs'!M$20) -> 1911.904799 | N58: =SUMIFS('Report Charges & Xfactors'!$M$10:$M$318,'Report Charges & Xfactors'!$D$10:$D$318,'AER - Calc Cost build up'!D58,'Report Charges & Xfactors'!$E$10:$E$318,'AER - Calc Cost build up'!E58) -> 1946.362865 | O58: 1911.904799 | P58: -34.4580655 | Q58: -0.01770382395
A59: ='AER - Inputs'!$A$106 -> 0 | B59: ='AER - Inputs'!$B$106 -> Ancillary Services | C59: ='AER - Inputs'!$C$106 -> Contestable network commissioning and decommissioning | D59: ='AER - Inputs'!$D$106 -> Substation Commission Fee | E59: ='AER - Inputs'!$E$106 -> All Other - Industrial & Commercial - Per Substation | F59: ='AER - Inputs'!$F$106 -> Per Substation | G59: ='AER - Inputs'!$G$106 -> Fee | H59: =MMULT('AER - Inputs'!$H459:$Y459,'AER - Inputs'!H$32:H$49)*'AER - Inputs'!$H812*'AER - Inputs'!$J812+('AER - Inputs'!$I812*'AER - Inputs'!H$20) -> 1668.402274 | I59: =MMULT('AER - Inputs'!$H459:$Y459,'AER - Inputs'!I$32:I$49)*'AER - Inputs'!$H812*'AER - Inputs'!$J812+('AER - Inputs'!$I812*'AER - Inputs'!I$20) -> 1727.351923 | J59: =MMULT('AER - Inputs'!$H459:$Y459,'AER - Inputs'!J$32:J$49)*'AER - Inputs'!$H812*'AER - Inputs'!$J812+('AER - Inputs'!$I812*'AER - Inputs'!J$20) -> 1772.168177 | K59: =MMULT('AER - Inputs'!$H459:$Y459,'AER - Inputs'!K$32:K$49)*'AER - Inputs'!$H812*'AER - Inputs'!$J812+('AER - Inputs'!$I812*'AER - Inputs'!K$20) -> 1814.720868 | L59: =MMULT('AER - Inputs'!$H459:$Y459,'AER - Inputs'!L$32:L$49)*'AER - Inputs'!$H812*'AER - Inputs'!$J812+('AER - Inputs'!$I812*'AER - Inputs'!L$20) -> 1870.434297 | M59: =MMULT('AER - Inputs'!$H459:$Y459,'AER - Inputs'!M$32:M$49)*'AER - Inputs'!$H812*'AER - Inputs'!$J812+('AER - Inputs'!$I812*'AER - Inputs'!M$20) -> 1911.904799 | N59: =SUMIFS('Report Charges & Xfactors'!$M$10:$M$318,'Report Charges & Xfactors'!$D$10:$D$318,'AER - Calc Cost build up'!D59,'Report Charges & Xfactors'!$E$10:$E$318,'AER - Calc Cost build up'!E59) -> 1946.362865 | O59: 1911.904799 | P59: -34.4580655 | Q59: -0.01770382395
A60: ='AER - Inputs'!$A$107 -> 0 | B60: ='AER - Inputs'!$B$107 -> Ancillary Services | C60: ='AER - Inputs'!$C$107 -> Contestable network commissioning and decommissioning | D60: ='AER - Inputs'!$D$107 -> Substation Commission Fee | E60: ='AER - Inputs'!$E$107 -> All Other - Non Urban - Per Substation | F60: ='AER - Inputs'!$F$107 -> Per Substation | G60: ='AER - Inputs'!$G$107 -> Fee | H60: =MMULT('AER - Inputs'!$H460:$Y460,'AER - Inputs'!H$32:H$49)*'AER - Inputs'!$H813*'AER - Inputs'!$J813+('AER - Inputs'!$I813*'AER - Inputs'!H$20) -> 1668.402274 | I60: =MMULT('AER - Inputs'!$H460:$Y460,'AER - Inputs'!I$32:I$49)*'AER - Inputs'!$H813*'AER - Inputs'!$J813+('AER - Inputs'!$I813*'AER - Inputs'!I$20) -> 1727.351923 | J60: =MMULT('AER - Inputs'!$H460:$Y460,'AER - Inputs'!J$32:J$49)*'AER - Inputs'!$H813*'AER - Inputs'!$J813+('AER - Inputs'!$I813*'AER - Inputs'!J$20) -> 1772.168177 | K60: =MMULT('AER - Inputs'!$H460:$Y460,'AER - Inputs'!K$32:K$49)*'AER - Inputs'!$H813*'AER - Inputs'!$J813+('AER - Inputs'!$I813*'AER - Inputs'!K$20) -> 1814.720868 | L60: =MMULT('AER - Inputs'!$H460:$Y460,'AER - Inputs'!L$32:L$49)*'AER - Inputs'!$H813*'AER - Inputs'!$J813+('AER - Inputs'!$I813*'AER - Inputs'!L$20) -> 1870.434297 | M60: =MMULT('AER - Inputs'!$H460:$Y460,'AER - Inputs'!M$32:M$49)*'AER - Inputs'!$H813*'AER - Inputs'!$J813+('AER - Inputs'!$I813*'AER - Inputs'!M$20) -> 1911.904799 | N60: =SUMIFS('Report Charges & Xfactors'!$M$10:$M$318,'Report Charges & Xfactors'!$D$10:$D$318,'AER - Calc Cost build up'!D60,'Report Charges & Xfactors'!$E$10:$E$318,'AER - Calc Cost build up'!E60) -> 1946.362865 | O60: 1911.904799 | P60: -34.4580655 | Q60: -0.01770382395
A61: ='AER - Inputs'!$A$108 -> 0 | B61: ='AER - Inputs'!$B$108 -> Ancillary Services | C61: ='AER - Inputs'!$C$108 -> Contestable network commissioning and decommissioning | D61: ='AER - Inputs'!$D$108 -> Substation Commission Fee | E61: ='AER - Inputs'!$E$108 -> All Other - Public Lighting - Per Substation | F61: ='AER - Inputs'!$F$108 -> Per Substation | G61: ='AER - Inputs'!$G$108 -> Fee | H61: =MMULT('AER - Inputs'!$H461:$Y461,'AER - Inputs'!H$32:H$49)*'AER - Inputs'!$H814*'AER - Inputs'!$J814+('AER - Inputs'!$I814*'AER - Inputs'!H$20) -> 1668.402274 | I61: =MMULT('AER - Inputs'!$H461:$Y461,'AER - Inputs'!I$32:I$49)*'AER - Inputs'!$H814*'AER - Inputs'!$J814+('AER - Inputs'!$I814*'AER - Inputs'!I$20) -> 1727.351923 | J61: =MMULT('AER - Inputs'!$H461:$Y461,'AER - Inputs'!J$32:J$49)*'AER - Inputs'!$H814*'AER - Inputs'!$J814+('AER - Inputs'!$I814*'AER - Inputs'!J$20) -> 1772.168177 | K61: =MMULT('AER - Inputs'!$H461:$Y461,'AER - Inputs'!K$32:K$49)*'AER - Inputs'!$H814*'AER - Inputs'!$J814+('AER - Inputs'!$I814*'AER - Inputs'!K$20) -> 1814.720868 | L61: =MMULT('AER - Inputs'!$H461:$Y461,'AER - Inputs'!L$32:L$49)*'AER - Inputs'!$H814*'AER - Inputs'!$J814+('AER - Inputs'!$I814*'AER - Inputs'!L$20) -> 1870.434297 | M61: =MMULT('AER - Inputs'!$H461:$Y461,'AER - Inputs'!M$32:M$49)*'AER - Inputs'!$H814*'AER - Inputs'!$J814+('AER - Inputs'!$I814*'AER - Inputs'!M$20) -> 1911.904799 | N61: =SUMIFS('Report Charges & Xfactors'!$M$10:$M$318,'Report Charges & Xfactors'!$D$10:$D$318,'AER - Calc Cost build up'!D61,'Report Charges & Xfactors'!$E$10:$E$318,'AER - Calc Cost build up'!E61) -> 1946.362865 | O61: 1911.904799 | P61: -34.4580655 | Q61: -0.01770382395
A62: ='AER - Inputs'!$A$109 -> 0 | B62: ='AER - Inputs'!$B$109 -> Ancillary Services | C62: ='AER - Inputs'!$C$109 -> Contestable network commissioning and decommissioning | D62: ='AER - Inputs'!$D$109 -> Substation Commission Fee | E62: ='AER - Inputs'!$E$109 -> All Other - URD - Per Substation | F62: ='AER - Inputs'!$F$109 -> Per Substation | G62: ='AER - Inputs'!$G$109 -> Fee | H62: =MMULT('AER - Inputs'!$H462:$Y462,'AER - Inputs'!H$32:H$49)*'AER - Inputs'!$H815*'AER - Inputs'!$J815+('AER - Inputs'!$I815*'AER - Inputs'!H$20) -> 1668.402274 | I62: =MMULT('AER - Inputs'!$H462:$Y462,'AER - Inputs'!I$32:I$49)*'AER - Inputs'!$H815*'AER - Inputs'!$J815+('AER - Inputs'!$I815*'AER - Inputs'!I$20) -> 1727.351923 | J62: =MMULT('AER - Inputs'!$H462:$Y462,'AER - Inputs'!J$32:J$49)*'AER - Inputs'!$H815*'AER - Inputs'!$J815+('AER - Inputs'!$I815*'AER - Inputs'!J$20) -> 1772.168177 | K62: =MMULT('AER - Inputs'!$H462:$Y462,'AER - Inputs'!K$32:K$49)*'AER - Inputs'!$H815*'AER - Inputs'!$J815+('AER - Inputs'!$I815*'AER - Inputs'!K$20) -> 1814.720868 | L62: =MMULT('AER - Inputs'!$H462:$Y462,'AER - Inputs'!L$32:L$49)*'AER - Inputs'!$H815*'AER - Inputs'!$J815+('AER - Inputs'!$I815*'AER - Inputs'!L$20) -> 1870.434297 | M62: =MMULT('AER - Inputs'!$H462:$Y462,'AER - Inputs'!M$32:M$49)*'AER - Inputs'!$H815*'AER - Inputs'!$J815+('AER - Inputs'!$I815*'AER - Inputs'!M$20) -> 1911.904799 | N62: =SUMIFS('Report Charges & Xfactors'!$M$10:$M$318,'Report Charges & Xfactors'!$D$10:$D$318,'AER - Calc Cost build up'!D62,'Report Charges & Xfactors'!$E$10:$E$318,'AER - Calc Cost build up'!E62) -> 1946.362865 | O62: 1911.904799 | P62: -34.4580655 | Q62: -0.01770382395
A63: ='AER - Inputs'!$A$110 -> 0 | B63: ='AER - Inputs'!$B$110 -> Ancillary Services | C63: ='AER - Inputs'!$C$110 -> Contestable network commissioning and decommissioning | D63: ='AER - Inputs'!$D$110 -> Substation Commission Fee | E63: ='AER - Inputs'!$E$110 -> Subdivision - URD - Per Lot | F63: ='AER - Inputs'!$F$110 -> Per Lot | G63: ='AER - Inputs'!$G$110 -> Fee | H63: =MMULT('AER - Inputs'!$H463:$Y463,'AER - Inputs'!H$32:H$49)*'AER - Inputs'!$H816*'AER - Inputs'!$J816+('AER - Inputs'!$I816*'AER - Inputs'!H$20) -> 57.53111289 | I63: =MMULT('AER - Inputs'!$H463:$Y463,'AER - Inputs'!I$32:I$49)*'AER - Inputs'!$H816*'AER - Inputs'!$J816+('AER - Inputs'!$I816*'AER - Inputs'!I$20) -> 59.56385942 | J63: =MMULT('AER - Inputs'!$H463:$Y463,'AER - Inputs'!J$32:J$49)*'AER - Inputs'!$H816*'AER - Inputs'!$J816+('AER - Inputs'!$I816*'AER - Inputs'!J$20) -> 61.10924747 | K63: =MMULT('AER - Inputs'!$H463:$Y463,'AER - Inputs'!K$32:K$49)*'AER - Inputs'!$H816*'AER - Inputs'!$J816+('AER - Inputs'!$I816*'AER - Inputs'!K$20) -> 62.57658167 | L63: =MMULT('AER - Inputs'!$H463:$Y463,'AER - Inputs'!L$32:L$49)*'AER - Inputs'!$H816*'AER - Inputs'!$J816+('AER - Inputs'!$I816*'AER - Inputs'!L$20) -> 64.49773437 | M63: =MMULT('AER - Inputs'!$H463:$Y463,'AER - Inputs'!M$32:M$49)*'AER - Inputs'!$H816*'AER - Inputs'!$J816+('AER - Inputs'!$I816*'AER - Inputs'!M$20) -> 65.92775169 | N63: =SUMIFS('Report Charges & Xfactors'!$M$10:$M$318,'Report Charges & Xfactors'!$D$10:$D$318,'AER - Calc Cost build up'!D63,'Report Charges & Xfactors'!$E$10:$E$318,'AER - Calc Cost build up'!E63) -> 67.11596085 | O63: 65.92775169 | P63: -1.188209155 | Q63: -0.01770382395
A64: ='AER - Inputs'!$A$111 -> 1 | B64: ='AER - Inputs'!$B$111 -> Ancillary Services | C64: ='AER - Inputs'!$C$111 -> Customer initiated asset relocations | D64: ='AER - Inputs'!$D$111 -> Customer initiated Asset Relocations - network safety | E64: ='AER - Inputs'!$E$111 -> Customer initiated Asset Relocations - network safety | F64: ='AER - Inputs'!$F$111 -> Per Hour | G64: ='AER - Inputs'!$G$111 -> Quote | H64: =MMULT('AER - Inputs'!$H464:$Y464,'AER - Inputs'!H$32:H$49)*'AER - Inputs'!$H817*'AER - Inputs'!$J817+('AER - Inputs'!$I817*'AER - Inputs'!H$20) -> 157.9232779 | I64: =MMULT('AER - Inputs'!$H464:$Y464,'AER - Inputs'!I$32:I$49)*'AER - Inputs'!$H817*'AER - Inputs'!$J817+('AER - Inputs'!$I817*'AER - Inputs'!I$20) -> 163.5031803 | J64: =MMULT('AER - Inputs'!$H464:$Y464,'AER - Inputs'!J$32:J$49)*'AER - Inputs'!$H817*'AER - Inputs'!$J817+('AER - Inputs'!$I817*'AER - Inputs'!J$20) -> 167.7452805 | K64: =MMULT('AER - Inputs'!$H464:$Y464,'AER - Inputs'!K$32:K$49)*'AER - Inputs'!$H817*'AER - Inputs'!$J817+('AER - Inputs'!$I817*'AER - Inputs'!K$20) -> 171.7731224 | L64: =MMULT('AER - Inputs'!$H464:$Y464,'AER - Inputs'!L$32:L$49)*'AER - Inputs'!$H817*'AER - Inputs'!$J817+('AER - Inputs'!$I817*'AER - Inputs'!L$20) -> 177.046699 | M64: =MMULT('AER - Inputs'!$H464:$Y464,'AER - Inputs'!M$32:M$49)*'AER - Inputs'!$H817*'AER - Inputs'!$J817+('AER - Inputs'!$I817*'AER - Inputs'!M$20) -> 155.3441201 | N64: =SUMIFS('Report Charges & Xfactors'!$M$10:$M$318,'Report Charges & Xfactors'!$D$10:$D$318,'AER - Calc Cost build up'!D64,'Report Charges & Xfactors'!$E$10:$E$318,'AER - Calc Cost build up'!E64) -> 184.2337477 | O64: 155.3441201 | P64: -28.88962761 | Q64: -0.1568096398
A65: ='AER - Inputs'!$A$112 -> 0 | B65: ='AER - Inputs'!$B$112 -> Ancillary Services | C65: ='AER - Inputs'!$C$112 -> Design related services | D65: ='AER - Inputs'!$D$112 -> Design Certification Fee | E65: ='AER - Inputs'!$E$112 -> Asset Relocation - Designer | F65: ='AER - Inputs'!$F$112 -> Per Hour | G65: ='AER - Inputs'!$G$112 -> Quote | H65: =MMULT('AER - Inputs'!$H465:$Y465,'AER - Inputs'!H$32:H$49)*'AER - Inputs'!$H818*'AER - Inputs'!$J818+('AER - Inputs'!$I818*'AER - Inputs'!H$20) -> 142.81 | I65: =MMULT('AER - Inputs'!$H465:$Y465,'AER - Inputs'!I$32:I$49)*'AER - Inputs'!$H818*'AER - Inputs'!$J818+('AER - Inputs'!$I818*'AER - Inputs'!I$20) -> 147.855905 | J65: =MMULT('AER - Inputs'!$H465:$Y465,'AER - Inputs'!J$32:J$49)*'AER - Inputs'!$H818*'AER - Inputs'!$J818+('AER - Inputs'!$I818*'AER - Inputs'!J$20) -> 151.6920357 | K65: =MMULT('AER - Inputs'!$H465:$Y465,'AER - Inputs'!K$32:K$49)*'AER - Inputs'!$H818*'AER - Inputs'!$J818+('AER - Inputs'!$I818*'AER - Inputs'!K$20) -> 155.3344126 | L65: =MMULT('AER - Inputs'!$H465:$Y465,'AER - Inputs'!L$32:L$49)*'AER - Inputs'!$H818*'AER - Inputs'!$J818+('AER - Inputs'!$I818*'AER - Inputs'!L$20) -> 160.1033073 | M65: =MMULT('AER - Inputs'!$H465:$Y465,'AER - Inputs'!M$32:M$49)*'AER - Inputs'!$H818*'AER - Inputs'!$J818+('AER - Inputs'!$I818*'AER - Inputs'!M$20) -> 157.1095152 | N65: =SUMIFS('Report Charges & Xfactors'!$M$10:$M$318,'Report Charges & Xfactors'!$D$10:$D$318,'AER - Calc Cost build up'!D65,'Report Charges & Xfactors'!$E$10:$E$318,'AER - Calc Cost build up'!E65) -> 166.6025545 | O65: 157.1095152 | P65: -9.493039241 | Q65: -0.05698015418
A66: ='AER - Inputs'!$A$113 -> 0 | B66: ='AER - Inputs'!$B$113 -> Ancillary Services | C66: ='AER - Inputs'!$C$113 -> Design related services | D66: ='AER - Inputs'!$D$113 -> Design Certification Fee | E66: ='AER - Inputs'!$E$113 -> Asset Relocation - Engineer | F66: ='AER - Inputs'!$F$113 -> Per Hour | G66: ='AER - Inputs'!$G$113 -> Quote | H66: =MMULT('AER - Inputs'!$H466:$Y466,'AER - Inputs'!H$32:H$49)*'AER - Inputs'!$H819*'AER - Inputs'!$J819+('AER - Inputs'!$I819*'AER - Inputs'!H$20) -> 142.81 | I66: =MMULT('AER - Inputs'!$H466:$Y466,'AER - Inputs'!I$32:I$49)*'AER - Inputs'!$H819*'AER - Inputs'!$J819+('AER - Inputs'!$I819*'AER - Inputs'!I$20) -> 147.855905 | J66: =MMULT('AER - Inputs'!$H466:$Y466,'AER - Inputs'!J$32:J$49)*'AER - Inputs'!$H819*'AER - Inputs'!$J819+('AER - Inputs'!$I819*'AER - Inputs'!J$20) -> 151.6920357 | K66: =MMULT('AER - Inputs'!$H466:$Y466,'AER - Inputs'!K$32:K$49)*'AER - Inputs'!$H819*'AER - Inputs'!$J819+('AER - Inputs'!$I819*'AER - Inputs'!K$20) -> 155.3344126 | L66: =MMULT('AER - Inputs'!$H466:$Y466,'AER - Inputs'!L$32:L$49)*'AER - Inputs'!$H819*'AER - Inputs'!$J819+('AER - Inputs'!$I819*'AER - Inputs'!L$20) -> 160.1033073 | M66: =MMULT('AER - Inputs'!$H466:$Y466,'AER - Inputs'!M$32:M$49)*'AER - Inputs'!$H819*'AER - Inputs'!$J819+('AER - Inputs'!$I819*'AER - Inputs'!M$20) -> 157.1095152 | N66: =SUMIFS('Report Charges & Xfactors'!$M$10:$M$318,'Report Charges & Xfactors'!$D$10:$D$318,'AER - Calc Cost build up'!D66,'Report Charges & Xfactors'!$E$10:$E$318,'AER - Calc Cost build up'!E66) -> 166.6025545 | O66: 157.1095152 | P66: -9.493039241 | Q66: -0.05698015418
A67: ='AER - Inputs'!$A$114 -> 0 | B67: ='AER - Inputs'!$B$114 -> Ancillary Services | C67: ='AER - Inputs'!$C$114 -> Design related services | D67: ='AER - Inputs'!$D$114 -> Design Certification Fee | E67: ='AER - Inputs'!$E$114 -> Connection of Load - Indoor Substation - Per Hour | F67: ='AER - Inputs'!$F$114 -> Per Job | G67: ='AER - Inputs'!$G$114 -> Fee | H67: =MMULT('AER - Inputs'!$H467:$Y467,'AER - Inputs'!H$32:H$49)*'AER - Inputs'!$H820*'AER - Inputs'!$J820+('AER - Inputs'!$I820*'AER - Inputs'!H$20) -> 142.81 | I67: =MMULT('AER - Inputs'!$H467:$Y467,'AER - Inputs'!I$32:I$49)*'AER - Inputs'!$H820*'AER - Inputs'!$J820+('AER - Inputs'!$I820*'AER - Inputs'!I$20) -> 147.855905 | J67: =MMULT('AER - Inputs'!$H467:$Y467,'AER - Inputs'!J$32:J$49)*'AER - Inputs'!$H820*'AER - Inputs'!$J820+('AER - Inputs'!$I820*'AER - Inputs'!J$20) -> 151.6920357 | K67: =MMULT('AER - Inputs'!$H467:$Y467,'AER - Inputs'!K$32:K$49)*'AER - Inputs'!$H820*'AER - Inputs'!$J820+('AER - Inputs'!$I820*'AER - Inputs'!K$20) -> 155.3344126 | L67: =MMULT('AER - Inputs'!$H467:$Y467,'AER - Inputs'!L$32:L$49)*'AER - Inputs'!$H820*'AER - Inputs'!$J820+('AER - Inputs'!$I820*'AER - Inputs'!L$20) -> 160.1033073 | M67: =MMULT('AER - Inputs'!$H467:$Y467,'AER - Inputs'!M$32:M$49)*'AER - Inputs'!$H820*'AER - Inputs'!$J820+('AER - Inputs'!$I820*'AER - Inputs'!M$20) -> 157.1095152 | N67: =SUMIFS('Report Charges & Xfactors'!$M$10:$M$318,'Report Charges & Xfactors'!$D$10:$D$318,'AER - Calc Cost build up'!D67,'Report Charges & Xfactors'!$E$10:$E$318,'AER - Calc Cost build up'!E67) -> 166.6025545 | O67: 157.1095152 | P67: -9.493039241 | Q67: -0.05698015418
A68: ='AER - Inputs'!$A$115 -> 0 | B68: ='AER - Inputs'!$B$115 -> Ancillary Services | C68: ='AER - Inputs'!$C$115 -> Design related services | D68: ='AER - Inputs'!$D$115 -> Design Certification Fee | E68: ='AER - Inputs'!$E$115 -> Connection of Load - Industrial & Commercial - <= 200A/Phase (LV) | F68: ='AER - Inputs'!$F$115 -> Per Hour | G68: ='AER - Inputs'!$G$115 -> Quote | H68: =MMULT('AER - Inputs'!$H468:$Y468,'AER - Inputs'!H$32:H$49)*'AER - Inputs'!$H821*'AER - Inputs'!$J821+('AER - Inputs'!$I821*'AER - Inputs'!H$20) -> 142.81 | I68: =MMULT('AER - Inputs'!$H468:$Y468,'AER - Inputs'!I$32:I$49)*'AER - Inputs'!$H821*'AER - Inputs'!$J821+('AER - Inputs'!$I821*'AER - Inputs'!I$20) -> 147.855905 | J68: =MMULT('AER - Inputs'!$H468:$Y468,'AER - Inputs'!J$32:J$49)*'AER - Inputs'!$H821*'AER - Inputs'!$J821+('AER - Inputs'!$I821*'AER - Inputs'!J$20) -> 151.6920357 | K68: =MMULT('AER - Inputs'!$H468:$Y468,'AER - Inputs'!K$32:K$49)*'AER - Inputs'!$H821*'AER - Inputs'!$J821+('AER - Inputs'!$I821*'AER - Inputs'!K$20) -> 155.3344126 | L68: =MMULT('AER - Inputs'!$H468:$Y468,'AER - Inputs'!L$32:L$49)*'AER - Inputs'!$H821*'AER - Inputs'!$J821+('AER - Inputs'!$I821*'AER - Inputs'!L$20) -> 160.1033073 | M68: =MMULT('AER - Inputs'!$H468:$Y468,'AER - Inputs'!M$32:M$49)*'AER - Inputs'!$H821*'AER - Inputs'!$J821+('AER - Inputs'!$I821*'AER - Inputs'!M$20) -> 157.1095152 | N68: =SUMIFS('Report Charges & Xfactors'!$M$10:$M$318,'Report Charges & Xfactors'!$D$10:$D$318,'AER - Calc Cost build up'!D68,'Report Charges & Xfactors'!$E$10:$E$318,'AER - Calc Cost build up'!E68) -> 166.6025545 | O68: 157.1095152 | P68: -9.493039241 | Q68: -0.05698015418
A69: ='AER - Inputs'!$A$116 -> 0 | B69: ='AER - Inputs'!$B$116 -> Ancillary Services | C69: ='AER - Inputs'!$C$116 -> Design related services | D69: ='AER - Inputs'!$D$116 -> Design Certification Fee | E69: ='AER - Inputs'!$E$116 -> Connection of Load - Industrial & Commercial - <= 700A/Phase (LV) | F69: ='AER - Inputs'!$F$116 -> Per Hour | G69: ='AER - Inputs'!$G$116 -> Quote | H69: =MMULT('AER - Inputs'!$H469:$Y469,'AER - Inputs'!H$32:H$49)*'AER - Inputs'!$H822*'AER - Inputs'!$J822+('AER - Inputs'!$I822*'AER - Inputs'!H$20) -> 142.81 | I69: =MMULT('AER - Inputs'!$H469:$Y469,'AER - Inputs'!I$32:I$49)*'AER - Inputs'!$H822*'AER - Inputs'!$J822+('AER - Inputs'!$I822*'AER - Inputs'!I$20) -> 147.855905 | J69: =MMULT('AER - Inputs'!$H469:$Y469,'AER - Inputs'!J$32:J$49)*'AER - Inputs'!$H822*'AER - Inputs'!$J822+('AER - Inputs'!$I822*'AER - Inputs'!J$20) -> 151.6920357 | K69: =MMULT('AER - Inputs'!$H469:$Y469,'AER - Inputs'!K$32:K$49)*'AER - Inputs'!$H822*'AER - Inputs'!$J822+('AER - Inputs'!$I822*'AER - Inputs'!K$20) -> 155.3344126 | L69: =MMULT('AER - Inputs'!$H469:$Y469,'AER - Inputs'!L$32:L$49)*'AER - Inputs'!$H822*'AER - Inputs'!$J822+('AER - Inputs'!$I822*'AER - Inputs'!L$20) -> 160.1033073 | M69: =MMULT('AER - Inputs'!$H469:$Y469,'AER - Inputs'!M$32:M$49)*'AER - Inputs'!$H822*'AER - Inputs'!$J822+('AER - Inputs'!$I822*'AER - Inputs'!M$20) -> 157.1095152 | N69: =SUMIFS('Report Charges & Xfactors'!$M$10:$M$318,'Report Charges & Xfactors'!$D$10:$D$318,'AER - Calc Cost build up'!D69,'Report Charges & Xfactors'!$E$10:$E$318,'AER - Calc Cost build up'!E69) -> 166.6025545 | O69: 157.1095152 | P69: -9.493039241 | Q69: -0.05698015418
A70: ='AER - Inputs'!$A$117 -> 0 | B70: ='AER - Inputs'!$B$117 -> Ancillary Services | C70: ='AER - Inputs'!$C$117 -> Design related services | D70: ='AER - Inputs'!$D$117 -> Design Certification Fee | E70: ='AER - Inputs'!$E$117 -> Connection of Load - Industrial & Commercial - > 700A/Phase (LV) | F70: ='AER - Inputs'!$F$117 -> Per Hour | G70: ='AER - Inputs'!$G$117 -> Quote | H70: =MMULT('AER - Inputs'!$H470:$Y470,'AER - Inputs'!H$32:H$49)*'AER - Inputs'!$H823*'AER - Inputs'!$J823+('AER - Inputs'!$I823*'AER - Inputs'!H$20) -> 142.81 | I70: =MMULT('AER - Inputs'!$H470:$Y470,'AER - Inputs'!I$32:I$49)*'AER - Inputs'!$H823*'AER - Inputs'!$J823+('AER - Inputs'!$I823*'AER - Inputs'!I$20) -> 147.855905 | J70: =MMULT('AER - Inputs'!$H470:$Y470,'AER - Inputs'!J$32:J$49)*'AER - Inputs'!$H823*'AER - Inputs'!$J823+('AER - Inputs'!$I823*'AER - Inputs'!J$20) -> 151.6920357 | K70: =MMULT('AER - Inputs'!$H470:$Y470,'AER - Inputs'!K$32:K$49)*'AER - Inputs'!$H823*'AER - Inputs'!$J823+('AER - Inputs'!$I823*'AER - Inputs'!K$20) -> 155.3344126 | L70: =MMULT('AER - Inputs'!$H470:$Y470,'AER - Inputs'!L$32:L$49)*'AER - Inputs'!$H823*'AER - Inputs'!$J823+('AER - Inputs'!$I823*'AER - Inputs'!L$20) -> 160.1033073 | M70: =MMULT('AER - Inputs'!$H470:$Y470,'AER - Inputs'!M$32:M$49)*'AER - Inputs'!$H823*'AER - Inputs'!$J823+('AER - Inputs'!$I823*'AER - Inputs'!M$20) -> 157.1095152 | N70: =SUMIFS('Report Charges & Xfactors'!$M$10:$M$318,'Report Charges & Xfactors'!$D$10:$D$318,'AER - Calc Cost build up'!D70,'Report Charges & Xfactors'!$E$10:$E$318,'AER - Calc Cost build up'!E70) -> 166.6025545 | O70: 157.1095152 | P70: -9.493039241 | Q70: -0.05698015418
A71: ='AER - Inputs'!$A$118 -> 0 | B71: ='AER - Inputs'!$B$118 -> Ancillary Services | C71: ='AER - Inputs'!$C$118 -> Design related services | D71: ='AER - Inputs'!$D$118 -> Design Certification Fee | E71: ='AER - Inputs'!$E$118 -> Connection of Load - Industrial & Commercial - HV Customer | F71: ='AER - Inputs'!$F$118 -> Per Hour | G71: ='AER - Inputs'!$G$118 -> Quote | H71: =MMULT('AER - Inputs'!$H471:$Y471,'AER - Inputs'!H$32:H$49)*'AER - Inputs'!$H824*'AER - Inputs'!$J824+('AER - Inputs'!$I824*'AER - Inputs'!H$20) -> 142.81 | I71: =MMULT('AER - Inputs'!$H471:$Y471,'AER - Inputs'!I$32:I$49)*'AER - Inputs'!$H824*'AER - Inputs'!$J824+('AER - Inputs'!$I824*'AER - Inputs'!I$20) -> 147.855905 | J71: =MMULT('AER - Inputs'!$H471:$Y471,'AER - Inputs'!J$32:J$49)*'AER - Inputs'!$H824*'AER - Inputs'!$J824+('AER - Inputs'!$I824*'AER - Inputs'!J$20) -> 151.6920357 | K71: =MMULT('AER - Inputs'!$H471:$Y471,'AER - Inputs'!K$32:K$49)*'AER - Inputs'!$H824*'AER - Inputs'!$J824+('AER - Inputs'!$I824*'AER - Inputs'!K$20) -> 155.3344126 | L71: =MMULT('AER - Inputs'!$H471:$Y471,'AER - Inputs'!L$32:L$49)*'AER - Inputs'!$H824*'AER - Inputs'!$J824+('AER - Inputs'!$I824*'AER - Inputs'!L$20) -> 160.1033073 | M71: =MMULT('AER - Inputs'!$H471:$Y471,'AER - Inputs'!M$32:M$49)*'AER - Inputs'!$H824*'AER - Inputs'!$J824+('AER - Inputs'!$I824*'AER - Inputs'!M$20) -> 157.1095152 | N71: =SUMIFS('Report Charges & Xfactors'!$M$10:$M$318,'Report Charges & Xfactors'!$D$10:$D$318,'AER - Calc Cost build up'!D71,'Report Charges & Xfactors'!$E$10:$E$318,'AER - Calc Cost build up'!E71) -> 166.6025545 | O71: 157.1095152 | P71: -9.493039241 | Q71: -0.05698015418
A72: ='AER - Inputs'!$A$119 -> 0 | B72: ='AER - Inputs'!$B$119 -> Ancillary Services | C72: ='AER - Inputs'!$C$119 -> Design related services | D72: ='AER - Inputs'!$D$119 -> Design Certification Fee | E72: ='AER - Inputs'!$E$119 -> Connection of Load - Industrial & Commercial - Transmission | F72: ='AER - Inputs'!$F$119 -> Per Hour | G72: ='AER - Inputs'!$G$119 -> Quote | H72: =MMULT('AER - Inputs'!$H472:$Y472,'AER - Inputs'!H$32:H$49)*'AER - Inputs'!$H825*'AER - Inputs'!$J825+('AER - Inputs'!$I825*'AER - Inputs'!H$20) -> 142.81 | I72: =MMULT('AER - Inputs'!$H472:$Y472,'AER - Inputs'!I$32:I$49)*'AER - Inputs'!$H825*'AER - Inputs'!$J825+('AER - Inputs'!$I825*'AER - Inputs'!I$20) -> 147.855905 | J72: =MMULT('AER - Inputs'!$H472:$Y472,'AER - Inputs'!J$32:J$49)*'AER - Inputs'!$H825*'AER - Inputs'!$J825+('AER - Inputs'!$I825*'AER - Inputs'!J$20) -> 151.6920357 | K72: =MMULT('AER - Inputs'!$H472:$Y472,'AER - Inputs'!K$32:K$49)*'AER - Inputs'!$H825*'AER - Inputs'!$J825+('AER - Inputs'!$I825*'AER - Inputs'!K$20) -> 155.3344126 | L72: =MMULT('AER - Inputs'!$H472:$Y472,'AER - Inputs'!L$32:L$49)*'AER - Inputs'!$H825*'AER - Inputs'!$J825+('AER - Inputs'!$I825*'AER - Inputs'!L$20) -> 160.1033073 | M72: =MMULT('AER - Inputs'!$H472:$Y472,'AER - Inputs'!M$32:M$49)*'AER - Inputs'!$H825*'AER - Inputs'!$J825+('AER - Inputs'!$I825*'AER - Inputs'!M$20) -> 157.1095152 | N72: =SUMIFS('Report Charges & Xfactors'!$M$10:$M$318,'Report Charges & Xfactors'!$D$10:$D$318,'AER - Calc Cost build up'!D72,'Report Charges & Xfactors'!$E$10:$E$318,'AER - Calc Cost build up'!E72) -> 166.6025545 | O72: 157.1095152 | P72: -9.493039241 | Q72: -0.05698015418
A73: ='AER - Inputs'!$A$120 -> 0 | B73: ='AER - Inputs'!$B$120 -> Ancillary Services | C73: ='AER - Inputs'!$C$120 -> Design related services | D73: ='AER - Inputs'!$D$120 -> Design Certification Fee | E73: ='AER - Inputs'!$E$120 -> Connection of Load - Multi-Dwelling - <= 20 units | F73: ='AER - Inputs'!$F$120 -> Per Hour | G73: ='AER - Inputs'!$G$120 -> Quote | H73: =MMULT('AER - Inputs'!$H473:$Y473,'AER - Inputs'!H$32:H$49)*'AER - Inputs'!$H826*'AER - Inputs'!$J826+('AER - Inputs'!$I826*'AER - Inputs'!H$20) -> 142.81 | I73: =MMULT('AER - Inputs'!$H473:$Y473,'AER - Inputs'!I$32:I$49)*'AER - Inputs'!$H826*'AER - Inputs'!$J826+('AER - Inputs'!$I826*'AER - Inputs'!I$20) -> 147.855905 | J73: =MMULT('AER - Inputs'!$H473:$Y473,'AER - Inputs'!J$32:J$49)*'AER - Inputs'!$H826*'AER - Inputs'!$J826+('AER - Inputs'!$I826*'AER - Inputs'!J$20) -> 151.6920357 | K73: =MMULT('AER - Inputs'!$H473:$Y473,'AER - Inputs'!K$32:K$49)*'AER - Inputs'!$H826*'AER - Inputs'!$J826+('AER - Inputs'!$I826*'AER - Inputs'!K$20) -> 155.3344126 | L73: =MMULT('AER - Inputs'!$H473:$Y473,'AER - Inputs'!L$32:L$49)*'AER - Inputs'!$H826*'AER - Inputs'!$J826+('AER - Inputs'!$I826*'AER - Inputs'!L$20) -> 160.1033073 | M73: =MMULT('AER - Inputs'!$H473:$Y473,'AER - Inputs'!M$32:M$49)*'AER - Inputs'!$H826*'AER - Inputs'!$J826+('AER - Inputs'!$I826*'AER - Inputs'!M$20) -> 157.1095152 | N73: =SUMIFS('Report Charges & Xfactors'!$M$10:$M$318,'Report Charges & Xfactors'!$D$10:$D$318,'AER - Calc Cost build up'!D73,'Report Charges & Xfactors'!$E$10:$E$318,'AER - Calc Cost build up'!E73) -> 166.6025545 | O73: =MIN(M73,N73) -> 157.1095152 | P73: =O73-N73 -> -9.493039241 | Q73: =P73/N73 -> -0.05698015418
A74: ='AER - Inputs'!$A$121 -> 0 | B74: ='AER - Inputs'!$B$121 -> Ancillary Services | C74: ='AER - Inputs'!$C$121 -> Design related services | D74: ='AER - Inputs'!$D$121 -> Design Certification Fee | E74: ='AER - Inputs'!$E$121 -> Connection of Load - Multi-Dwelling - <= 40 units | F74: ='AER - Inputs'!$F$121 -> Per Hour | G74: ='AER - Inputs'!$G$121 -> Quote | H74: =MMULT('AER - Inputs'!$H474:$Y474,'AER - Inputs'!H$32:H$49)*'AER - Inputs'!$H827*'AER - Inputs'!$J827+('AER - Inputs'!$I827*'AER - Inputs'!H$20) -> 142.81 | I74: =MMULT('AER - Inputs'!$H474:$Y474,'AER - Inputs'!I$32:I$49)*'AER - Inputs'!$H827*'AER - Inputs'!$J827+('AER - Inputs'!$I827*'AER - Inputs'!I$20) -> 147.855905 | J74: =MMULT('AER - Inputs'!$H474:$Y474,'AER - Inputs'!J$32:J$49)*'AER - Inputs'!$H827*'AER - Inputs'!$J827+('AER - Inputs'!$I827*'AER - Inputs'!J$20) -> 151.6920357 | K74: =MMULT('AER - Inputs'!$H474:$Y474,'AER - Inputs'!K$32:K$49)*'AER - Inputs'!$H827*'AER - Inputs'!$J827+('AER - Inputs'!$I827*'AER - Inputs'!K$20) -> 155.3344126 | L74: =MMULT('AER - Inputs'!$H474:$Y474,'AER - Inputs'!L$32:L$49)*'AER - Inputs'!$H827*'AER - Inputs'!$J827+('AER - Inputs'!$I827*'AER - Inputs'!L$20) -> 160.1033073 | M74: =MMULT('AER - Inputs'!$H474:$Y474,'AER - Inputs'!M$32:M$49)*'AER - Inputs'!$H827*'AER - Inputs'!$J827+('AER - Inputs'!$I827*'AER - Inputs'!M$20) -> 157.1095152 | N74: =SUMIFS('Report Charges & Xfactors'!$M$10:$M$318,'Report Charges & Xfactors'!$D$10:$D$318,'AER - Calc Cost build up'!D74,'Report Charges & Xfactors'!$E$10:$E$318,'AER - Calc Cost build up'!E74) -> 166.6025545 | O74: =MIN(M74,N74) -> 157.1095152 | P74: -9.493039241 | Q74: -0.05698015418
A75: ='AER - Inputs'!$A$122 -> 0 | B75: ='AER - Inputs'!$B$122 -> Ancillary Services | C75: ='AER - Inputs'!$C$122 -> Design related services | D75: ='AER - Inputs'!$D$122 -> Design Certification Fee | E75: ='AER - Inputs'!$E$122 -> Connection of Load - Multi-Dwelling - <= 5 units | F75: ='AER - Inputs'!$F$122 -> Per Hour | G75: ='AER - Inputs'!$G$122 -> Quote | H75: =MMULT('AER - Inputs'!$H475:$Y475,'AER - Inputs'!H$32:H$49)*'AER - Inputs'!$H828*'AER - Inputs'!$J828+('AER - Inputs'!$I828*'AER - Inputs'!H$20) -> 142.81 | I75: =MMULT('AER - Inputs'!$H475:$Y475,'AER - Inputs'!I$32:I$49)*'AER - Inputs'!$H828*'AER - Inputs'!$J828+('AER - Inputs'!$I828*'AER - Inputs'!I$20) -> 147.855905 | J75: =MMULT('AER - Inputs'!$H475:$Y475,'AER - Inputs'!J$32:J$49)*'AER - Inputs'!$H828*'AER - Inputs'!$J828+('AER - Inputs'!$I828*'AER - Inputs'!J$20) -> 151.6920357 | K75: =MMULT('AER - Inputs'!$H475:$Y475,'AER - Inputs'!K$32:K$49)*'AER - Inputs'!$H828*'AER - Inputs'!$J828+('AER - Inputs'!$I828*'AER - Inputs'!K$20) -> 155.3344126 | L75: =MMULT('AER - Inputs'!$H475:$Y475,'AER - Inputs'!L$32:L$49)*'AER - Inputs'!$H828*'AER - Inputs'!$J828+('AER - Inputs'!$I828*'AER - Inputs'!L$20) -> 160.1033073 | M75: =MMULT('AER - Inputs'!$H475:$Y475,'AER - Inputs'!M$32:M$49)*'AER - Inputs'!$H828*'AER - Inputs'!$J828+('AER - Inputs'!$I828*'AER - Inputs'!M$20) -> 157.1095152 | N75: =SUMIFS('Report Charges & Xfactors'!$M$10:$M$318,'Report Charges & Xfactors'!$D$10:$D$318,'AER - Calc Cost build up'!D75,'Report Charges & Xfactors'!$E$10:$E$318,'AER - Calc Cost build up'!E75) -> 166.6025545 | O75: 157.1095152 | P75: -9.493039241 | Q75: -0.05698015418
A76: ='AER - Inputs'!$A$123 -> 0 | B76: ='AER - Inputs'!$B$123 -> Ancillary Services | C76: ='AER - Inputs'!$C$123 -> Design related services | D76: ='AER - Inputs'!$D$123 -> Design Certification Fee | E76: ='AER - Inputs'!$E$123 -> Connection of Load - Multi-Dwelling - > 40 units | F76: ='AER - Inputs'!$F$123 -> Per Hour | G76: ='AER - Inputs'!$G$123 -> Quote | H76: =MMULT('AER - Inputs'!$H476:$Y476,'AER - Inputs'!H$32:H$49)*'AER - Inputs'!$H829*'AER - Inputs'!$J829+('AER - Inputs'!$I829*'AER - Inputs'!H$20) -> 142.81 | I76: =MMULT('AER - Inputs'!$H476:$Y476,'AER - Inputs'!I$32:I$49)*'AER - Inputs'!$H829*'AER - Inputs'!$J829+('AER - Inputs'!$I829*'AER - Inputs'!I$20) -> 147.855905 | J76: =MMULT('AER - Inputs'!$H476:$Y476,'AER - Inputs'!J$32:J$49)*'AER - Inputs'!$H829*'AER - Inputs'!$J829+('AER - Inputs'!$I829*'AER - Inputs'!J$20) -> 151.6920357 | K76: =MMULT('AER - Inputs'!$H476:$Y476,'AER - Inputs'!K$32:K$49)*'AER - Inputs'!$H829*'AER - Inputs'!$J829+('AER - Inputs'!$I829*'AER - Inputs'!K$20) -> 155.3344126 | L76: =MMULT('AER - Inputs'!$H476:$Y476,'AER - Inputs'!L$32:L$49)*'AER - Inputs'!$H829*'AER - Inputs'!$J829+('AER - Inputs'!$I829*'AER - Inputs'!L$20) -> 160.1033073 | M76: =MMULT('AER - Inputs'!$H476:$Y476,'AER - Inputs'!M$32:M$49)*'AER - Inputs'!$H829*'AER - Inputs'!$J829+('AER - Inputs'!$I829*'AER - Inputs'!M$20) -> 157.1095152 | N76: =SUMIFS('Report Charges & Xfactors'!$M$10:$M$318,'Report Charges & Xfactors'!$D$10:$D$318,'AER - Calc Cost build up'!D76,'Report Charges & Xfactors'!$E$10:$E$318,'AER - Calc Cost build up'!E76) -> 166.6025545 | O76: 157.1095152 | P76: -9.493039241 | Q76: -0.05698015418
A77: ='AER - Inputs'!$A$124 -> 0 | B77: ='AER - Inputs'!$B$124 -> Ancillary Services | C77: ='AER - Inputs'!$C$124 -> Design related services | D77: ='AER - Inputs'!$D$124 -> Design Certification Fee | E77: ='AER - Inputs'!$E$124 -> Connection of Load - Non Urban - Overhead - 11+ poles | F77: ='AER - Inputs'!$F$124 -> Per Job | G77: ='AER - Inputs'!$G$124 -> Fee | H77: =MMULT('AER - Inputs'!$H477:$Y477,'AER - Inputs'!H$32:H$49)*'AER - Inputs'!$H830*'AER - Inputs'!$J830+('AER - Inputs'!$I830*'AER - Inputs'!H$20) -> 714.05 | I77: =MMULT('AER - Inputs'!$H477:$Y477,'AER - Inputs'!I$32:I$49)*'AER - Inputs'!$H830*'AER - Inputs'!$J830+('AER - Inputs'!$I830*'AER - Inputs'!I$20) -> 739.2795252 | J77: =MMULT('AER - Inputs'!$H477:$Y477,'AER - Inputs'!J$32:J$49)*'AER - Inputs'!$H830*'AER - Inputs'!$J830+('AER - Inputs'!$I830*'AER - Inputs'!J$20) -> 758.4601787 | K77: =MMULT('AER - Inputs'!$H477:$Y477,'AER - Inputs'!K$32:K$49)*'AER - Inputs'!$H830*'AER - Inputs'!$J830+('AER - Inputs'!$I830*'AER - Inputs'!K$20) -> 776.6720631 | L77: =MMULT('AER - Inputs'!$H477:$Y477,'AER - Inputs'!L$32:L$49)*'AER - Inputs'!$H830*'AER - Inputs'!$J830+('AER - Inputs'!$I830*'AER - Inputs'!L$20) -> 800.5165365 | M77: =MMULT('AER - Inputs'!$H477:$Y477,'AER - Inputs'!M$32:M$49)*'AER - Inputs'!$H830*'AER - Inputs'!$J830+('AER - Inputs'!$I830*'AER - Inputs'!M$20) -> 785.5475762 | N77: =SUMIFS('Report Charges & Xfactors'!$M$10:$M$318,'Report Charges & Xfactors'!$D$10:$D$318,'AER - Calc Cost build up'!D77,'Report Charges & Xfactors'!$E$10:$E$318,'AER - Calc Cost build up'!E77) -> 833.0127724 | O77: 785.5475762 | P77: -47.46519621 | Q77: -0.05698015418
A78: ='AER - Inputs'!$A$125 -> 0 | B78: ='AER - Inputs'!$B$125 -> Ancillary Services | C78: ='AER - Inputs'!$C$125 -> Design related services | D78: ='AER - Inputs'!$D$125 -> Design Certification Fee | E78: ='AER - Inputs'!$E$125 -> Connection of Load - Non Urban - Overhead - 1-5 poles | F78: ='AER - Inputs'!$F$125 -> Per Job | G78: ='AER - Inputs'!$G$125 -> Fee | H78: =MMULT('AER - Inputs'!$H478:$Y478,'AER - Inputs'!H$32:H$49)*'AER - Inputs'!$H831*'AER - Inputs'!$J831+('AER - Inputs'!$I831*'AER - Inputs'!H$20) -> 285.62 | I78: =MMULT('AER - Inputs'!$H478:$Y478,'AER - Inputs'!I$32:I$49)*'AER - Inputs'!$H831*'AER - Inputs'!$J831+('AER - Inputs'!$I831*'AER - Inputs'!I$20) -> 295.7118101 | J78: =MMULT('AER - Inputs'!$H478:$Y478,'AER - Inputs'!J$32:J$49)*'AER - Inputs'!$H831*'AER - Inputs'!$J831+('AER - Inputs'!$I831*'AER - Inputs'!J$20) -> 303.3840715 | K78: =MMULT('AER - Inputs'!$H478:$Y478,'AER - Inputs'!K$32:K$49)*'AER - Inputs'!$H831*'AER - Inputs'!$J831+('AER - Inputs'!$I831*'AER - Inputs'!K$20) -> 310.6688253 | L78: =MMULT('AER - Inputs'!$H478:$Y478,'AER - Inputs'!L$32:L$49)*'AER - Inputs'!$H831*'AER - Inputs'!$J831+('AER - Inputs'!$I831*'AER - Inputs'!L$20) -> 320.2066146 | M78: =MMULT('AER - Inputs'!$H478:$Y478,'AER - Inputs'!M$32:M$49)*'AER - Inputs'!$H831*'AER - Inputs'!$J831+('AER - Inputs'!$I831*'AER - Inputs'!M$20) -> 314.2190305 | N78: =SUMIFS('Report Charges & Xfactors'!$M$10:$M$318,'Report Charges & Xfactors'!$D$10:$D$318,'AER - Calc Cost build up'!D78,'Report Charges & Xfactors'!$E$10:$E$318,'AER - Calc Cost build up'!E78) -> 333.205109 | O78: 314.2190305 | P78: -18.98607848 | Q78: -0.05698015418
A79: ='AER - Inputs'!$A$126 -> 0 | B79: ='AER - Inputs'!$B$126 -> Ancillary Services | C79: ='AER - Inputs'!$C$126 -> Design related services | D79: ='AER - Inputs'!$D$126 -> Design Certification Fee | E79: ='AER - Inputs'!$E$126 -> Connection of Load - Non Urban - Overhead - 6-10 poles | F79: ='AER - Inputs'!$F$126 -> Per Job | G79: ='AER - Inputs'!$G$126 -> Fee | H79: =MMULT('AER - Inputs'!$H479:$Y479,'AER - Inputs'!H$32:H$49)*'AER - Inputs'!$H832*'AER - Inputs'!$J832+('AER - Inputs'!$I832*'AER - Inputs'!H$20) -> 428.43 | I79: =MMULT('AER - Inputs'!$H479:$Y479,'AER - Inputs'!I$32:I$49)*'AER - Inputs'!$H832*'AER - Inputs'!$J832+('AER - Inputs'!$I832*'AER - Inputs'!I$20) -> 443.5677151 | J79: =MMULT('AER - Inputs'!$H479:$Y479,'AER - Inputs'!J$32:J$49)*'AER - Inputs'!$H832*'AER - Inputs'!$J832+('AER - Inputs'!$I832*'AER - Inputs'!J$20) -> 455.0761072 | K79: =MMULT('AER - Inputs'!$H479:$Y479,'AER - Inputs'!K$32:K$49)*'AER - Inputs'!$H832*'AER - Inputs'!$J832+('AER - Inputs'!$I832*'AER - Inputs'!K$20) -> 466.0032379 | L79: =MMULT('AER - Inputs'!$H479:$Y479,'AER - Inputs'!L$32:L$49)*'AER - Inputs'!$H832*'AER - Inputs'!$J832+('AER - Inputs'!$I832*'AER - Inputs'!L$20) -> 480.3099219 | M79: =MMULT('AER - Inputs'!$H479:$Y479,'AER - Inputs'!M$32:M$49)*'AER - Inputs'!$H832*'AER - Inputs'!$J832+('AER - Inputs'!$I832*'AER - Inputs'!M$20) -> 471.3285457 | N79: =SUMIFS('Report Charges & Xfactors'!$M$10:$M$318,'Report Charges & Xfactors'!$D$10:$D$318,'AER - Calc Cost build up'!D79,'Report Charges & Xfactors'!$E$10:$E$318,'AER - Calc Cost build up'!E79) -> 499.8076634 | O79: 471.3285457 | P79: -28.47911772 | Q79: -0.05698015418
A80: ='AER - Inputs'!$A$127 -> 0 | B80: ='AER - Inputs'!$B$127 -> Ancillary Services | C80: ='AER - Inputs'!$C$127 -> Design related services | D80: ='AER - Inputs'!$D$127 -> Design Certification Fee | E80: ='AER - Inputs'!$E$127 -> Connection of Load - Non Urban - Underground - Per Hour | F80: ='AER - Inputs'!$F$127 -> Per Hour | G80: ='AER - Inputs'!$G$127 -> Quote | H80: =MMULT('AER - Inputs'!$H480:$Y480,'AER - Inputs'!H$32:H$49)*'AER - Inputs'!$H833*'AER - Inputs'!$J833+('AER - Inputs'!$I833*'AER - Inputs'!H$20) -> 142.81 | I80: =MMULT('AER - Inputs'!$H480:$Y480,'AER - Inputs'!I$32:I$49)*'AER - Inputs'!$H833*'AER - Inputs'!$J833+('AER - Inputs'!$I833*'AER - Inputs'!I$20) -> 147.855905 | J80: =MMULT('AER - Inputs'!$H480:$Y480,'AER - Inputs'!J$32:J$49)*'AER - Inputs'!$H833*'AER - Inputs'!$J833+('AER - Inputs'!$I833*'AER - Inputs'!J$20) -> 151.6920357 | K80: =MMULT('AER - Inputs'!$H480:$Y480,'AER - Inputs'!K$32:K$49)*'AER - Inputs'!$H833*'AER - Inputs'!$J833+('AER - Inputs'!$I833*'AER - Inputs'!K$20) -> 155.3344126 | L80: =MMULT('AER - Inputs'!$H480:$Y480,'AER - Inputs'!L$32:L$49)*'AER - Inputs'!$H833*'AER - Inputs'!$J833+('AER - Inputs'!$I833*'AER - Inputs'!L$20) -> 160.1033073 | M80: =MMULT('AER - Inputs'!$H480:$Y480,'AER - Inputs'!M$32:M$49)*'AER - Inputs'!$H833*'AER - Inputs'!$J833+('AER - Inputs'!$I833*'AER - Inputs'!M$20) -> 157.1095152 | N80: =SUMIFS('Report Charges & Xfactors'!$M$10:$M$318,'Report Charges & Xfactors'!$D$10:$D$318,'AER - Calc Cost build up'!D80,'Report Charges & Xfactors'!$E$10:$E$318,'AER - Calc Cost build up'!E80) -> 166.6025545 | O80: 157.1095152 | P80: -9.493039241 | Q80: -0.05698015418
A81: ='AER - Inputs'!$A$128 -> 0 | B81: ='AER - Inputs'!$B$128 -> Ancillary Services | C81: ='AER - Inputs'!$C$128 -> Design related services | D81: ='AER - Inputs'!$D$128 -> Design Certification Fee | E81: ='AER - Inputs'!$E$128 -> Public Lighting - Designer | F81: ='AER - Inputs'!$F$128 -> Per Hour | G81: ='AER - Inputs'!$G$128 -> Quote | H81: =MMULT('AER - Inputs'!$H481:$Y481,'AER - Inputs'!H$32:H$49)*'AER - Inputs'!$H834*'AER - Inputs'!$J834+('AER - Inputs'!$I834*'AER - Inputs'!H$20) -> 142.81 | I81: =MMULT('AER - Inputs'!$H481:$Y481,'AER - Inputs'!I$32:I$49)*'AER - Inputs'!$H834*'AER - Inputs'!$J834+('AER - Inputs'!$I834*'AER - Inputs'!I$20) -> 147.855905 | J81: =MMULT('AER - Inputs'!$H481:$Y481,'AER - Inputs'!J$32:J$49)*'AER - Inputs'!$H834*'AER - Inputs'!$J834+('AER - Inputs'!$I834*'AER - Inputs'!J$20) -> 151.6920357 | K81: =MMULT('AER - Inputs'!$H481:$Y481,'AER - Inputs'!K$32:K$49)*'AER - Inputs'!$H834*'AER - Inputs'!$J834+('AER - Inputs'!$I834*'AER - Inputs'!K$20) -> 155.3344126 | L81: =MMULT('AER - Inputs'!$H481:$Y481,'AER - Inputs'!L$32:L$49)*'AER - Inputs'!$H834*'AER - Inputs'!$J834+('AER - Inputs'!$I834*'AER - Inputs'!L$20) -> 160.1033073 | M81: =MMULT('AER - Inputs'!$H481:$Y481,'AER - Inputs'!M$32:M$49)*'AER - Inputs'!$H834*'AER - Inputs'!$J834+('AER - Inputs'!$I834*'AER - Inputs'!M$20) -> 157.1095152 | N81: =SUMIFS('Report Charges & Xfactors'!$M$10:$M$318,'Report Charges & Xfactors'!$D$10:$D$318,'AER - Calc Cost build up'!D81,'Report Charges & Xfactors'!$E$10:$E$318,'AER - Calc Cost build up'!E81) -> 166.6025545 | O81: 157.1095152 | P81: -9.493039241 | Q81: -0.05698015418
A82: ='AER - Inputs'!$A$129 -> 0 | B82: ='AER - Inputs'!$B$129 -> Ancillary Services | C82: ='AER - Inputs'!$C$129 -> Design related services | D82: ='AER - Inputs'!$D$129 -> Design Certification Fee | E82: ='AER - Inputs'!$E$129 -> Public Lighting - Engineer | F82: ='AER - Inputs'!$F$129 -> Per Hour | G82: ='AER - Inputs'!$G$129 -> Quote | H82: =MMULT('AER - Inputs'!$H482:$Y482,'AER - Inputs'!H$32:H$49)*'AER - Inputs'!$H835*'AER - Inputs'!$J835+('AER - Inputs'!$I835*'AER - Inputs'!H$20) -> 142.81 | I82: =MMULT('AER - Inputs'!$H482:$Y482,'AER - Inputs'!I$32:I$49)*'AER - Inputs'!$H835*'AER - Inputs'!$J835+('AER - Inputs'!$I835*'AER - Inputs'!I$20) -> 147.855905 | J82: =MMULT('AER - Inputs'!$H482:$Y482,'AER - Inputs'!J$32:J$49)*'AER - Inputs'!$H835*'AER - Inputs'!$J835+('AER - Inputs'!$I835*'AER - Inputs'!J$20) -> 151.6920357 | K82: =MMULT('AER - Inputs'!$H482:$Y482,'AER - Inputs'!K$32:K$49)*'AER - Inputs'!$H835*'AER - Inputs'!$J835+('AER - Inputs'!$I835*'AER - Inputs'!K$20) -> 155.3344126 | L82: =MMULT('AER - Inputs'!$H482:$Y482,'AER - Inputs'!L$32:L$49)*'AER - Inputs'!$H835*'AER - Inputs'!$J835+('AER - Inputs'!$I835*'AER - Inputs'!L$20) -> 160.1033073 | M82: =MMULT('AER - Inputs'!$H482:$Y482,'AER - Inputs'!M$32:M$49)*'AER - Inputs'!$H835*'AER - Inputs'!$J835+('AER - Inputs'!$I835*'AER - Inputs'!M$20) -> 157.1095152 | N82: =SUMIFS('Report Charges & Xfactors'!$M$10:$M$318,'Report Charges & Xfactors'!$D$10:$D$318,'AER - Calc Cost build up'!D82,'Report Charges & Xfactors'!$E$10:$E$318,'AER - Calc Cost build up'!E82) -> 166.6025545 | O82: 157.1095152 | P82: -9.493039241 | Q82: -0.05698015418
A83: ='AER - Inputs'!$A$130 -> 0 | B83: ='AER - Inputs'!$B$130 -> Ancillary Services | C83: ='AER - Inputs'!$C$130 -> Design related services | D83: ='AER - Inputs'!$D$130 -> Design Certification Fee | E83: ='AER - Inputs'!$E$130 -> Subdivision - Industrial & Commercial - Overhead - 11+ poles | F83: ='AER - Inputs'!$F$130 -> Per Job | G83: ='AER - Inputs'!$G$130 -> Fee | H83: =MMULT('AER - Inputs'!$H483:$Y483,'AER - Inputs'!H$32:H$49)*'AER - Inputs'!$H836*'AER - Inputs'!$J836+('AER - Inputs'!$I836*'AER - Inputs'!H$20) -> 714.05 | I83: =MMULT('AER - Inputs'!$H483:$Y483,'AER - Inputs'!I$32:I$49)*'AER - Inputs'!$H836*'AER - Inputs'!$J836+('AER - Inputs'!$I836*'AER - Inputs'!I$20) -> 739.2795252 | J83: =MMULT('AER - Inputs'!$H483:$Y483,'AER - Inputs'!J$32:J$49)*'AER - Inputs'!$H836*'AER - Inputs'!$J836+('AER - Inputs'!$I836*'AER - Inputs'!J$20) -> 758.4601787 | K83: =MMULT('AER - Inputs'!$H483:$Y483,'AER - Inputs'!K$32:K$49)*'AER - Inputs'!$H836*'AER - Inputs'!$J836+('AER - Inputs'!$I836*'AER - Inputs'!K$20) -> 776.6720631 | L83: =MMULT('AER - Inputs'!$H483:$Y483,'AER - Inputs'!L$32:L$49)*'AER - Inputs'!$H836*'AER - Inputs'!$J836+('AER - Inputs'!$I836*'AER - Inputs'!L$20) -> 800.5165365 | M83: =MMULT('AER - Inputs'!$H483:$Y483,'AER - Inputs'!M$32:M$49)*'AER - Inputs'!$H836*'AER - Inputs'!$J836+('AER - Inputs'!$I836*'AER - Inputs'!M$20) -> 785.5475762 | N83: =SUMIFS('Report Charges & Xfactors'!$M$10:$M$318,'Report Charges & Xfactors'!$D$10:$D$318,'AER - Calc Cost build up'!D83,'Report Charges & Xfactors'!$E$10:$E$318,'AER - Calc Cost build up'!E83) -> 833.0127724 | O83: 785.5475762 | P83: -47.46519621 | Q83: -0.05698015418
A84: ='AER - Inputs'!$A$131 -> 0 | B84: ='AER - Inputs'!$B$131 -> Ancillary Services | C84: ='AER - Inputs'!$C$131 -> Design related services | D84: ='AER - Inputs'!$D$131 -> Design Certification Fee | E84: ='AER - Inputs'!$E$131 -> Subdivision - Industrial & Commercial - Overhead - 1-5 poles | F84: ='AER - Inputs'!$F$131 -> Per Job | G84: ='AER - Inputs'!$G$131 -> Fee | H84: =MMULT('AER - Inputs'!$H484:$Y484,'AER - Inputs'!H$32:H$49)*'AER - Inputs'!$H837*'AER - Inputs'!$J837+('AER - Inputs'!$I837*'AER - Inputs'!H$20) -> 285.62 | I84: =MMULT('AER - Inputs'!$H484:$Y484,'AER - Inputs'!I$32:I$49)*'AER - Inputs'!$H837*'AER - Inputs'!$J837+('AER - Inputs'!$I837*'AER - Inputs'!I$20) -> 295.7118101 | J84: =MMULT('AER - Inputs'!$H484:$Y484,'AER - Inputs'!J$32:J$49)*'AER - Inputs'!$H837*'AER - Inputs'!$J837+('AER - Inputs'!$I837*'AER - Inputs'!J$20) -> 303.3840715 | K84: =MMULT('AER - Inputs'!$H484:$Y484,'AER - Inputs'!K$32:K$49)*'AER - Inputs'!$H837*'AER - Inputs'!$J837+('AER - Inputs'!$I837*'AER - Inputs'!K$20) -> 310.6688253 | L84: =MMULT('AER - Inputs'!$H484:$Y484,'AER - Inputs'!L$32:L$49)*'AER - Inputs'!$H837*'AER - Inputs'!$J837+('AER - Inputs'!$I837*'AER - Inputs'!L$20) -> 320.2066146 | M84: =MMULT('AER - Inputs'!$H484:$Y484,'AER - Inputs'!M$32:M$49)*'AER - Inputs'!$H837*'AER - Inputs'!$J837+('AER - Inputs'!$I837*'AER - Inputs'!M$20) -> 314.2190305 | N84: =SUMIFS('Report Charges & Xfactors'!$M$10:$M$318,'Report Charges & Xfactors'!$D$10:$D$318,'AER - Calc Cost build up'!D84,'Report Charges & Xfactors'!$E$10:$E$318,'AER - Calc Cost build up'!E84) -> 333.205109 | O84: 314.2190305 | P84: -18.98607848 | Q84: -0.05698015418
A85: ='AER - Inputs'!$A$132 -> 0 | B85: ='AER - Inputs'!$B$132 -> Ancillary Services | C85: ='AER - Inputs'!$C$132 -> Design related services | D85: ='AER - Inputs'!$D$132 -> Design Certification Fee | E85: ='AER - Inputs'!$E$132 -> Subdivision - Industrial & Commercial - Overhead - 6-10 poles | F85: ='AER - Inputs'!$F$132 -> Per Job | G85: ='AER - Inputs'!$G$132 -> Fee | H85: =MMULT('AER - Inputs'!$H485:$Y485,'AER - Inputs'!H$32:H$49)*'AER - Inputs'!$H838*'AER - Inputs'!$J838+('AER - Inputs'!$I838*'AER - Inputs'!H$20) -> 428.43 | I85: =MMULT('AER - Inputs'!$H485:$Y485,'AER - Inputs'!I$32:I$49)*'AER - Inputs'!$H838*'AER - Inputs'!$J838+('AER - Inputs'!$I838*'AER - Inputs'!I$20) -> 443.5677151 | J85: =MMULT('AER - Inputs'!$H485:$Y485,'AER - Inputs'!J$32:J$49)*'AER - Inputs'!$H838*'AER - Inputs'!$J838+('AER - Inputs'!$I838*'AER - Inputs'!J$20) -> 455.0761072 | K85: =MMULT('AER - Inputs'!$H485:$Y485,'AER - Inputs'!K$32:K$49)*'AER - Inputs'!$H838*'AER - Inputs'!$J838+('AER - Inputs'!$I838*'AER - Inputs'!K$20) -> 466.0032379 | L85: =MMULT('AER - Inputs'!$H485:$Y485,'AER - Inputs'!L$32:L$49)*'AER - Inputs'!$H838*'AER - Inputs'!$J838+('AER - Inputs'!$I838*'AER - Inputs'!L$20) -> 480.3099219 | M85: =MMULT('AER - Inputs'!$H485:$Y485,'AER - Inputs'!M$32:M$49)*'AER - Inputs'!$H838*'AER - Inputs'!$J838+('AER - Inputs'!$I838*'AER - Inputs'!M$20) -> 471.3285457 | N85: =SUMIFS('Report Charges & Xfactors'!$M$10:$M$318,'Report Charges & Xfactors'!$D$10:$D$318,'AER - Calc Cost build up'!D85,'Report Charges & Xfactors'!$E$10:$E$318,'AER - Calc Cost build up'!E85) -> 499.8076634 | O85: 471.3285457 | P85: -28.47911772 | Q85: -0.05698015418
A86: ='AER - Inputs'!$A$133 -> 0 | B86: ='AER - Inputs'!$B$133 -> Ancillary Services | C86: ='AER - Inputs'!$C$133 -> Design related services | D86: ='AER - Inputs'!$D$133 -> Design Certification Fee | E86: ='AER - Inputs'!$E$133 -> Subdivision - Industrial & Commercial - Underground - 1-10 lots | F86: ='AER - Inputs'!$F$133 -> Per Job | G86: ='AER - Inputs'!$G$133 -> Fee | H86: =MMULT('AER - Inputs'!$H486:$Y486,'AER - Inputs'!H$32:H$49)*'AER - Inputs'!$H839*'AER - Inputs'!$J839+('AER - Inputs'!$I839*'AER - Inputs'!H$20) -> 428.43 | I86: =MMULT('AER - Inputs'!$H486:$Y486,'AER - Inputs'!I$32:I$49)*'AER - Inputs'!$H839*'AER - Inputs'!$J839+('AER - Inputs'!$I839*'AER - Inputs'!I$20) -> 443.5677151 | J86: =MMULT('AER - Inputs'!$H486:$Y486,'AER - Inputs'!J$32:J$49)*'AER - Inputs'!$H839*'AER - Inputs'!$J839+('AER - Inputs'!$I839*'AER - Inputs'!J$20) -> 455.0761072 | K86: =MMULT('AER - Inputs'!$H486:$Y486,'AER - Inputs'!K$32:K$49)*'AER - Inputs'!$H839*'AER - Inputs'!$J839+('AER - Inputs'!$I839*'AER - Inputs'!K$20) -> 466.0032379 | L86: =MMULT('AER - Inputs'!$H486:$Y486,'AER - Inputs'!L$32:L$49)*'AER - Inputs'!$H839*'AER - Inputs'!$J839+('AER - Inputs'!$I839*'AER - Inputs'!L$20) -> 480.3099219 | M86: =MMULT('AER - Inputs'!$H486:$Y486,'AER - Inputs'!M$32:M$49)*'AER - Inputs'!$H839*'AER - Inputs'!$J839+('AER - Inputs'!$I839*'AER - Inputs'!M$20) -> 471.3285457 | N86: =SUMIFS('Report Charges & Xfactors'!$M$10:$M$318,'Report Charges & Xfactors'!$D$10:$D$318,'AER - Calc Cost build up'!D86,'Report Charges & Xfactors'!$E$10:$E$318,'AER - Calc Cost build up'!E86) -> 499.8076634 | O86: 471.3285457 | P86: -28.47911772 | Q86: -0.05698015418
A87: ='AER - Inputs'!$A$134 -> 0 | B87: ='AER - Inputs'!$B$134 -> Ancillary Services | C87: ='AER - Inputs'!$C$134 -> Design related services | D87: ='AER - Inputs'!$D$134 -> Design Certification Fee | E87: ='AER - Inputs'!$E$134 -> Subdivision - Industrial & Commercial - Underground - 11-40 lots | F87: ='AER - Inputs'!$F$134 -> Per Job | G87: ='AER - Inputs'!$G$134 -> Fee | H87: =MMULT('AER - Inputs'!$H487:$Y487,'AER - Inputs'!H$32:H$49)*'AER - Inputs'!$H840*'AER - Inputs'!$J840+('AER - Inputs'!$I840*'AER - Inputs'!H$20) -> 571.24 | I87: =MMULT('AER - Inputs'!$H487:$Y487,'AER - Inputs'!I$32:I$49)*'AER - Inputs'!$H840*'AER - Inputs'!$J840+('AER - Inputs'!$I840*'AER - Inputs'!I$20) -> 591.4236202 | J87: =MMULT('AER - Inputs'!$H487:$Y487,'AER - Inputs'!J$32:J$49)*'AER - Inputs'!$H840*'AER - Inputs'!$J840+('AER - Inputs'!$I840*'AER - Inputs'!J$20) -> 606.7681429 | K87: =MMULT('AER - Inputs'!$H487:$Y487,'AER - Inputs'!K$32:K$49)*'AER - Inputs'!$H840*'AER - Inputs'!$J840+('AER - Inputs'!$I840*'AER - Inputs'!K$20) -> 621.3376505 | L87: =MMULT('AER - Inputs'!$H487:$Y487,'AER - Inputs'!L$32:L$49)*'AER - Inputs'!$H840*'AER - Inputs'!$J840+('AER - Inputs'!$I840*'AER - Inputs'!L$20) -> 640.4132292 | M87: =MMULT('AER - Inputs'!$H487:$Y487,'AER - Inputs'!M$32:M$49)*'AER - Inputs'!$H840*'AER - Inputs'!$J840+('AER - Inputs'!$I840*'AER - Inputs'!M$20) -> 628.4380609 | N87: =SUMIFS('Report Charges & Xfactors'!$M$10:$M$318,'Report Charges & Xfactors'!$D$10:$D$318,'AER - Calc Cost build up'!D87,'Report Charges & Xfactors'!$E$10:$E$318,'AER - Calc Cost build up'!E87) -> 666.4102179 | O87: 628.4380609 | P87: -37.97215697 | Q87: -0.05698015418
A88: ='AER - Inputs'!$A$135 -> 0 | B88: ='AER - Inputs'!$B$135 -> Ancillary Services | C88: ='AER - Inputs'!$C$135 -> Design related services | D88: ='AER - Inputs'!$D$135 -> Design Certification Fee | E88: ='AER - Inputs'!$E$135 -> Subdivision - Industrial & Commercial - Underground - 41 + lots | F88: ='AER - Inputs'!$F$135 -> Per Job | G88: ='AER - Inputs'!$G$135 -> Fee | H88: =MMULT('AER - Inputs'!$H488:$Y488,'AER - Inputs'!H$32:H$49)*'AER - Inputs'!$H841*'AER - Inputs'!$J841+('AER - Inputs'!$I841*'AER - Inputs'!H$20) -> 856.86 | I88: =MMULT('AER - Inputs'!$H488:$Y488,'AER - Inputs'!I$32:I$49)*'AER - Inputs'!$H841*'AER - Inputs'!$J841+('AER - Inputs'!$I841*'AER - Inputs'!I$20) -> 887.1354302 | J88: =MMULT('AER - Inputs'!$H488:$Y488,'AER - Inputs'!J$32:J$49)*'AER - Inputs'!$H841*'AER - Inputs'!$J841+('AER - Inputs'!$I841*'AER - Inputs'!J$20) -> 910.1522144 | K88: =MMULT('AER - Inputs'!$H488:$Y488,'AER - Inputs'!K$32:K$49)*'AER - Inputs'!$H841*'AER - Inputs'!$J841+('AER - Inputs'!$I841*'AER - Inputs'!K$20) -> 932.0064758 | L88: =MMULT('AER - Inputs'!$H488:$Y488,'AER - Inputs'!L$32:L$49)*'AER - Inputs'!$H841*'AER - Inputs'!$J841+('AER - Inputs'!$I841*'AER - Inputs'!L$20) -> 960.6198438 | M88: =MMULT('AER - Inputs'!$H488:$Y488,'AER - Inputs'!M$32:M$49)*'AER - Inputs'!$H841*'AER - Inputs'!$J841+('AER - Inputs'!$I841*'AER - Inputs'!M$20) -> 942.6570914 | N88: =SUMIFS('Report Charges & Xfactors'!$M$10:$M$318,'Report Charges & Xfactors'!$D$10:$D$318,'AER - Calc Cost build up'!D88,'Report Charges & Xfactors'!$E$10:$E$318,'AER - Calc Cost build up'!E88) -> 999.6153269 | O88: 942.6570914 | P88: -56.95823545 | Q88: -0.05698015418
A89: ='AER - Inputs'!$A$136 -> 0 | B89: ='AER - Inputs'!$B$136 -> Ancillary Services | C89: ='AER - Inputs'!$C$136 -> Design related services | D89: ='AER - Inputs'!$D$136 -> Design Certification Fee | E89: ='AER - Inputs'!$E$136 -> Subdivision - Non Urban - Overhead - 11+ poles | F89: ='AER - Inputs'!$F$136 -> Per Job | G89: ='AER - Inputs'!$G$136 -> Fee | H89: =MMULT('AER - Inputs'!$H489:$Y489,'AER - Inputs'!H$32:H$49)*'AER - Inputs'!$H842*'AER - Inputs'!$J842+('AER - Inputs'!$I842*'AER - Inputs'!H$20) -> 714.05 | I89: =MMULT('AER - Inputs'!$H489:$Y489,'AER - Inputs'!I$32:I$49)*'AER - Inputs'!$H842*'AER - Inputs'!$J842+('AER - Inputs'!$I842*'AER - Inputs'!I$20) -> 739.2795252 | J89: =MMULT('AER - Inputs'!$H489:$Y489,'AER - Inputs'!J$32:J$49)*'AER - Inputs'!$H842*'AER - Inputs'!$J842+('AER - Inputs'!$I842*'AER - Inputs'!J$20) -> 758.4601787 | K89: =MMULT('AER - Inputs'!$H489:$Y489,'AER - Inputs'!K$32:K$49)*'AER - Inputs'!$H842*'AER - Inputs'!$J842+('AER - Inputs'!$I842*'AER - Inputs'!K$20) -> 776.6720631 | L89: =MMULT('AER - Inputs'!$H489:$Y489,'AER - Inputs'!L$32:L$49)*'AER - Inputs'!$H842*'AER - Inputs'!$J842+('AER - Inputs'!$I842*'AER - Inputs'!L$20) -> 800.5165365 | M89: =MMULT('AER - Inputs'!$H489:$Y489,'AER - Inputs'!M$32:M$49)*'AER - Inputs'!$H842*'AER - Inputs'!$J842+('AER - Inputs'!$I842*'AER - Inputs'!M$20) -> 785.5475762 | N89: =SUMIFS('Report Charges & Xfactors'!$M$10:$M$318,'Report Charges & Xfactors'!$D$10:$D$318,'AER - Calc Cost build up'!D89,'Report Charges & Xfactors'!$E$10:$E$318,'AER - Calc Cost build up'!E89) -> 833.0127724 | O89: 785.5475762 | P89: -47.46519621 | Q89: -0.05698015418
A90: ='AER - Inputs'!$A$137 -> 0 | B90: ='AER - Inputs'!$B$137 -> Ancillary Services | C90: ='AER - Inputs'!$C$137 -> Design related services | D90: ='AER - Inputs'!$D$137 -> Design Certification Fee | E90: ='AER - Inputs'!$E$137 -> Subdivision - Non Urban - Overhead - 1-5 poles | F90: ='AER - Inputs'!$F$137 -> Per Job | G90: ='AER - Inputs'!$G$137 -> Fee | H90: =MMULT('AER - Inputs'!$H490:$Y490,'AER - Inputs'!H$32:H$49)*'AER - Inputs'!$H843*'AER - Inputs'!$J843+('AER - Inputs'!$I843*'AER - Inputs'!H$20) -> 285.62 | I90: =MMULT('AER - Inputs'!$H490:$Y490,'AER - Inputs'!I$32:I$49)*'AER - Inputs'!$H843*'AER - Inputs'!$J843+('AER - Inputs'!$I843*'AER - Inputs'!I$20) -> 295.7118101 | J90: =MMULT('AER - Inputs'!$H490:$Y490,'AER - Inputs'!J$32:J$49)*'AER - Inputs'!$H843*'AER - Inputs'!$J843+('AER - Inputs'!$I843*'AER - Inputs'!J$20) -> 303.3840715 | K90: =MMULT('AER - Inputs'!$H490:$Y490,'AER - Inputs'!K$32:K$49)*'AER - Inputs'!$H843*'AER - Inputs'!$J843+('AER - Inputs'!$I843*'AER - Inputs'!K$20) -> 310.6688253 | L90: =MMULT('AER - Inputs'!$H490:$Y490,'AER - Inputs'!L$32:L$49)*'AER - Inputs'!$H843*'AER - Inputs'!$J843+('AER - Inputs'!$I843*'AER - Inputs'!L$20) -> 320.2066146 | M90: =MMULT('AER - Inputs'!$H490:$Y490,'AER - Inputs'!M$32:M$49)*'AER - Inputs'!$H843*'AER - Inputs'!$J843+('AER - Inputs'!$I843*'AER - Inputs'!M$20) -> 314.2190305 | N90: =SUMIFS('Report Charges & Xfactors'!$M$10:$M$318,'Report Charges & Xfactors'!$D$10:$D$318,'AER - Calc Cost build up'!D90,'Report Charges & Xfactors'!$E$10:$E$318,'AER - Calc Cost build up'!E90) -> 333.205109 | O90: 314.2190305 | P90: -18.98607848 | Q90: -0.05698015418
A91: ='AER - Inputs'!$A$138 -> 0 | B91: ='AER - Inputs'!$B$138 -> Ancillary Services | C91: ='AER - Inputs'!$C$138 -> Design related services | D91: ='AER - Inputs'!$D$138 -> Design Certification Fee | E91: ='AER - Inputs'!$E$138 -> Subdivision - Non Urban - Overhead - 6-10 poles | F91: ='AER - Inputs'!$F$138 -> Per Job | G91: ='AER - Inputs'!$G$138 -> Fee | H91: =MMULT('AER - Inputs'!$H491:$Y491,'AER - Inputs'!H$32:H$49)*'AER - Inputs'!$H844*'AER - Inputs'!$J844+('AER - Inputs'!$I844*'AER - Inputs'!H$20) -> 428.43 | I91: =MMULT('AER - Inputs'!$H491:$Y491,'AER - Inputs'!I$32:I$49)*'AER - Inputs'!$H844*'AER - Inputs'!$J844+('AER - Inputs'!$I844*'AER - Inputs'!I$20) -> 443.5677151 | J91: =MMULT('AER - Inputs'!$H491:$Y491,'AER - Inputs'!J$32:J$49)*'AER - Inputs'!$H844*'AER - Inputs'!$J844+('AER - Inputs'!$I844*'AER - Inputs'!J$20) -> 455.0761072 | K91: =MMULT('AER - Inputs'!$H491:$Y491,'AER - Inputs'!K$32:K$49)*'AER - Inputs'!$H844*'AER - Inputs'!$J844+('AER - Inputs'!$I844*'AER - Inputs'!K$20) -> 466.0032379 | L91: =MMULT('AER - Inputs'!$H491:$Y491,'AER - Inputs'!L$32:L$49)*'AER - Inputs'!$H844*'AER - Inputs'!$J844+('AER - Inputs'!$I844*'AER - Inputs'!L$20) -> 480.3099219 | M91: =MMULT('AER - Inputs'!$H491:$Y491,'AER - Inputs'!M$32:M$49)*'AER - Inputs'!$H844*'AER - Inputs'!$J844+('AER - Inputs'!$I844*'AER - Inputs'!M$20) -> 471.3285457 | N91: =SUMIFS('Report Charges & Xfactors'!$M$10:$M$318,'Report Charges & Xfactors'!$D$10:$D$318,'AER - Calc Cost build up'!D91,'Report Charges & Xfactors'!$E$10:$E$318,'AER - Calc Cost build up'!E91) -> 499.8076634 | O91: 471.3285457 | P91: -28.47911772 | Q91: -0.05698015418
A92: ='AER - Inputs'!$A$139 -> 0 | B92: ='AER - Inputs'!$B$139 -> Ancillary Services | C92: ='AER - Inputs'!$C$139 -> Design related services | D92: ='AER - Inputs'!$D$139 -> Design Certification Fee | E92: ='AER - Inputs'!$E$139 -> Subdivision - Non Urban - Underground - 11-40 lots | F92: ='AER - Inputs'!$F$139 -> Per Job | G92: ='AER - Inputs'!$G$139 -> Fee | H92: =MMULT('AER - Inputs'!$H492:$Y492,'AER - Inputs'!H$32:H$49)*'AER - Inputs'!$H845*'AER - Inputs'!$J845+('AER - Inputs'!$I845*'AER - Inputs'!H$20) -> 571.24 | I92: =MMULT('AER - Inputs'!$H492:$Y492,'AER - Inputs'!I$32:I$49)*'AER - Inputs'!$H845*'AER - Inputs'!$J845+('AER - Inputs'!$I845*'AER - Inputs'!I$20) -> 591.4236202 | J92: =MMULT('AER - Inputs'!$H492:$Y492,'AER - Inputs'!J$32:J$49)*'AER - Inputs'!$H845*'AER - Inputs'!$J845+('AER - Inputs'!$I845*'AER - Inputs'!J$20) -> 606.7681429 | K92: =MMULT('AER - Inputs'!$H492:$Y492,'AER - Inputs'!K$32:K$49)*'AER - Inputs'!$H845*'AER - Inputs'!$J845+('AER - Inputs'!$I845*'AER - Inputs'!K$20) -> 621.3376505 | L92: =MMULT('AER - Inputs'!$H492:$Y492,'AER - Inputs'!L$32:L$49)*'AER - Inputs'!$H845*'AER - Inputs'!$J845+('AER - Inputs'!$I845*'AER - Inputs'!L$20) -> 640.4132292 | M92: =MMULT('AER - Inputs'!$H492:$Y492,'AER - Inputs'!M$32:M$49)*'AER - Inputs'!$H845*'AER - Inputs'!$J845+('AER - Inputs'!$I845*'AER - Inputs'!M$20) -> 628.4380609 | N92: =SUMIFS('Report Charges & Xfactors'!$M$10:$M$318,'Report Charges & Xfactors'!$D$10:$D$318,'AER - Calc Cost build up'!D92,'Report Charges & Xfactors'!$E$10:$E$318,'AER - Calc Cost build up'!E92) -> 666.4102179 | O92: 628.4380609 | P92: -37.97215697 | Q92: -0.05698015418
A93: ='AER - Inputs'!$A$140 -> 0 | B93: ='AER - Inputs'!$B$140 -> Ancillary Services | C93: ='AER - Inputs'!$C$140 -> Design related services | D93: ='AER - Inputs'!$D$140 -> Design Certification Fee | E93: ='AER - Inputs'!$E$140 -> Subdivision - Non Urban - Underground - 1-5 lots | F93: ='AER - Inputs'!$F$140 -> Per Job | G93: ='AER - Inputs'!$G$140 -> Fee | H93: =MMULT('AER - Inputs'!$H493:$Y493,'AER - Inputs'!H$32:H$49)*'AER - Inputs'!$H846*'AER - Inputs'!$J846+('AER - Inputs'!$I846*'AER - Inputs'!H$20) -> 142.81 | I93: =MMULT('AER - Inputs'!$H493:$Y493,'AER - Inputs'!I$32:I$49)*'AER - Inputs'!$H846*'AER - Inputs'!$J846+('AER - Inputs'!$I846*'AER - Inputs'!I$20) -> 147.855905 | J93: =MMULT('AER - Inputs'!$H493:$Y493,'AER - Inputs'!J$32:J$49)*'AER - Inputs'!$H846*'AER - Inputs'!$J846+('AER - Inputs'!$I846*'AER - Inputs'!J$20) -> 151.6920357 | K93: =MMULT('AER - Inputs'!$H493:$Y493,'AER - Inputs'!K$32:K$49)*'AER - Inputs'!$H846*'AER - Inputs'!$J846+('AER - Inputs'!$I846*'AER - Inputs'!K$20) -> 155.3344126 | L93: =MMULT('AER - Inputs'!$H493:$Y493,'AER - Inputs'!L$32:L$49)*'AER - Inputs'!$H846*'AER - Inputs'!$J846+('AER - Inputs'!$I846*'AER - Inputs'!L$20) -> 160.1033073 | M93: =MMULT('AER - Inputs'!$H493:$Y493,'AER - Inputs'!M$32:M$49)*'AER - Inputs'!$H846*'AER - Inputs'!$J846+('AER - Inputs'!$I846*'AER - Inputs'!M$20) -> 157.1095152 | N93: =SUMIFS('Report Charges & Xfactors'!$M$10:$M$318,'Report Charges & Xfactors'!$D$10:$D$318,'AER - Calc Cost build up'!D93,'Report Charges & Xfactors'!$E$10:$E$318,'AER - Calc Cost build up'!E93) -> 166.6025545 | O93: 157.1095152 | P93: -9.493039241 | Q93: -0.05698015418
A94: ='AER - Inputs'!$A$141 -> 0 | B94: ='AER - Inputs'!$B$141 -> Ancillary Services | C94: ='AER - Inputs'!$C$141 -> Design related services | D94: ='AER - Inputs'!$D$141 -> Design Certification Fee | E94: ='AER - Inputs'!$E$141 -> Subdivision - Non Urban - Underground - 41+ lots | F94: ='AER - Inputs'!$F$141 -> Per Job | G94: ='AER - Inputs'!$G$141 -> Fee | H94: =MMULT('AER - Inputs'!$H494:$Y494,'AER - Inputs'!H$32:H$49)*'AER - Inputs'!$H847*'AER - Inputs'!$J847+('AER - Inputs'!$I847*'AER - Inputs'!H$20) -> 571.24 | I94: =MMULT('AER - Inputs'!$H494:$Y494,'AER - Inputs'!I$32:I$49)*'AER - Inputs'!$H847*'AER - Inputs'!$J847+('AER - Inputs'!$I847*'AER - Inputs'!I$20) -> 591.4236202 | J94: =MMULT('AER - Inputs'!$H494:$Y494,'AER - Inputs'!J$32:J$49)*'AER - Inputs'!$H847*'AER - Inputs'!$J847+('AER - Inputs'!$I847*'AER - Inputs'!J$20) -> 606.7681429 | K94: =MMULT('AER - Inputs'!$H494:$Y494,'AER - Inputs'!K$32:K$49)*'AER - Inputs'!$H847*'AER - Inputs'!$J847+('AER - Inputs'!$I847*'AER - Inputs'!K$20) -> 621.3376505 | L94: =MMULT('AER - Inputs'!$H494:$Y494,'AER - Inputs'!L$32:L$49)*'AER - Inputs'!$H847*'AER - Inputs'!$J847+('AER - Inputs'!$I847*'AER - Inputs'!L$20) -> 640.4132292 | M94: =MMULT('AER - Inputs'!$H494:$Y494,'AER - Inputs'!M$32:M$49)*'AER - Inputs'!$H847*'AER - Inputs'!$J847+('AER - Inputs'!$I847*'AER - Inputs'!M$20) -> 628.4380609 | N94: =SUMIFS('Report Charges & Xfactors'!$M$10:$M$318,'Report Charges & Xfactors'!$D$10:$D$318,'AER - Calc Cost build up'!D94,'Report Charges & Xfactors'!$E$10:$E$318,'AER - Calc Cost build up'!E94) -> 666.4102179 | O94: 628.4380609 | P94: -37.97215697 | Q94: -0.05698015418
A95: ='AER - Inputs'!$A$142 -> 0 | B95: ='AER - Inputs'!$B$142 -> Ancillary Services | C95: ='AER - Inputs'!$C$142 -> Design related services | D95: ='AER - Inputs'!$D$142 -> Design Certification Fee | E95: ='AER - Inputs'!$E$142 -> Subdivision - Non Urban - Underground - 6-10 lots | F95: ='AER - Inputs'!$F$142 -> Per Job | G95: ='AER - Inputs'!$G$142 -> Fee | H95: =MMULT('AER - Inputs'!$H495:$Y495,'AER - Inputs'!H$32:H$49)*'AER - Inputs'!$H848*'AER - Inputs'!$J848+('AER - Inputs'!$I848*'AER - Inputs'!H$20) -> 428.43 | I95: =MMULT('AER - Inputs'!$H495:$Y495,'AER - Inputs'!I$32:I$49)*'AER - Inputs'!$H848*'AER - Inputs'!$J848+('AER - Inputs'!$I848*'AER - Inputs'!I$20) -> 443.5677151 | J95: =MMULT('AER - Inputs'!$H495:$Y495,'AER - Inputs'!J$32:J$49)*'AER - Inputs'!$H848*'AER - Inputs'!$J848+('AER - Inputs'!$I848*'AER - Inputs'!J$20) -> 455.0761072 | K95: =MMULT('AER - Inputs'!$H495:$Y495,'AER - Inputs'!K$32:K$49)*'AER - Inputs'!$H848*'AER - Inputs'!$J848+('AER - Inputs'!$I848*'AER - Inputs'!K$20) -> 466.0032379 | L95: =MMULT('AER - Inputs'!$H495:$Y495,'AER - Inputs'!L$32:L$49)*'AER - Inputs'!$H848*'AER - Inputs'!$J848+('AER - Inputs'!$I848*'AER - Inputs'!L$20) -> 480.3099219 | M95: =MMULT('AER - Inputs'!$H495:$Y495,'AER - Inputs'!M$32:M$49)*'AER - Inputs'!$H848*'AER - Inputs'!$J848+('AER - Inputs'!$I848*'AER - Inputs'!M$20) -> 471.3285457 | N95: =SUMIFS('Report Charges & Xfactors'!$M$10:$M$318,'Report Charges & Xfactors'!$D$10:$D$318,'AER - Calc Cost build up'!D95,'Report Charges & Xfactors'!$E$10:$E$318,'AER - Calc Cost build up'!E95) -> 499.8076634 | O95: 471.3285457 | P95: -28.47911772 | Q95: -0.05698015418
A96: ='AER - Inputs'!$A$143 -> 0 | B96: ='AER - Inputs'!$B$143 -> Ancillary Services | C96: ='AER - Inputs'!$C$143 -> Design related services | D96: ='AER - Inputs'!$D$143 -> Design Certification Fee | E96: ='AER - Inputs'!$E$143 -> Subdivision - URD - Underground - 11-40 lots | F96: ='AER - Inputs'!$F$143 -> Per Job | G96: ='AER - Inputs'!$G$143 -> Fee | H96: =MMULT('AER - Inputs'!$H496:$Y496,'AER - Inputs'!H$32:H$49)*'AER - Inputs'!$H849*'AER - Inputs'!$J849+('AER - Inputs'!$I849*'AER - Inputs'!H$20) -> 714.05 | I96: =MMULT('AER - Inputs'!$H496:$Y496,'AER - Inputs'!I$32:I$49)*'AER - Inputs'!$H849*'AER - Inputs'!$J849+('AER - Inputs'!$I849*'AER - Inputs'!I$20) -> 739.2795252 | J96: =MMULT('AER - Inputs'!$H496:$Y496,'AER - Inputs'!J$32:J$49)*'AER - Inputs'!$H849*'AER - Inputs'!$J849+('AER - Inputs'!$I849*'AER - Inputs'!J$20) -> 758.4601787 | K96: =MMULT('AER - Inputs'!$H496:$Y496,'AER - Inputs'!K$32:K$49)*'AER - Inputs'!$H849*'AER - Inputs'!$J849+('AER - Inputs'!$I849*'AER - Inputs'!K$20) -> 776.6720631 | L96: =MMULT('AER - Inputs'!$H496:$Y496,'AER - Inputs'!L$32:L$49)*'AER - Inputs'!$H849*'AER - Inputs'!$J849+('AER - Inputs'!$I849*'AER - Inputs'!L$20) -> 800.5165365 | M96: =MMULT('AER - Inputs'!$H496:$Y496,'AER - Inputs'!M$32:M$49)*'AER - Inputs'!$H849*'AER - Inputs'!$J849+('AER - Inputs'!$I849*'AER - Inputs'!M$20) -> 785.5475762 | N96: =SUMIFS('Report Charges & Xfactors'!$M$10:$M$318,'Report Charges & Xfactors'!$D$10:$D$318,'AER - Calc Cost build up'!D96,'Report Charges & Xfactors'!$E$10:$E$318,'AER - Calc Cost build up'!E96) -> 833.0127724 | O96: 785.5475762 | P96: -47.46519621 | Q96: -0.05698015418
A97: ='AER - Inputs'!$A$144 -> 0 | B97: ='AER - Inputs'!$B$144 -> Ancillary Services | C97: ='AER - Inputs'!$C$144 -> Design related services | D97: ='AER - Inputs'!$D$144 -> Design Certification Fee | E97: ='AER - Inputs'!$E$144 -> Subdivision - URD - Underground - 1-5 lots | F97: ='AER - Inputs'!$F$144 -> Per Job | G97: ='AER - Inputs'!$G$144 -> Fee | H97: =MMULT('AER - Inputs'!$H497:$Y497,'AER - Inputs'!H$32:H$49)*'AER - Inputs'!$H850*'AER - Inputs'!$J850+('AER - Inputs'!$I850*'AER - Inputs'!H$20) -> 285.62 | I97: =MMULT('AER - Inputs'!$H497:$Y497,'AER - Inputs'!I$32:I$49)*'AER - Inputs'!$H850*'AER - Inputs'!$J850+('AER - Inputs'!$I850*'AER - Inputs'!I$20) -> 295.7118101 | J97: =MMULT('AER - Inputs'!$H497:$Y497,'AER - Inputs'!J$32:J$49)*'AER - Inputs'!$H850*'AER - Inputs'!$J850+('AER - Inputs'!$I850*'AER - Inputs'!J$20) -> 303.3840715 | K97: =MMULT('AER - Inputs'!$H497:$Y497,'AER - Inputs'!K$32:K$49)*'AER - Inputs'!$H850*'AER - Inputs'!$J850+('AER - Inputs'!$I850*'AER - Inputs'!K$20) -> 310.6688253 | L97: =MMULT('AER - Inputs'!$H497:$Y497,'AER - Inputs'!L$32:L$49)*'AER - Inputs'!$H850*'AER - Inputs'!$J850+('AER - Inputs'!$I850*'AER - Inputs'!L$20) -> 320.2066146 | M97: =MMULT('AER - Inputs'!$H497:$Y497,'AER - Inputs'!M$32:M$49)*'AER - Inputs'!$H850*'AER - Inputs'!$J850+('AER - Inputs'!$I850*'AER - Inputs'!M$20) -> 314.2190305 | N97: =SUMIFS('Report Charges & Xfactors'!$M$10:$M$318,'Report Charges & Xfactors'!$D$10:$D$318,'AER - Calc Cost build up'!D97,'Report Charges & Xfactors'!$E$10:$E$318,'AER - Calc Cost build up'!E97) -> 333.205109 | O97: 314.2190305 | P97: -18.98607848 | Q97: -0.05698015418
A98: ='AER - Inputs'!$A$145 -> 0 | B98: ='AER - Inputs'!$B$145 -> Ancillary Services | C98: ='AER - Inputs'!$C$145 -> Design related services | D98: ='AER - Inputs'!$D$145 -> Design Certification Fee | E98: ='AER - Inputs'!$E$145 -> Subdivision - URD - Underground - 41+ lots | F98: ='AER - Inputs'!$F$145 -> Per Job | G98: ='AER - Inputs'!$G$145 -> Fee | H98: =MMULT('AER - Inputs'!$H498:$Y498,'AER - Inputs'!H$32:H$49)*'AER - Inputs'!$H851*'AER - Inputs'!$J851+('AER - Inputs'!$I851*'AER - Inputs'!H$20) -> 856.86 | I98: =MMULT('AER - Inputs'!$H498:$Y498,'AER - Inputs'!I$32:I$49)*'AER - Inputs'!$H851*'AER - Inputs'!$J851+('AER - Inputs'!$I851*'AER - Inputs'!I$20) -> 887.1354302 | J98: =MMULT('AER - Inputs'!$H498:$Y498,'AER - Inputs'!J$32:J$49)*'AER - Inputs'!$H851*'AER - Inputs'!$J851+('AER - Inputs'!$I851*'AER - Inputs'!J$20) -> 910.1522144 | K98: =MMULT('AER - Inputs'!$H498:$Y498,'AER - Inputs'!K$32:K$49)*'AER - Inputs'!$H851*'AER - Inputs'!$J851+('AER - Inputs'!$I851*'AER - Inputs'!K$20) -> 932.0064758 | L98: =MMULT('AER - Inputs'!$H498:$Y498,'AER - Inputs'!L$32:L$49)*'AER - Inputs'!$H851*'AER - Inputs'!$J851+('AER - Inputs'!$I851*'AER - Inputs'!L$20) -> 960.6198438 | M98: =MMULT('AER - Inputs'!$H498:$Y498,'AER - Inputs'!M$32:M$49)*'AER - Inputs'!$H851*'AER - Inputs'!$J851+('AER - Inputs'!$I851*'AER - Inputs'!M$20) -> 942.6570914 | N98: =SUMIFS('Report Charges & Xfactors'!$M$10:$M$318,'Report Charges & Xfactors'!$D$10:$D$318,'AER - Calc Cost build up'!D98,'Report Charges & Xfactors'!$E$10:$E$318,'AER - Calc Cost build up'!E98) -> 999.6153269 | O98: 942.6570914 | P98: -56.95823545 | Q98: -0.05698015418
A99: ='AER - Inputs'!$A$146 -> 0 | B99: ='AER - Inputs'!$B$146 -> Ancillary Services | C99: ='AER - Inputs'!$C$146 -> Design related services | D99: ='AER - Inputs'!$D$146 -> Design Certification Fee | E99: ='AER - Inputs'!$E$146 -> Subdivision - URD - Underground - 6-10 lots | F99: ='AER - Inputs'!$F$146 -> Per Job | G99: ='AER - Inputs'!$G$146 -> Fee | H99: =MMULT('AER - Inputs'!$H499:$Y499,'AER - Inputs'!H$32:H$49)*'AER - Inputs'!$H852*'AER - Inputs'!$J852+('AER - Inputs'!$I852*'AER - Inputs'!H$20) -> 428.43 | I99: =MMULT('AER - Inputs'!$H499:$Y499,'AER - Inputs'!I$32:I$49)*'AER - Inputs'!$H852*'AER - Inputs'!$J852+('AER - Inputs'!$I852*'AER - Inputs'!I$20) -> 443.5677151 | J99: =MMULT('AER - Inputs'!$H499:$Y499,'AER - Inputs'!J$32:J$49)*'AER - Inputs'!$H852*'AER - Inputs'!$J852+('AER - Inputs'!$I852*'AER - Inputs'!J$20) -> 455.0761072 | K99: =MMULT('AER - Inputs'!$H499:$Y499,'AER - Inputs'!K$32:K$49)*'AER - Inputs'!$H852*'AER - Inputs'!$J852+('AER - Inputs'!$I852*'AER - Inputs'!K$20) -> 466.0032379 | L99: =MMULT('AER - Inputs'!$H499:$Y499,'AER - Inputs'!L$32:L$49)*'AER - Inputs'!$H852*'AER - Inputs'!$J852+('AER - Inputs'!$I852*'AER - Inputs'!L$20) -> 480.3099219 | M99: =MMULT('AER - Inputs'!$H499:$Y499,'AER - Inputs'!M$32:M$49)*'AER - Inputs'!$H852*'AER - Inputs'!$J852+('AER - Inputs'!$I852*'AER - Inputs'!M$20) -> 471.3285457 | N99: =SUMIFS('Report Charges & Xfactors'!$M$10:$M$318,'Report Charges & Xfactors'!$D$10:$D$318,'AER - Calc Cost build up'!D99,'Report Charges & Xfactors'!$E$10:$E$318,'AER - Calc Cost build up'!E99) -> 499.8076634 | O99: 471.3285457 | P99: -28.47911772 | Q99: -0.05698015418
A100: ='AER - Inputs'!$A$147 -> 0 | B100: ='AER - Inputs'!$B$147 -> Ancillary Services | C100: ='AER - Inputs'!$C$147 -> Design related services | D100: ='AER - Inputs'!$D$147 -> Design Information Fee | E100: ='AER - Inputs'!$E$147 -> Asset Relocation - Designer | F100: ='AER - Inputs'!$F$147 -> Per Hour | G100: ='AER - Inputs'!$G$147 -> Quote | H100: =MMULT('AER - Inputs'!$H500:$Y500,'AER - Inputs'!H$32:H$49)*'AER - Inputs'!$H853*'AER - Inputs'!$J853+('AER - Inputs'!$I853*'AER - Inputs'!H$20) -> 142.81 | I100: =MMULT('AER - Inputs'!$H500:$Y500,'AER - Inputs'!I$32:I$49)*'AER - Inputs'!$H853*'AER - Inputs'!$J853+('AER - Inputs'!$I853*'AER - Inputs'!I$20) -> 147.855905 | J100: =MMULT('AER - Inputs'!$H500:$Y500,'AER - Inputs'!J$32:J$49)*'AER - Inputs'!$H853*'AER - Inputs'!$J853+('AER - Inputs'!$I853*'AER - Inputs'!J$20) -> 151.6920357 | K100: =MMULT('AER - Inputs'!$H500:$Y500,'AER - Inputs'!K$32:K$49)*'AER - Inputs'!$H853*'AER - Inputs'!$J853+('AER - Inputs'!$I853*'AER - Inputs'!K$20) -> 155.3344126 | L100: =MMULT('AER - Inputs'!$H500:$Y500,'AER - Inputs'!L$32:L$49)*'AER - Inputs'!$H853*'AER - Inputs'!$J853+('AER - Inputs'!$I853*'AER - Inputs'!L$20) -> 160.1033073 | M100: =MMULT('AER - Inputs'!$H500:$Y500,'AER - Inputs'!M$32:M$49)*'AER - Inputs'!$H853*'AER - Inputs'!$J853+('AER - Inputs'!$I853*'AER - Inputs'!M$20) -> 157.1095152 | N100: =SUMIFS('Report Charges & Xfactors'!$M$10:$M$318,'Report Charges & Xfactors'!$D$10:$D$318,'AER - Calc Cost build up'!D100,'Report Charges & Xfactors'!$E$10:$E$318,'AER - Calc Cost build up'!E100) -> 166.6025545 | O100: 157.1095152 | P100: -9.493039241 | Q100: -0.05698015418
A101: ='AER - Inputs'!$A$148 -> 0 | B101: ='AER - Inputs'!$B$148 -> Ancillary Services | C101: ='AER - Inputs'!$C$148 -> Design related services | D101: ='AER - Inputs'!$D$148 -> Design Information Fee | E101: ='AER - Inputs'!$E$148 -> Asset Relocation - Engineer | F101: ='AER - Inputs'!$F$148 -> Per Hour | G101: ='AER - Inputs'!$G$148 -> Quote | H101: =MMULT('AER - Inputs'!$H501:$Y501,'AER - Inputs'!H$32:H$49)*'AER - Inputs'!$H854*'AER - Inputs'!$J854+('AER - Inputs'!$I854*'AER - Inputs'!H$20) -> 142.81 | I101: =MMULT('AER - Inputs'!$H501:$Y501,'AER - Inputs'!I$32:I$49)*'AER - Inputs'!$H854*'AER - Inputs'!$J854+('AER - Inputs'!$I854*'AER - Inputs'!I$20) -> 147.855905 | J101: =MMULT('AER - Inputs'!$H501:$Y501,'AER - Inputs'!J$32:J$49)*'AER - Inputs'!$H854*'AER - Inputs'!$J854+('AER - Inputs'!$I854*'AER - Inputs'!J$20) -> 151.6920357 | K101: =MMULT('AER - Inputs'!$H501:$Y501,'AER - Inputs'!K$32:K$49)*'AER - Inputs'!$H854*'AER - Inputs'!$J854+('AER - Inputs'!$I854*'AER - Inputs'!K$20) -> 155.3344126 | L101: =MMULT('AER - Inputs'!$H501:$Y501,'AER - Inputs'!L$32:L$49)*'AER - Inputs'!$H854*'AER - Inputs'!$J854+('AER - Inputs'!$I854*'AER - Inputs'!L$20) -> 160.1033073 | M101: =MMULT('AER - Inputs'!$H501:$Y501,'AER - Inputs'!M$32:M$49)*'AER - Inputs'!$H854*'AER - Inputs'!$J854+('AER - Inputs'!$I854*'AER - Inputs'!M$20) -> 157.1095152 | N101: =SUMIFS('Report Charges & Xfactors'!$M$10:$M$318,'Report Charges & Xfactors'!$D$10:$D$318,'AER - Calc Cost build up'!D101,'Report Charges & Xfactors'!$E$10:$E$318,'AER - Calc Cost build up'!E101) -> 166.6025545 | O101: 157.1095152 | P101: -9.493039241 | Q101: -0.05698015418
A102: ='AER - Inputs'!$A$149 -> 0 | B102: ='AER - Inputs'!$B$149 -> Ancillary Services | C102: ='AER - Inputs'!$C$149 -> Design related services | D102: ='AER - Inputs'!$D$149 -> Design Information Fee | E102: ='AER - Inputs'!$E$149 -> Connection of Load - Industrial & Commercial - <= 200A/Phase (LV) | F102: ='AER - Inputs'!$F$149 -> Per Hour | G102: ='AER - Inputs'!$G$149 -> Quote | H102: =MMULT('AER - Inputs'!$H502:$Y502,'AER - Inputs'!H$32:H$49)*'AER - Inputs'!$H855*'AER - Inputs'!$J855+('AER - Inputs'!$I855*'AER - Inputs'!H$20) -> 142.81 | I102: =MMULT('AER - Inputs'!$H502:$Y502,'AER - Inputs'!I$32:I$49)*'AER - Inputs'!$H855*'AER - Inputs'!$J855+('AER - Inputs'!$I855*'AER - Inputs'!I$20) -> 147.855905 | J102: =MMULT('AER - Inputs'!$H502:$Y502,'AER - Inputs'!J$32:J$49)*'AER - Inputs'!$H855*'AER - Inputs'!$J855+('AER - Inputs'!$I855*'AER - Inputs'!J$20) -> 151.6920357 | K102: =MMULT('AER - Inputs'!$H502:$Y502,'AER - Inputs'!K$32:K$49)*'AER - Inputs'!$H855*'AER - Inputs'!$J855+('AER - Inputs'!$I855*'AER - Inputs'!K$20) -> 155.3344126 | L102: =MMULT('AER - Inputs'!$H502:$Y502,'AER - Inputs'!L$32:L$49)*'AER - Inputs'!$H855*'AER - Inputs'!$J855+('AER - Inputs'!$I855*'AER - Inputs'!L$20) -> 160.1033073 | M102: =MMULT('AER - Inputs'!$H502:$Y502,'AER - Inputs'!M$32:M$49)*'AER - Inputs'!$H855*'AER - Inputs'!$J855+('AER - Inputs'!$I855*'AER - Inputs'!M$20) -> 157.1095152 | N102: =SUMIFS('Report Charges & Xfactors'!$M$10:$M$318,'Report Charges & Xfactors'!$D$10:$D$318,'AER - Calc Cost build up'!D102,'Report Charges & Xfactors'!$E$10:$E$318,'AER - Calc Cost build up'!E102) -> 166.6025545 | O102: 157.1095152 | P102: -9.493039241 | Q102: -0.05698015418
A103: ='AER - Inputs'!$A$150 -> 0 | B103: ='AER - Inputs'!$B$150 -> Ancillary Services | C103: ='AER - Inputs'!$C$150 -> Design related services | D103: ='AER - Inputs'!$D$150 -> Design Information Fee | E103: ='AER - Inputs'!$E$150 -> Connection of Load - Industrial & Commercial - <= 700A/Phase (LV) | F103: ='AER - Inputs'!$F$150 -> Per Hour | G103: ='AER - Inputs'!$G$150 -> Quote | H103: =MMULT('AER - Inputs'!$H503:$Y503,'AER - Inputs'!H$32:H$49)*'AER - Inputs'!$H856*'AER - Inputs'!$J856+('AER - Inputs'!$I856*'AER - Inputs'!H$20) -> 142.81 | I103: =MMULT('AER - Inputs'!$H503:$Y503,'AER - Inputs'!I$32:I$49)*'AER - Inputs'!$H856*'AER - Inputs'!$J856+('AER - Inputs'!$I856*'AER - Inputs'!I$20) -> 147.855905 | J103: =MMULT('AER - Inputs'!$H503:$Y503,'AER - Inputs'!J$32:J$49)*'AER - Inputs'!$H856*'AER - Inputs'!$J856+('AER - Inputs'!$I856*'AER - Inputs'!J$20) -> 151.6920357 | K103: =MMULT('AER - Inputs'!$H503:$Y503,'AER - Inputs'!K$32:K$49)*'AER - Inputs'!$H856*'AER - Inputs'!$J856+('AER - Inputs'!$I856*'AER - Inputs'!K$20) -> 155.3344126 | L103: =MMULT('AER - Inputs'!$H503:$Y503,'AER - Inputs'!L$32:L$49)*'AER - Inputs'!$H856*'AER - Inputs'!$J856+('AER - Inputs'!$I856*'AER - Inputs'!L$20) -> 160.1033073 | M103: =MMULT('AER - Inputs'!$H503:$Y503,'AER - Inputs'!M$32:M$49)*'AER - Inputs'!$H856*'AER - Inputs'!$J856+('AER - Inputs'!$I856*'AER - Inputs'!M$20) -> 157.1095152 | N103: =SUMIFS('Report Charges & Xfactors'!$M$10:$M$318,'Report Charges & Xfactors'!$D$10:$D$318,'AER - Calc Cost build up'!D103,'Report Charges & Xfactors'!$E$10:$E$318,'AER - Calc Cost build up'!E103) -> 166.6025545 | O103: 157.1095152 | P103: -9.493039241 | Q103: -0.05698015418
A104: ='AER - Inputs'!$A$151 -> 0 | B104: ='AER - Inputs'!$B$151 -> Ancillary Services | C104: ='AER - Inputs'!$C$151 -> Design related services | D104: ='AER - Inputs'!$D$151 -> Design Information Fee | E104: ='AER - Inputs'!$E$151 -> Connection of Load - Industrial & Commercial - > 700A/Phase (LV) | F104: ='AER - Inputs'!$F$151 -> Per Hour | G104: ='AER - Inputs'!$G$151 -> Quote | H104: =MMULT('AER - Inputs'!$H504:$Y504,'AER - Inputs'!H$32:H$49)*'AER - Inputs'!$H857*'AER - Inputs'!$J857+('AER - Inputs'!$I857*'AER - Inputs'!H$20) -> 142.81 | I104: =MMULT('AER - Inputs'!$H504:$Y504,'AER - Inputs'!I$32:I$49)*'AER - Inputs'!$H857*'AER - Inputs'!$J857+('AER - Inputs'!$I857*'AER - Inputs'!I$20) -> 147.855905 | J104: =MMULT('AER - Inputs'!$H504:$Y504,'AER - Inputs'!J$32:J$49)*'AER - Inputs'!$H857*'AER - Inputs'!$J857+('AER - Inputs'!$I857*'AER - Inputs'!J$20) -> 151.6920357 | K104: =MMULT('AER - Inputs'!$H504:$Y504,'AER - Inputs'!K$32:K$49)*'AER - Inputs'!$H857*'AER - Inputs'!$J857+('AER - Inputs'!$I857*'AER - Inputs'!K$20) -> 155.3344126 | L104: =MMULT('AER - Inputs'!$H504:$Y504,'AER - Inputs'!L$32:L$49)*'AER - Inputs'!$H857*'AER - Inputs'!$J857+('AER - Inputs'!$I857*'AER - Inputs'!L$20) -> 160.1033073 | M104: =MMULT('AER - Inputs'!$H504:$Y504,'AER - Inputs'!M$32:M$49)*'AER - Inputs'!$H857*'AER - Inputs'!$J857+('AER - Inputs'!$I857*'AER - Inputs'!M$20) -> 157.1095152 | N104: =SUMIFS('Report Charges & Xfactors'!$M$10:$M$318,'Report Charges & Xfactors'!$D$10:$D$318,'AER - Calc Cost build up'!D104,'Report Charges & Xfactors'!$E$10:$E$318,'AER - Calc Cost build up'!E104) -> 166.6025545 | O104: 157.1095152 | P104: -9.493039241 | Q104: -0.05698015418
A105: ='AER - Inputs'!$A$152 -> 0 | B105: ='AER - Inputs'!$B$152 -> Ancillary Services | C105: ='AER - Inputs'!$C$152 -> Design related services | D105: ='AER - Inputs'!$D$152 -> Design Information Fee | E105: ='AER - Inputs'!$E$152 -> Connection of Load - Industrial & Commercial - HV Customer | F105: ='AER - Inputs'!$F$152 -> Per Hour | G105: ='AER - Inputs'!$G$152 -> Quote | H105: =MMULT('AER - Inputs'!$H505:$Y505,'AER - Inputs'!H$32:H$49)*'AER - Inputs'!$H858*'AER - Inputs'!$J858+('AER - Inputs'!$I858*'AER - Inputs'!H$20) -> 142.81 | I105: =MMULT('AER - Inputs'!$H505:$Y505,'AER - Inputs'!I$32:I$49)*'AER - Inputs'!$H858*'AER - Inputs'!$J858+('AER - Inputs'!$I858*'AER - Inputs'!I$20) -> 147.855905 | J105: =MMULT('AER - Inputs'!$H505:$Y505,'AER - Inputs'!J$32:J$49)*'AER - Inputs'!$H858*'AER - Inputs'!$J858+('AER - Inputs'!$I858*'AER - Inputs'!J$20) -> 151.6920357 | K105: =MMULT('AER - Inputs'!$H505:$Y505,'AER - Inputs'!K$32:K$49)*'AER - Inputs'!$H858*'AER - Inputs'!$J858+('AER - Inputs'!$I858*'AER - Inputs'!K$20) -> 155.3344126 | L105: =MMULT('AER - Inputs'!$H505:$Y505,'AER - Inputs'!L$32:L$49)*'AER - Inputs'!$H858*'AER - Inputs'!$J858+('AER - Inputs'!$I858*'AER - Inputs'!L$20) -> 160.1033073 | M105: =MMULT('AER - Inputs'!$H505:$Y505,'AER - Inputs'!M$32:M$49)*'AER - Inputs'!$H858*'AER - Inputs'!$J858+('AER - Inputs'!$I858*'AER - Inputs'!M$20) -> 157.1095152 | N105: =SUMIFS('Report Charges & Xfactors'!$M$10:$M$318,'Report Charges & Xfactors'!$D$10:$D$318,'AER - Calc Cost build up'!D105,'Report Charges & Xfactors'!$E$10:$E$318,'AER - Calc Cost build up'!E105) -> 166.6025545 | O105: 157.1095152 | P105: -9.493039241 | Q105: -0.05698015418
A106: ='AER - Inputs'!$A$153 -> 0 | B106: ='AER - Inputs'!$B$153 -> Ancillary Services | C106: ='AER - Inputs'!$C$153 -> Design related services | D106: ='AER - Inputs'!$D$153 -> Design Information Fee | E106: ='AER - Inputs'!$E$153 -> Connection of Load - Industrial & Commercial - Transmission | F106: ='AER - Inputs'!$F$153 -> Per Hour | G106: ='AER - Inputs'!$G$153 -> Quote | H106: =MMULT('AER - Inputs'!$H506:$Y506,'AER - Inputs'!H$32:H$49)*'AER - Inputs'!$H859*'AER - Inputs'!$J859+('AER - Inputs'!$I859*'AER - Inputs'!H$20) -> 142.81 | I106: =MMULT('AER - Inputs'!$H506:$Y506,'AER - Inputs'!I$32:I$49)*'AER - Inputs'!$H859*'AER - Inputs'!$J859+('AER - Inputs'!$I859*'AER - Inputs'!I$20) -> 147.855905 | J106: =MMULT('AER - Inputs'!$H506:$Y506,'AER - Inputs'!J$32:J$49)*'AER - Inputs'!$H859*'AER - Inputs'!$J859+('AER - Inputs'!$I859*'AER - Inputs'!J$20) -> 151.6920357 | K106: =MMULT('AER - Inputs'!$H506:$Y506,'AER - Inputs'!K$32:K$49)*'AER - Inputs'!$H859*'AER - Inputs'!$J859+('AER - Inputs'!$I859*'AER - Inputs'!K$20) -> 155.3344126 | L106: =MMULT('AER - Inputs'!$H506:$Y506,'AER - Inputs'!L$32:L$49)*'AER - Inputs'!$H859*'AER - Inputs'!$J859+('AER - Inputs'!$I859*'AER - Inputs'!L$20) -> 160.1033073 | M106: =MMULT('AER - Inputs'!$H506:$Y506,'AER - Inputs'!M$32:M$49)*'AER - Inputs'!$H859*'AER - Inputs'!$J859+('AER - Inputs'!$I859*'AER - Inputs'!M$20) -> 157.1095152 | N106: =SUMIFS('Report Charges & Xfactors'!$M$10:$M$318,'Report Charges & Xfactors'!$D$10:$D$318,'AER - Calc Cost build up'!D106,'Report Charges & Xfactors'!$E$10:$E$318,'AER - Calc Cost build up'!E106) -> 166.6025545 | O106: 157.1095152 | P106: -9.493039241 | Q106: -0.05698015418
A107: ='AER - Inputs'!$A$154 -> 0 | B107: ='AER - Inputs'!$B$154 -> Ancillary Services | C107: ='AER - Inputs'!$C$154 -> Design related services | D107: ='AER - Inputs'!$D$154 -> Design Information Fee | E107: ='AER - Inputs'!$E$154 -> Connection of Load - Multi-Dwelling - <= 20 units | F107: ='AER - Inputs'!$F$154 -> Per Hour | G107: ='AER - Inputs'!$G$154 -> Quote | H107: =MMULT('AER - Inputs'!$H507:$Y507,'AER - Inputs'!H$32:H$49)*'AER - Inputs'!$H860*'AER - Inputs'!$J860+('AER - Inputs'!$I860*'AER - Inputs'!H$20) -> 142.81 | I107: =MMULT('AER - Inputs'!$H507:$Y507,'AER - Inputs'!I$32:I$49)*'AER - Inputs'!$H860*'AER - Inputs'!$J860+('AER - Inputs'!$I860*'AER - Inputs'!I$20) -> 147.855905 | J107: =MMULT('AER - Inputs'!$H507:$Y507,'AER - Inputs'!J$32:J$49)*'AER - Inputs'!$H860*'AER - Inputs'!$J860+('AER - Inputs'!$I860*'AER - Inputs'!J$20) -> 151.6920357 | K107: =MMULT('AER - Inputs'!$H507:$Y507,'AER - Inputs'!K$32:K$49)*'AER - Inputs'!$H860*'AER - Inputs'!$J860+('AER - Inputs'!$I860*'AER - Inputs'!K$20) -> 155.3344126 | L107: =MMULT('AER - Inputs'!$H507:$Y507,'AER - Inputs'!L$32:L$49)*'AER - Inputs'!$H860*'AER - Inputs'!$J860+('AER - Inputs'!$I860*'AER - Inputs'!L$20) -> 160.1033073 | M107: =MMULT('AER - Inputs'!$H507:$Y507,'AER - Inputs'!M$32:M$49)*'AER - Inputs'!$H860*'AER - Inputs'!$J860+('AER - Inputs'!$I860*'AER - Inputs'!M$20) -> 157.1095152 | N107: =SUMIFS('Report Charges & Xfactors'!$M$10:$M$318,'Report Charges & Xfactors'!$D$10:$D$318,'AER - Calc Cost build up'!D107,'Report Charges & Xfactors'!$E$10:$E$318,'AER - Calc Cost build up'!E107) -> 166.6025545 | O107: 157.1095152 | P107: -9.493039241 | Q107: -0.05698015418
A108: ='AER - Inputs'!$A$155 -> 0 | B108: ='AER - Inputs'!$B$155 -> Ancillary Services | C108: ='AER - Inputs'!$C$155 -> Design related services | D108: ='AER - Inputs'!$D$155 -> Design Information Fee | E108: ='AER - Inputs'!$E$155 -> Connection of Load - Multi-Dwelling - <= 40 units | F108: ='AER - Inputs'!$F$155 -> Per Hour | G108: ='AER - Inputs'!$G$155 -> Quote | H108: =MMULT('AER - Inputs'!$H508:$Y508,'AER - Inputs'!H$32:H$49)*'AER - Inputs'!$H861*'AER - Inputs'!$J861+('AER - Inputs'!$I861*'AER - Inputs'!H$20) -> 142.81 | I108: =MMULT('AER - Inputs'!$H508:$Y508,'AER - Inputs'!I$32:I$49)*'AER - Inputs'!$H861*'AER - Inputs'!$J861+('AER - Inputs'!$I861*'AER - Inputs'!I$20) -> 147.855905 | J108: =MMULT('AER - Inputs'!$H508:$Y508,'AER - Inputs'!J$32:J$49)*'AER - Inputs'!$H861*'AER - Inputs'!$J861+('AER - Inputs'!$I861*'AER - Inputs'!J$20) -> 151.6920357 | K108: =MMULT('AER - Inputs'!$H508:$Y508,'AER - Inputs'!K$32:K$49)*'AER - Inputs'!$H861*'AER - Inputs'!$J861+('AER - Inputs'!$I861*'AER - Inputs'!K$20) -> 155.3344126 | L108: =MMULT('AER - Inputs'!$H508:$Y508,'AER - Inputs'!L$32:L$49)*'AER - Inputs'!$H861*'AER - Inputs'!$J861+('AER - Inputs'!$I861*'AER - Inputs'!L$20) -> 160.1033073 | M108: =MMULT('AER - Inputs'!$H508:$Y508,'AER - Inputs'!M$32:M$49)*'AER - Inputs'!$H861*'AER - Inputs'!$J861+('AER - Inputs'!$I861*'AER - Inputs'!M$20) -> 157.1095152 | N108: =SUMIFS('Report Charges & Xfactors'!$M$10:$M$318,'Report Charges & Xfactors'!$D$10:$D$318,'AER - Calc Cost build up'!D108,'Report Charges & Xfactors'!$E$10:$E$318,'AER - Calc Cost build up'!E108) -> 166.6025545 | O108: 157.1095152 | P108: -9.493039241 | Q108: -0.05698015418
A109: ='AER - Inputs'!$A$156 -> 0 | B109: ='AER - Inputs'!$B$156 -> Ancillary Services | C109: ='AER - Inputs'!$C$156 -> Design related services | D109: ='AER - Inputs'!$D$156 -> Design Information Fee | E109: ='AER - Inputs'!$E$156 -> Connection of Load - Multi-Dwelling - <= 5 units | F109: ='AER - Inputs'!$F$156 -> Per Hour | G109: ='AER - Inputs'!$G$156 -> Quote | H109: =MMULT('AER - Inputs'!$H509:$Y509,'AER - Inputs'!H$32:H$49)*'AER - Inputs'!$H862*'AER - Inputs'!$J862+('AER - Inputs'!$I862*'AER - Inputs'!H$20) -> 142.81 | I109: =MMULT('AER - Inputs'!$H509:$Y509,'AER - Inputs'!I$32:I$49)*'AER - Inputs'!$H862*'AER - Inputs'!$J862+('AER - Inputs'!$I862*'AER - Inputs'!I$20) -> 147.855905 | J109: =MMULT('AER - Inputs'!$H509:$Y509,'AER - Inputs'!J$32:J$49)*'AER - Inputs'!$H862*'AER - Inputs'!$J862+('AER - Inputs'!$I862*'AER - Inputs'!J$20) -> 151.6920357 | K109: =MMULT('AER - Inputs'!$H509:$Y509,'AER - Inputs'!K$32:K$49)*'AER - Inputs'!$H862*'AER - Inputs'!$J862+('AER - Inputs'!$I862*'AER - Inputs'!K$20) -> 155.3344126 | L109: =MMULT('AER - Inputs'!$H509:$Y509,'AER - Inputs'!L$32:L$49)*'AER - Inputs'!$H862*'AER - Inputs'!$J862+('AER - Inputs'!$I862*'AER - Inputs'!L$20) -> 160.1033073 | M109: =MMULT('AER - Inputs'!$H509:$Y509,'AER - Inputs'!M$32:M$49)*'AER - Inputs'!$H862*'AER - Inputs'!$J862+('AER - Inputs'!$I862*'AER - Inputs'!M$20) -> 157.1095152 | N109: =SUMIFS('Report Charges & Xfactors'!$M$10:$M$318,'Report Charges & Xfactors'!$D$10:$D$318,'AER - Calc Cost build up'!D109,'Report Charges & Xfactors'!$E$10:$E$318,'AER - Calc Cost build up'!E109) -> 166.6025545 | O109: 157.1095152 | P109: -9.493039241 | Q109: -0.05698015418
A110: ='AER - Inputs'!$A$157 -> 0 | B110: ='AER - Inputs'!$B$157 -> Ancillary Services | C110: ='AER - Inputs'!$C$157 -> Design related services | D110: ='AER - Inputs'!$D$157 -> Design Information Fee | E110: ='AER - Inputs'!$E$157 -> Connection of Load - Multi-Dwelling - > 40 units | F110: ='AER - Inputs'!$F$157 -> Per Hour | G110: ='AER - Inputs'!$G$157 -> Quote | H110: =MMULT('AER - Inputs'!$H510:$Y510,'AER - Inputs'!H$32:H$49)*'AER - Inputs'!$H863*'AER - Inputs'!$J863+('AER - Inputs'!$I863*'AER - Inputs'!H$20) -> 142.81 | I110: =MMULT('AER - Inputs'!$H510:$Y510,'AER - Inputs'!I$32:I$49)*'AER - Inputs'!$H863*'AER - Inputs'!$J863+('AER - Inputs'!$I863*'AER - Inputs'!I$20) -> 147.855905 | J110: =MMULT('AER - Inputs'!$H510:$Y510,'AER - Inputs'!J$32:J$49)*'AER - Inputs'!$H863*'AER - Inputs'!$J863+('AER - Inputs'!$I863*'AER - Inputs'!J$20) -> 151.6920357 | K110: =MMULT('AER - Inputs'!$H510:$Y510,'AER - Inputs'!K$32:K$49)*'AER - Inputs'!$H863*'AER - Inputs'!$J863+('AER - Inputs'!$I863*'AER - Inputs'!K$20) -> 155.3344126 | L110: =MMULT('AER - Inputs'!$H510:$Y510,'AER - Inputs'!L$32:L$49)*'AER - Inputs'!$H863*'AER - Inputs'!$J863+('AER - Inputs'!$I863*'AER - Inputs'!L$20) -> 160.1033073 | M110: =MMULT('AER - Inputs'!$H510:$Y510,'AER - Inputs'!M$32:M$49)*'AER - Inputs'!$H863*'AER - Inputs'!$J863+('AER - Inputs'!$I863*'AER - Inputs'!M$20) -> 157.1095152 | N110: =SUMIFS('Report Charges & Xfactors'!$M$10:$M$318,'Report Charges & Xfactors'!$D$10:$D$318,'AER - Calc Cost build up'!D110,'Report Charges & Xfactors'!$E$10:$E$318,'AER - Calc Cost build up'!E110) -> 166.6025545 | O110: 157.1095152 | P110: -9.493039241 | Q110: -0.05698015418
A111: ='AER - Inputs'!$A$158 -> 0 | B111: ='AER - Inputs'!$B$158 -> Ancillary Services | C111: ='AER - Inputs'!$C$158 -> Design related services | D111: ='AER - Inputs'!$D$158 -> Design Information Fee | E111: ='AER - Inputs'!$E$158 -> Connection of Load - Non Urban - I&C - <= 200A/Phase (LV) | F111: ='AER - Inputs'!$F$158 -> Per Hour | G111: ='AER - Inputs'!$G$158 -> Quote | H111: =MMULT('AER - Inputs'!$H511:$Y511,'AER - Inputs'!H$32:H$49)*'AER - Inputs'!$H864*'AER - Inputs'!$J864+('AER - Inputs'!$I864*'AER - Inputs'!H$20) -> 142.81 | I111: =MMULT('AER - Inputs'!$H511:$Y511,'AER - Inputs'!I$32:I$49)*'AER - Inputs'!$H864*'AER - Inputs'!$J864+('AER - Inputs'!$I864*'AER - Inputs'!I$20) -> 147.855905 | J111: =MMULT('AER - Inputs'!$H511:$Y511,'AER - Inputs'!J$32:J$49)*'AER - Inputs'!$H864*'AER - Inputs'!$J864+('AER - Inputs'!$I864*'AER - Inputs'!J$20) -> 151.6920357 | K111: =MMULT('AER - Inputs'!$H511:$Y511,'AER - Inputs'!K$32:K$49)*'AER - Inputs'!$H864*'AER - Inputs'!$J864+('AER - Inputs'!$I864*'AER - Inputs'!K$20) -> 155.3344126 | L111: =MMULT('AER - Inputs'!$H511:$Y511,'AER - Inputs'!L$32:L$49)*'AER - Inputs'!$H864*'AER - Inputs'!$J864+('AER - Inputs'!$I864*'AER - Inputs'!L$20) -> 160.1033073 | M111: =MMULT('AER - Inputs'!$H511:$Y511,'AER - Inputs'!M$32:M$49)*'AER - Inputs'!$H864*'AER - Inputs'!$J864+('AER - Inputs'!$I864*'AER - Inputs'!M$20) -> 157.1095152 | N111: =SUMIFS('Report Charges & Xfactors'!$M$10:$M$318,'Report Charges & Xfactors'!$D$10:$D$318,'AER - Calc Cost build up'!D111,'Report Charges & Xfactors'!$E$10:$E$318,'AER - Calc Cost build up'!E111) -> 166.6025545 | O111: 157.1095152 | P111: -9.493039241 | Q111: -0.05698015418
A112: ='AER - Inputs'!$A$159 -> 0 | B112: ='AER - Inputs'!$B$159 -> Ancillary Services | C112: ='AER - Inputs'!$C$159 -> Design related services | D112: ='AER - Inputs'!$D$159 -> Design Information Fee | E112: ='AER - Inputs'!$E$159 -> Connection of Load - Non Urban - I&C - <= 700A/Phase (LV) | F112: ='AER - Inputs'!$F$159 -> Per Hour | G112: ='AER - Inputs'!$G$159 -> Quote | H112: =MMULT('AER - Inputs'!$H512:$Y512,'AER - Inputs'!H$32:H$49)*'AER - Inputs'!$H865*'AER - Inputs'!$J865+('AER - Inputs'!$I865*'AER - Inputs'!H$20) -> 142.81 | I112: =MMULT('AER - Inputs'!$H512:$Y512,'AER - Inputs'!I$32:I$49)*'AER - Inputs'!$H865*'AER - Inputs'!$J865+('AER - Inputs'!$I865*'AER - Inputs'!I$20) -> 147.855905 | J112: =MMULT('AER - Inputs'!$H512:$Y512,'AER - Inputs'!J$32:J$49)*'AER - Inputs'!$H865*'AER - Inputs'!$J865+('AER - Inputs'!$I865*'AER - Inputs'!J$20) -> 151.6920357 | K112: =MMULT('AER - Inputs'!$H512:$Y512,'AER - Inputs'!K$32:K$49)*'AER - Inputs'!$H865*'AER - Inputs'!$J865+('AER - Inputs'!$I865*'AER - Inputs'!K$20) -> 155.3344126 | L112: =MMULT('AER - Inputs'!$H512:$Y512,'AER - Inputs'!L$32:L$49)*'AER - Inputs'!$H865*'AER - Inputs'!$J865+('AER - Inputs'!$I865*'AER - Inputs'!L$20) -> 160.1033073 | M112: =MMULT('AER - Inputs'!$H512:$Y512,'AER - Inputs'!M$32:M$49)*'AER - Inputs'!$H865*'AER - Inputs'!$J865+('AER - Inputs'!$I865*'AER - Inputs'!M$20) -> 157.1095152 | N112: =SUMIFS('Report Charges & Xfactors'!$M$10:$M$318,'Report Charges & Xfactors'!$D$10:$D$318,'AER - Calc Cost build up'!D112,'Report Charges & Xfactors'!$E$10:$E$318,'AER - Calc Cost build up'!E112) -> 166.6025545 | O112: 157.1095152 | P112: -9.493039241 | Q112: -0.05698015418
A113: ='AER - Inputs'!$A$160 -> 0 | B113: ='AER - Inputs'!$B$160 -> Ancillary Services | C113: ='AER - Inputs'!$C$160 -> Design related services | D113: ='AER - Inputs'!$D$160 -> Design Information Fee | E113: ='AER - Inputs'!$E$160 -> Connection of Load - Non Urban - I&C - > 700A/Phase (LV) | F113: ='AER - Inputs'!$F$160 -> Per Hour | G113: ='AER - Inputs'!$G$160 -> Quote | H113: =MMULT('AER - Inputs'!$H513:$Y513,'AER - Inputs'!H$32:H$49)*'AER - Inputs'!$H866*'AER - Inputs'!$J866+('AER - Inputs'!$I866*'AER - Inputs'!H$20) -> 142.81 | I113: =MMULT('AER - Inputs'!$H513:$Y513,'AER - Inputs'!I$32:I$49)*'AER - Inputs'!$H866*'AER - Inputs'!$J866+('AER - Inputs'!$I866*'AER - Inputs'!I$20) -> 147.855905 | J113: =MMULT('AER - Inputs'!$H513:$Y513,'AER - Inputs'!J$32:J$49)*'AER - Inputs'!$H866*'AER - Inputs'!$J866+('AER - Inputs'!$I866*'AER - Inputs'!J$20) -> 151.6920357 | K113: =MMULT('AER - Inputs'!$H513:$Y513,'AER - Inputs'!K$32:K$49)*'AER - Inputs'!$H866*'AER - Inputs'!$J866+('AER - Inputs'!$I866*'AER - Inputs'!K$20) -> 155.3344126 | L113: =MMULT('AER - Inputs'!$H513:$Y513,'AER - Inputs'!L$32:L$49)*'AER - Inputs'!$H866*'AER - Inputs'!$J866+('AER - Inputs'!$I866*'AER - Inputs'!L$20) -> 160.1033073 | M113: =MMULT('AER - Inputs'!$H513:$Y513,'AER - Inputs'!M$32:M$49)*'AER - Inputs'!$H866*'AER - Inputs'!$J866+('AER - Inputs'!$I866*'AER - Inputs'!M$20) -> 157.1095152 | N113: =SUMIFS('Report Charges & Xfactors'!$M$10:$M$318,'Report Charges & Xfactors'!$D$10:$D$318,'AER - Calc Cost build up'!D113,'Report Charges & Xfactors'!$E$10:$E$318,'AER - Calc Cost build up'!E113) -> 166.6025545 | O113: 157.1095152 | P113: -9.493039241 | Q113: -0.05698015418
A114: ='AER - Inputs'!$A$161 -> 0 | B114: ='AER - Inputs'!$B$161 -> Ancillary Services | C114: ='AER - Inputs'!$C$161 -> Design related services | D114: ='AER - Inputs'!$D$161 -> Design Information Fee | E114: ='AER - Inputs'!$E$161 -> Connection of Load - Non Urban - I&C - HV Customer | F114: ='AER - Inputs'!$F$161 -> Per Hour | G114: ='AER - Inputs'!$G$161 -> Quote | H114: =MMULT('AER - Inputs'!$H514:$Y514,'AER - Inputs'!H$32:H$49)*'AER - Inputs'!$H867*'AER - Inputs'!$J867+('AER - Inputs'!$I867*'AER - Inputs'!H$20) -> 142.81 | I114: =MMULT('AER - Inputs'!$H514:$Y514,'AER - Inputs'!I$32:I$49)*'AER - Inputs'!$H867*'AER - Inputs'!$J867+('AER - Inputs'!$I867*'AER - Inputs'!I$20) -> 147.855905 | J114: =MMULT('AER - Inputs'!$H514:$Y514,'AER - Inputs'!J$32:J$49)*'AER - Inputs'!$H867*'AER - Inputs'!$J867+('AER - Inputs'!$I867*'AER - Inputs'!J$20) -> 151.6920357 | K114: =MMULT('AER - Inputs'!$H514:$Y514,'AER - Inputs'!K$32:K$49)*'AER - Inputs'!$H867*'AER - Inputs'!$J867+('AER - Inputs'!$I867*'AER - Inputs'!K$20) -> 155.3344126 | L114: =MMULT('AER - Inputs'!$H514:$Y514,'AER - Inputs'!L$32:L$49)*'AER - Inputs'!$H867*'AER - Inputs'!$J867+('AER - Inputs'!$I867*'AER - Inputs'!L$20) -> 160.1033073 | M114: =MMULT('AER - Inputs'!$H514:$Y514,'AER - Inputs'!M$32:M$49)*'AER - Inputs'!$H867*'AER - Inputs'!$J867+('AER - Inputs'!$I867*'AER - Inputs'!M$20) -> 157.1095152 | N114: =SUMIFS('Report Charges & Xfactors'!$M$10:$M$318,'Report Charges & Xfactors'!$D$10:$D$318,'AER - Calc Cost build up'!D114,'Report Charges & Xfactors'!$E$10:$E$318,'AER - Calc Cost build up'!E114) -> 166.6025545 | O114: 157.1095152 | P114: -9.493039241 | Q114: -0.05698015418
A115: ='AER - Inputs'!$A$162 -> 0 | B115: ='AER - Inputs'!$B$162 -> Ancillary Services | C115: ='AER - Inputs'!$C$162 -> Design related services | D115: ='AER - Inputs'!$D$162 -> Design Information Fee | E115: ='AER - Inputs'!$E$162 -> Connection of Load - Non Urban - I&C - Transmission | F115: ='AER - Inputs'!$F$162 -> Per Hour | G115: ='AER - Inputs'!$G$162 -> Quote | H115: =MMULT('AER - Inputs'!$H515:$Y515,'AER - Inputs'!H$32:H$49)*'AER - Inputs'!$H868*'AER - Inputs'!$J868+('AER - Inputs'!$I868*'AER - Inputs'!H$20) -> 142.81 | I115: =MMULT('AER - Inputs'!$H515:$Y515,'AER - Inputs'!I$32:I$49)*'AER - Inputs'!$H868*'AER - Inputs'!$J868+('AER - Inputs'!$I868*'AER - Inputs'!I$20) -> 147.855905 | J115: =MMULT('AER - Inputs'!$H515:$Y515,'AER - Inputs'!J$32:J$49)*'AER - Inputs'!$H868*'AER - Inputs'!$J868+('AER - Inputs'!$I868*'AER - Inputs'!J$20) -> 151.6920357 | K115: =MMULT('AER - Inputs'!$H515:$Y515,'AER - Inputs'!K$32:K$49)*'AER - Inputs'!$H868*'AER - Inputs'!$J868+('AER - Inputs'!$I868*'AER - Inputs'!K$20) -> 155.3344126 | L115: =MMULT('AER - Inputs'!$H515:$Y515,'AER - Inputs'!L$32:L$49)*'AER - Inputs'!$H868*'AER - Inputs'!$J868+('AER - Inputs'!$I868*'AER - Inputs'!L$20) -> 160.1033073 | M115: =MMULT('AER - Inputs'!$H515:$Y515,'AER - Inputs'!M$32:M$49)*'AER - Inputs'!$H868*'AER - Inputs'!$J868+('AER - Inputs'!$I868*'AER - Inputs'!M$20) -> 157.1095152 | N115: =SUMIFS('Report Charges & Xfactors'!$M$10:$M$318,'Report Charges & Xfactors'!$D$10:$D$318,'AER - Calc Cost build up'!D115,'Report Charges & Xfactors'!$E$10:$E$318,'AER - Calc Cost build up'!E115) -> 166.6025545 | O115: 157.1095152 | P115: -9.493039241 | Q115: -0.05698015418
A116: ='AER - Inputs'!$A$163 -> 0 | B116: ='AER - Inputs'!$B$163 -> Ancillary Services | C116: ='AER - Inputs'!$C$163 -> Design related services | D116: ='AER - Inputs'!$D$163 -> Design Information Fee | E116: ='AER - Inputs'!$E$163 -> Connection of Load - Non Urban - Multi-Dwelling - <= 20 units | F116: ='AER - Inputs'!$F$163 -> Per Hour | G116: ='AER - Inputs'!$G$163 -> Quote | H116: =MMULT('AER - Inputs'!$H516:$Y516,'AER - Inputs'!H$32:H$49)*'AER - Inputs'!$H869*'AER - Inputs'!$J869+('AER - Inputs'!$I869*'AER - Inputs'!H$20) -> 142.81 | I116: =MMULT('AER - Inputs'!$H516:$Y516,'AER - Inputs'!I$32:I$49)*'AER - Inputs'!$H869*'AER - Inputs'!$J869+('AER - Inputs'!$I869*'AER - Inputs'!I$20) -> 147.855905 | J116: =MMULT('AER - Inputs'!$H516:$Y516,'AER - Inputs'!J$32:J$49)*'AER - Inputs'!$H869*'AER - Inputs'!$J869+('AER - Inputs'!$I869*'AER - Inputs'!J$20) -> 151.6920357 | K116: =MMULT('AER - Inputs'!$H516:$Y516,'AER - Inputs'!K$32:K$49)*'AER - Inputs'!$H869*'AER - Inputs'!$J869+('AER - Inputs'!$I869*'AER - Inputs'!K$20) -> 155.3344126 | L116: =MMULT('AER - Inputs'!$H516:$Y516,'AER - Inputs'!L$32:L$49)*'AER - Inputs'!$H869*'AER - Inputs'!$J869+('AER - Inputs'!$I869*'AER - Inputs'!L$20) -> 160.1033073 | M116: =MMULT('AER - Inputs'!$H516:$Y516,'AER - Inputs'!M$32:M$49)*'AER - Inputs'!$H869*'AER - Inputs'!$J869+('AER - Inputs'!$I869*'AER - Inputs'!M$20) -> 157.1095152 | N116: =SUMIFS('Report Charges & Xfactors'!$M$10:$M$318,'Report Charges & Xfactors'!$D$10:$D$318,'AER - Calc Cost build up'!D116,'Report Charges & Xfactors'!$E$10:$E$318,'AER - Calc Cost build up'!E116) -> 166.6025545 | O116: 157.1095152 | P116: -9.493039241 | Q116: -0.05698015418
A117: ='AER - Inputs'!$A$164 -> 0 | B117: ='AER - Inputs'!$B$164 -> Ancillary Services | C117: ='AER - Inputs'!$C$164 -> Design related services | D117: ='AER - Inputs'!$D$164 -> Design Information Fee | E117: ='AER - Inputs'!$E$164 -> Connection of Load - Non Urban - Multi-Dwelling - <= 40 units | F117: ='AER - Inputs'!$F$164 -> Per Hour | G117: ='AER - Inputs'!$G$164 -> Quote | H117: =MMULT('AER - Inputs'!$H517:$Y517,'AER - Inputs'!H$32:H$49)*'AER - Inputs'!$H870*'AER - Inputs'!$J870+('AER - Inputs'!$I870*'AER - Inputs'!H$20) -> 142.81 | I117: =MMULT('AER - Inputs'!$H517:$Y517,'AER - Inputs'!I$32:I$49)*'AER - Inputs'!$H870*'AER - Inputs'!$J870+('AER - Inputs'!$I870*'AER - Inputs'!I$20) -> 147.855905 | J117: =MMULT('AER - Inputs'!$H517:$Y517,'AER - Inputs'!J$32:J$49)*'AER - Inputs'!$H870*'AER - Inputs'!$J870+('AER - Inputs'!$I870*'AER - Inputs'!J$20) -> 151.6920357 | K117: =MMULT('AER - Inputs'!$H517:$Y517,'AER - Inputs'!K$32:K$49)*'AER - Inputs'!$H870*'AER - Inputs'!$J870+('AER - Inputs'!$I870*'AER - Inputs'!K$20) -> 155.3344126 | L117: =MMULT('AER - Inputs'!$H517:$Y517,'AER - Inputs'!L$32:L$49)*'AER - Inputs'!$H870*'AER - Inputs'!$J870+('AER - Inputs'!$I870*'AER - Inputs'!L$20) -> 160.1033073 | M117: =MMULT('AER - Inputs'!$H517:$Y517,'AER - Inputs'!M$32:M$49)*'AER - Inputs'!$H870*'AER - Inputs'!$J870+('AER - Inputs'!$I870*'AER - Inputs'!M$20) -> 157.1095152 | N117: =SUMIFS('Report Charges & Xfactors'!$M$10:$M$318,'Report Charges & Xfactors'!$D$10:$D$318,'AER - Calc Cost build up'!D117,'Report Charges & Xfactors'!$E$10:$E$318,'AER - Calc Cost build up'!E117) -> 166.6025545 | O117: 157.1095152 | P117: -9.493039241 | Q117: -0.05698015418
A118: ='AER - Inputs'!$A$165 -> 0 | B118: ='AER - Inputs'!$B$165 -> Ancillary Services | C118: ='AER - Inputs'!$C$165 -> Design related services | D118: ='AER - Inputs'!$D$165 -> Design Information Fee | E118: ='AER - Inputs'!$E$165 -> Connection of Load - Non Urban - Multi-Dwelling - <= 5 units | F118: ='AER - Inputs'!$F$165 -> Per Hour | G118: ='AER - Inputs'!$G$165 -> Quote | H118: =MMULT('AER - Inputs'!$H518:$Y518,'AER - Inputs'!H$32:H$49)*'AER - Inputs'!$H871*'AER - Inputs'!$J871+('AER - Inputs'!$I871*'AER - Inputs'!H$20) -> 142.81 | I118: =MMULT('AER - Inputs'!$H518:$Y518,'AER - Inputs'!I$32:I$49)*'AER - Inputs'!$H871*'AER - Inputs'!$J871+('AER - Inputs'!$I871*'AER - Inputs'!I$20) -> 147.855905 | J118: =MMULT('AER - Inputs'!$H518:$Y518,'AER - Inputs'!J$32:J$49)*'AER - Inputs'!$H871*'AER - Inputs'!$J871+('AER - Inputs'!$I871*'AER - Inputs'!J$20) -> 151.6920357 | K118: =MMULT('AER - Inputs'!$H518:$Y518,'AER - Inputs'!K$32:K$49)*'AER - Inputs'!$H871*'AER - Inputs'!$J871+('AER - Inputs'!$I871*'AER - Inputs'!K$20) -> 155.3344126 | L118: =MMULT('AER - Inputs'!$H518:$Y518,'AER - Inputs'!L$32:L$49)*'AER - Inputs'!$H871*'AER - Inputs'!$J871+('AER - Inputs'!$I871*'AER - Inputs'!L$20) -> 160.1033073 | M118: =MMULT('AER - Inputs'!$H518:$Y518,'AER - Inputs'!M$32:M$49)*'AER - Inputs'!$H871*'AER - Inputs'!$J871+('AER - Inputs'!$I871*'AER - Inputs'!M$20) -> 157.1095152 | N118: =SUMIFS('Report Charges & Xfactors'!$M$10:$M$318,'Report Charges & Xfactors'!$D$10:$D$318,'AER - Calc Cost build up'!D118,'Report Charges & Xfactors'!$E$10:$E$318,'AER - Calc Cost build up'!E118) -> 166.6025545 | O118: 157.1095152 | P118: -9.493039241 | Q118: -0.05698015418
A119: ='AER - Inputs'!$A$166 -> 0 | B119: ='AER - Inputs'!$B$166 -> Ancillary Services | C119: ='AER - Inputs'!$C$166 -> Design related services | D119: ='AER - Inputs'!$D$166 -> Design Information Fee | E119: ='AER - Inputs'!$E$166 -> Connection of Load - Non Urban - Multi-Dwelling - > 40 units | F119: ='AER - Inputs'!$F$166 -> Per Hour | G119: ='AER - Inputs'!$G$166 -> Quote | H119: =MMULT('AER - Inputs'!$H519:$Y519,'AER - Inputs'!H$32:H$49)*'AER - Inputs'!$H872*'AER - Inputs'!$J872+('AER - Inputs'!$I872*'AER - Inputs'!H$20) -> 142.81 | I119: =MMULT('AER - Inputs'!$H519:$Y519,'AER - Inputs'!I$32:I$49)*'AER - Inputs'!$H872*'AER - Inputs'!$J872+('AER - Inputs'!$I872*'AER - Inputs'!I$20) -> 147.855905 | J119: =MMULT('AER - Inputs'!$H519:$Y519,'AER - Inputs'!J$32:J$49)*'AER - Inputs'!$H872*'AER - Inputs'!$J872+('AER - Inputs'!$I872*'AER - Inputs'!J$20) -> 151.6920357 | K119: =MMULT('AER - Inputs'!$H519:$Y519,'AER - Inputs'!K$32:K$49)*'AER - Inputs'!$H872*'AER - Inputs'!$J872+('AER - Inputs'!$I872*'AER - Inputs'!K$20) -> 155.3344126 | L119: =MMULT('AER - Inputs'!$H519:$Y519,'AER - Inputs'!L$32:L$49)*'AER - Inputs'!$H872*'AER - Inputs'!$J872+('AER - Inputs'!$I872*'AER - Inputs'!L$20) -> 160.1033073 | M119: =MMULT('AER - Inputs'!$H519:$Y519,'AER - Inputs'!M$32:M$49)*'AER - Inputs'!$H872*'AER - Inputs'!$J872+('AER - Inputs'!$I872*'AER - Inputs'!M$20) -> 157.1095152 | N119: =SUMIFS('Report Charges & Xfactors'!$M$10:$M$318,'Report Charges & Xfactors'!$D$10:$D$318,'AER - Calc Cost build up'!D119,'Report Charges & Xfactors'!$E$10:$E$318,'AER - Calc Cost build up'!E119) -> 166.6025545 | O119: 157.1095152 | P119: -9.493039241 | Q119: -0.05698015418
A120: ='AER - Inputs'!$A$167 -> 0 | B120: ='AER - Inputs'!$B$167 -> Ancillary Services | C120: ='AER - Inputs'!$C$167 -> Design related services | D120: ='AER - Inputs'!$D$167 -> Design Information Fee | E120: ='AER - Inputs'!$E$167 -> Connection of Load - Non Urban - Single Residential - Per Hour | F120: ='AER - Inputs'!$F$167 -> Per Hour | G120: ='AER - Inputs'!$G$167 -> Quote | H120: =MMULT('AER - Inputs'!$H520:$Y520,'AER - Inputs'!H$32:H$49)*'AER - Inputs'!$H873*'AER - Inputs'!$J873+('AER - Inputs'!$I873*'AER - Inputs'!H$20) -> 142.81 | I120: =MMULT('AER - Inputs'!$H520:$Y520,'AER - Inputs'!I$32:I$49)*'AER - Inputs'!$H873*'AER - Inputs'!$J873+('AER - Inputs'!$I873*'AER - Inputs'!I$20) -> 147.855905 | J120: =MMULT('AER - Inputs'!$H520:$Y520,'AER - Inputs'!J$32:J$49)*'AER - Inputs'!$H873*'AER - Inputs'!$J873+('AER - Inputs'!$I873*'AER - Inputs'!J$20) -> 151.6920357 | K120: =MMULT('AER - Inputs'!$H520:$Y520,'AER - Inputs'!K$32:K$49)*'AER - Inputs'!$H873*'AER - Inputs'!$J873+('AER - Inputs'!$I873*'AER - Inputs'!K$20) -> 155.3344126 | L120: =MMULT('AER - Inputs'!$H520:$Y520,'AER - Inputs'!L$32:L$49)*'AER - Inputs'!$H873*'AER - Inputs'!$J873+('AER - Inputs'!$I873*'AER - Inputs'!L$20) -> 160.1033073 | M120: =MMULT('AER - Inputs'!$H520:$Y520,'AER - Inputs'!M$32:M$49)*'AER - Inputs'!$H873*'AER - Inputs'!$J873+('AER - Inputs'!$I873*'AER - Inputs'!M$20) -> 157.1095152 | N120: =SUMIFS('Report Charges & Xfactors'!$M$10:$M$318,'Report Charges & Xfactors'!$D$10:$D$318,'AER - Calc Cost build up'!D120,'Report Charges & Xfactors'!$E$10:$E$318,'AER - Calc Cost build up'!E120) -> 166.6025545 | O120: 157.1095152 | P120: -9.493039241 | Q120: -0.05698015418
A121: ='AER - Inputs'!$A$168 -> 0 | B121: ='AER - Inputs'!$B$168 -> Ancillary Services | C121: ='AER - Inputs'!$C$168 -> Design related services | D121: ='AER - Inputs'!$D$168 -> Design Information Fee | E121: ='AER - Inputs'!$E$168 -> Public Lighting - Designer | F121: ='AER - Inputs'!$F$168 -> Per Hour | G121: ='AER - Inputs'!$G$168 -> Quote | H121: =MMULT('AER - Inputs'!$H521:$Y521,'AER - Inputs'!H$32:H$49)*'AER - Inputs'!$H874*'AER - Inputs'!$J874+('AER - Inputs'!$I874*'AER - Inputs'!H$20) -> 142.81 | I121: =MMULT('AER - Inputs'!$H521:$Y521,'AER - Inputs'!I$32:I$49)*'AER - Inputs'!$H874*'AER - Inputs'!$J874+('AER - Inputs'!$I874*'AER - Inputs'!I$20) -> 147.855905 | J121: =MMULT('AER - Inputs'!$H521:$Y521,'AER - Inputs'!J$32:J$49)*'AER - Inputs'!$H874*'AER - Inputs'!$J874+('AER - Inputs'!$I874*'AER - Inputs'!J$20) -> 151.6920357 | K121: =MMULT('AER - Inputs'!$H521:$Y521,'AER - Inputs'!K$32:K$49)*'AER - Inputs'!$H874*'AER - Inputs'!$J874+('AER - Inputs'!$I874*'AER - Inputs'!K$20) -> 155.3344126 | L121: =MMULT('AER - Inputs'!$H521:$Y521,'AER - Inputs'!L$32:L$49)*'AER - Inputs'!$H874*'AER - Inputs'!$J874+('AER - Inputs'!$I874*'AER - Inputs'!L$20) -> 160.1033073 | M121: =MMULT('AER - Inputs'!$H521:$Y521,'AER - Inputs'!M$32:M$49)*'AER - Inputs'!$H874*'AER - Inputs'!$J874+('AER - Inputs'!$I874*'AER - Inputs'!M$20) -> 157.1095152 | N121: =SUMIFS('Report Charges & Xfactors'!$M$10:$M$318,'Report Charges & Xfactors'!$D$10:$D$318,'AER - Calc Cost build up'!D121,'Report Charges & Xfactors'!$E$10:$E$318,'AER - Calc Cost build up'!E121) -> 166.6025545 | O121: 157.1095152 | P121: -9.493039241 | Q121: -0.05698015418
A122: ='AER - Inputs'!$A$169 -> 0 | B122: ='AER - Inputs'!$B$169 -> Ancillary Services | C122: ='AER - Inputs'!$C$169 -> Design related services | D122: ='AER - Inputs'!$D$169 -> Design Information Fee | E122: ='AER - Inputs'!$E$169 -> Public Lighting - Engineer | F122: ='AER - Inputs'!$F$169 -> Per Hour | G122: ='AER - Inputs'!$G$169 -> Quote | H122: =MMULT('AER - Inputs'!$H522:$Y522,'AER - Inputs'!H$32:H$49)*'AER - Inputs'!$H875*'AER - Inputs'!$J875+('AER - Inputs'!$I875*'AER - Inputs'!H$20) -> 142.81 | I122: =MMULT('AER - Inputs'!$H522:$Y522,'AER - Inputs'!I$32:I$49)*'AER - Inputs'!$H875*'AER - Inputs'!$J875+('AER - Inputs'!$I875*'AER - Inputs'!I$20) -> 147.855905 | J122: =MMULT('AER - Inputs'!$H522:$Y522,'AER - Inputs'!J$32:J$49)*'AER - Inputs'!$H875*'AER - Inputs'!$J875+('AER - Inputs'!$I875*'AER - Inputs'!J$20) -> 151.6920357 | K122: =MMULT('AER - Inputs'!$H522:$Y522,'AER - Inputs'!K$32:K$49)*'AER - Inputs'!$H875*'AER - Inputs'!$J875+('AER - Inputs'!$I875*'AER - Inputs'!K$20) -> 155.3344126 | L122: =MMULT('AER - Inputs'!$H522:$Y522,'AER - Inputs'!L$32:L$49)*'AER - Inputs'!$H875*'AER - Inputs'!$J875+('AER - Inputs'!$I875*'AER - Inputs'!L$20) -> 160.1033073 | M122: =MMULT('AER - Inputs'!$H522:$Y522,'AER - Inputs'!M$32:M$49)*'AER - Inputs'!$H875*'AER - Inputs'!$J875+('AER - Inputs'!$I875*'AER - Inputs'!M$20) -> 157.1095152 | N122: =SUMIFS('Report Charges & Xfactors'!$M$10:$M$318,'Report Charges & Xfactors'!$D$10:$D$318,'AER - Calc Cost build up'!D122,'Report Charges & Xfactors'!$E$10:$E$318,'AER - Calc Cost build up'!E122) -> 166.6025545 | O122: 157.1095152 | P122: -9.493039241 | Q122: -0.05698015418
A123: ='AER - Inputs'!$A$170 -> 0 | B123: ='AER - Inputs'!$B$170 -> Ancillary Services | C123: ='AER - Inputs'!$C$170 -> Design related services | D123: ='AER - Inputs'!$D$170 -> Design Information Fee | E123: ='AER - Inputs'!$E$170 -> Subdivision - Industrial & Commercial - Per Hour | F123: ='AER - Inputs'!$F$170 -> Per Hour | G123: ='AER - Inputs'!$G$170 -> Quote | H123: =MMULT('AER - Inputs'!$H523:$Y523,'AER - Inputs'!H$32:H$49)*'AER - Inputs'!$H876*'AER - Inputs'!$J876+('AER - Inputs'!$I876*'AER - Inputs'!H$20) -> 142.81 | I123: =MMULT('AER - Inputs'!$H523:$Y523,'AER - Inputs'!I$32:I$49)*'AER - Inputs'!$H876*'AER - Inputs'!$J876+('AER - Inputs'!$I876*'AER - Inputs'!I$20) -> 147.855905 | J123: =MMULT('AER - Inputs'!$H523:$Y523,'AER - Inputs'!J$32:J$49)*'AER - Inputs'!$H876*'AER - Inputs'!$J876+('AER - Inputs'!$I876*'AER - Inputs'!J$20) -> 151.6920357 | K123: =MMULT('AER - Inputs'!$H523:$Y523,'AER - Inputs'!K$32:K$49)*'AER - Inputs'!$H876*'AER - Inputs'!$J876+('AER - Inputs'!$I876*'AER - Inputs'!K$20) -> 155.3344126 | L123: =MMULT('AER - Inputs'!$H523:$Y523,'AER - Inputs'!L$32:L$49)*'AER - Inputs'!$H876*'AER - Inputs'!$J876+('AER - Inputs'!$I876*'AER - Inputs'!L$20) -> 160.1033073 | M123: =MMULT('AER - Inputs'!$H523:$Y523,'AER - Inputs'!M$32:M$49)*'AER - Inputs'!$H876*'AER - Inputs'!$J876+('AER - Inputs'!$I876*'AER - Inputs'!M$20) -> 157.1095152 | N123: =SUMIFS('Report Charges & Xfactors'!$M$10:$M$318,'Report Charges & Xfactors'!$D$10:$D$318,'AER - Calc Cost build up'!D123,'Report Charges & Xfactors'!$E$10:$E$318,'AER - Calc Cost build up'!E123) -> 166.6025545 | O123: 157.1095152 | P123: -9.493039241 | Q123: -0.05698015418
A124: ='AER - Inputs'!$A$171 -> 0 | B124: ='AER - Inputs'!$B$171 -> Ancillary Services | C124: ='AER - Inputs'!$C$171 -> Design related services | D124: ='AER - Inputs'!$D$171 -> Design Information Fee | E124: ='AER - Inputs'!$E$171 -> Subdivision - Non Urban - Per Hour | F124: ='AER - Inputs'!$F$171 -> Per Hour | G124: ='AER - Inputs'!$G$171 -> Quote | H124: =MMULT('AER - Inputs'!$H524:$Y524,'AER - Inputs'!H$32:H$49)*'AER - Inputs'!$H877*'AER - Inputs'!$J877+('AER - Inputs'!$I877*'AER - Inputs'!H$20) -> 142.81 | I124: =MMULT('AER - Inputs'!$H524:$Y524,'AER - Inputs'!I$32:I$49)*'AER - Inputs'!$H877*'AER - Inputs'!$J877+('AER - Inputs'!$I877*'AER - Inputs'!I$20) -> 147.855905 | J124: =MMULT('AER - Inputs'!$H524:$Y524,'AER - Inputs'!J$32:J$49)*'AER - Inputs'!$H877*'AER - Inputs'!$J877+('AER - Inputs'!$I877*'AER - Inputs'!J$20) -> 151.6920357 | K124: =MMULT('AER - Inputs'!$H524:$Y524,'AER - Inputs'!K$32:K$49)*'AER - Inputs'!$H877*'AER - Inputs'!$J877+('AER - Inputs'!$I877*'AER - Inputs'!K$20) -> 155.3344126 | L124: =MMULT('AER - Inputs'!$H524:$Y524,'AER - Inputs'!L$32:L$49)*'AER - Inputs'!$H877*'AER - Inputs'!$J877+('AER - Inputs'!$I877*'AER - Inputs'!L$20) -> 160.1033073 | M124: =MMULT('AER - Inputs'!$H524:$Y524,'AER - Inputs'!M$32:M$49)*'AER - Inputs'!$H877*'AER - Inputs'!$J877+('AER - Inputs'!$I877*'AER - Inputs'!M$20) -> 157.1095152 | N124: =SUMIFS('Report Charges & Xfactors'!$M$10:$M$318,'Report Charges & Xfactors'!$D$10:$D$318,'AER - Calc Cost build up'!D124,'Report Charges & Xfactors'!$E$10:$E$318,'AER - Calc Cost build up'!E124) -> 166.6025545 | O124: 157.1095152 | P124: -9.493039241 | Q124: -0.05698015418
A125: ='AER - Inputs'!$A$172 -> 0 | B125: ='AER - Inputs'!$B$172 -> Ancillary Services | C125: ='AER - Inputs'!$C$172 -> Design related services | D125: ='AER - Inputs'!$D$172 -> Design Information Fee | E125: ='AER - Inputs'!$E$172 -> Subdivision - URD - Underground - 11-40 lots | F125: ='AER - Inputs'!$F$172 -> Per Job | G125: ='AER - Inputs'!$G$172 -> Fee | H125: =MMULT('AER - Inputs'!$H525:$Y525,'AER - Inputs'!H$32:H$49)*'AER - Inputs'!$H878*'AER - Inputs'!$J878+('AER - Inputs'!$I878*'AER - Inputs'!H$20) -> 999.67 | I125: =MMULT('AER - Inputs'!$H525:$Y525,'AER - Inputs'!I$32:I$49)*'AER - Inputs'!$H878*'AER - Inputs'!$J878+('AER - Inputs'!$I878*'AER - Inputs'!I$20) -> 1034.991335 | J125: =MMULT('AER - Inputs'!$H525:$Y525,'AER - Inputs'!J$32:J$49)*'AER - Inputs'!$H878*'AER - Inputs'!$J878+('AER - Inputs'!$I878*'AER - Inputs'!J$20) -> 1061.84425 | K125: =MMULT('AER - Inputs'!$H525:$Y525,'AER - Inputs'!K$32:K$49)*'AER - Inputs'!$H878*'AER - Inputs'!$J878+('AER - Inputs'!$I878*'AER - Inputs'!K$20) -> 1087.340888 | L125: =MMULT('AER - Inputs'!$H525:$Y525,'AER - Inputs'!L$32:L$49)*'AER - Inputs'!$H878*'AER - Inputs'!$J878+('AER - Inputs'!$I878*'AER - Inputs'!L$20) -> 1120.723151 | M125: =MMULT('AER - Inputs'!$H525:$Y525,'AER - Inputs'!M$32:M$49)*'AER - Inputs'!$H878*'AER - Inputs'!$J878+('AER - Inputs'!$I878*'AER - Inputs'!M$20) -> 1099.766607 | N125: =SUMIFS('Report Charges & Xfactors'!$M$10:$M$318,'Report Charges & Xfactors'!$D$10:$D$318,'AER - Calc Cost build up'!D125,'Report Charges & Xfactors'!$E$10:$E$318,'AER - Calc Cost build up'!E125) -> 1166.217881 | O125: 1099.766607 | P125: -66.45127469 | Q125: -0.05698015418
A126: ='AER - Inputs'!$A$173 -> 0 | B126: ='AER - Inputs'!$B$173 -> Ancillary Services | C126: ='AER - Inputs'!$C$173 -> Design related services | D126: ='AER - Inputs'!$D$173 -> Design Information Fee | E126: ='AER - Inputs'!$E$173 -> Subdivision - URD - Underground - 1-5 lots | F126: ='AER - Inputs'!$F$173 -> Per Job | G126: ='AER - Inputs'!$G$173 -> Fee | H126: =MMULT('AER - Inputs'!$H526:$Y526,'AER - Inputs'!H$32:H$49)*'AER - Inputs'!$H879*'AER - Inputs'!$J879+('AER - Inputs'!$I879*'AER - Inputs'!H$20) -> 428.43 | I126: =MMULT('AER - Inputs'!$H526:$Y526,'AER - Inputs'!I$32:I$49)*'AER - Inputs'!$H879*'AER - Inputs'!$J879+('AER - Inputs'!$I879*'AER - Inputs'!I$20) -> 443.5677151 | J126: =MMULT('AER - Inputs'!$H526:$Y526,'AER - Inputs'!J$32:J$49)*'AER - Inputs'!$H879*'AER - Inputs'!$J879+('AER - Inputs'!$I879*'AER - Inputs'!J$20) -> 455.0761072 | K126: =MMULT('AER - Inputs'!$H526:$Y526,'AER - Inputs'!K$32:K$49)*'AER - Inputs'!$H879*'AER - Inputs'!$J879+('AER - Inputs'!$I879*'AER - Inputs'!K$20) -> 466.0032379 | L126: =MMULT('AER - Inputs'!$H526:$Y526,'AER - Inputs'!L$32:L$49)*'AER - Inputs'!$H879*'AER - Inputs'!$J879+('AER - Inputs'!$I879*'AER - Inputs'!L$20) -> 480.3099219 | M126: =MMULT('AER - Inputs'!$H526:$Y526,'AER - Inputs'!M$32:M$49)*'AER - Inputs'!$H879*'AER - Inputs'!$J879+('AER - Inputs'!$I879*'AER - Inputs'!M$20) -> 471.3285457 | N126: =SUMIFS('Report Charges & Xfactors'!$M$10:$M$318,'Report Charges & Xfactors'!$D$10:$D$318,'AER - Calc Cost build up'!D126,'Report Charges & Xfactors'!$E$10:$E$318,'AER - Calc Cost build up'!E126) -> 499.8076634 | O126: 471.3285457 | P126: -28.47911772 | Q126: -0.05698015418
A127: ='AER - Inputs'!$A$174 -> 0 | B127: ='AER - Inputs'!$B$174 -> Ancillary Services | C127: ='AER - Inputs'!$C$174 -> Design related services | D127: ='AER - Inputs'!$D$174 -> Design Information Fee | E127: ='AER - Inputs'!$E$174 -> Subdivision - URD - Underground - 41+ lots | F127: ='AER - Inputs'!$F$174 -> Per Job | G127: ='AER - Inputs'!$G$174 -> Fee | H127: =MMULT('AER - Inputs'!$H527:$Y527,'AER - Inputs'!H$32:H$49)*'AER - Inputs'!$H880*'AER - Inputs'!$J880+('AER - Inputs'!$I880*'AER - Inputs'!H$20) -> 1285.29 | I127: =MMULT('AER - Inputs'!$H527:$Y527,'AER - Inputs'!I$32:I$49)*'AER - Inputs'!$H880*'AER - Inputs'!$J880+('AER - Inputs'!$I880*'AER - Inputs'!I$20) -> 1330.703145 | J127: =MMULT('AER - Inputs'!$H527:$Y527,'AER - Inputs'!J$32:J$49)*'AER - Inputs'!$H880*'AER - Inputs'!$J880+('AER - Inputs'!$I880*'AER - Inputs'!J$20) -> 1365.228322 | K127: =MMULT('AER - Inputs'!$H527:$Y527,'AER - Inputs'!K$32:K$49)*'AER - Inputs'!$H880*'AER - Inputs'!$J880+('AER - Inputs'!$I880*'AER - Inputs'!K$20) -> 1398.009714 | L127: =MMULT('AER - Inputs'!$H527:$Y527,'AER - Inputs'!L$32:L$49)*'AER - Inputs'!$H880*'AER - Inputs'!$J880+('AER - Inputs'!$I880*'AER - Inputs'!L$20) -> 1440.929766 | M127: =MMULT('AER - Inputs'!$H527:$Y527,'AER - Inputs'!M$32:M$49)*'AER - Inputs'!$H880*'AER - Inputs'!$J880+('AER - Inputs'!$I880*'AER - Inputs'!M$20) -> 1413.985637 | N127: =SUMIFS('Report Charges & Xfactors'!$M$10:$M$318,'Report Charges & Xfactors'!$D$10:$D$318,'AER - Calc Cost build up'!D127,'Report Charges & Xfactors'!$E$10:$E$318,'AER - Calc Cost build up'!E127) -> 1499.42299 | O127: 1413.985637 | P127: -85.43735317 | Q127: -0.05698015418
A128: ='AER - Inputs'!$A$175 -> 0 | B128: ='AER - Inputs'!$B$175 -> Ancillary Services | C128: ='AER - Inputs'!$C$175 -> Design related services | D128: ='AER - Inputs'!$D$175 -> Design Information Fee | E128: ='AER - Inputs'!$E$175 -> Subdivision - URD - Underground - 6-10 lots | F128: ='AER - Inputs'!$F$175 -> Per Job | G128: ='AER - Inputs'!$G$175 -> Fee | H128: =MMULT('AER - Inputs'!$H528:$Y528,'AER - Inputs'!H$32:H$49)*'AER - Inputs'!$H881*'AER - Inputs'!$J881+('AER - Inputs'!$I881*'AER - Inputs'!H$20) -> 571.24 | I128: =MMULT('AER - Inputs'!$H528:$Y528,'AER - Inputs'!I$32:I$49)*'AER - Inputs'!$H881*'AER - Inputs'!$J881+('AER - Inputs'!$I881*'AER - Inputs'!I$20) -> 591.4236202 | J128: =MMULT('AER - Inputs'!$H528:$Y528,'AER - Inputs'!J$32:J$49)*'AER - Inputs'!$H881*'AER - Inputs'!$J881+('AER - Inputs'!$I881*'AER - Inputs'!J$20) -> 606.7681429 | K128: =MMULT('AER - Inputs'!$H528:$Y528,'AER - Inputs'!K$32:K$49)*'AER - Inputs'!$H881*'AER - Inputs'!$J881+('AER - Inputs'!$I881*'AER - Inputs'!K$20) -> 621.3376505 | L128: =MMULT('AER - Inputs'!$H528:$Y528,'AER - Inputs'!L$32:L$49)*'AER - Inputs'!$H881*'AER - Inputs'!$J881+('AER - Inputs'!$I881*'AER - Inputs'!L$20) -> 640.4132292 | M128: =MMULT('AER - Inputs'!$H528:$Y528,'AER - Inputs'!M$32:M$49)*'AER - Inputs'!$H881*'AER - Inputs'!$J881+('AER - Inputs'!$I881*'AER - Inputs'!M$20) -> 628.4380609 | N128: =SUMIFS('Report Charges & Xfactors'!$M$10:$M$318,'Report Charges & Xfactors'!$D$10:$D$318,'AER - Calc Cost build up'!D128,'Report Charges & Xfactors'!$E$10:$E$318,'AER - Calc Cost build up'!E128) -> 666.4102179 | O128: 628.4380609 | P128: -37.97215697 | Q128: -0.05698015418
A129: ='AER - Inputs'!$A$176 -> 0 | B129: ='AER - Inputs'!$B$176 -> Ancillary Services | C129: ='AER - Inputs'!$C$176 -> Design related services | D129: ='AER - Inputs'!$D$176 -> Design Re-certification Fee | E129: ='AER - Inputs'!$E$176 -> Asset Relocation - Designer | F129: ='AER - Inputs'!$F$176 -> Per Hour | G129: ='AER - Inputs'!$G$176 -> Quote | H129: =MMULT('AER - Inputs'!$H529:$Y529,'AER - Inputs'!H$32:H$49)*'AER - Inputs'!$H882*'AER - Inputs'!$J882+('AER - Inputs'!$I882*'AER - Inputs'!H$20) -> 142.81 | I129: =MMULT('AER - Inputs'!$H529:$Y529,'AER - Inputs'!I$32:I$49)*'AER - Inputs'!$H882*'AER - Inputs'!$J882+('AER - Inputs'!$I882*'AER - Inputs'!I$20) -> 147.855905 | J129: =MMULT('AER - Inputs'!$H529:$Y529,'AER - Inputs'!J$32:J$49)*'AER - Inputs'!$H882*'AER - Inputs'!$J882+('AER - Inputs'!$I882*'AER - Inputs'!J$20) -> 151.6920357 | K129: =MMULT('AER - Inputs'!$H529:$Y529,'AER - Inputs'!K$32:K$49)*'AER - Inputs'!$H882*'AER - Inputs'!$J882+('AER - Inputs'!$I882*'AER - Inputs'!K$20) -> 155.3344126 | L129: =MMULT('AER - Inputs'!$H529:$Y529,'AER - Inputs'!L$32:L$49)*'AER - Inputs'!$H882*'AER - Inputs'!$J882+('AER - Inputs'!$I882*'AER - Inputs'!L$20) -> 160.1033073 | M129: =MMULT('AER - Inputs'!$H529:$Y529,'AER - Inputs'!M$32:M$49)*'AER - Inputs'!$H882*'AER - Inputs'!$J882+('AER - Inputs'!$I882*'AER - Inputs'!M$20) -> 157.1095152 | N129: =SUMIFS('Report Charges & Xfactors'!$M$10:$M$318,'Report Charges & Xfactors'!$D$10:$D$318,'AER - Calc Cost build up'!D129,'Report Charges & Xfactors'!$E$10:$E$318,'AER - Calc Cost build up'!E129) -> 166.6025545 | O129: 157.1095152 | P129: -9.493039241 | Q129: -0.05698015418
A130: ='AER - Inputs'!$A$177 -> 0 | B130: ='AER - Inputs'!$B$177 -> Ancillary Services | C130: ='AER - Inputs'!$C$177 -> Design related services | D130: ='AER - Inputs'!$D$177 -> Design Re-certification Fee | E130: ='AER - Inputs'!$E$177 -> Asset Relocation - Engineer | F130: ='AER - Inputs'!$F$177 -> Per Hour | G130: ='AER - Inputs'!$G$177 -> Quote | H130: =MMULT('AER - Inputs'!$H530:$Y530,'AER - Inputs'!H$32:H$49)*'AER - Inputs'!$H883*'AER - Inputs'!$J883+('AER - Inputs'!$I883*'AER - Inputs'!H$20) -> 142.81 | I130: =MMULT('AER - Inputs'!$H530:$Y530,'AER - Inputs'!I$32:I$49)*'AER - Inputs'!$H883*'AER - Inputs'!$J883+('AER - Inputs'!$I883*'AER - Inputs'!I$20) -> 147.855905 | J130: =MMULT('AER - Inputs'!$H530:$Y530,'AER - Inputs'!J$32:J$49)*'AER - Inputs'!$H883*'AER - Inputs'!$J883+('AER - Inputs'!$I883*'AER - Inputs'!J$20) -> 151.6920357 | K130: =MMULT('AER - Inputs'!$H530:$Y530,'AER - Inputs'!K$32:K$49)*'AER - Inputs'!$H883*'AER - Inputs'!$J883+('AER - Inputs'!$I883*'AER - Inputs'!K$20) -> 155.3344126 | L130: =MMULT('AER - Inputs'!$H530:$Y530,'AER - Inputs'!L$32:L$49)*'AER - Inputs'!$H883*'AER - Inputs'!$J883+('AER - Inputs'!$I883*'AER - Inputs'!L$20) -> 160.1033073 | M130: =MMULT('AER - Inputs'!$H530:$Y530,'AER - Inputs'!M$32:M$49)*'AER - Inputs'!$H883*'AER - Inputs'!$J883+('AER - Inputs'!$I883*'AER - Inputs'!M$20) -> 157.1095152 | N130: =SUMIFS('Report Charges & Xfactors'!$M$10:$M$318,'Report Charges & Xfactors'!$D$10:$D$318,'AER - Calc Cost build up'!D130,'Report Charges & Xfactors'!$E$10:$E$318,'AER - Calc Cost build up'!E130) -> 166.6025545 | O130: 157.1095152 | P130: -9.493039241 | Q130: -0.05698015418
A131: ='AER - Inputs'!$A$178 -> 0 | B131: ='AER - Inputs'!$B$178 -> Ancillary Services | C131: ='AER - Inputs'!$C$178 -> Design related services | D131: ='AER - Inputs'!$D$178 -> Design Re-certification Fee | E131: ='AER - Inputs'!$E$178 -> Connection of Load - Industrial & Commercial - Per Hour | F131: ='AER - Inputs'!$F$178 -> Per Hour | G131: ='AER - Inputs'!$G$178 -> Quote | H131: =MMULT('AER - Inputs'!$H531:$Y531,'AER - Inputs'!H$32:H$49)*'AER - Inputs'!$H884*'AER - Inputs'!$J884+('AER - Inputs'!$I884*'AER - Inputs'!H$20) -> 142.81 | I131: =MMULT('AER - Inputs'!$H531:$Y531,'AER - Inputs'!I$32:I$49)*'AER - Inputs'!$H884*'AER - Inputs'!$J884+('AER - Inputs'!$I884*'AER - Inputs'!I$20) -> 147.855905 | J131: =MMULT('AER - Inputs'!$H531:$Y531,'AER - Inputs'!J$32:J$49)*'AER - Inputs'!$H884*'AER - Inputs'!$J884+('AER - Inputs'!$I884*'AER - Inputs'!J$20) -> 151.6920357 | K131: =MMULT('AER - Inputs'!$H531:$Y531,'AER - Inputs'!K$32:K$49)*'AER - Inputs'!$H884*'AER - Inputs'!$J884+('AER - Inputs'!$I884*'AER - Inputs'!K$20) -> 155.3344126 | L131: =MMULT('AER - Inputs'!$H531:$Y531,'AER - Inputs'!L$32:L$49)*'AER - Inputs'!$H884*'AER - Inputs'!$J884+('AER - Inputs'!$I884*'AER - Inputs'!L$20) -> 160.1033073 | M131: =MMULT('AER - Inputs'!$H531:$Y531,'AER - Inputs'!M$32:M$49)*'AER - Inputs'!$H884*'AER - Inputs'!$J884+('AER - Inputs'!$I884*'AER - Inputs'!M$20) -> 157.1095152 | N131: =SUMIFS('Report Charges & Xfactors'!$M$10:$M$318,'Report Charges & Xfactors'!$D$10:$D$318,'AER - Calc Cost build up'!D131,'Report Charges & Xfactors'!$E$10:$E$318,'AER - Calc Cost build up'!E131) -> 166.6025545 | O131: 157.1095152 | P131: -9.493039241 | Q131: -0.05698015418
A132: ='AER - Inputs'!$A$179 -> 0 | B132: ='AER - Inputs'!$B$179 -> Ancillary Services | C132: ='AER - Inputs'!$C$179 -> Design related services | D132: ='AER - Inputs'!$D$179 -> Design Re-certification Fee | E132: ='AER - Inputs'!$E$179 -> Connection of Load - Non Urban - Per Hour | F132: ='AER - Inputs'!$F$179 -> Per Hour | G132: ='AER - Inputs'!$G$179 -> Quote | H132: =MMULT('AER - Inputs'!$H532:$Y532,'AER - Inputs'!H$32:H$49)*'AER - Inputs'!$H885*'AER - Inputs'!$J885+('AER - Inputs'!$I885*'AER - Inputs'!H$20) -> 142.81 | I132: =MMULT('AER - Inputs'!$H532:$Y532,'AER - Inputs'!I$32:I$49)*'AER - Inputs'!$H885*'AER - Inputs'!$J885+('AER - Inputs'!$I885*'AER - Inputs'!I$20) -> 147.855905 | J132: =MMULT('AER - Inputs'!$H532:$Y532,'AER - Inputs'!J$32:J$49)*'AER - Inputs'!$H885*'AER - Inputs'!$J885+('AER - Inputs'!$I885*'AER - Inputs'!J$20) -> 151.6920357 | K132: =MMULT('AER - Inputs'!$H532:$Y532,'AER - Inputs'!K$32:K$49)*'AER - Inputs'!$H885*'AER - Inputs'!$J885+('AER - Inputs'!$I885*'AER - Inputs'!K$20) -> 155.3344126 | L132: =MMULT('AER - Inputs'!$H532:$Y532,'AER - Inputs'!L$32:L$49)*'AER - Inputs'!$H885*'AER - Inputs'!$J885+('AER - Inputs'!$I885*'AER - Inputs'!L$20) -> 160.1033073 | M132: =MMULT('AER - Inputs'!$H532:$Y532,'AER - Inputs'!M$32:M$49)*'AER - Inputs'!$H885*'AER - Inputs'!$J885+('AER - Inputs'!$I885*'AER - Inputs'!M$20) -> 157.1095152 | N132: =SUMIFS('Report Charges & Xfactors'!$M$10:$M$318,'Report Charges & Xfactors'!$D$10:$D$318,'AER - Calc Cost build up'!D132,'Report Charges & Xfactors'!$E$10:$E$318,'AER - Calc Cost build up'!E132) -> 166.6025545 | O132: 157.1095152 | P132: -9.493039241 | Q132: -0.05698015418
A133: ='AER - Inputs'!$A$180 -> 0 | B133: ='AER - Inputs'!$B$180 -> Ancillary Services | C133: ='AER - Inputs'!$C$180 -> Design related services | D133: ='AER - Inputs'!$D$180 -> Design Re-certification Fee | E133: ='AER - Inputs'!$E$180 -> Connection of Load - URD - Per Hour | F133: ='AER - Inputs'!$F$180 -> Per Hour | G133: ='AER - Inputs'!$G$180 -> Quote | H133: =MMULT('AER - Inputs'!$H533:$Y533,'AER - Inputs'!H$32:H$49)*'AER - Inputs'!$H886*'AER - Inputs'!$J886+('AER - Inputs'!$I886*'AER - Inputs'!H$20) -> 142.81 | I133: =MMULT('AER - Inputs'!$H533:$Y533,'AER - Inputs'!I$32:I$49)*'AER - Inputs'!$H886*'AER - Inputs'!$J886+('AER - Inputs'!$I886*'AER - Inputs'!I$20) -> 147.855905 | J133: =MMULT('AER - Inputs'!$H533:$Y533,'AER - Inputs'!J$32:J$49)*'AER - Inputs'!$H886*'AER - Inputs'!$J886+('AER - Inputs'!$I886*'AER - Inputs'!J$20) -> 151.6920357 | K133: =MMULT('AER - Inputs'!$H533:$Y533,'AER - Inputs'!K$32:K$49)*'AER - Inputs'!$H886*'AER - Inputs'!$J886+('AER - Inputs'!$I886*'AER - Inputs'!K$20) -> 155.3344126 | L133: =MMULT('AER - Inputs'!$H533:$Y533,'AER - Inputs'!L$32:L$49)*'AER - Inputs'!$H886*'AER - Inputs'!$J886+('AER - Inputs'!$I886*'AER - Inputs'!L$20) -> 160.1033073 | M133: =MMULT('AER - Inputs'!$H533:$Y533,'AER - Inputs'!M$32:M$49)*'AER - Inputs'!$H886*'AER - Inputs'!$J886+('AER - Inputs'!$I886*'AER - Inputs'!M$20) -> 157.1095152 | N133: =SUMIFS('Report Charges & Xfactors'!$M$10:$M$318,'Report Charges & Xfactors'!$D$10:$D$318,'AER - Calc Cost build up'!D133,'Report Charges & Xfactors'!$E$10:$E$318,'AER - Calc Cost build up'!E133) -> 166.6025545 | O133: 157.1095152 | P133: -9.493039241 | Q133: -0.05698015418
A134: ='AER - Inputs'!$A$181 -> 0 | B134: ='AER - Inputs'!$B$181 -> Ancillary Services | C134: ='AER - Inputs'!$C$181 -> Design related services | D134: ='AER - Inputs'!$D$181 -> Design Re-certification Fee | E134: ='AER - Inputs'!$E$181 -> Public Lighting - Designer | F134: ='AER - Inputs'!$F$181 -> Per Hour | G134: ='AER - Inputs'!$G$181 -> Quote | H134: =MMULT('AER - Inputs'!$H534:$Y534,'AER - Inputs'!H$32:H$49)*'AER - Inputs'!$H887*'AER - Inputs'!$J887+('AER - Inputs'!$I887*'AER - Inputs'!H$20) -> 142.81 | I134: =MMULT('AER - Inputs'!$H534:$Y534,'AER - Inputs'!I$32:I$49)*'AER - Inputs'!$H887*'AER - Inputs'!$J887+('AER - Inputs'!$I887*'AER - Inputs'!I$20) -> 147.855905 | J134: =MMULT('AER - Inputs'!$H534:$Y534,'AER - Inputs'!J$32:J$49)*'AER - Inputs'!$H887*'AER - Inputs'!$J887+('AER - Inputs'!$I887*'AER - Inputs'!J$20) -> 151.6920357 | K134: =MMULT('AER - Inputs'!$H534:$Y534,'AER - Inputs'!K$32:K$49)*'AER - Inputs'!$H887*'AER - Inputs'!$J887+('AER - Inputs'!$I887*'AER - Inputs'!K$20) -> 155.3344126 | L134: =MMULT('AER - Inputs'!$H534:$Y534,'AER - Inputs'!L$32:L$49)*'AER - Inputs'!$H887*'AER - Inputs'!$J887+('AER - Inputs'!$I887*'AER - Inputs'!L$20) -> 160.1033073 | M134: =MMULT('AER - Inputs'!$H534:$Y534,'AER - Inputs'!M$32:M$49)*'AER - Inputs'!$H887*'AER - Inputs'!$J887+('AER - Inputs'!$I887*'AER - Inputs'!M$20) -> 157.1095152 | N134: =SUMIFS('Report Charges & Xfactors'!$M$10:$M$318,'Report Charges & Xfactors'!$D$10:$D$318,'AER - Calc Cost build up'!D134,'Report Charges & Xfactors'!$E$10:$E$318,'AER - Calc Cost build up'!E134) -> 166.6025545 | O134: 157.1095152 | P134: -9.493039241 | Q134: -0.05698015418
A135: ='AER - Inputs'!$A$182 -> 0 | B135: ='AER - Inputs'!$B$182 -> Ancillary Services | C135: ='AER - Inputs'!$C$182 -> Design related services | D135: ='AER - Inputs'!$D$182 -> Design Re-certification Fee | E135: ='AER - Inputs'!$E$182 -> Public Lighting - Engineer | F135: ='AER - Inputs'!$F$182 -> Per Hour | G135: ='AER - Inputs'!$G$182 -> Quote | H135: =MMULT('AER - Inputs'!$H535:$Y535,'AER - Inputs'!H$32:H$49)*'AER - Inputs'!$H888*'AER - Inputs'!$J888+('AER - Inputs'!$I888*'AER - Inputs'!H$20) -> 142.81 | I135: =MMULT('AER - Inputs'!$H535:$Y535,'AER - Inputs'!I$32:I$49)*'AER - Inputs'!$H888*'AER - Inputs'!$J888+('AER - Inputs'!$I888*'AER - Inputs'!I$20) -> 147.855905 | J135: =MMULT('AER - Inputs'!$H535:$Y535,'AER - Inputs'!J$32:J$49)*'AER - Inputs'!$H888*'AER - Inputs'!$J888+('AER - Inputs'!$I888*'AER - Inputs'!J$20) -> 151.6920357 | K135: =MMULT('AER - Inputs'!$H535:$Y535,'AER - Inputs'!K$32:K$49)*'AER - Inputs'!$H888*'AER - Inputs'!$J888+('AER - Inputs'!$I888*'AER - Inputs'!K$20) -> 155.3344126 | L135: =MMULT('AER - Inputs'!$H535:$Y535,'AER - Inputs'!L$32:L$49)*'AER - Inputs'!$H888*'AER - Inputs'!$J888+('AER - Inputs'!$I888*'AER - Inputs'!L$20) -> 160.1033073 | M135: =MMULT('AER - Inputs'!$H535:$Y535,'AER - Inputs'!M$32:M$49)*'AER - Inputs'!$H888*'AER - Inputs'!$J888+('AER - Inputs'!$I888*'AER - Inputs'!M$20) -> 157.1095152 | N135: =SUMIFS('Report Charges & Xfactors'!$M$10:$M$318,'Report Charges & Xfactors'!$D$10:$D$318,'AER - Calc Cost build up'!D135,'Report Charges & Xfactors'!$E$10:$E$318,'AER - Calc Cost build up'!E135) -> 166.6025545 | O135: 157.1095152 | P135: -9.493039241 | Q135: -0.05698015418
A136: ='AER - Inputs'!$A$183 -> 0 | B136: ='AER - Inputs'!$B$183 -> Ancillary Services | C136: ='AER - Inputs'!$C$183 -> Design related services | D136: ='AER - Inputs'!$D$183 -> Design Re-certification Fee | E136: ='AER - Inputs'!$E$183 -> Subdivision - Industrial & Commercial - Per Hour | F136: ='AER - Inputs'!$F$183 -> Per Hour | G136: ='AER - Inputs'!$G$183 -> Quote | H136: =MMULT('AER - Inputs'!$H536:$Y536,'AER - Inputs'!H$32:H$49)*'AER - Inputs'!$H889*'AER - Inputs'!$J889+('AER - Inputs'!$I889*'AER - Inputs'!H$20) -> 142.81 | I136: =MMULT('AER - Inputs'!$H536:$Y536,'AER - Inputs'!I$32:I$49)*'AER - Inputs'!$H889*'AER - Inputs'!$J889+('AER - Inputs'!$I889*'AER - Inputs'!I$20) -> 147.855905 | J136: =MMULT('AER - Inputs'!$H536:$Y536,'AER - Inputs'!J$32:J$49)*'AER - Inputs'!$H889*'AER - Inputs'!$J889+('AER - Inputs'!$I889*'AER - Inputs'!J$20) -> 151.6920357 | K136: =MMULT('AER - Inputs'!$H536:$Y536,'AER - Inputs'!K$32:K$49)*'AER - Inputs'!$H889*'AER - Inputs'!$J889+('AER - Inputs'!$I889*'AER - Inputs'!K$20) -> 155.3344126 | L136: =MMULT('AER - Inputs'!$H536:$Y536,'AER - Inputs'!L$32:L$49)*'AER - Inputs'!$H889*'AER - Inputs'!$J889+('AER - Inputs'!$I889*'AER - Inputs'!L$20) -> 160.1033073 | M136: =MMULT('AER - Inputs'!$H536:$Y536,'AER - Inputs'!M$32:M$49)*'AER - Inputs'!$H889*'AER - Inputs'!$J889+('AER - Inputs'!$I889*'AER - Inputs'!M$20) -> 157.1095152 | N136: =SUMIFS('Report Charges & Xfactors'!$M$10:$M$318,'Report Charges & Xfactors'!$D$10:$D$318,'AER - Calc Cost build up'!D136,'Report Charges & Xfactors'!$E$10:$E$318,'AER - Calc Cost build up'!E136) -> 166.6025545 | O136: 157.1095152 | P136: -9.493039241 | Q136: -0.05698015418
A137: ='AER - Inputs'!$A$184 -> 0 | B137: ='AER - Inputs'!$B$184 -> Ancillary Services | C137: ='AER - Inputs'!$C$184 -> Design related services | D137: ='AER - Inputs'!$D$184 -> Design Re-certification Fee | E137: ='AER - Inputs'!$E$184 -> Subdivision - Non Urban - Per Hour | F137: ='AER - Inputs'!$F$184 -> Per Hour | G137: ='AER - Inputs'!$G$184 -> Quote | H137: =MMULT('AER - Inputs'!$H537:$Y537,'AER - Inputs'!H$32:H$49)*'AER - Inputs'!$H890*'AER - Inputs'!$J890+('AER - Inputs'!$I890*'AER - Inputs'!H$20) -> 142.81 | I137: =MMULT('AER - Inputs'!$H537:$Y537,'AER - Inputs'!I$32:I$49)*'AER - Inputs'!$H890*'AER - Inputs'!$J890+('AER - Inputs'!$I890*'AER - Inputs'!I$20) -> 147.855905 | J137: =MMULT('AER - Inputs'!$H537:$Y537,'AER - Inputs'!J$32:J$49)*'AER - Inputs'!$H890*'AER - Inputs'!$J890+('AER - Inputs'!$I890*'AER - Inputs'!J$20) -> 151.6920357 | K137: =MMULT('AER - Inputs'!$H537:$Y537,'AER - Inputs'!K$32:K$49)*'AER - Inputs'!$H890*'AER - Inputs'!$J890+('AER - Inputs'!$I890*'AER - Inputs'!K$20) -> 155.3344126 | L137: =MMULT('AER - Inputs'!$H537:$Y537,'AER - Inputs'!L$32:L$49)*'AER - Inputs'!$H890*'AER - Inputs'!$J890+('AER - Inputs'!$I890*'AER - Inputs'!L$20) -> 160.1033073 | M137: =MMULT('AER - Inputs'!$H537:$Y537,'AER - Inputs'!M$32:M$49)*'AER - Inputs'!$H890*'AER - Inputs'!$J890+('AER - Inputs'!$I890*'AER - Inputs'!M$20) -> 157.1095152 | N137: =SUMIFS('Report Charges & Xfactors'!$M$10:$M$318,'Report Charges & Xfactors'!$D$10:$D$318,'AER - Calc Cost build up'!D137,'Report Charges & Xfactors'!$E$10:$E$318,'AER - Calc Cost build up'!E137) -> 166.6025545 | O137: =MIN(M137,N137) -> 157.1095152 | P137: =O137-N137 -> -9.493039241 | Q137: =P137/N137 -> -0.05698015418
A138: ='AER - Inputs'!$A$185 -> 0 | B138: ='AER - Inputs'!$B$185 -> Ancillary Services | C138: ='AER - Inputs'!$C$185 -> Design related services | D138: ='AER - Inputs'!$D$185 -> Design Re-certification Fee | E138: ='AER - Inputs'!$E$185 -> Subdivision - URD - Per Hour | F138: ='AER - Inputs'!$F$185 -> Per Hour | G138: ='AER - Inputs'!$G$185 -> Quote | H138: =MMULT('AER - Inputs'!$H538:$Y538,'AER - Inputs'!H$32:H$49)*'AER - Inputs'!$H891*'AER - Inputs'!$J891+('AER - Inputs'!$I891*'AER - Inputs'!H$20) -> 142.81 | I138: =MMULT('AER - Inputs'!$H538:$Y538,'AER - Inputs'!I$32:I$49)*'AER - Inputs'!$H891*'AER - Inputs'!$J891+('AER - Inputs'!$I891*'AER - Inputs'!I$20) -> 147.855905 | J138: =MMULT('AER - Inputs'!$H538:$Y538,'AER - Inputs'!J$32:J$49)*'AER - Inputs'!$H891*'AER - Inputs'!$J891+('AER - Inputs'!$I891*'AER - Inputs'!J$20) -> 151.6920357 | K138: =MMULT('AER - Inputs'!$H538:$Y538,'AER - Inputs'!K$32:K$49)*'AER - Inputs'!$H891*'AER - Inputs'!$J891+('AER - Inputs'!$I891*'AER - Inputs'!K$20) -> 155.3344126 | L138: =MMULT('AER - Inputs'!$H538:$Y538,'AER - Inputs'!L$32:L$49)*'AER - Inputs'!$H891*'AER - Inputs'!$J891+('AER - Inputs'!$I891*'AER - Inputs'!L$20) -> 160.1033073 | M138: =MMULT('AER - Inputs'!$H538:$Y538,'AER - Inputs'!M$32:M$49)*'AER - Inputs'!$H891*'AER - Inputs'!$J891+('AER - Inputs'!$I891*'AER - Inputs'!M$20) -> 157.1095152 | N138: =SUMIFS('Report Charges & Xfactors'!$M$10:$M$318,'Report Charges & Xfactors'!$D$10:$D$318,'AER - Calc Cost build up'!D138,'Report Charges & Xfactors'!$E$10:$E$318,'AER - Calc Cost build up'!E138) -> 166.6025545 | O138: 157.1095152 | P138: -9.493039241 | Q138: -0.05698015418
A139: ='AER - Inputs'!$A$186 -> 1 | B139: ='AER - Inputs'!$B$186 -> Ancillary Services | C139: ='AER - Inputs'!$C$186 -> Inspection services − Private electrical installations and accredited service providers (ASPs) | D139: ='AER - Inputs'!$D$186 -> Inspection of Service Work (Level 1) | E139: ='AER - Inputs'!$E$186 -> Asset Relocation - Asset Relocation - Underground - Per Hour (Engineer) + travel time | F139: ='AER - Inputs'!$F$186 -> Per Hour | G139: ='AER - Inputs'!$G$186 -> Quote | H139: =MMULT('AER - Inputs'!$H539:$Y539,'AER - Inputs'!H$32:H$49)*'AER - Inputs'!$H892*'AER - Inputs'!$J892+('AER - Inputs'!$I892*'AER - Inputs'!H$20) -> 142.81 | I139: =MMULT('AER - Inputs'!$H539:$Y539,'AER - Inputs'!I$32:I$49)*'AER - Inputs'!$H892*'AER - Inputs'!$J892+('AER - Inputs'!$I892*'AER - Inputs'!I$20) -> 147.855905 | J139: =MMULT('AER - Inputs'!$H539:$Y539,'AER - Inputs'!J$32:J$49)*'AER - Inputs'!$H892*'AER - Inputs'!$J892+('AER - Inputs'!$I892*'AER - Inputs'!J$20) -> 151.6920357 | K139: =MMULT('AER - Inputs'!$H539:$Y539,'AER - Inputs'!K$32:K$49)*'AER - Inputs'!$H892*'AER - Inputs'!$J892+('AER - Inputs'!$I892*'AER - Inputs'!K$20) -> 155.3344126 | L139: =MMULT('AER - Inputs'!$H539:$Y539,'AER - Inputs'!L$32:L$49)*'AER - Inputs'!$H892*'AER - Inputs'!$J892+('AER - Inputs'!$I892*'AER - Inputs'!L$20) -> 160.1033073 | M139: =MMULT('AER - Inputs'!$H539:$Y539,'AER - Inputs'!M$32:M$49)*'AER - Inputs'!$H892*'AER - Inputs'!$J892+('AER - Inputs'!$I892*'AER - Inputs'!M$20) -> 157.1095152 | N139: =SUMIFS('Report Charges & Xfactors'!$M$10:$M$318,'Report Charges & Xfactors'!$D$10:$D$318,'AER - Calc Cost build up'!D139,'Report Charges & Xfactors'!$E$10:$E$318,'AER - Calc Cost build up'!E139) -> 166.6025545 | O139: 157.1095152 | P139: -9.493039241 | Q139: -0.05698015418
A140: ='AER - Inputs'!$A$187 -> 1 | B140: ='AER - Inputs'!$B$187 -> Ancillary Services | C140: ='AER - Inputs'!$C$187 -> Inspection services − Private electrical installations and accredited service providers (ASPs) | D140: ='AER - Inputs'!$D$187 -> Inspection of Service Work (Level 1) | E140: ='AER - Inputs'!$E$187 -> Asset Relocation - Asset Relocation - Underground - Per Hour (Inspector) + travel time | F140: ='AER - Inputs'!$F$187 -> Per Hour | G140: ='AER - Inputs'!$G$187 -> Quote | H140: =MMULT('AER - Inputs'!$H540:$Y540,'AER - Inputs'!H$32:H$49)*'AER - Inputs'!$H893*'AER - Inputs'!$J893+('AER - Inputs'!$I893*'AER - Inputs'!H$20) -> 142.81 | I140: =MMULT('AER - Inputs'!$H540:$Y540,'AER - Inputs'!I$32:I$49)*'AER - Inputs'!$H893*'AER - Inputs'!$J893+('AER - Inputs'!$I893*'AER - Inputs'!I$20) -> 147.855905 | J140: =MMULT('AER - Inputs'!$H540:$Y540,'AER - Inputs'!J$32:J$49)*'AER - Inputs'!$H893*'AER - Inputs'!$J893+('AER - Inputs'!$I893*'AER - Inputs'!J$20) -> 151.6920357 | K140: =MMULT('AER - Inputs'!$H540:$Y540,'AER - Inputs'!K$32:K$49)*'AER - Inputs'!$H893*'AER - Inputs'!$J893+('AER - Inputs'!$I893*'AER - Inputs'!K$20) -> 155.3344126 | L140: =MMULT('AER - Inputs'!$H540:$Y540,'AER - Inputs'!L$32:L$49)*'AER - Inputs'!$H893*'AER - Inputs'!$J893+('AER - Inputs'!$I893*'AER - Inputs'!L$20) -> 160.1033073 | M140: =MMULT('AER - Inputs'!$H540:$Y540,'AER - Inputs'!M$32:M$49)*'AER - Inputs'!$H893*'AER - Inputs'!$J893+('AER - Inputs'!$I893*'AER - Inputs'!M$20) -> 157.1095152 | N140: =SUMIFS('Report Charges & Xfactors'!$M$10:$M$318,'Report Charges & Xfactors'!$D$10:$D$318,'AER - Calc Cost build up'!D140,'Report Charges & Xfactors'!$E$10:$E$318,'AER - Calc Cost build up'!E140) -> 166.6025545 | O140: 157.1095152 | P140: -9.493039241 | Q140: -0.05698015418
A141: ='AER - Inputs'!$A$188 -> 1 | B141: ='AER - Inputs'!$B$188 -> Ancillary Services | C141: ='AER - Inputs'!$C$188 -> Inspection services − Private electrical installations and accredited service providers (ASPs) | D141: ='AER - Inputs'!$D$188 -> Inspection of Service Work (Level 1) | E141: ='AER - Inputs'!$E$188 -> Connection of Load - Industrial & Commercial - Overhead - Per Pole (1 - 5) - Grade A | F141: ='AER - Inputs'!$F$188 -> Per Job | G141: ='AER - Inputs'!$G$188 -> Fee | H141: =MMULT('AER - Inputs'!$H541:$Y541,'AER - Inputs'!H$32:H$49)*'AER - Inputs'!$H894*'AER - Inputs'!$J894+('AER - Inputs'!$I894*'AER - Inputs'!H$20) -> 85.686 | I141: =MMULT('AER - Inputs'!$H541:$Y541,'AER - Inputs'!I$32:I$49)*'AER - Inputs'!$H894*'AER - Inputs'!$J894+('AER - Inputs'!$I894*'AER - Inputs'!I$20) -> 88.71354302 | J141: =MMULT('AER - Inputs'!$H541:$Y541,'AER - Inputs'!J$32:J$49)*'AER - Inputs'!$H894*'AER - Inputs'!$J894+('AER - Inputs'!$I894*'AER - Inputs'!J$20) -> 91.01522144 | K141: =MMULT('AER - Inputs'!$H541:$Y541,'AER - Inputs'!K$32:K$49)*'AER - Inputs'!$H894*'AER - Inputs'!$J894+('AER - Inputs'!$I894*'AER - Inputs'!K$20) -> 93.20064758 | L141: =MMULT('AER - Inputs'!$H541:$Y541,'AER - Inputs'!L$32:L$49)*'AER - Inputs'!$H894*'AER - Inputs'!$J894+('AER - Inputs'!$I894*'AER - Inputs'!L$20) -> 96.06198438 | M141: =MMULT('AER - Inputs'!$H541:$Y541,'AER - Inputs'!M$32:M$49)*'AER - Inputs'!$H894*'AER - Inputs'!$J894+('AER - Inputs'!$I894*'AER - Inputs'!M$20) -> 94.26570914 | N141: =SUMIFS('Report Charges & Xfactors'!$M$10:$M$318,'Report Charges & Xfactors'!$D$10:$D$318,'AER - Calc Cost build up'!D141,'Report Charges & Xfactors'!$E$10:$E$318,'AER - Calc Cost build up'!E141) -> 99.96153269 | O141: 94.26570914 | P141: -5.695823545 | Q141: -0.05698015418
A142: ='AER - Inputs'!$A$189 -> 1 | B142: ='AER - Inputs'!$B$189 -> Ancillary Services | C142: ='AER - Inputs'!$C$189 -> Inspection services − Private electrical installations and accredited service providers (ASPs) | D142: ='AER - Inputs'!$D$189 -> Inspection of Service Work (Level 1) | E142: ='AER - Inputs'!$E$189 -> Connection of Load - Industrial & Commercial - Overhead - Per Pole (1 - 5) - Grade B | F142: ='AER - Inputs'!$F$189 -> Per Job | G142: ='AER - Inputs'!$G$189 -> Fee | H142: =MMULT('AER - Inputs'!$H542:$Y542,'AER - Inputs'!H$32:H$49)*'AER - Inputs'!$H895*'AER - Inputs'!$J895+('AER - Inputs'!$I895*'AER - Inputs'!H$20) -> 164.2315 | I142: =MMULT('AER - Inputs'!$H542:$Y542,'AER - Inputs'!I$32:I$49)*'AER - Inputs'!$H895*'AER - Inputs'!$J895+('AER - Inputs'!$I895*'AER - Inputs'!I$20) -> 170.0342908 | J142: =MMULT('AER - Inputs'!$H542:$Y542,'AER - Inputs'!J$32:J$49)*'AER - Inputs'!$H895*'AER - Inputs'!$J895+('AER - Inputs'!$I895*'AER - Inputs'!J$20) -> 174.4458411 | K142: =MMULT('AER - Inputs'!$H542:$Y542,'AER - Inputs'!K$32:K$49)*'AER - Inputs'!$H895*'AER - Inputs'!$J895+('AER - Inputs'!$I895*'AER - Inputs'!K$20) -> 178.6345745 | L142: =MMULT('AER - Inputs'!$H542:$Y542,'AER - Inputs'!L$32:L$49)*'AER - Inputs'!$H895*'AER - Inputs'!$J895+('AER - Inputs'!$I895*'AER - Inputs'!L$20) -> 184.1188034 | M142: =MMULT('AER - Inputs'!$H542:$Y542,'AER - Inputs'!M$32:M$49)*'AER - Inputs'!$H895*'AER - Inputs'!$J895+('AER - Inputs'!$I895*'AER - Inputs'!M$20) -> 180.6759425 | N142: =SUMIFS('Report Charges & Xfactors'!$M$10:$M$318,'Report Charges & Xfactors'!$D$10:$D$318,'AER - Calc Cost build up'!D142,'Report Charges & Xfactors'!$E$10:$E$318,'AER - Calc Cost build up'!E142) -> 191.5929377 | O142: 180.6759425 | P142: -10.91699513 | Q142: -0.05698015418
A143: ='AER - Inputs'!$A$190 -> 1 | B143: ='AER - Inputs'!$B$190 -> Ancillary Services | C143: ='AER - Inputs'!$C$190 -> Inspection services − Private electrical installations and accredited service providers (ASPs) | D143: ='AER - Inputs'!$D$190 -> Inspection of Service Work (Level 1) | E143: ='AER - Inputs'!$E$190 -> Connection of Load - Industrial & Commercial - Overhead - Per Pole (1 - 5) - Grade C | F143: ='AER - Inputs'!$F$190 -> Per Job | G143: ='AER - Inputs'!$G$190 -> Fee | H143: =MMULT('AER - Inputs'!$H543:$Y543,'AER - Inputs'!H$32:H$49)*'AER - Inputs'!$H896*'AER - Inputs'!$J896+('AER - Inputs'!$I896*'AER - Inputs'!H$20) -> 314.182 | I143: =MMULT('AER - Inputs'!$H543:$Y543,'AER - Inputs'!I$32:I$49)*'AER - Inputs'!$H896*'AER - Inputs'!$J896+('AER - Inputs'!$I896*'AER - Inputs'!I$20) -> 325.2829911 | J143: =MMULT('AER - Inputs'!$H543:$Y543,'AER - Inputs'!J$32:J$49)*'AER - Inputs'!$H896*'AER - Inputs'!$J896+('AER - Inputs'!$I896*'AER - Inputs'!J$20) -> 333.7224786 | K143: =MMULT('AER - Inputs'!$H543:$Y543,'AER - Inputs'!K$32:K$49)*'AER - Inputs'!$H896*'AER - Inputs'!$J896+('AER - Inputs'!$I896*'AER - Inputs'!K$20) -> 341.7357078 | L143: =MMULT('AER - Inputs'!$H543:$Y543,'AER - Inputs'!L$32:L$49)*'AER - Inputs'!$H896*'AER - Inputs'!$J896+('AER - Inputs'!$I896*'AER - Inputs'!L$20) -> 352.227276 | M143: =MMULT('AER - Inputs'!$H543:$Y543,'AER - Inputs'!M$32:M$49)*'AER - Inputs'!$H896*'AER - Inputs'!$J896+('AER - Inputs'!$I896*'AER - Inputs'!M$20) -> 345.6409335 | N143: =SUMIFS('Report Charges & Xfactors'!$M$10:$M$318,'Report Charges & Xfactors'!$D$10:$D$318,'AER - Calc Cost build up'!D143,'Report Charges & Xfactors'!$E$10:$E$318,'AER - Calc Cost build up'!E143) -> 366.5256199 | O143: 345.6409335 | P143: -20.88468633 | Q143: -0.05698015418
